Workbook

Sheet Introduction
C4: Joint Monitoring Programme for Water Supply, Sanitation and Hygiene
C6: Estimates on household water, sanitation and hygiene by wealth quintile and sub-national region in
C7: =+Water!B5 -> Viet Nam
C9: Updated May 2021
C11: Follow the links below to find the following information:
C13: JMP Estimates
C14: WASH status and trends by wealth quintile (customized quintiles made without water and sanitation assets)
C15: Water
C16: Sanitation
C17: Hygiene
C19: Data inputs
C20: customized wealth quintiles and subnational data:
C21: =IF(INDIRECT(CONCATENATE("Water","!B105"))=0,"",INDIRECT(CONCATENATE("Water","!B105"))) -> DHS02
C22: =IF(INDIRECT(CONCATENATE("Water","!B106"))=0,"",INDIRECT(CONCATENATE("Water","!B106"))) -> WHS03
C23: =IF(INDIRECT(CONCATENATE("Water","!B107"))=0,"",INDIRECT(CONCATENATE("Water","!B107"))) -> AIS05
C24: =IF(INDIRECT(CONCATENATE("Water","!B108"))=0,"",INDIRECT(CONCATENATE("Water","!B108"))) -> MICS06
C25: =IF(INDIRECT(CONCATENATE("Water","!B109"))=0,"",INDIRECT(CONCATENATE("Water","!B109"))) -> MICS11
C26: =IF(INDIRECT(CONCATENATE("Water","!B110"))=0,"",INDIRECT(CONCATENATE("Water","!B110"))) -> MICS14
C27: =IF(INDIRECT(CONCATENATE("Water","!B111"))=0,"",INDIRECT(CONCATENATE("Water","!B111"))) -> 
C28: =IF(INDIRECT(CONCATENATE("Water","!B112"))=0,"",INDIRECT(CONCATENATE("Water","!B112"))) -> 
C29: =IF(INDIRECT(CONCATENATE("Water","!B113"))=0,"",INDIRECT(CONCATENATE("Water","!B113"))) -> 
C30: =IF(INDIRECT(CONCATENATE("Water","!B114"))=0,"",INDIRECT(CONCATENATE("Water","!B114"))) -> 
C31: =IF(INDIRECT(CONCATENATE("Water","!B115"))=0,"",INDIRECT(CONCATENATE("Water","!B115"))) -> 
C32: =IF(INDIRECT(CONCATENATE("Water","!B116"))=0,"",INDIRECT(CONCATENATE("Water","!B116"))) -> 
L55: =+IF(ISNUMBER(M48), "", "Insufficient data to estimate safely managed sanitation services at national level") -> Insufficient data to estimate safely managed sanitation services at national level

Sheet Water
A1: BGD
B4: Summary of trends in use of drinking water by wealth quintile (%)
B5: =IF(ISERROR(INDIRECT(CONCATENATE($B105,"!A2"))),"",INDIRECT(CONCATENATE($B105,"!A2"))) -> Viet Nam
B7: =B118 -> National use of drinking water sources, 2000–2020 | J7: =B218 -> Urban use of drinking water sources, 2000–2020 | R7: =B318 -> Rural use of drinking water sources, 2000–2020
B31: =IF(ISERROR(INDIRECT(CONCATENATE($B105,"!A2"))),"",INDIRECT(CONCATENATE($B105,"!A2"))) -> Viet Nam | F31: Poorest | J31: Poor | N31: Middle | R31: Rich | V31: Richest
F32: Basic | G32: Limited | H32: Unimproved | I32: Surface water | J32: Basic | K32: Limited | L32: Unimproved | M32: Surface water | N32: Basic | O32: Limited | P32: Unimproved | Q32: Surface water | R32: Basic | S32: Limited | T32: Unimproved | U32: Surface water | V32: Basic | W32: Limited | X32: Unimproved | Y32: Surface water
B33: NATIONAL | D33: Estimate | E33: =C99 -> 2000 | F33: =E99 -> 61.5488517 | G33: =F99 -> 0.2441568428 | H33: 19.47609828 | I33: 18.73089318 | J33: =J99 -> 77.34133401 | K33: =K99 -> 0.1168441841 | L33: 9.629449205 | M33: 12.9123726 | N33: =O99 -> 87.52899552 | O33: =P99 -> 0.02831197012 | P33: 7.220371854 | Q33: 5.222320655 | R33: =T99 -> 93.03417779 | S33: =U99 -> 0 | T33: 3.107290418 | U33: 3.858531793 | V33: =Y99 -> 97.14182473 | W33: =Z99 -> 0.08427316214 | X33: 1.68416355 | Y33: 1.089738556
E34: =C100 -> 2020 | F34: =E100 -> 83.93320088 | G34: 0.3329528459 | H34: 14.77484407 | I34: 0.9590022037 | J34: =J100 -> 94.98829842 | K34: 0.1435045098 | L34: 4.86819707 | M34: 0 | N34: =O100 -> 98.27970916 | O34: 0.03178937645 | P34: 1.391361458 | Q34: 0.2971400036 | R34: =T100 -> 99.79711135 | S34: 0 | T34: 0.2028886527 | U34: 0 | V34: =Y100 -> 99.91332249 | W34: 0.08667751146 | X34: 0 | Y34: 0
B36: URBAN | D36: Estimate | E36: =C199 -> 2000 | F36: =E199 -> 91.4119039 | G36: =F199 -> 0.1707023326 | H36: 4.064517979 | I36: 4.352875788 | J36: =J199 -> 97.36505755 | K36: =K199 -> 0 | L36: 2.000929844 | M36: 0.634012606 | N36: =O199 -> 99.175769 | O36: =P199 -> 0.06656664698 | P36: 0.3950046318 | Q36: 0.3626597183 | R36: =T199 -> 98.03797804 | S36: =U199 -> 0.1320589776 | T36: 1.632278637 | U36: 0.1976843424 | V36: =Y199 -> 99.57505091 | W36: =Z199 -> 0.4249490865 | X36: 0 | Y36: 0
E37: =C200 -> 2020 | F37: =E200 -> 96.02245457 | G37: 0.179312062 | H37: 3.798233371 | I37: 0 | J37: =J200 -> 99.61568244 | K37: 0 | L37: 0.3843175619 | M37: 0 | N37: =O200 -> 99.901406 | O37: 0.06705369359 | P37: 0.03154030286 | Q37: 0 | R37: =T200 -> 99.85398473 | S37: 0.1345051723 | T37: 0 | U37: 0.01151009814 | V37: =Y200 -> 99.49840764 | W37: 0.4246220017 | X37: 0.07697035946 | Y37: 0
B39: RURAL | D39: Estimate | E39: =C299 -> 2000 | F39: =E299 -> 58.40860458 | G39: =F299 -> 0.287348796 | H39: 21.24405336 | I39: 20.05999326 | J39: =J299 -> 73.98182354 | K39: =K299 -> 0.1438447584 | L39: 11.12429603 | M39: 14.75003567 | N39: =O299 -> 85.06609144 | O39: =P299 -> 0.015225329 | P39: 7.369453463 | Q39: 7.549229768 | R39: =T299 -> 90.2242466 | S39: =U299 -> 0.0056494971 | T39: 5.703290029 | U39: 4.066813871 | V39: =Y299 -> 91.88312284 | W39: =Z299 -> 0 | X39: 3.792450958 | Y39: 4.324426201
E40: =C300 -> 2020 | F40: =E300 -> 80.87165593 | G40: 0.3978587253 | H40: 17.32895296 | I40: 1.401532386 | J40: =J300 -> 90.9566491 | K40: 0.1768493474 | L40: 8.655999151 | M40: 0.2105024043 | N40: =O300 -> 95.67419016 | O40: 0.01712399145 | P40: 3.452492574 | Q40: 0.8561932755 | R40: =T300 -> 97.79056385 | S40: 0.006123270935 | T40: 1.650886687 | U40: 0.5524261926 | V40: =Y300 -> 100 | W40: 0 | X40: 0 | Y40: 0
A97: NATIONAL | D97: Poorest | I97: Poor | N97: Middle | S97: Rich | X97: Richest
D98: Improved | E98: Basic | F98: Limited | G98: Unimproved | H98: Surface water | I98: Improved | J98: Basic | K98: Limited | L98: Unimproved | M98: Surface water | N98: Improved | O98: Basic | P98: Limited | Q98: Unimproved | R98: Surface water | S98: Improved | T98: Basic | U98: Limited | V98: Unimproved | W98: Surface water | X98: Improved | Y98: Basic | Z98: Limited | AA98: Unimproved | AB98: Surface water
A99: Forecast period: | C99: 2000 | D99: =IF((D101+H101)>100,D101*100/(D101+H101),D101) -> 61.79300854 | E99: =D99*AVERAGEIF(E105:E116,">0")/100 -> 61.5488517 | F99: =D99*(100-AVERAGEIF(E105:E116,">0"))/100 -> 0.2441568428 | G99: =100-(E99+F99+H99) -> 19.47609828 | H99: =IF((D101+H101)>100,H101*100/(D101+H101),H101) -> 18.73089318 | I99: =IF((I101+M101)>100,I101*100/(I101+M101),I101) -> 77.4581782 | J99: =I99*AVERAGEIF(J105:J116,">0")/100 -> 77.34133401 | K99: =I99*(100-AVERAGEIF(J105:J116,">0"))/100 -> 0.1168441841 | L99: =100-(J99+K99+M99) -> 9.629449205 | M99: =IF((I101+M101)>100,M101*100/(I101+M101),M101) -> 12.9123726 | N99: =IF((N101+R101)>100,N101*100/(N101+R101),N101) -> 87.55730749 | O99: =N99*AVERAGEIF(O105:O116,">0")/100 -> 87.52899552 | P99: =N99*(100-AVERAGEIF(O105:O116,">0"))/100 -> 0.02831197012 | Q99: =100-(O99+P99+R99) -> 7.220371854 | R99: =IF((N101+R101)>100,R101*100/(N101+R101),R101) -> 5.222320655 | S99: =IF((S101+W101)>100,S101*100/(S101+W101),S101) -> 93.03417779 | T99: =S99*AVERAGEIF(T105:T116,">0")/100 -> 93.03417779 | U99: =S99*(100-AVERAGEIF(T105:T116,">0"))/100 -> 0 | V99: =100-(T99+U99+W99) -> 3.107290418 | W99: =IF((S101+W101)>100,W101*100/(S101+W101),W101) -> 3.858531793 | X99: =IF((X101+AB101)>100,X101*100/(X101+AB101),X101) -> 97.22609789 | Y99: =X99*AVERAGEIF(Y105:Y116,">0")/100 -> 97.14182473 | Z99: =X99*(100-AVERAGEIF(Y105:Y116,">0"))/100 -> 0.08427316214 | AA99: =100-(Y99+Z99+AB99) -> 1.68416355 | AB99: =IF((X101+AB101)>100,AB101*100/(X101+AB101),AB101) -> 1.089738556
C100: 2020 | D100: =IF((D102+H102)>100,D102*100/(D102+H102),D102) -> 84.26615373 | E100: =D100*AVERAGEIF(E105:E116,">0")/100 -> 83.93320088 | F100: =D100*(100-AVERAGEIF(E105:E116,">0"))/100 -> 0.3329528459 | G100: =100-(E100+F100+H100) -> 14.77484407 | H100: =IF((D102+H102)>100,H102*100/(D102+H102),H102) -> 0.9590022037 | I100: =IF((I102+M102)>100,I102*100/(I102+M102),I102) -> 95.13180293 | J100: =I100*AVERAGEIF(J105:J116,">0")/100 -> 94.98829842 | K100: =I100*(100-AVERAGEIF(J105:J116,">0"))/100 -> 0.1435045098 | L100: =100-(J100+K100+M100) -> 4.86819707 | M100: =IF((I102+M102)>100,M102*100/(I102+M102),M102) -> 0 | N100: =IF((N102+R102)>100,N102*100/(N102+R102),N102) -> 98.31149854 | O100: =N100*AVERAGEIF(O105:O116,">0")/100 -> 98.27970916 | P100: =N100*(100-AVERAGEIF(O105:O116,">0"))/100 -> 0.03178937645 | Q100: =100-(O100+P100+R100) -> 1.391361458 | R100: =IF((N102+R102)>100,R102*100/(N102+R102),R102) -> 0.2971400036 | S100: =IF((S102+W102)>100,S102*100/(S102+W102),S102) -> 99.79711135 | T100: =S100*AVERAGEIF(T105:T116,">0")/100 -> 99.79711135 | U100: =S100*(100-AVERAGEIF(T105:T116,">0"))/100 -> 0 | V100: =100-(T100+U100+W100) -> 0.2028886527 | W100: =IF((S102+W102)>100,W102*100/(S102+W102),W102) -> 0 | X100: =IF((X102+AB102)>100,X102*100/(X102+AB102),X102) -> 100 | Y100: =X100*AVERAGEIF(Y105:Y116,">0")/100 -> 99.91332249 | Z100: =X100*(100-AVERAGEIF(Y105:Y116,">0"))/100 -> 0.08667751146 | AA100: =100-(Y100+Z100+AB100) -> 0 | AB100: =IF((X102+AB102)>100,AB102*100/(X102+AB102),AB102) -> 0
A101: Regression period: | C101: =MinRegYear(C99,C105:C116) -> 2000 | D101: =IF(MAX(C105:C116)-MIN(C105:C116)<5,AVERAGEIF(C105:C116,">0",D105:D116), IF(FORECAST($C101,D$105:D$116,$C$105:$C$116)<0,0, IF(FORECAST($C101,D$105:D$116,$C$105:$C$116)>100,100, FORECAST($C101,D$105:D$116,$C$105:$C$116)))) -> 61.79300854 | H101: =IF(MAX(C105:C116)-MIN(C105:C116)<5,AVERAGEIF(C105:C116,">0",H105:H116), IF(FORECAST($C101,H$105:H$116,$C$105:$C$116)<0,0, IF(FORECAST($C101,H$105:H$116,$C$105:$C$116)>100,100, FORECAST($C101,H$105:H$116,$C$105:$C$116)))) -> 18.73089318 | I101: =IF(MAX(C105:C116)-MIN(C105:C116)<5,AVERAGEIF(C105:C116,">0",I105:I116), IF(FORECAST($C101,I$105:I$116,$C$105:$C$116)<0,0, IF(FORECAST($C101,I$105:I$116,$C$105:$C$116)>100,100, FORECAST($C101,I$105:I$116,$C$105:$C$116)))) -> 77.4581782 | M101: =IF(MAX(C105:C116)-MIN(C105:C116)<5,AVERAGEIF(C105:C116,">0",M105:M116), IF(FORECAST($C101,M$105:M$116,$C$105:$C$116)<0,0, IF(FORECAST($C101,M$105:M$116,$C$105:$C$116)>100,100, FORECAST($C101,M$105:M$116,$C$105:$C$116)))) -> 12.9123726 | N101: =IF(MAX(C105:C116)-MIN(C105:C116)<5,AVERAGEIF(C105:C116,">0",N105:N116), IF(FORECAST($C101,N$105:N$116,$C$105:$C$116)<0,0, IF(FORECAST($C101,N$105:N$116,$C$105:$C$116)>100,100, FORECAST($C101,N$105:N$116,$C$105:$C$116)))) -> 87.55730749 | R101: =IF(MAX(C105:C116)-MIN(C105:C116)<5,AVERAGEIF(C105:C116,">0",R105:R116), IF(FORECAST($C101,R$105:R$116,$C$105:$C$116)<0,0, IF(FORECAST($C101,R$105:R$116,$C$105:$C$116)>100,100, FORECAST($C101,R$105:R$116,$C$105:$C$116)))) -> 5.222320655 | S101: =IF(MAX(C105:C116)-MIN(C105:C116)<5,AVERAGEIF(C105:C116,">0",S105:S116), IF(FORECAST($C101,S$105:S$116,$C$105:$C$116)<0,0, IF(FORECAST($C101,S$105:S$116,$C$105:$C$116)>100,100, FORECAST($C101,S$105:S$116,$C$105:$C$116)))) -> 93.03417779 | W101: =IF(MAX(C105:C116)-MIN(C105:C116)<5,AVERAGEIF(C105:C116,">0",W105:W116), IF(FORECAST($C101,W$105:W$116,$C$105:$C$116)<0,0, IF(FORECAST($C101,W$105:W$116,$C$105:$C$116)>100,100, FORECAST($C101,W$105:W$116,$C$105:$C$116)))) -> 3.858531793 | X101: =IF(MAX(C105:C116)-MIN(C105:C116)<5,AVERAGEIF(C105:C116,">0",X105:X116), IF(FORECAST($C101,X$105:X$116,$C$105:$C$116)<0,0, IF(FORECAST($C101,X$105:X$116,$C$105:$C$116)>100,100, FORECAST($C101,X$105:X$116,$C$105:$C$116)))) -> 97.22609789 | AB101: =IF(MAX(C105:C116)-MIN(C105:C116)<5,AVERAGEIF(C105:C116,">0",AB105:AB116), IF(FORECAST($C101,AB$105:AB$116,$C$105:$C$116)<0,0, IF(FORECAST($C101,AB$105:AB$116,$C$105:$C$116)>100,100, FORECAST($C101,AB$105:AB$116,$C$105:$C$116)))) -> 1.089738556
C102: =MaxRegYear(C100,C105:C116) -> 2016 | D102: =IF(MAX(C105:C116)-MIN(C105:C116)<5,AVERAGEIF(C105:C116,">0",D105:D116), IF(FORECAST($C102,D$105:D$116,$C$105:$C$116)<0,0, IF(FORECAST($C102,D$105:D$116,$C$105:$C$116)>100,100, FORECAST($C102,D$105:D$116,$C$105:$C$116)))) -> 84.26615373 | H102: =IF(MAX(C105:C116)-MIN(C105:C116)<5,AVERAGEIF(C105:C116,">0",H105:H116), IF(FORECAST($C102,H$105:H$116,$C$105:$C$116)<0,0, IF(FORECAST($C102,H$105:H$116,$C$105:$C$116)>100,100, FORECAST($C102,H$105:H$116,$C$105:$C$116)))) -> 0.9590022037 | I102: =IF(MAX(C105:C116)-MIN(C105:C116)<5,AVERAGEIF(C105:C116,">0",I105:I116), IF(FORECAST($C102,I$105:I$116,$C$105:$C$116)<0,0, IF(FORECAST($C102,I$105:I$116,$C$105:$C$116)>100,100, FORECAST($C102,I$105:I$116,$C$105:$C$116)))) -> 95.13180293 | M102: =IF(MAX(C105:C116)-MIN(C105:C116)<5,AVERAGEIF(C105:C116,">0",M105:M116), IF(FORECAST($C102,M$105:M$116,$C$105:$C$116)<0,0, IF(FORECAST($C102,M$105:M$116,$C$105:$C$116)>100,100, FORECAST($C102,M$105:M$116,$C$105:$C$116)))) -> 0 | N102: =IF(MAX(C105:C116)-MIN(C105:C116)<5,AVERAGEIF(C105:C116,">0",N105:N116), IF(FORECAST($C102,N$105:N$116,$C$105:$C$116)<0,0, IF(FORECAST($C102,N$105:N$116,$C$105:$C$116)>100,100, FORECAST($C102,N$105:N$116,$C$105:$C$116)))) -> 98.31149854 | R102: =IF(MAX(C105:C116)-MIN(C105:C116)<5,AVERAGEIF(C105:C116,">0",R105:R116), IF(FORECAST($C102,R$105:R$116,$C$105:$C$116)<0,0, IF(FORECAST($C102,R$105:R$116,$C$105:$C$116)>100,100, FORECAST($C102,R$105:R$116,$C$105:$C$116)))) -> 0.2971400036 | S102: =IF(MAX(C105:C116)-MIN(C105:C116)<5,AVERAGEIF(C105:C116,">0",S105:S116), IF(FORECAST($C102,S$105:S$116,$C$105:$C$116)<0,0, IF(FORECAST($C102,S$105:S$116,$C$105:$C$116)>100,100, FORECAST($C102,S$105:S$116,$C$105:$C$116)))) -> 99.79711135 | W102: =IF(MAX(C105:C116)-MIN(C105:C116)<5,AVERAGEIF(C105:C116,">0",W105:W116), IF(FORECAST($C102,W$105:W$116,$C$105:$C$116)<0,0, IF(FORECAST($C102,W$105:W$116,$C$105:$C$116)>100,100, FORECAST($C102,W$105:W$116,$C$105:$C$116)))) -> 0 | X102: =IF(MAX(C105:C116)-MIN(C105:C116)<5,AVERAGEIF(C105:C116,">0",X105:X116), IF(FORECAST($C102,X$105:X$116,$C$105:$C$116)<0,0, IF(FORECAST($C102,X$105:X$116,$C$105:$C$116)>100,100, FORECAST($C102,X$105:X$116,$C$105:$C$116)))) -> 100 | AB102: =IF(MAX(C105:C116)-MIN(C105:C116)<5,AVERAGEIF(C105:C116,">0",AB105:AB116), IF(FORECAST($C102,AB$105:AB$116,$C$105:$C$116)<0,0, IF(FORECAST($C102,AB$105:AB$116,$C$105:$C$116)>100,100, FORECAST($C102,AB$105:AB$116,$C$105:$C$116)))) -> 0
B104: Survey | C104: Year | D104: Improved | E104: Basic | H104: Surface water | I104: Improved | J104: Basic | M104: Surface water | N104: Improved | O104: Basic | R104: Surface water | S104: Improved | T104: Basic | W104: Surface water | X104: Improved | Y104: Basic | AB104: Surface water
B105: DHS02 | C105: 2002 | D105: =IF(ISERROR(INDIRECT(CONCATENATE($B105,"!C16"))),"",INDIRECT(CONCATENATE($B105,"!C16"))) -> 62.9918848 | E105: =IF(ISERROR(INDIRECT(CONCATENATE($B105,"!C23"))),"",INDIRECT(CONCATENATE($B105,"!C23"))) -> N/A | H105: =IF(ISERROR(INDIRECT(CONCATENATE($B105,"!C21"))),"",INDIRECT(CONCATENATE($B105,"!C21"))) -> 17.82525099 | I105: =IF(ISERROR(INDIRECT(CONCATENATE($B105,"!D16"))),"",INDIRECT(CONCATENATE($B105,"!D16"))) -> 79.02513581 | J105: =IF(ISERROR(INDIRECT(CONCATENATE($B105,"!D23"))),"",INDIRECT(CONCATENATE($B105,"!D23"))) -> N/A | M105: =IF(ISERROR(INDIRECT(CONCATENATE($B105,"!D21"))),"",INDIRECT(CONCATENATE($B105,"!D21"))) -> 10.1925627 | N105: =IF(ISERROR(INDIRECT(CONCATENATE($B105,"!E16"))),"",INDIRECT(CONCATENATE($B105,"!E16"))) -> 88.92532614 | O105: =IF(ISERROR(INDIRECT(CONCATENATE($B105,"!E23"))),"",INDIRECT(CONCATENATE($B105,"!E23"))) -> N/A | R105: =IF(ISERROR(INDIRECT(CONCATENATE($B105,"!E21"))),"",INDIRECT(CONCATENATE($B105,"!E21"))) -> 3.535103066 | S105: =IF(ISERROR(INDIRECT(CONCATENATE($B105,"!F16"))),"",INDIRECT(CONCATENATE($B105,"!F16"))) -> 94.13320588 | T105: =IF(ISERROR(INDIRECT(CONCATENATE($B105,"!F23"))),"",INDIRECT(CONCATENATE($B105,"!F23"))) -> N/A | W105: =IF(ISERROR(INDIRECT(CONCATENATE($B105,"!F21"))),"",INDIRECT(CONCATENATE($B105,"!F21"))) -> 2.551935239 | X105: =IF(ISERROR(INDIRECT(CONCATENATE($B105,"!G16"))),"",INDIRECT(CONCATENATE($B105,"!G16"))) -> 97.54308416 | Y105: =IF(ISERROR(INDIRECT(CONCATENATE($B105,"!G23"))),"",INDIRECT(CONCATENATE($B105,"!G23"))) -> N/A | AB105: =IF(ISERROR(INDIRECT(CONCATENATE($B105,"!G221"))),"",INDIRECT(CONCATENATE($B105,"!G21"))) -> 0.9958879571
B106: WHS03 | D106: 84.33484498 | E106: 99.54569385 | H106: 3.349751961 | I106: 93.216681 | J106: 99.72942988 | M106: 0.4936450967 | N106: 94.67381005 | O106: 100 | R106: 0.1487168653 | S106: 96.40338123 | T106: 100 | W106: 0.1289982614 | X106: 98.85762006 | Y106: 99.85819993 | AB106: 0.1319538845
B107: AIS05 | C107: 2005 | D107: 67.15017258 | E107: N/A | H107: 13.34129921 | I107: 80.75581599 | J107: N/A | M107: 10.68578618 | N107: 90.13428462 | O107: N/A | R107: 3.619701594 | S107: 94.4365449 | T107: N/A | W107: 2.888550359 | X107: 97.60253832 | Y107: N/A | AB107: 0.7245970421
B108: MICS06 | C108: 2006 | D108: 74.22162144 | E108: 99.34547767 | H108: 9.63121153 | I108: 86.63832742 | J108: 99.97297832 | M108: 7.976613815 | N108: 92.13754324 | O108: 99.87065856 | R108: 5.254162719 | S108: 95.68604083 | T108: 100 | W108: 3.323780048 | X108: 99.17981925 | Y108: 99.79509003 | AB108: 0.473741851
B109: MICS11 | C109: 2011 | D109: 78.01162235 | E109: 99.67536371 | H109: 7.250902278 | I109: 92.04711376 | J109: 99.73126914 | M109: 2.051282713 | N109: 95.74718652 | O109: 100 | R109: 1.302946485 | S109: 98.49349669 | T109: 100 | W109: 0.4448690526 | X109: 99.6096515 | Y109: 100 | AB109: 0.01651013541
B110: MICS14 | C110: 2014 | D110: 79.96346135 | E110: 99.85298279 | H110: 3.397560821 | I110: 90.79935676 | J110: 99.96293028 | M110: 2.05321235 | N110: 96.38340067 | O110: 100 | R110: 0.7023853627 | S110: 98.48356785 | T110: 100 | W110: 0.2217658554 | X110: 99.78836135 | Y110: 100 | AB110: 0.05605373389
D111: =IF(ISERROR(INDIRECT(CONCATENATE($B111,"!C16"))),"",INDIRECT(CONCATENATE($B111,"!C16"))) ->  | E111: =IF(ISERROR(INDIRECT(CONCATENATE($B111,"!C23"))),"",INDIRECT(CONCATENATE($B111,"!C23"))) ->  | H111: =IF(ISERROR(INDIRECT(CONCATENATE($B111,"!C21"))),"",INDIRECT(CONCATENATE($B111,"!C21"))) ->  | I111: =IF(ISERROR(INDIRECT(CONCATENATE($B111,"!D16"))),"",INDIRECT(CONCATENATE($B111,"!D16"))) ->  | J111: =IF(ISERROR(INDIRECT(CONCATENATE($B111,"!D23"))),"",INDIRECT(CONCATENATE($B111,"!D23"))) ->  | M111: =IF(ISERROR(INDIRECT(CONCATENATE($B111,"!D21"))),"",INDIRECT(CONCATENATE($B111,"!D21"))) ->  | N111: =IF(ISERROR(INDIRECT(CONCATENATE($B111,"!E16"))),"",INDIRECT(CONCATENATE($B111,"!E16"))) ->  | O111: =IF(ISERROR(INDIRECT(CONCATENATE($B111,"!E23"))),"",INDIRECT(CONCATENATE($B111,"!E23"))) ->  | R111: =IF(ISERROR(INDIRECT(CONCATENATE($B111,"!E21"))),"",INDIRECT(CONCATENATE($B111,"!E21"))) ->  | S111: =IF(ISERROR(INDIRECT(CONCATENATE($B111,"!F16"))),"",INDIRECT(CONCATENATE($B111,"!F16"))) ->  | T111: =IF(ISERROR(INDIRECT(CONCATENATE($B111,"!F23"))),"",INDIRECT(CONCATENATE($B111,"!F23"))) ->  | W111: =IF(ISERROR(INDIRECT(CONCATENATE($B111,"!F21"))),"",INDIRECT(CONCATENATE($B111,"!F21"))) ->  | X111: =IF(ISERROR(INDIRECT(CONCATENATE($B111,"!G16"))),"",INDIRECT(CONCATENATE($B111,"!G16"))) ->  | Y111: =IF(ISERROR(INDIRECT(CONCATENATE($B111,"!G23"))),"",INDIRECT(CONCATENATE($B111,"!G23"))) ->  | AB111: =IF(ISERROR(INDIRECT(CONCATENATE($B111,"!G221"))),"",INDIRECT(CONCATENATE($B111,"!G21"))) -> 
D112: =IF(ISERROR(INDIRECT(CONCATENATE($B112,"!C16"))),"",INDIRECT(CONCATENATE($B112,"!C16"))) ->  | E112: =IF(ISERROR(INDIRECT(CONCATENATE($B112,"!C23"))),"",INDIRECT(CONCATENATE($B112,"!C23"))) ->  | H112: =IF(ISERROR(INDIRECT(CONCATENATE($B112,"!C21"))),"",INDIRECT(CONCATENATE($B112,"!C21"))) ->  | I112: =IF(ISERROR(INDIRECT(CONCATENATE($B112,"!D16"))),"",INDIRECT(CONCATENATE($B112,"!D16"))) ->  | J112: =IF(ISERROR(INDIRECT(CONCATENATE($B112,"!D23"))),"",INDIRECT(CONCATENATE($B112,"!D23"))) ->  | M112: =IF(ISERROR(INDIRECT(CONCATENATE($B112,"!D21"))),"",INDIRECT(CONCATENATE($B112,"!D21"))) ->  | N112: =IF(ISERROR(INDIRECT(CONCATENATE($B112,"!E16"))),"",INDIRECT(CONCATENATE($B112,"!E16"))) ->  | O112: =IF(ISERROR(INDIRECT(CONCATENATE($B112,"!E23"))),"",INDIRECT(CONCATENATE($B112,"!E23"))) ->  | R112: =IF(ISERROR(INDIRECT(CONCATENATE($B112,"!E21"))),"",INDIRECT(CONCATENATE($B112,"!E21"))) ->  | S112: =IF(ISERROR(INDIRECT(CONCATENATE($B112,"!F16"))),"",INDIRECT(CONCATENATE($B112,"!F16"))) ->  | T112: =IF(ISERROR(INDIRECT(CONCATENATE($B112,"!F23"))),"",INDIRECT(CONCATENATE($B112,"!F23"))) ->  | W112: =IF(ISERROR(INDIRECT(CONCATENATE($B112,"!F21"))),"",INDIRECT(CONCATENATE($B112,"!F21"))) ->  | X112: =IF(ISERROR(INDIRECT(CONCATENATE($B112,"!G16"))),"",INDIRECT(CONCATENATE($B112,"!G16"))) ->  | Y112: =IF(ISERROR(INDIRECT(CONCATENATE($B112,"!G23"))),"",INDIRECT(CONCATENATE($B112,"!G23"))) ->  | AB112: =IF(ISERROR(INDIRECT(CONCATENATE($B112,"!G221"))),"",INDIRECT(CONCATENATE($B112,"!G21"))) -> 
B118: =CONCATENATE("National use of drinking water sources, ",C99,"–",C100) -> National use of drinking water sources, 2000–2020 | S118: Data points used for regression
E153: =IF(ISERROR(INDIRECT(CONCATENATE($B153,"!M18"))),"",INDIRECT(CONCATENATE($B153,"!M18"))) ->  | F153: =IF(ISERROR(INDIRECT(CONCATENATE($B153,"!M19"))),"",INDIRECT(CONCATENATE($B153,"!M19"))) ->  | G153: =IF(ISERROR(INDIRECT(CONCATENATE($B153,"!M20"))),"",INDIRECT(CONCATENATE($B153,"!M20"))) ->  | H153: =IF(ISERROR(INDIRECT(CONCATENATE($B153,"!M21"))),"",INDIRECT(CONCATENATE($B153,"!M21"))) ->  | J153: =IF(ISERROR(INDIRECT(CONCATENATE($B153,"!N18"))),"",INDIRECT(CONCATENATE($B153,"!N18"))) ->  | K153: =IF(ISERROR(INDIRECT(CONCATENATE($B153,"!N19"))),"",INDIRECT(CONCATENATE($B153,"!N19"))) ->  | L153: =IF(ISERROR(INDIRECT(CONCATENATE($B153,"!N20"))),"",INDIRECT(CONCATENATE($B153,"!N20"))) ->  | M153: =IF(ISERROR(INDIRECT(CONCATENATE($B153,"!N21"))),"",INDIRECT(CONCATENATE($B153,"!N21"))) ->  | O153: =IF(ISERROR(INDIRECT(CONCATENATE($B153,"!O18"))),"",INDIRECT(CONCATENATE($B153,"!O18"))) ->  | P153: =IF(ISERROR(INDIRECT(CONCATENATE($B153,"!O19"))),"",INDIRECT(CONCATENATE($B153,"!O19"))) ->  | Q153: =IF(ISERROR(INDIRECT(CONCATENATE($B153,"!O20"))),"",INDIRECT(CONCATENATE($B153,"!O20"))) ->  | R153: =IF(ISERROR(INDIRECT(CONCATENATE($B153,"!O21"))),"",INDIRECT(CONCATENATE($B153,"!O21"))) ->  | T153: =IF(ISERROR(INDIRECT(CONCATENATE($B153,"!P18"))),"",INDIRECT(CONCATENATE($B153,"!P18"))) ->  | U153: =IF(ISERROR(INDIRECT(CONCATENATE($B153,"!P19"))),"",INDIRECT(CONCATENATE($B153,"!P19"))) ->  | V153: =IF(ISERROR(INDIRECT(CONCATENATE($B153,"!P20"))),"",INDIRECT(CONCATENATE($B153,"!P20"))) ->  | W153: =IF(ISERROR(INDIRECT(CONCATENATE($B153,"!P21"))),"",INDIRECT(CONCATENATE($B153,"!P21"))) ->  | Y153: =IF(ISERROR(INDIRECT(CONCATENATE($B153,"!Q18"))),"",INDIRECT(CONCATENATE($B153,"!Q18"))) ->  | Z153: =IF(ISERROR(INDIRECT(CONCATENATE($B153,"!Q19"))),"",INDIRECT(CONCATENATE($B153,"!Q19"))) ->  | AA153: =IF(ISERROR(INDIRECT(CONCATENATE($B153,"!Q20"))),"",INDIRECT(CONCATENATE($B153,"!Q20"))) ->  | AB153: =IF(ISERROR(INDIRECT(CONCATENATE($B153,"!Q21"))),"",INDIRECT(CONCATENATE($B153,"!Q1"))) -> 
A197: URBAN | D197: Poorest | I197: Poor | N197: Middle | S197: Rich | X197: Richest
D198: Improved | E198: Basic | F198: Limited | G198: Unimproved | H198: Surface water | I198: Improved | J198: Basic | K198: Limited | L198: Unimproved | M198: Surface water | N198: Improved | O198: Basic | P198: Limited | Q198: Unimproved | R198: Surface water | S198: Improved | T198: Basic | U198: Limited | V198: Unimproved | W198: Surface water | X198: Improved | Y198: Basic | Z198: Limited | AA198: Unimproved | AB198: Surface water
A199: Forecast period: | C199: =MinBase(C205:C216) -> 2000 | D199: =IF((D201+H201)>100,D201*100/(D201+H201),D201) -> 91.58260623 | E199: =D199*AVERAGEIF(E205:E216,">0")/100 -> 91.4119039 | F199: =D199*(100-AVERAGEIF(E205:E216,">0"))/100 -> 0.1707023326 | G199: =100-(E199+F199+H199) -> 4.064517979 | H199: =IF((D201+H201)>100,H201*100/(D201+H201),H201) -> 4.352875788 | I199: =IF((I201+M201)>100,I201*100/(I201+M201),I201) -> 97.36505755 | J199: =I199*AVERAGEIF(J205:J216,">0")/100 -> 97.36505755 | K199: =I199*(100-AVERAGEIF(J205:J216,">0"))/100 -> 0 | L199: =100-(J199+K199+M199) -> 2.000929844 | M199: =IF((I201+M201)>100,M201*100/(I201+M201),M201) -> 0.634012606 | N199: =IF((N201+R201)>100,N201*100/(N201+R201),N201) -> 99.24233565 | O199: =N199*AVERAGEIF(O205:O216,">0")/100 -> 99.175769 | P199: =N199*(100-AVERAGEIF(O205:O216,">0"))/100 -> 0.06656664698 | Q199: =100-(O199+P199+R199) -> 0.3950046318 | R199: =IF((N201+R201)>100,R201*100/(N201+R201),R201) -> 0.3626597183 | S199: =IF((S201+W201)>100,S201*100/(S201+W201),S201) -> 98.17003702 | T199: =S199*AVERAGEIF(T205:T216,">0")/100 -> 98.03797804 | U199: =S199*(100-AVERAGEIF(T205:T216,">0"))/100 -> 0.1320589776 | V199: =100-(T199+U199+W199) -> 1.632278637 | W199: =IF((S201+W201)>100,W201*100/(S201+W201),W201) -> 0.1976843424 | X199: =IF((X201+AB201)>100,X201*100/(X201+AB201),X201) -> 100 | Y199: =X199*AVERAGEIF(Y205:Y216,">0")/100 -> 99.57505091 | Z199: =X199*(100-AVERAGEIF(Y205:Y216,">0"))/100 -> 0.4249490865 | AA199: =100-(Y199+Z199+AB199) -> 0 | AB199: =IF((X201+AB201)>100,AB201*100/(X201+AB201),AB201) -> 0
C200: =MaxTarget(C205:C216) -> 2020 | D200: =IF((D202+H202)>100,D202*100/(D202+H202),D202) -> 96.20176663 | E200: =D200*AVERAGEIF(E205:E216,">0")/100 -> 96.02245457 | F200: =D200*(100-AVERAGEIF(E205:E216,">0"))/100 -> 0.179312062 | G200: =100-(E200+F200+H200) -> 3.798233371 | H200: =IF((D202+H202)>100,H202*100/(D202+H202),H202) -> 0 | I200: =IF((I202+M202)>100,I202*100/(I202+M202),I202) -> 99.61568244 | J200: =I200*AVERAGEIF(J205:J216,">0")/100 -> 99.61568244 | K200: =I200*(100-AVERAGEIF(J205:J216,">0"))/100 -> 0 | L200: =100-(J200+K200+M200) -> 0.3843175619 | M200: =IF((I202+M202)>100,M202*100/(I202+M202),M202) -> 0 | N200: =IF((N202+R202)>100,N202*100/(N202+R202),N202) -> 99.9684597 | O200: =N200*AVERAGEIF(O205:O216,">0")/100 -> 99.901406 | P200: =N200*(100-AVERAGEIF(O205:O216,">0"))/100 -> 0.06705369359 | Q200: =100-(O200+P200+R200) -> 0.03154030286 | R200: =IF((N202+R202)>100,R202*100/(N202+R202),R202) -> 0 | S200: =IF((S202+W202)>100,S202*100/(S202+W202),S202) -> 99.9884899 | T200: =S200*AVERAGEIF(T205:T216,">0")/100 -> 99.85398473 | U200: =S200*(100-AVERAGEIF(T205:T216,">0"))/100 -> 0.1345051723 | V200: =100-(T200+U200+W200) -> 0 | W200: =IF((S202+W202)>100,W202*100/(S202+W202),W202) -> 0.01151009814 | X200: =IF((X202+AB202)>100,X202*100/(X202+AB202),X202) -> 99.92302964 | Y200: =X200*AVERAGEIF(Y205:Y216,">0")/100 -> 99.49840764 | Z200: =X200*(100-AVERAGEIF(Y205:Y216,">0"))/100 -> 0.4246220017 | AA200: =100-(Y200+Z200+AB200) -> 0.07697035946 | AB200: =IF((X202+AB202)>100,AB202*100/(X202+AB202),AB202) -> 0
A201: Regression period: | C201: =MinRegYear(C199,C205:C216) -> 2000 | D201: =IF(MAX(C205:C216)-MIN(C205:C216)<5,AVERAGEIF(C205:C216,">0",D205:D216), IF(FORECAST($C201,D$205:D$216,$C$205:$C$216)<0,0, IF(FORECAST($C201,D$205:D$216,$C$205:$C$216)>100,100, FORECAST($C201,D$205:D$216,$C$205:$C$216)))) -> 91.58260623 | H201: =IF(MAX(C205:C216)-MIN(C205:C216)<5,AVERAGEIF(C205:C216,">0",H205:H216), IF(FORECAST($C201,H$205:H$216,$C$205:$C$216)<0,0, IF(FORECAST($C201,H$205:H$216,$C$205:$C$216)>100,100, FORECAST($C201,H$205:H$216,$C$205:$C$216)))) -> 4.352875788 | I201: =IF(MAX(C205:C216)-MIN(C205:C216)<5,AVERAGEIF(C205:C216,">0",I205:I216), IF(FORECAST($C201,I$205:I$216,$C$205:$C$216)<0,0, IF(FORECAST($C201,I$205:I$216,$C$205:$C$216)>100,100, FORECAST($C201,I$205:I$216,$C$205:$C$216)))) -> 97.36505755 | M201: =IF(MAX(C205:C216)-MIN(C205:C216)<5,AVERAGEIF(C205:C216,">0",M205:M216), IF(FORECAST($C201,M$205:M$216,$C$205:$C$216)<0,0, IF(FORECAST($C201,M$205:M$216,$C$205:$C$216)>100,100, FORECAST($C201,M$205:M$216,$C$205:$C$216)))) -> 0.634012606 | N201: =IF(MAX(C205:C216)-MIN(C205:C216)<5,AVERAGEIF(C205:C216,">0",N205:N216), IF(FORECAST($C201,N$205:N$216,$C$205:$C$216)<0,0, IF(FORECAST($C201,N$205:N$216,$C$205:$C$216)>100,100, FORECAST($C201,N$205:N$216,$C$205:$C$216)))) -> 99.24233565 | R201: =IF(MAX(C205:C216)-MIN(C205:C216)<5,AVERAGEIF(C205:C216,">0",R205:R216), IF(FORECAST($C201,R$205:R$216,$C$205:$C$216)<0,0, IF(FORECAST($C201,R$205:R$216,$C$205:$C$216)>100,100, FORECAST($C201,R$205:R$216,$C$205:$C$216)))) -> 0.3626597183 | S201: =IF(MAX(C205:C216)-MIN(C205:C216)<5,AVERAGEIF(C205:C216,">0",S205:S216), IF(FORECAST($C201,S$205:S$216,$C$205:$C$216)<0,0, IF(FORECAST($C201,S$205:S$216,$C$205:$C$216)>100,100, FORECAST($C201,S$205:S$216,$C$205:$C$216)))) -> 98.17003702 | W201: =IF(MAX(C205:C216)-MIN(C205:C216)<5,AVERAGEIF(C205:C216,">0",W205:W216), IF(FORECAST($C201,W$205:W$216,$C$205:$C$216)<0,0, IF(FORECAST($C201,W$205:W$216,$C$205:$C$216)>100,100, FORECAST($C201,W$205:W$216,$C$205:$C$216)))) -> 0.1976843424 | X201: =IF(MAX(C205:C216)-MIN(C205:C216)<5,AVERAGEIF(C205:C216,">0",X205:X216), IF(FORECAST($C201,X$205:X$216,$C$205:$C$216)<0,0, IF(FORECAST($C201,X$205:X$216,$C$205:$C$216)>100,100, FORECAST($C201,X$205:X$216,$C$205:$C$216)))) -> 100 | AB201: =IF(MAX(C205:C216)-MIN(C205:C216)<5,AVERAGEIF(C205:C216,">0",AB205:AB216), IF(FORECAST($C201,AB$205:AB$216,$C$205:$C$216)<0,0, IF(FORECAST($C201,AB$205:AB$216,$C$205:$C$216)>100,100, FORECAST($C201,AB$205:AB$216,$C$205:$C$216)))) -> 0
C202: =MaxRegYear(C200,C205:C216) -> 2016 | D202: =IF(MAX(C205:C216)-MIN(C205:C216)<5,AVERAGEIF(C205:C216,">0",D205:D216), IF(FORECAST($C202,D$205:D$216,$C$205:$C$216)<0,0, IF(FORECAST($C202,D$205:D$216,$C$205:$C$216)>100,100, FORECAST($C202,D$205:D$216,$C$205:$C$216)))) -> 96.20176663 | H202: =IF(MAX(C205:C216)-MIN(C205:C216)<5,AVERAGEIF(C205:C216,">0",H205:H216), IF(FORECAST($C202,H$205:H$216,$C$205:$C$216)<0,0, IF(FORECAST($C202,H$205:H$216,$C$205:$C$216)>100,100, FORECAST($C202,H$205:H$216,$C$205:$C$216)))) -> 0 | I202: =IF(MAX(C205:C216)-MIN(C205:C216)<5,AVERAGEIF(C205:C216,">0",I205:I216), IF(FORECAST($C202,I$205:I$216,$C$205:$C$216)<0,0, IF(FORECAST($C202,I$205:I$216,$C$205:$C$216)>100,100, FORECAST($C202,I$205:I$216,$C$205:$C$216)))) -> 99.61568244 | M202: =IF(MAX(C205:C216)-MIN(C205:C216)<5,AVERAGEIF(C205:C216,">0",M205:M216), IF(FORECAST($C202,M$205:M$216,$C$205:$C$216)<0,0, IF(FORECAST($C202,M$205:M$216,$C$205:$C$216)>100,100, FORECAST($C202,M$205:M$216,$C$205:$C$216)))) -> 0 | N202: =IF(MAX(C205:C216)-MIN(C205:C216)<5,AVERAGEIF(C205:C216,">0",N205:N216), IF(FORECAST($C202,N$205:N$216,$C$205:$C$216)<0,0, IF(FORECAST($C202,N$205:N$216,$C$205:$C$216)>100,100, FORECAST($C202,N$205:N$216,$C$205:$C$216)))) -> 99.9684597 | R202: =IF(MAX(C205:C216)-MIN(C205:C216)<5,AVERAGEIF(C205:C216,">0",R205:R216), IF(FORECAST($C202,R$205:R$216,$C$205:$C$216)<0,0, IF(FORECAST($C202,R$205:R$216,$C$205:$C$216)>100,100, FORECAST($C202,R$205:R$216,$C$205:$C$216)))) -> 0 | S202: =IF(MAX(C205:C216)-MIN(C205:C216)<5,AVERAGEIF(C205:C216,">0",S205:S216), IF(FORECAST($C202,S$205:S$216,$C$205:$C$216)<0,0, IF(FORECAST($C202,S$205:S$216,$C$205:$C$216)>100,100, FORECAST($C202,S$205:S$216,$C$205:$C$216)))) -> 100 | W202: =IF(MAX(C205:C216)-MIN(C205:C216)<5,AVERAGEIF(C205:C216,">0",W205:W216), IF(FORECAST($C202,W$205:W$216,$C$205:$C$216)<0,0, IF(FORECAST($C202,W$205:W$216,$C$205:$C$216)>100,100, FORECAST($C202,W$205:W$216,$C$205:$C$216)))) -> 0.01151142311 | X202: =IF(MAX(C205:C216)-MIN(C205:C216)<5,AVERAGEIF(C205:C216,">0",X205:X216), IF(FORECAST($C202,X$205:X$216,$C$205:$C$216)<0,0, IF(FORECAST($C202,X$205:X$216,$C$205:$C$216)>100,100, FORECAST($C202,X$205:X$216,$C$205:$C$216)))) -> 99.92302964 | AB202: =IF(MAX(C205:C216)-MIN(C205:C216)<5,AVERAGEIF(C205:C216,">0",AB205:AB216), IF(FORECAST($C202,AB$205:AB$216,$C$205:$C$216)<0,0, IF(FORECAST($C202,AB$205:AB$216,$C$205:$C$216)>100,100, FORECAST($C202,AB$205:AB$216,$C$205:$C$216)))) -> 0
B204: Survey | C204: Year | D204: Improved | E204: Basic | H204: Surface water | I204: Improved | J204: Basic | M204: Surface water | N204: Improved | O204: Basic | R204: Surface water | S204: Improved | T204: Basic | W204: Surface water | X204: Improved | Y204: Basic | AB204: Surface water
B205: DHS02 | C205: 2002 | D205: =IF(ISERROR(INDIRECT(CONCATENATE($B205,"!H16"))),"",INDIRECT(CONCATENATE($B205,"!H16"))) -> 90.1759959 | E205: =IF(ISERROR(INDIRECT(CONCATENATE($B205,"!H23"))),"",INDIRECT(CONCATENATE($B205,"!H23"))) -> N/A | H205: =IF(ISERROR(INDIRECT(CONCATENATE($B205,"!H21"))),"",INDIRECT(CONCATENATE($B205,"!H21"))) -> 4.585434433 | I205: =IF(ISERROR(INDIRECT(CONCATENATE($B205,"!I16"))),"",INDIRECT(CONCATENATE($B205,"!I16"))) -> 96.79542605 | J205: =IF(ISERROR(INDIRECT(CONCATENATE($B205,"!I23"))),"",INDIRECT(CONCATENATE($B205,"!I23"))) -> N/A | M205: =IF(ISERROR(INDIRECT(CONCATENATE($B205,"!I21"))),"",INDIRECT(CONCATENATE($B205,"!I21"))) -> 0.8550516622 | N205: =IF(ISERROR(INDIRECT(CONCATENATE($B205,"!J16"))),"",INDIRECT(CONCATENATE($B205,"!J16"))) -> 99.16770655 | O205: =IF(ISERROR(INDIRECT(CONCATENATE($B205,"!J23"))),"",INDIRECT(CONCATENATE($B205,"!J23"))) -> N/A | R205: =IF(ISERROR(INDIRECT(CONCATENATE($B205,"!J21"))),"",INDIRECT(CONCATENATE($B205,"!J21"))) -> 0.5522857147 | S205: =IF(ISERROR(INDIRECT(CONCATENATE($B205,"!K16"))),"",INDIRECT(CONCATENATE($B205,"!K16"))) -> 98.86884359 | T205: =IF(ISERROR(INDIRECT(CONCATENATE($B205,"!K23"))),"",INDIRECT(CONCATENATE($B205,"!K23"))) -> N/A | W205: =IF(ISERROR(INDIRECT(CONCATENATE($B205,"!K21"))),"",INDIRECT(CONCATENATE($B205,"!K21"))) -> 0 | X205: =IF(ISERROR(INDIRECT(CONCATENATE($B205,"!L16"))),"",INDIRECT(CONCATENATE($B205,"!L16"))) -> 100 | Y205: =IF(ISERROR(INDIRECT(CONCATENATE($B205,"!L23"))),"",INDIRECT(CONCATENATE($B205,"!L23"))) -> N/A | AB205: =IF(ISERROR(INDIRECT(CONCATENATE($B205,"!L221"))),"",INDIRECT(CONCATENATE($B205,"!L21"))) -> 0
B206: WHS03 | D206: 95.39061407 | E206: 100 | H206: 1.752018974 | I206: 96.63627721 | J206: 100 | M206: 0.8048104446 | N206: 99.62523812 | O206: 100 | R206: 0 | S206: 99.65070663 | T206: 100 | W206: 1.090188642 | X206: 100 | Y206: 98.30020365 | AB206: 0
B207: AIS05 | C207: 2005 | D207: 92.76247398 | E207: N/A | H207: 3.666721153 | I207: 98.15528485 | J207: N/A | M207: 0.2825564025 | N207: 99.47013043 | O207: N/A | R207: 0 | S207: 97.63423516 | T207: N/A | W207: 0.4902907921 | X207: 100 | Y207: N/A | AB207: 0
B208: MICS06 | C208: 2006 | D208: 96.27776378 | E208: 99.5820367 | H208: 0.5174963213 | I208: 99.45774665 | J208: 100 | M208: 0 | N208: 99.8467032 | O208: 99.7317006 | R208: 0 | S208: 99.56235438 | T208: 99.46191738 | W208: 0 | X208: 100 | Y208: 100 | AB208: 0
B209: MICS11 | C209: 2011 | D209: 95.5839004 | E209: 99.93791994 | H209: 0.5037615931 | I209: 98.72560014 | J209: 100 | M209: 0.07520711888 | N209: 99.51495855 | O209: 100 | R209: 0 | S209: 99.58346144 | T209: 100 | W209: 0.05597023663 | X209: 99.84801615 | Y209: 100 | AB209: 0
B210: MICS14 | C210: 2014 | D210: 94.08340304 | E210: 99.73447675 | H210: 0.9351486461 | I210: 99.03646416 | J210: 100 | M210: 0.1182620483 | N210: 99.93672413 | O210: 100 | R210: 0 | S210: 100 | T210: 100 | W210: 0 | X210: 100 | Y210: 100 | AB210: 0
B218: =CONCATENATE("Urban use of drinking water sources, ",C199,"–",C200) -> Urban use of drinking water sources, 2000–2020 | S218: Data points used for regression
E253: =IF(ISERROR(INDIRECT(CONCATENATE($B253,"!M18"))),"",INDIRECT(CONCATENATE($B253,"!M18"))) ->  | F253: =IF(ISERROR(INDIRECT(CONCATENATE($B253,"!M19"))),"",INDIRECT(CONCATENATE($B253,"!M19"))) ->  | G253: =IF(ISERROR(INDIRECT(CONCATENATE($B253,"!M20"))),"",INDIRECT(CONCATENATE($B253,"!M20"))) ->  | H253: =IF(ISERROR(INDIRECT(CONCATENATE($B253,"!M21"))),"",INDIRECT(CONCATENATE($B253,"!M21"))) ->  | J253: =IF(ISERROR(INDIRECT(CONCATENATE($B253,"!N18"))),"",INDIRECT(CONCATENATE($B253,"!N18"))) ->  | K253: =IF(ISERROR(INDIRECT(CONCATENATE($B253,"!N19"))),"",INDIRECT(CONCATENATE($B253,"!N19"))) ->  | L253: =IF(ISERROR(INDIRECT(CONCATENATE($B253,"!N20"))),"",INDIRECT(CONCATENATE($B253,"!N20"))) ->  | M253: =IF(ISERROR(INDIRECT(CONCATENATE($B253,"!N21"))),"",INDIRECT(CONCATENATE($B253,"!N21"))) ->  | O253: =IF(ISERROR(INDIRECT(CONCATENATE($B253,"!O18"))),"",INDIRECT(CONCATENATE($B253,"!O18"))) ->  | P253: =IF(ISERROR(INDIRECT(CONCATENATE($B253,"!O19"))),"",INDIRECT(CONCATENATE($B253,"!O19"))) ->  | Q253: =IF(ISERROR(INDIRECT(CONCATENATE($B253,"!O20"))),"",INDIRECT(CONCATENATE($B253,"!O20"))) ->  | R253: =IF(ISERROR(INDIRECT(CONCATENATE($B253,"!O21"))),"",INDIRECT(CONCATENATE($B253,"!O21"))) ->  | T253: =IF(ISERROR(INDIRECT(CONCATENATE($B253,"!P18"))),"",INDIRECT(CONCATENATE($B253,"!P18"))) ->  | U253: =IF(ISERROR(INDIRECT(CONCATENATE($B253,"!P19"))),"",INDIRECT(CONCATENATE($B253,"!P19"))) ->  | V253: =IF(ISERROR(INDIRECT(CONCATENATE($B253,"!P20"))),"",INDIRECT(CONCATENATE($B253,"!P20"))) ->  | W253: =IF(ISERROR(INDIRECT(CONCATENATE($B253,"!P21"))),"",INDIRECT(CONCATENATE($B253,"!P21"))) ->  | Y253: =IF(ISERROR(INDIRECT(CONCATENATE($B253,"!Q18"))),"",INDIRECT(CONCATENATE($B253,"!Q18"))) ->  | Z253: =IF(ISERROR(INDIRECT(CONCATENATE($B253,"!Q19"))),"",INDIRECT(CONCATENATE($B253,"!Q19"))) ->  | AA253: =IF(ISERROR(INDIRECT(CONCATENATE($B253,"!Q20"))),"",INDIRECT(CONCATENATE($B253,"!Q20"))) ->  | AB253: =IF(ISERROR(INDIRECT(CONCATENATE($B253,"!Q21"))),"",INDIRECT(CONCATENATE($B253,"!Q1"))) -> 
E254: =IF(ISERROR(INDIRECT(CONCATENATE($B254,"!M18"))),"",INDIRECT(CONCATENATE($B254,"!M18"))) ->  | F254: =IF(ISERROR(INDIRECT(CONCATENATE($B254,"!M19"))),"",INDIRECT(CONCATENATE($B254,"!M19"))) ->  | G254: =IF(ISERROR(INDIRECT(CONCATENATE($B254,"!M20"))),"",INDIRECT(CONCATENATE($B254,"!M20"))) ->  | H254: =IF(ISERROR(INDIRECT(CONCATENATE($B254,"!M21"))),"",INDIRECT(CONCATENATE($B254,"!M21"))) ->  | J254: =IF(ISERROR(INDIRECT(CONCATENATE($B254,"!N18"))),"",INDIRECT(CONCATENATE($B254,"!N18"))) ->  | K254: =IF(ISERROR(INDIRECT(CONCATENATE($B254,"!N19"))),"",INDIRECT(CONCATENATE($B254,"!N19"))) ->  | L254: =IF(ISERROR(INDIRECT(CONCATENATE($B254,"!N20"))),"",INDIRECT(CONCATENATE($B254,"!N20"))) ->  | M254: =IF(ISERROR(INDIRECT(CONCATENATE($B254,"!N21"))),"",INDIRECT(CONCATENATE($B254,"!N21"))) ->  | O254: =IF(ISERROR(INDIRECT(CONCATENATE($B254,"!O18"))),"",INDIRECT(CONCATENATE($B254,"!O18"))) ->  | P254: =IF(ISERROR(INDIRECT(CONCATENATE($B254,"!O19"))),"",INDIRECT(CONCATENATE($B254,"!O19"))) ->  | Q254: =IF(ISERROR(INDIRECT(CONCATENATE($B254,"!O20"))),"",INDIRECT(CONCATENATE($B254,"!O20"))) ->  | R254: =IF(ISERROR(INDIRECT(CONCATENATE($B254,"!O21"))),"",INDIRECT(CONCATENATE($B254,"!O21"))) ->  | T254: =IF(ISERROR(INDIRECT(CONCATENATE($B254,"!P18"))),"",INDIRECT(CONCATENATE($B254,"!P18"))) ->  | U254: =IF(ISERROR(INDIRECT(CONCATENATE($B254,"!P19"))),"",INDIRECT(CONCATENATE($B254,"!P19"))) ->  | V254: =IF(ISERROR(INDIRECT(CONCATENATE($B254,"!P20"))),"",INDIRECT(CONCATENATE($B254,"!P20"))) ->  | W254: =IF(ISERROR(INDIRECT(CONCATENATE($B254,"!P21"))),"",INDIRECT(CONCATENATE($B254,"!P21"))) ->  | Y254: =IF(ISERROR(INDIRECT(CONCATENATE($B254,"!Q18"))),"",INDIRECT(CONCATENATE($B254,"!Q18"))) ->  | Z254: =IF(ISERROR(INDIRECT(CONCATENATE($B254,"!Q19"))),"",INDIRECT(CONCATENATE($B254,"!Q19"))) ->  | AA254: =IF(ISERROR(INDIRECT(CONCATENATE($B254,"!Q20"))),"",INDIRECT(CONCATENATE($B254,"!Q20"))) ->  | AB254: =IF(ISERROR(INDIRECT(CONCATENATE($B254,"!Q21"))),"",INDIRECT(CONCATENATE($B254,"!Q1"))) -> 
E255: =IF(ISERROR(INDIRECT(CONCATENATE($B255,"!M18"))),"",INDIRECT(CONCATENATE($B255,"!M18"))) ->  | F255: =IF(ISERROR(INDIRECT(CONCATENATE($B255,"!M19"))),"",INDIRECT(CONCATENATE($B255,"!M19"))) ->  | G255: =IF(ISERROR(INDIRECT(CONCATENATE($B255,"!M20"))),"",INDIRECT(CONCATENATE($B255,"!M20"))) ->  | H255: =IF(ISERROR(INDIRECT(CONCATENATE($B255,"!M21"))),"",INDIRECT(CONCATENATE($B255,"!M21"))) ->  | J255: =IF(ISERROR(INDIRECT(CONCATENATE($B255,"!N18"))),"",INDIRECT(CONCATENATE($B255,"!N18"))) ->  | K255: =IF(ISERROR(INDIRECT(CONCATENATE($B255,"!N19"))),"",INDIRECT(CONCATENATE($B255,"!N19"))) ->  | L255: =IF(ISERROR(INDIRECT(CONCATENATE($B255,"!N20"))),"",INDIRECT(CONCATENATE($B255,"!N20"))) ->  | M255: =IF(ISERROR(INDIRECT(CONCATENATE($B255,"!N21"))),"",INDIRECT(CONCATENATE($B255,"!N21"))) ->  | O255: =IF(ISERROR(INDIRECT(CONCATENATE($B255,"!O18"))),"",INDIRECT(CONCATENATE($B255,"!O18"))) ->  | P255: =IF(ISERROR(INDIRECT(CONCATENATE($B255,"!O19"))),"",INDIRECT(CONCATENATE($B255,"!O19"))) ->  | Q255: =IF(ISERROR(INDIRECT(CONCATENATE($B255,"!O20"))),"",INDIRECT(CONCATENATE($B255,"!O20"))) ->  | R255: =IF(ISERROR(INDIRECT(CONCATENATE($B255,"!O21"))),"",INDIRECT(CONCATENATE($B255,"!O21"))) ->  | T255: =IF(ISERROR(INDIRECT(CONCATENATE($B255,"!P18"))),"",INDIRECT(CONCATENATE($B255,"!P18"))) ->  | U255: =IF(ISERROR(INDIRECT(CONCATENATE($B255,"!P19"))),"",INDIRECT(CONCATENATE($B255,"!P19"))) ->  | V255: =IF(ISERROR(INDIRECT(CONCATENATE($B255,"!P20"))),"",INDIRECT(CONCATENATE($B255,"!P20"))) ->  | W255: =IF(ISERROR(INDIRECT(CONCATENATE($B255,"!P21"))),"",INDIRECT(CONCATENATE($B255,"!P21"))) ->  | Y255: =IF(ISERROR(INDIRECT(CONCATENATE($B255,"!Q18"))),"",INDIRECT(CONCATENATE($B255,"!Q18"))) ->  | Z255: =IF(ISERROR(INDIRECT(CONCATENATE($B255,"!Q19"))),"",INDIRECT(CONCATENATE($B255,"!Q19"))) ->  | AA255: =IF(ISERROR(INDIRECT(CONCATENATE($B255,"!Q20"))),"",INDIRECT(CONCATENATE($B255,"!Q20"))) ->  | AB255: =IF(ISERROR(INDIRECT(CONCATENATE($B255,"!Q21"))),"",INDIRECT(CONCATENATE($B255,"!Q1"))) -> 
E256: =IF(ISERROR(INDIRECT(CONCATENATE($B256,"!M18"))),"",INDIRECT(CONCATENATE($B256,"!M18"))) ->  | F256: =IF(ISERROR(INDIRECT(CONCATENATE($B256,"!M19"))),"",INDIRECT(CONCATENATE($B256,"!M19"))) ->  | G256: =IF(ISERROR(INDIRECT(CONCATENATE($B256,"!M20"))),"",INDIRECT(CONCATENATE($B256,"!M20"))) ->  | H256: =IF(ISERROR(INDIRECT(CONCATENATE($B256,"!M21"))),"",INDIRECT(CONCATENATE($B256,"!M21"))) ->  | J256: =IF(ISERROR(INDIRECT(CONCATENATE($B256,"!N18"))),"",INDIRECT(CONCATENATE($B256,"!N18"))) ->  | K256: =IF(ISERROR(INDIRECT(CONCATENATE($B256,"!N19"))),"",INDIRECT(CONCATENATE($B256,"!N19"))) ->  | L256: =IF(ISERROR(INDIRECT(CONCATENATE($B256,"!N20"))),"",INDIRECT(CONCATENATE($B256,"!N20"))) ->  | M256: =IF(ISERROR(INDIRECT(CONCATENATE($B256,"!N21"))),"",INDIRECT(CONCATENATE($B256,"!N21"))) ->  | O256: =IF(ISERROR(INDIRECT(CONCATENATE($B256,"!O18"))),"",INDIRECT(CONCATENATE($B256,"!O18"))) ->  | P256: =IF(ISERROR(INDIRECT(CONCATENATE($B256,"!O19"))),"",INDIRECT(CONCATENATE($B256,"!O19"))) ->  | Q256: =IF(ISERROR(INDIRECT(CONCATENATE($B256,"!O20"))),"",INDIRECT(CONCATENATE($B256,"!O20"))) ->  | R256: =IF(ISERROR(INDIRECT(CONCATENATE($B256,"!O21"))),"",INDIRECT(CONCATENATE($B256,"!O21"))) ->  | T256: =IF(ISERROR(INDIRECT(CONCATENATE($B256,"!P18"))),"",INDIRECT(CONCATENATE($B256,"!P18"))) ->  | U256: =IF(ISERROR(INDIRECT(CONCATENATE($B256,"!P19"))),"",INDIRECT(CONCATENATE($B256,"!P19"))) ->  | V256: =IF(ISERROR(INDIRECT(CONCATENATE($B256,"!P20"))),"",INDIRECT(CONCATENATE($B256,"!P20"))) ->  | W256: =IF(ISERROR(INDIRECT(CONCATENATE($B256,"!P21"))),"",INDIRECT(CONCATENATE($B256,"!P21"))) ->  | Y256: =IF(ISERROR(INDIRECT(CONCATENATE($B256,"!Q18"))),"",INDIRECT(CONCATENATE($B256,"!Q18"))) ->  | Z256: =IF(ISERROR(INDIRECT(CONCATENATE($B256,"!Q19"))),"",INDIRECT(CONCATENATE($B256,"!Q19"))) ->  | AA256: =IF(ISERROR(INDIRECT(CONCATENATE($B256,"!Q20"))),"",INDIRECT(CONCATENATE($B256,"!Q20"))) ->  | AB256: =IF(ISERROR(INDIRECT(CONCATENATE($B256,"!Q21"))),"",INDIRECT(CONCATENATE($B256,"!Q1"))) -> 
E257: =IF(ISERROR(INDIRECT(CONCATENATE($B257,"!M18"))),"",INDIRECT(CONCATENATE($B257,"!M18"))) ->  | F257: =IF(ISERROR(INDIRECT(CONCATENATE($B257,"!M19"))),"",INDIRECT(CONCATENATE($B257,"!M19"))) ->  | G257: =IF(ISERROR(INDIRECT(CONCATENATE($B257,"!M20"))),"",INDIRECT(CONCATENATE($B257,"!M20"))) ->  | H257: =IF(ISERROR(INDIRECT(CONCATENATE($B257,"!M21"))),"",INDIRECT(CONCATENATE($B257,"!M21"))) ->  | J257: =IF(ISERROR(INDIRECT(CONCATENATE($B257,"!N18"))),"",INDIRECT(CONCATENATE($B257,"!N18"))) ->  | K257: =IF(ISERROR(INDIRECT(CONCATENATE($B257,"!N19"))),"",INDIRECT(CONCATENATE($B257,"!N19"))) ->  | L257: =IF(ISERROR(INDIRECT(CONCATENATE($B257,"!N20"))),"",INDIRECT(CONCATENATE($B257,"!N20"))) ->  | M257: =IF(ISERROR(INDIRECT(CONCATENATE($B257,"!N21"))),"",INDIRECT(CONCATENATE($B257,"!N21"))) ->  | O257: =IF(ISERROR(INDIRECT(CONCATENATE($B257,"!O18"))),"",INDIRECT(CONCATENATE($B257,"!O18"))) ->  | P257: =IF(ISERROR(INDIRECT(CONCATENATE($B257,"!O19"))),"",INDIRECT(CONCATENATE($B257,"!O19"))) ->  | Q257: =IF(ISERROR(INDIRECT(CONCATENATE($B257,"!O20"))),"",INDIRECT(CONCATENATE($B257,"!O20"))) ->  | R257: =IF(ISERROR(INDIRECT(CONCATENATE($B257,"!O21"))),"",INDIRECT(CONCATENATE($B257,"!O21"))) ->  | T257: =IF(ISERROR(INDIRECT(CONCATENATE($B257,"!P18"))),"",INDIRECT(CONCATENATE($B257,"!P18"))) ->  | U257: =IF(ISERROR(INDIRECT(CONCATENATE($B257,"!P19"))),"",INDIRECT(CONCATENATE($B257,"!P19"))) ->  | V257: =IF(ISERROR(INDIRECT(CONCATENATE($B257,"!P20"))),"",INDIRECT(CONCATENATE($B257,"!P20"))) ->  | W257: =IF(ISERROR(INDIRECT(CONCATENATE($B257,"!P21"))),"",INDIRECT(CONCATENATE($B257,"!P21"))) ->  | Y257: =IF(ISERROR(INDIRECT(CONCATENATE($B257,"!Q18"))),"",INDIRECT(CONCATENATE($B257,"!Q18"))) ->  | Z257: =IF(ISERROR(INDIRECT(CONCATENATE($B257,"!Q19"))),"",INDIRECT(CONCATENATE($B257,"!Q19"))) ->  | AA257: =IF(ISERROR(INDIRECT(CONCATENATE($B257,"!Q20"))),"",INDIRECT(CONCATENATE($B257,"!Q20"))) ->  | AB257: =IF(ISERROR(INDIRECT(CONCATENATE($B257,"!Q21"))),"",INDIRECT(CONCATENATE($B257,"!Q1"))) -> 
A297: RURAL | D297: Poorest | I297: Poor | N297: Middle | S297: Rich | X297: Richest
D298: Improved | E298: Basic | F298: Limited | G298: Unimproved | H298: Surface water | I298: Improved | J298: Basic | K298: Limited | L298: Unimproved | M298: Surface water | N298: Improved | O298: Basic | P298: Limited | Q298: Unimproved | R298: Surface water | S298: Improved | T298: Basic | U298: Limited | V298: Unimproved | W298: Surface water | X298: Improved | Y298: Basic | Z298: Limited | AA298: Unimproved | AB298: Surface water
A299: Forecast period: | C299: =MinBase(C305:C316) -> 2000 | D299: =IF((D301+H301)>100,D301*100/(D301+H301),D301) -> 58.69595338 | E299: =D299*AVERAGEIF(E305:E316,">0")/100 -> 58.40860458 | F299: =D299*(100-AVERAGEIF(E305:E316,">0"))/100 -> 0.287348796 | G299: =100-(E299+F299+H299) -> 21.24405336 | H299: =IF((D301+H301)>100,H301*100/(D301+H301),H301) -> 20.05999326 | I299: =IF((I301+M301)>100,I301*100/(I301+M301),I301) -> 74.12566829 | J299: =I299*AVERAGEIF(J305:J316,">0")/100 -> 73.98182354 | K299: =I299*(100-AVERAGEIF(J305:J316,">0"))/100 -> 0.1438447584 | L299: =100-(J299+K299+M299) -> 11.12429603 | M299: =IF((I301+M301)>100,M301*100/(I301+M301),M301) -> 14.75003567 | N299: =IF((N301+R301)>100,N301*100/(N301+R301),N301) -> 85.08131677 | O299: =N299*AVERAGEIF(O305:O316,">0")/100 -> 85.06609144 | P299: =N299*(100-AVERAGEIF(O305:O316,">0"))/100 -> 0.015225329 | Q299: =100-(O299+P299+R299) -> 7.369453463 | R299: =IF((N301+R301)>100,R301*100/(N301+R301),R301) -> 7.549229768 | S299: =IF((S301+W301)>100,S301*100/(S301+W301),S301) -> 90.2298961 | T299: =S299*AVERAGEIF(T305:T316,">0")/100 -> 90.2242466 | U299: =S299*(100-AVERAGEIF(T305:T316,">0"))/100 -> 0.0056494971 | V299: =100-(T299+U299+W299) -> 5.703290029 | W299: =IF((S301+W301)>100,W301*100/(S301+W301),W301) -> 4.066813871 | X299: =IF((X301+AB301)>100,X301*100/(X301+AB301),X301) -> 91.88312284 | Y299: =X299*AVERAGEIF(Y305:Y316,">0")/100 -> 91.88312284 | Z299: =X299*(100-AVERAGEIF(Y305:Y316,">0"))/100 -> 0 | AA299: =100-(Y299+Z299+AB299) -> 3.792450958 | AB299: =IF((X301+AB301)>100,AB301*100/(X301+AB301),AB301) -> 4.324426201
C300: =MaxTarget(C305:C316) -> 2020 | D300: =IF((D302+H302)>100,D302*100/(D302+H302),D302) -> 81.26951466 | E300: =D300*AVERAGEIF(E305:E316,">0")/100 -> 80.87165593 | F300: =D300*(100-AVERAGEIF(E305:E316,">0"))/100 -> 0.3978587253 | G300: =100-(E300+F300+H300) -> 17.32895296 | H300: =IF((D302+H302)>100,H302*100/(D302+H302),H302) -> 1.401532386 | I300: =IF((I302+M302)>100,I302*100/(I302+M302),I302) -> 91.13349845 | J300: =I300*AVERAGEIF(J305:J316,">0")/100 -> 90.9566491 | K300: =I300*(100-AVERAGEIF(J305:J316,">0"))/100 -> 0.1768493474 | L300: =100-(J300+K300+M300) -> 8.655999151 | M300: =IF((I302+M302)>100,M302*100/(I302+M302),M302) -> 0.2105024043 | N300: =IF((N302+R302)>100,N302*100/(N302+R302),N302) -> 95.69131415 | O300: =N300*AVERAGEIF(O305:O316,">0")/100 -> 95.67419016 | P300: =N300*(100-AVERAGEIF(O305:O316,">0"))/100 -> 0.01712399145 | Q300: =100-(O300+P300+R300) -> 3.452492574 | R300: =IF((N302+R302)>100,R302*100/(N302+R302),R302) -> 0.8561932755 | S300: =IF((S302+W302)>100,S302*100/(S302+W302),S302) -> 97.79668712 | T300: =S300*AVERAGEIF(T305:T316,">0")/100 -> 97.79056385 | U300: =S300*(100-AVERAGEIF(T305:T316,">0"))/100 -> 0.006123270935 | V300: =100-(T300+U300+W300) -> 1.650886687 | W300: =IF((S302+W302)>100,W302*100/(S302+W302),W302) -> 0.5524261926 | X300: =IF((X302+AB302)>100,X302*100/(X302+AB302),X302) -> 100 | Y300: =X300*AVERAGEIF(Y305:Y316,">0")/100 -> 100 | Z300: =X300*(100-AVERAGEIF(Y305:Y316,">0"))/100 -> 0 | AA300: =100-(Y300+Z300+AB300) -> 0 | AB300: =IF((X302+AB302)>100,AB302*100/(X302+AB302),AB302) -> 0
A301: Regression period: | C301: =MinRegYear(C299,C305:C316) -> 2000 | D301: =IF(MAX(C305:C316)-MIN(C305:C316)<5,AVERAGEIF(C305:C316,">0",D305:D316), IF(FORECAST($C301,D$305:D$316,$C$305:$C$316)<0,0, IF(FORECAST($C301,D$305:D$316,$C$305:$C$316)>100,100, FORECAST($C301,D$305:D$316,$C$305:$C$316)))) -> 58.69595338 | H301: =IF(MAX(C305:C316)-MIN(C305:C316)<5,AVERAGEIF(C305:C316,">0",H305:H316), IF(FORECAST($C301,H$305:H$316,$C$305:$C$316)<0,0, IF(FORECAST($C301,H$305:H$316,$C$305:$C$316)>100,100, FORECAST($C301,H$305:H$316,$C$305:$C$316)))) -> 20.05999326 | I301: =IF(MAX(C305:C316)-MIN(C305:C316)<5,AVERAGEIF(C305:C316,">0",I305:I316), IF(FORECAST($C301,I$305:I$316,$C$305:$C$316)<0,0, IF(FORECAST($C301,I$305:I$316,$C$305:$C$316)>100,100, FORECAST($C301,I$305:I$316,$C$305:$C$316)))) -> 74.12566829 | M301: =IF(MAX(C305:C316)-MIN(C305:C316)<5,AVERAGEIF(C305:C316,">0",M305:M316), IF(FORECAST($C301,M$305:M$316,$C$305:$C$316)<0,0, IF(FORECAST($C301,M$305:M$316,$C$305:$C$316)>100,100, FORECAST($C301,M$305:M$316,$C$305:$C$316)))) -> 14.75003567 | N301: =IF(MAX(C305:C316)-MIN(C305:C316)<5,AVERAGEIF(C305:C316,">0",N305:N316), IF(FORECAST($C301,N$305:N$316,$C$305:$C$316)<0,0, IF(FORECAST($C301,N$305:N$316,$C$305:$C$316)>100,100, FORECAST($C301,N$305:N$316,$C$305:$C$316)))) -> 85.08131677 | R301: =IF(MAX(C305:C316)-MIN(C305:C316)<5,AVERAGEIF(C305:C316,">0",R305:R316), IF(FORECAST($C301,R$305:R$316,$C$305:$C$316)<0,0, IF(FORECAST($C301,R$305:R$316,$C$305:$C$316)>100,100, FORECAST($C301,R$305:R$316,$C$305:$C$316)))) -> 7.549229768 | S301: =IF(MAX(C305:C316)-MIN(C305:C316)<5,AVERAGEIF(C305:C316,">0",S305:S316), IF(FORECAST($C301,S$305:S$316,$C$305:$C$316)<0,0, IF(FORECAST($C301,S$305:S$316,$C$305:$C$316)>100,100, FORECAST($C301,S$305:S$316,$C$305:$C$316)))) -> 90.2298961 | W301: =IF(MAX(C305:C316)-MIN(C305:C316)<5,AVERAGEIF(C305:C316,">0",W305:W316), IF(FORECAST($C301,W$305:W$316,$C$305:$C$316)<0,0, IF(FORECAST($C301,W$305:W$316,$C$305:$C$316)>100,100, FORECAST($C301,W$305:W$316,$C$305:$C$316)))) -> 4.066813871 | X301: =IF(MAX(C305:C316)-MIN(C305:C316)<5,AVERAGEIF(C305:C316,">0",X305:X316), IF(FORECAST($C301,X$305:X$316,$C$305:$C$316)<0,0, IF(FORECAST($C301,X$305:X$316,$C$305:$C$316)>100,100, FORECAST($C301,X$305:X$316,$C$305:$C$316)))) -> 91.88312284 | AB301: =IF(MAX(C305:C316)-MIN(C305:C316)<5,AVERAGEIF(C305:C316,">0",AB305:AB316), IF(FORECAST($C301,AB$305:AB$316,$C$305:$C$316)<0,0, IF(FORECAST($C301,AB$305:AB$316,$C$305:$C$316)>100,100, FORECAST($C301,AB$305:AB$316,$C$305:$C$316)))) -> 4.324426201
C302: =MaxRegYear(C300,C305:C316) -> 2016 | D302: =IF(MAX(C305:C316)-MIN(C305:C316)<5,AVERAGEIF(C305:C316,">0",D305:D316), IF(FORECAST($C302,D$305:D$316,$C$305:$C$316)<0,0, IF(FORECAST($C302,D$305:D$316,$C$305:$C$316)>100,100, FORECAST($C302,D$305:D$316,$C$305:$C$316)))) -> 81.26951466 | H302: =IF(MAX(C305:C316)-MIN(C305:C316)<5,AVERAGEIF(C305:C316,">0",H305:H316), IF(FORECAST($C302,H$305:H$316,$C$305:$C$316)<0,0, IF(FORECAST($C302,H$305:H$316,$C$305:$C$316)>100,100, FORECAST($C302,H$305:H$316,$C$305:$C$316)))) -> 1.401532386 | I302: =IF(MAX(C305:C316)-MIN(C305:C316)<5,AVERAGEIF(C305:C316,">0",I305:I316), IF(FORECAST($C302,I$305:I$316,$C$305:$C$316)<0,0, IF(FORECAST($C302,I$305:I$316,$C$305:$C$316)>100,100, FORECAST($C302,I$305:I$316,$C$305:$C$316)))) -> 91.13349845 | M302: =IF(MAX(C305:C316)-MIN(C305:C316)<5,AVERAGEIF(C305:C316,">0",M305:M316), IF(FORECAST($C302,M$305:M$316,$C$305:$C$316)<0,0, IF(FORECAST($C302,M$305:M$316,$C$305:$C$316)>100,100, FORECAST($C302,M$305:M$316,$C$305:$C$316)))) -> 0.2105024043 | N302: =IF(MAX(C305:C316)-MIN(C305:C316)<5,AVERAGEIF(C305:C316,">0",N305:N316), IF(FORECAST($C302,N$305:N$316,$C$305:$C$316)<0,0, IF(FORECAST($C302,N$305:N$316,$C$305:$C$316)>100,100, FORECAST($C302,N$305:N$316,$C$305:$C$316)))) -> 95.69131415 | R302: =IF(MAX(C305:C316)-MIN(C305:C316)<5,AVERAGEIF(C305:C316,">0",R305:R316), IF(FORECAST($C302,R$305:R$316,$C$305:$C$316)<0,0, IF(FORECAST($C302,R$305:R$316,$C$305:$C$316)>100,100, FORECAST($C302,R$305:R$316,$C$305:$C$316)))) -> 0.8561932755 | S302: =IF(MAX(C305:C316)-MIN(C305:C316)<5,AVERAGEIF(C305:C316,">0",S305:S316), IF(FORECAST($C302,S$305:S$316,$C$305:$C$316)<0,0, IF(FORECAST($C302,S$305:S$316,$C$305:$C$316)>100,100, FORECAST($C302,S$305:S$316,$C$305:$C$316)))) -> 97.79668712 | W302: =IF(MAX(C305:C316)-MIN(C305:C316)<5,AVERAGEIF(C305:C316,">0",W305:W316), IF(FORECAST($C302,W$305:W$316,$C$305:$C$316)<0,0, IF(FORECAST($C302,W$305:W$316,$C$305:$C$316)>100,100, FORECAST($C302,W$305:W$316,$C$305:$C$316)))) -> 0.5524261926 | X302: =IF(MAX(C305:C316)-MIN(C305:C316)<5,AVERAGEIF(C305:C316,">0",X305:X316), IF(FORECAST($C302,X$305:X$316,$C$305:$C$316)<0,0, IF(FORECAST($C302,X$305:X$316,$C$305:$C$316)>100,100, FORECAST($C302,X$305:X$316,$C$305:$C$316)))) -> 100 | AB302: =IF(MAX(C305:C316)-MIN(C305:C316)<5,AVERAGEIF(C305:C316,">0",AB305:AB316), IF(FORECAST($C302,AB$305:AB$316,$C$305:$C$316)<0,0, IF(FORECAST($C302,AB$305:AB$316,$C$305:$C$316)>100,100, FORECAST($C302,AB$305:AB$316,$C$305:$C$316)))) -> 0
B304: Survey | C304: Year | D304: Improved | E304: Basic | H304: Surface water | I304: Improved | J304: Basic | M304: Surface water | N304: Improved | O304: Basic | R304: Surface water | S304: Improved | T304: Basic | W304: Surface water | X304: Improved | Y304: Basic | AB304: Surface water
B305: DHS02 | C305: 2002 | D305: =IF(ISERROR(INDIRECT(CONCATENATE($B305,"!M16"))),"",INDIRECT(CONCATENATE($B305,"!M16"))) -> 59.79776736 | E305: =IF(ISERROR(INDIRECT(CONCATENATE($B305,"!M23"))),"",INDIRECT(CONCATENATE($B305,"!M23"))) -> N/A | H305: =IF(ISERROR(INDIRECT(CONCATENATE($B305,"!M21"))),"",INDIRECT(CONCATENATE($B305,"!M21"))) -> 19.68026396 | I305: =IF(ISERROR(INDIRECT(CONCATENATE($B305,"!N16"))),"",INDIRECT(CONCATENATE($B305,"!N16"))) -> 75.44378522 | J305: =IF(ISERROR(INDIRECT(CONCATENATE($B305,"!N23"))),"",INDIRECT(CONCATENATE($B305,"!N23"))) -> N/A | M305: =IF(ISERROR(INDIRECT(CONCATENATE($B305,"!N21"))),"",INDIRECT(CONCATENATE($B305,"!N21"))) -> 11.50585103 | N305: =IF(ISERROR(INDIRECT(CONCATENATE($B305,"!O16"))),"",INDIRECT(CONCATENATE($B305,"!O16"))) -> 86.6471662 | O305: =IF(ISERROR(INDIRECT(CONCATENATE($B305,"!O23"))),"",INDIRECT(CONCATENATE($B305,"!O23"))) -> N/A | R305: =IF(ISERROR(INDIRECT(CONCATENATE($B305,"!O21"))),"",INDIRECT(CONCATENATE($B305,"!O21"))) -> 5.071347278 | S305: =IF(ISERROR(INDIRECT(CONCATENATE($B305,"!P16"))),"",INDIRECT(CONCATENATE($B305,"!P16"))) -> 91.36646556 | T305: =IF(ISERROR(INDIRECT(CONCATENATE($B305,"!P23"))),"",INDIRECT(CONCATENATE($B305,"!P23"))) -> N/A | W305: =IF(ISERROR(INDIRECT(CONCATENATE($B305,"!P21"))),"",INDIRECT(CONCATENATE($B305,"!P21"))) -> 2.5124805 | X305: =IF(ISERROR(INDIRECT(CONCATENATE($B305,"!Q16"))),"",INDIRECT(CONCATENATE($B305,"!Q16"))) -> 93.0852308 | Y305: =IF(ISERROR(INDIRECT(CONCATENATE($B305,"!Q23"))),"",INDIRECT(CONCATENATE($B305,"!Q23"))) -> N/A | AB305: =IF(ISERROR(INDIRECT(CONCATENATE($B305,"!Q221"))),"",INDIRECT(CONCATENATE($B305,"!Q21"))) -> 3.165164245
B306: WHS03 | D306: 83.95391872 | E306: 99.44929645 | H306: 3.738414173 | I306: 90.76348358 | J306: 99.66316139 | M306: 0.5761260745 | N306: 95.9261703 | O306: 100 | R306: 0 | S306: 94.16220888 | T306: 100 | W306: 0.1935347239 | X306: 97.69575827 | Y306: 100 | AB306: 0
B307: AIS05 | C307: 2005 | D307: 64.96646163 | E307: N/A | H307: 13.71100275 | I307: 76.71910517 | J307: N/A | M307: 12.78677098 | N307: 87.27330873 | O307: N/A | R307: 5.910083829 | S307: 91.70734588 | T307: N/A | W307: 3.000469243 | X307: 94.39442673 | Y307: N/A | AB307: 2.33109296
B308: MICS06 | C308: 2006 | D308: 70.94020651 | E308: 99.08426075 | H308: 9.840220059 | I308: 83.2384529 | J308: 99.96233021 | M308: 9.623457483 | N308: 89.59203386 | O308: 100 | R308: 7.243956104 | S308: 93.53187653 | T308: 99.9749551 | W308: 4.506627187 | X308: 94.60725718 | Y308: 100 | AB308: 4.270397258
B309: MICS11 | C309: 2011 | D309: 73.36821001 | E309: 99.58152434 | H309: 9.570920282 | I309: 89.92160021 | J309: 99.65561064 | M309: 1.851402037 | N309: 93.36960605 | O309: 99.92841987 | R309: 2.276521608 | S309: 96.09220974 | T309: 100 | W309: 1.327884237 | X309: 98.84845151 | Y309: 100 | AB309: 0.3882852584
B310: MICS14 | C310: 2014 | D310: 78.01932941 | E310: 99.92669967 | H310: 3.183714668 | I310: 85.69899457 | J310: 99.94267671 | M310: 3.451305323 | N310: 93.72321278 | O310: 100 | R310: 1.348278351 | S310: 96.42271147 | T310: 100 | W310: 0.639937453 | X310: 98.6749911 | Y310: 100 | AB310: 0.2972693758
B318: =CONCATENATE("Rural use of drinking water sources, ",C299,"–",C300) -> Rural use of drinking water sources, 2000–2020 | S318: Data points used for regression

Sheet Sanitation
B4: Summary of trends in use of sanitation facilities by wealth quintile (%)
B5: =IF(ISERROR(INDIRECT(CONCATENATE($B105,"!A2"))),"",INDIRECT(CONCATENATE($B105,"!A2"))) -> Viet Nam
B7: =B118 -> National use of sanitation facilities, 2000–2020 | J7: =B218 -> Urban use of sanitation facilities, 2000–2020 | R7: =B318 -> Rural use of sanitation facilities, 2000–2020
B31: =IF(ISERROR(INDIRECT(CONCATENATE($B105,"!A2"))),"",INDIRECT(CONCATENATE($B105,"!A2"))) -> Viet Nam | F31: Poorest | J31: Poor | N31: Middle | R31: Rich | V31: Richest
F32: Basic | G32: Limited | H32: Unimproved | I32: Open defecation | J32: Basic | K32: Limited | L32: Unimproved | M32: Open defecation | N32: Basic | O32: Limited | P32: Unimproved | Q32: Open defecation | R32: Basic | S32: Limited | T32: Unimproved | U32: Open defecation | V32: Basic | W32: Limited | X32: Unimproved | Y32: Open defecation
B33: NATIONAL | D33: Estimate | E33: =C99 -> 2000 | F33: =E99 -> 12.29880582 | G33: =F99 -> 1.556442042 | H33: 43.19395316 | I33: 42.95079897 | J33: =J99 -> 32.84135364 | K33: =K99 -> 3.099396873 | L33: 37.42214899 | M33: 26.63710049 | N33: =O99 -> 47.26338431 | O33: =P99 -> 2.824625566 | P33: 34.34550037 | Q33: 15.56648976 | R33: =T99 -> 68.0587192 | S33: =U99 -> 2.387864345 | T33: 20.83690125 | U33: 8.716515207 | V33: =Y99 -> 91.46189031 | W33: =Z99 -> 2.289919489 | X33: 4.516876608 | Y33: 1.73131359
E34: =C100 -> 2020 | F34: =E100 -> 41.01339369 | G34: 5.190338896 | H34: 34.78698894 | I34: 19.00927847 | J34: =J100 -> 76.77271723 | K34: 7.245411449 | L34: 15.98187133 | M34: 0 | N34: =O100 -> 92.04828754 | O34: 5.501128412 | P34: 2.450584053 | Q34: 0 | R34: =T100 -> 96.61039014 | S34: 3.389609865 | T34: 0 | U34: 0 | V34: =Y100 -> 97.55746636 | W34: 2.442533636 | X34: 0 | Y34: 0
B36: URBAN | D36: Estimate | E36: =C199 -> 2000 | F36: =E199 -> 48.85334585 | G36: =F199 -> 5.88789566 | H36: 27.48915629 | I36: 17.76960219 | J36: =J199 -> 85.18806054 | K36: =K199 -> 6.652509448 | L36: 4.880146222 | M36: 3.279283786 | N36: =O199 -> 93.30853885 | O36: =P199 -> 3.591548825 | P36: 2.07538074 | Q36: 1.024531581 | R36: =T199 -> 96.54401069 | S36: =U199 -> 3.001418665 | T36: 0 | U36: 0.4545706474 | V36: =Y199 -> 98.22490824 | W36: =Z199 -> 1.775091758 | X36: 0 | Y36: 0
E37: =C200 -> 2020 | F37: =E200 -> 67.87094814 | G37: 8.179932286 | H37: 16.92112604 | I37: 7.027993532 | J37: =J200 -> 89.73098805 | K37: 7.007275925 | L37: 3.26173603 | M37: 0 | N37: =O200 -> 96.08333416 | O37: 3.698353764 | P37: 0.2183120743 | Q37: 0 | R37: =T200 -> 96.5869098 | S37: 3.002752339 | T37: 0.410337856 | U37: 0 | V37: =Y200 -> 98.15053384 | W37: 1.773747686 | X37: 0.07571847676 | Y37: 0
B39: RURAL | D39: Estimate | E39: =C299 -> 2000 | F39: =E299 -> 12.80550105 | G39: =F299 -> 1.603146253 | H39: 41.79983914 | I39: 43.79151356 | J39: =J299 -> 27.50583674 | K39: =K299 -> 2.98362077 | L39: 39.24227424 | M39: 30.26826825 | N39: =O299 -> 42.26331323 | O39: =P299 -> 2.659108311 | P39: 36.04547423 | Q39: 19.03210423 | R39: =T299 -> 51.04049643 | S39: =U299 -> 2.010561701 | T39: 34.32945758 | U39: 12.61948429 | V39: =Y299 -> 78.1546486 | W39: =Z299 -> 1.811487782 | X39: 13.76008013 | Y39: 6.273783481
E40: =C300 -> 2020 | F40: =E300 -> 34.74592322 | G40: 4.349911526 | H40: 36.87613364 | I40: 24.02803162 | J40: =J300 -> 67.50930654 | K40: 7.322888266 | L40: 22.37536206 | M40: 2.792443136 | N40: =O300 -> 83.14815587 | O40: 5.231486493 | P40: 11.62035763 | Q40: 0 | R40: =T300 -> 96.21013836 | S40: 3.789861639 | T40: 0 | U40: 0 | V40: =Y300 -> 97.73468137 | W40: 2.265318626 | X40: 0 | Y40: 0
A97: NATIONAL | D97: Poorest | I97: Poor | N97: Middle | S97: Rich | X97: Richest
D98: Improved | E98: Basic | F98: Limited | G98: Unimproved | H98: Open defecation | I98: Improved | J98: Basic | K98: Limited | L98: Unimproved | M98: Open defecation | N98: Improved | O98: Basic | P98: Limited | Q98: Unimproved | R98: Open defecation | S98: Improved | T98: Basic | U98: Limited | V98: Unimproved | W98: Open defecation | X98: Improved | Y98: Basic | Z98: Limited | AA98: Unimproved | AB98: Open defecation
A99: Forecast period: | C99: 2000 | D99: =IF((D101+H101)>100,D101*100/(D101+H101),D101) -> 13.85524786 | E99: =D99*AVERAGEIF(E105:E116,">0")/100 -> 12.29880582 | F99: =D99*(100-AVERAGEIF(E105:E116,">0"))/100 -> 1.556442042 | G99: =100-(E99+F99+H99) -> 43.19395316 | H99: =IF((D101+H101)>100,H101*100/(D101+H101),H101) -> 42.95079897 | I99: =IF((I101+M101)>100,I101*100/(I101+M101),I101) -> 35.94075052 | J99: =I99*AVERAGEIF(J105:J116,">0")/100 -> 32.84135364 | K99: =I99*(100-AVERAGEIF(J105:J116,">0"))/100 -> 3.099396873 | L99: =100-(J99+K99+M99) -> 37.42214899 | M99: =IF((I101+M101)>100,M101*100/(I101+M101),M101) -> 26.63710049 | N99: =IF((N101+R101)>100,N101*100/(N101+R101),N101) -> 50.08800987 | O99: =N99*AVERAGEIF(O105:O116,">0")/100 -> 47.26338431 | P99: =N99*(100-AVERAGEIF(O105:O116,">0"))/100 -> 2.824625566 | Q99: =100-(O99+P99+R99) -> 34.34550037 | R99: =IF((N101+R101)>100,R101*100/(N101+R101),R101) -> 15.56648976 | S99: =IF((S101+W101)>100,S101*100/(S101+W101),S101) -> 70.44658355 | T99: =S99*AVERAGEIF(T105:T116,">0")/100 -> 68.0587192 | U99: =S99*(100-AVERAGEIF(T105:T116,">0"))/100 -> 2.387864345 | V99: =100-(T99+U99+W99) -> 20.83690125 | W99: =IF((S101+W101)>100,W101*100/(S101+W101),W101) -> 8.716515207 | X99: =IF((X101+AB101)>100,X101*100/(X101+AB101),X101) -> 93.7518098 | Y99: =X99*AVERAGEIF(Y105:Y116,">0")/100 -> 91.46189031 | Z99: =X99*(100-AVERAGEIF(Y105:Y116,">0"))/100 -> 2.289919489 | AA99: =100-(Y99+Z99+AB99) -> 4.516876608 | AB99: =IF((X101+AB101)>100,AB101*100/(X101+AB101),AB101) -> 1.73131359
C100: 2020 | D100: =IF((D102+H102)>100,D102*100/(D102+H102),D102) -> 46.20373259 | E100: =D100*AVERAGEIF(E105:E116,">0")/100 -> 41.01339369 | F100: =D100*(100-AVERAGEIF(E105:E116,">0"))/100 -> 5.190338896 | G100: =100-(E100+F100+H100) -> 34.78698894 | H100: =IF((D102+H102)>100,H102*100/(D102+H102),H102) -> 19.00927847 | I100: =IF((I102+M102)>100,I102*100/(I102+M102),I102) -> 84.01812867 | J100: =I100*AVERAGEIF(J105:J116,">0")/100 -> 76.77271723 | K100: =I100*(100-AVERAGEIF(J105:J116,">0"))/100 -> 7.245411449 | L100: =100-(J100+K100+M100) -> 15.98187133 | M100: =IF((I102+M102)>100,M102*100/(I102+M102),M102) -> 0 | N100: =IF((N102+R102)>100,N102*100/(N102+R102),N102) -> 97.54941595 | O100: =N100*AVERAGEIF(O105:O116,">0")/100 -> 92.04828754 | P100: =N100*(100-AVERAGEIF(O105:O116,">0"))/100 -> 5.501128412 | Q100: =100-(O100+P100+R100) -> 2.450584053 | R100: =IF((N102+R102)>100,R102*100/(N102+R102),R102) -> 0 | S100: =IF((S102+W102)>100,S102*100/(S102+W102),S102) -> 100 | T100: =S100*AVERAGEIF(T105:T116,">0")/100 -> 96.61039014 | U100: =S100*(100-AVERAGEIF(T105:T116,">0"))/100 -> 3.389609865 | V100: =100-(T100+U100+W100) -> 0 | W100: =IF((S102+W102)>100,W102*100/(S102+W102),W102) -> 0 | X100: =IF((X102+AB102)>100,X102*100/(X102+AB102),X102) -> 100 | Y100: =X100*AVERAGEIF(Y105:Y116,">0")/100 -> 97.55746636 | Z100: =X100*(100-AVERAGEIF(Y105:Y116,">0"))/100 -> 2.442533636 | AA100: =100-(Y100+Z100+AB100) -> 0 | AB100: =IF((X102+AB102)>100,AB102*100/(X102+AB102),AB102) -> 0
A101: Regression period: | C101: =MinRegYear(C99,C105:C116) -> 2000 | D101: =IF(MAX(C105:C116)-MIN(C105:C116)<5,AVERAGEIF(C105:C116,">0",D105:D116), IF(FORECAST($C101,D$105:D$116,$C$105:$C$116)<0,0, IF(FORECAST($C101,D$105:D$116,$C$105:$C$116)>100,100, FORECAST($C101,D$105:D$116,$C$105:$C$116)))) -> 13.85524786 | H101: =IF(MAX(C105:C116)-MIN(C105:C116)<5,AVERAGEIF(C105:C116,">0",H105:H116), IF(FORECAST($C101,H$105:H$116,$C$105:$C$116)<0,0, IF(FORECAST($C101,H$105:H$116,$C$105:$C$116)>100,100, FORECAST($C101,H$105:H$116,$C$105:$C$116)))) -> 42.95079897 | I101: =IF(MAX(C105:C116)-MIN(C105:C116)<5,AVERAGEIF(C105:C116,">0",I105:I116), IF(FORECAST($C101,I$105:I$116,$C$105:$C$116)<0,0, IF(FORECAST($C101,I$105:I$116,$C$105:$C$116)>100,100, FORECAST($C101,I$105:I$116,$C$105:$C$116)))) -> 35.94075052 | M101: =IF(MAX(C105:C116)-MIN(C105:C116)<5,AVERAGEIF(C105:C116,">0",M105:M116), IF(FORECAST($C101,M$105:M$116,$C$105:$C$116)<0,0, IF(FORECAST($C101,M$105:M$116,$C$105:$C$116)>100,100, FORECAST($C101,M$105:M$116,$C$105:$C$116)))) -> 26.63710049 | N101: =IF(MAX(C105:C116)-MIN(C105:C116)<5,AVERAGEIF(C105:C116,">0",N105:N116), IF(FORECAST($C101,N$105:N$116,$C$105:$C$116)<0,0, IF(FORECAST($C101,N$105:N$116,$C$105:$C$116)>100,100, FORECAST($C101,N$105:N$116,$C$105:$C$116)))) -> 50.08800987 | R101: =IF(MAX(C105:C116)-MIN(C105:C116)<5,AVERAGEIF(C105:C116,">0",R105:R116), IF(FORECAST($C101,R$105:R$116,$C$105:$C$116)<0,0, IF(FORECAST($C101,R$105:R$116,$C$105:$C$116)>100,100, FORECAST($C101,R$105:R$116,$C$105:$C$116)))) -> 15.56648976 | S101: =IF(MAX(C105:C116)-MIN(C105:C116)<5,AVERAGEIF(C105:C116,">0",S105:S116), IF(FORECAST($C101,S$105:S$116,$C$105:$C$116)<0,0, IF(FORECAST($C101,S$105:S$116,$C$105:$C$116)>100,100, FORECAST($C101,S$105:S$116,$C$105:$C$116)))) -> 70.44658355 | W101: =IF(MAX(C105:C116)-MIN(C105:C116)<5,AVERAGEIF(C105:C116,">0",W105:W116), IF(FORECAST($C101,W$105:W$116,$C$105:$C$116)<0,0, IF(FORECAST($C101,W$105:W$116,$C$105:$C$116)>100,100, FORECAST($C101,W$105:W$116,$C$105:$C$116)))) -> 8.716515207 | X101: =IF(MAX(C105:C116)-MIN(C105:C116)<5,AVERAGEIF(C105:C116,">0",X105:X116), IF(FORECAST($C101,X$105:X$116,$C$105:$C$116)<0,0, IF(FORECAST($C101,X$105:X$116,$C$105:$C$116)>100,100, FORECAST($C101,X$105:X$116,$C$105:$C$116)))) -> 93.7518098 | AB101: =IF(MAX(C105:C116)-MIN(C105:C116)<5,AVERAGEIF(C105:C116,">0",AB105:AB116), IF(FORECAST($C101,AB$105:AB$116,$C$105:$C$116)<0,0, IF(FORECAST($C101,AB$105:AB$116,$C$105:$C$116)>100,100, FORECAST($C101,AB$105:AB$116,$C$105:$C$116)))) -> 1.73131359
C102: =MaxRegYear(C100,C105:C116) -> 2016 | D102: =IF(MAX(C105:C116)-MIN(C105:C116)<5,AVERAGEIF(C105:C116,">0",D105:D116), IF(FORECAST($C102,D$105:D$116,$C$105:$C$116)<0,0, IF(FORECAST($C102,D$105:D$116,$C$105:$C$116)>100,100, FORECAST($C102,D$105:D$116,$C$105:$C$116)))) -> 46.20373259 | H102: =IF(MAX(C105:C116)-MIN(C105:C116)<5,AVERAGEIF(C105:C116,">0",H105:H116), IF(FORECAST($C102,H$105:H$116,$C$105:$C$116)<0,0, IF(FORECAST($C102,H$105:H$116,$C$105:$C$116)>100,100, FORECAST($C102,H$105:H$116,$C$105:$C$116)))) -> 19.00927847 | I102: =IF(MAX(C105:C116)-MIN(C105:C116)<5,AVERAGEIF(C105:C116,">0",I105:I116), IF(FORECAST($C102,I$105:I$116,$C$105:$C$116)<0,0, IF(FORECAST($C102,I$105:I$116,$C$105:$C$116)>100,100, FORECAST($C102,I$105:I$116,$C$105:$C$116)))) -> 84.01812867 | M102: =IF(MAX(C105:C116)-MIN(C105:C116)<5,AVERAGEIF(C105:C116,">0",M105:M116), IF(FORECAST($C102,M$105:M$116,$C$105:$C$116)<0,0, IF(FORECAST($C102,M$105:M$116,$C$105:$C$116)>100,100, FORECAST($C102,M$105:M$116,$C$105:$C$116)))) -> 0 | N102: =IF(MAX(C105:C116)-MIN(C105:C116)<5,AVERAGEIF(C105:C116,">0",N105:N116), IF(FORECAST($C102,N$105:N$116,$C$105:$C$116)<0,0, IF(FORECAST($C102,N$105:N$116,$C$105:$C$116)>100,100, FORECAST($C102,N$105:N$116,$C$105:$C$116)))) -> 97.54941595 | R102: =IF(MAX(C105:C116)-MIN(C105:C116)<5,AVERAGEIF(C105:C116,">0",R105:R116), IF(FORECAST($C102,R$105:R$116,$C$105:$C$116)<0,0, IF(FORECAST($C102,R$105:R$116,$C$105:$C$116)>100,100, FORECAST($C102,R$105:R$116,$C$105:$C$116)))) -> 0 | S102: =IF(MAX(C105:C116)-MIN(C105:C116)<5,AVERAGEIF(C105:C116,">0",S105:S116), IF(FORECAST($C102,S$105:S$116,$C$105:$C$116)<0,0, IF(FORECAST($C102,S$105:S$116,$C$105:$C$116)>100,100, FORECAST($C102,S$105:S$116,$C$105:$C$116)))) -> 100 | W102: =IF(MAX(C105:C116)-MIN(C105:C116)<5,AVERAGEIF(C105:C116,">0",W105:W116), IF(FORECAST($C102,W$105:W$116,$C$105:$C$116)<0,0, IF(FORECAST($C102,W$105:W$116,$C$105:$C$116)>100,100, FORECAST($C102,W$105:W$116,$C$105:$C$116)))) -> 0 | X102: =IF(MAX(C105:C116)-MIN(C105:C116)<5,AVERAGEIF(C105:C116,">0",X105:X116), IF(FORECAST($C102,X$105:X$116,$C$105:$C$116)<0,0, IF(FORECAST($C102,X$105:X$116,$C$105:$C$116)>100,100, FORECAST($C102,X$105:X$116,$C$105:$C$116)))) -> 100 | AB102: =IF(MAX(C105:C116)-MIN(C105:C116)<5,AVERAGEIF(C105:C116,">0",AB105:AB116), IF(FORECAST($C102,AB$105:AB$116,$C$105:$C$116)<0,0, IF(FORECAST($C102,AB$105:AB$116,$C$105:$C$116)>100,100, FORECAST($C102,AB$105:AB$116,$C$105:$C$116)))) -> 0
B104: Survey | C104: Year | D104: Improved | E104: Not shared | H104: Open defecation | I104: Improved | J104: Not shared | M104: Open defecation | N104: Improved | O104: Not shared | R104: Open defecation | S104: Improved | T104: Not shared | W104: Open defecation | X104: Improved | Y104: Not shared | AB104: Open defecation
B105: DHS02 | C105: 2002 | D105: =IF(ISERROR(INDIRECT(CONCATENATE($B105,"!C122"))),"",INDIRECT(CONCATENATE($B105,"!C122"))) -> 19.02552583 | E105: =IF(ISERROR(INDIRECT(CONCATENATE($B105,"!C129"))),"",INDIRECT(CONCATENATE($B105,"!C129"))) -> N/A | H105: =IF(ISERROR(INDIRECT(CONCATENATE($B105,"!C127"))),"",INDIRECT(CONCATENATE($B105,"!C127"))) -> 37.08842128 | I105: =IF(ISERROR(INDIRECT(CONCATENATE($B105,"!D122"))),"",INDIRECT(CONCATENATE($B105,"!D122"))) -> 37.43910008 | J105: =IF(ISERROR(INDIRECT(CONCATENATE($B105,"!D129"))),"",INDIRECT(CONCATENATE($B105,"!D129"))) -> N/A | M105: =IF(ISERROR(INDIRECT(CONCATENATE($B105,"!D127"))),"",INDIRECT(CONCATENATE($B105,"!D127"))) -> 26.21033863 | N105: =IF(ISERROR(INDIRECT(CONCATENATE($B105,"!E122"))),"",INDIRECT(CONCATENATE($B105,"!E122"))) -> 53.33956055 | O105: =IF(ISERROR(INDIRECT(CONCATENATE($B105,"!E129"))),"",INDIRECT(CONCATENATE($B105,"!E129"))) -> N/A | R105: =IF(ISERROR(INDIRECT(CONCATENATE($B105,"!E127"))),"",INDIRECT(CONCATENATE($B105,"!E127"))) -> 15.59921066 | S105: =IF(ISERROR(INDIRECT(CONCATENATE($B105,"!F122"))),"",INDIRECT(CONCATENATE($B105,"!F122"))) -> 71.66280653 | T105: =IF(ISERROR(INDIRECT(CONCATENATE($B105,"!F129"))),"",INDIRECT(CONCATENATE($B105,"!F129"))) -> N/A | W105: =IF(ISERROR(INDIRECT(CONCATENATE($B105,"!F127"))),"",INDIRECT(CONCATENATE($B105,"!F127"))) -> 10.12907915 | X105: =IF(ISERROR(INDIRECT(CONCATENATE($B105,"!G122"))),"",INDIRECT(CONCATENATE($B105,"!G122"))) -> 94.30987921 | Y105: =IF(ISERROR(INDIRECT(CONCATENATE($B105,"!G129"))),"",INDIRECT(CONCATENATE($B105,"!G129"))) -> N/A | AB105: =IF(ISERROR(INDIRECT(CONCATENATE($B105,"!G2127"))),"",INDIRECT(CONCATENATE($B105,"!G127"))) -> 1.83650624
B106: WHS03 | C106: 2003 | D106: 24.3563064 | E106: 89.65108556 | H106: 33.148345 | I106: 59.32528329 | J106: 90.16911301 | M106: 15.76622978 | N106: 71.02388816 | O106: 94.20738702 | R106: 8.545729324 | S106: 80.2078103 | T106: 96.15312134 | W106: 5.297385098 | X106: 95.28379743 | Y106: 95.52327781 | AB106: 1.48789733
B107: AIS05 | C107: 2005 | D107: 15.83998063 | E107: N/A | H107: 48.03269584 | I107: 39.04186342 | J107: N/A | M107: 24.87918536 | N107: 57.94237215 | O107: N/A | R107: 10.91295725 | S107: 80.96919741 | T107: N/A | W107: 4.642029906 | X107: 94.26750306 | Y107: N/A | AB107: 0.7932405732
B108: MICS06 | C108: 2006 | D108: 26.53835378 | E108: 91.29400031 | H108: 33.06681758 | I108: 53.60528236 | J108: 91.3672273 | M108: 13.68062166 | N108: 61.83192931 | O108: 94.23088763 | R108: 11.25592838 | S108: 81.39645866 | T108: 95.34308114 | W108: 3.212845106 | X108: 98.11418714 | Y108: 96.79818649 | AB108: 0.2801050315
B109: MICS11 | C109: 2011 | D109: 38.22303865 | E109: 86.91362469 | H109: 22.17718717 | I109: 71.09031269 | J109: 91.6257084 | M109: 6.428992728 | N109: 86.38332542 | O109: 93.01767394 | R109: 2.205729917 | S109: 95.35819974 | T109: 96.94018175 | W109: 0.9322192928 | X109: 99.05423529 | Y109: 98.68693146 | AB109: 0.05118919708
B110: MICS14 | C110: 2014 | D110: 42.04127401 | E110: 87.20692067 | H110: 22.84118068 | I110: 78.34094279 | J110: 92.34343654 | M110: 4.569133571 | N110: 91.62683671 | O110: 95.98675219 | R110: 1.575255366 | S110: 97.99883913 | T110: 98.00517632 | W110: 0.1445300446 | X110: 99.17986587 | Y110: 99.2214697 | AB110: 0
B118: =CONCATENATE("National use of sanitation facilities, ",C99,"–",C100) -> National use of sanitation facilities, 2000–2020 | S118: Data points used for regression
A197: URBAN | D197: Poorest | I197: Poor | N197: Middle | S197: Rich | X197: Richest
D198: Improved | E198: Basic | F198: Limited | G198: Unimproved | H198: Open defecation | I198: Improved | J198: Basic | K198: Limited | L198: Unimproved | M198: Open defecation | N198: Improved | O198: Basic | P198: Limited | Q198: Unimproved | R198: Open defecation | S198: Improved | T198: Basic | U198: Limited | V198: Unimproved | W198: Open defecation | X198: Improved | Y198: Basic | Z198: Limited | AA198: Unimproved | AB198: Open defecation
A199: Forecast period: | C199: 2000 | D199: =IF((D201+H201)>100,D201*100/(D201+H201),D201) -> 54.74124151 | E199: =D199*AVERAGEIF(E205:E216,">0")/100 -> 48.85334585 | F199: =D199*(100-AVERAGEIF(E205:E216,">0"))/100 -> 5.88789566 | G199: =100-(E199+F199+H199) -> 27.48915629 | H199: =IF((D201+H201)>100,H201*100/(D201+H201),H201) -> 17.76960219 | I199: =IF((I201+M201)>100,I201*100/(I201+M201),I201) -> 91.84056999 | J199: =I199*AVERAGEIF(J205:J216,">0")/100 -> 85.18806054 | K199: =I199*(100-AVERAGEIF(J205:J216,">0"))/100 -> 6.652509448 | L199: =100-(J199+K199+M199) -> 4.880146222 | M199: =IF((I201+M201)>100,M201*100/(I201+M201),M201) -> 3.279283786 | N199: =IF((N201+R201)>100,N201*100/(N201+R201),N201) -> 96.90008768 | O199: =N199*AVERAGEIF(O205:O216,">0")/100 -> 93.30853885 | P199: =N199*(100-AVERAGEIF(O205:O216,">0"))/100 -> 3.591548825 | Q199: =100-(O199+P199+R199) -> 2.07538074 | R199: =IF((N201+R201)>100,R201*100/(N201+R201),R201) -> 1.024531581 | S199: =IF((S201+W201)>100,S201*100/(S201+W201),S201) -> 99.54542935 | T199: =S199*AVERAGEIF(T205:T216,">0")/100 -> 96.54401069 | U199: =S199*(100-AVERAGEIF(T205:T216,">0"))/100 -> 3.001418665 | V199: =100-(T199+U199+W199) -> 0 | W199: =IF((S201+W201)>100,W201*100/(S201+W201),W201) -> 0.4545706474 | X199: =IF((X201+AB201)>100,X201*100/(X201+AB201),X201) -> 100 | Y199: =X199*AVERAGEIF(Y205:Y216,">0")/100 -> 98.22490824 | Z199: =X199*(100-AVERAGEIF(Y205:Y216,">0"))/100 -> 1.775091758 | AA199: =100-(Y199+Z199+AB199) -> 0 | AB199: =IF((X201+AB201)>100,AB201*100/(X201+AB201),AB201) -> 0
C200: 2020 | D200: =IF((D202+H202)>100,D202*100/(D202+H202),D202) -> 76.05088043 | E200: =D200*AVERAGEIF(E205:E216,">0")/100 -> 67.87094814 | F200: =D200*(100-AVERAGEIF(E205:E216,">0"))/100 -> 8.179932286 | G200: =100-(E200+F200+H200) -> 16.92112604 | H200: =IF((D202+H202)>100,H202*100/(D202+H202),H202) -> 7.027993532 | I200: =IF((I202+M202)>100,I202*100/(I202+M202),I202) -> 96.73826397 | J200: =I200*AVERAGEIF(J205:J216,">0")/100 -> 89.73098805 | K200: =I200*(100-AVERAGEIF(J205:J216,">0"))/100 -> 7.007275925 | L200: =100-(J200+K200+M200) -> 3.26173603 | M200: =IF((I202+M202)>100,M202*100/(I202+M202),M202) -> 0 | N200: =IF((N202+R202)>100,N202*100/(N202+R202),N202) -> 99.78168793 | O200: =N200*AVERAGEIF(O205:O216,">0")/100 -> 96.08333416 | P200: =N200*(100-AVERAGEIF(O205:O216,">0"))/100 -> 3.698353764 | Q200: =100-(O200+P200+R200) -> 0.2183120743 | R200: =IF((N202+R202)>100,R202*100/(N202+R202),R202) -> 0 | S200: =IF((S202+W202)>100,S202*100/(S202+W202),S202) -> 99.58966214 | T200: =S200*AVERAGEIF(T205:T216,">0")/100 -> 96.5869098 | U200: =S200*(100-AVERAGEIF(T205:T216,">0"))/100 -> 3.002752339 | V200: =100-(T200+U200+W200) -> 0.410337856 | W200: =IF((S202+W202)>100,W202*100/(S202+W202),W202) -> 0 | X200: =IF((X202+AB202)>100,X202*100/(X202+AB202),X202) -> 99.92428152 | Y200: =X200*AVERAGEIF(Y205:Y216,">0")/100 -> 98.15053384 | Z200: =X200*(100-AVERAGEIF(Y205:Y216,">0"))/100 -> 1.773747686 | AA200: =100-(Y200+Z200+AB200) -> 0.07571847676 | AB200: =IF((X202+AB202)>100,AB202*100/(X202+AB202),AB202) -> 0
A201: Regression period: | C201: =MinRegYear(C199,C205:C216) -> 2000 | D201: =IF(MAX(C205:C216)-MIN(C205:C216)<5,AVERAGEIF(C205:C216,">0",D205:D216), IF(FORECAST($C201,D$205:D$216,$C$205:$C$216)<0,0, IF(FORECAST($C201,D$205:D$216,$C$205:$C$216)>100,100, FORECAST($C201,D$205:D$216,$C$205:$C$216)))) -> 54.74124151 | H201: =IF(MAX(C205:C216)-MIN(C205:C216)<5,AVERAGEIF(C205:C216,">0",H205:H216), IF(FORECAST($C201,H$205:H$216,$C$205:$C$216)<0,0, IF(FORECAST($C201,H$205:H$216,$C$205:$C$216)>100,100, FORECAST($C201,H$205:H$216,$C$205:$C$216)))) -> 17.76960219 | I201: =IF(MAX(C205:C216)-MIN(C205:C216)<5,AVERAGEIF(C205:C216,">0",I205:I216), IF(FORECAST($C201,I$205:I$216,$C$205:$C$216)<0,0, IF(FORECAST($C201,I$205:I$216,$C$205:$C$216)>100,100, FORECAST($C201,I$205:I$216,$C$205:$C$216)))) -> 91.84056999 | M201: =IF(MAX(C205:C216)-MIN(C205:C216)<5,AVERAGEIF(C205:C216,">0",M205:M216), IF(FORECAST($C201,M$205:M$216,$C$205:$C$216)<0,0, IF(FORECAST($C201,M$205:M$216,$C$205:$C$216)>100,100, FORECAST($C201,M$205:M$216,$C$205:$C$216)))) -> 3.279283786 | N201: =IF(MAX(C205:C216)-MIN(C205:C216)<5,AVERAGEIF(C205:C216,">0",N205:N216), IF(FORECAST($C201,N$205:N$216,$C$205:$C$216)<0,0, IF(FORECAST($C201,N$205:N$216,$C$205:$C$216)>100,100, FORECAST($C201,N$205:N$216,$C$205:$C$216)))) -> 96.90008768 | R201: =IF(MAX(C205:C216)-MIN(C205:C216)<5,AVERAGEIF(C205:C216,">0",R205:R216), IF(FORECAST($C201,R$205:R$216,$C$205:$C$216)<0,0, IF(FORECAST($C201,R$205:R$216,$C$205:$C$216)>100,100, FORECAST($C201,R$205:R$216,$C$205:$C$216)))) -> 1.024531581 | S201: =IF(MAX(C205:C216)-MIN(C205:C216)<5,AVERAGEIF(C205:C216,">0",S205:S216), IF(FORECAST($C201,S$205:S$216,$C$205:$C$216)<0,0, IF(FORECAST($C201,S$205:S$216,$C$205:$C$216)>100,100, FORECAST($C201,S$205:S$216,$C$205:$C$216)))) -> 99.62373131 | W201: =IF(MAX(C205:C216)-MIN(C205:C216)<5,AVERAGEIF(C205:C216,">0",W205:W216), IF(FORECAST($C201,W$205:W$216,$C$205:$C$216)<0,0, IF(FORECAST($C201,W$205:W$216,$C$205:$C$216)>100,100, FORECAST($C201,W$205:W$216,$C$205:$C$216)))) -> 0.4549282105 | X201: =IF(MAX(C205:C216)-MIN(C205:C216)<5,AVERAGEIF(C205:C216,">0",X205:X216), IF(FORECAST($C201,X$205:X$216,$C$205:$C$216)<0,0, IF(FORECAST($C201,X$205:X$216,$C$205:$C$216)>100,100, FORECAST($C201,X$205:X$216,$C$205:$C$216)))) -> 100 | AB201: =IF(MAX(C205:C216)-MIN(C205:C216)<5,AVERAGEIF(C205:C216,">0",AB205:AB216), IF(FORECAST($C201,AB$205:AB$216,$C$205:$C$216)<0,0, IF(FORECAST($C201,AB$205:AB$216,$C$205:$C$216)>100,100, FORECAST($C201,AB$205:AB$216,$C$205:$C$216)))) -> 0
C202: =MaxRegYear(C200,C205:C216) -> 2016 | D202: =IF(MAX(C205:C216)-MIN(C205:C216)<5,AVERAGEIF(C205:C216,">0",D205:D216), IF(FORECAST($C202,D$205:D$216,$C$205:$C$216)<0,0, IF(FORECAST($C202,D$205:D$216,$C$205:$C$216)>100,100, FORECAST($C202,D$205:D$216,$C$205:$C$216)))) -> 76.05088043 | H202: =IF(MAX(C205:C216)-MIN(C205:C216)<5,AVERAGEIF(C205:C216,">0",H205:H216), IF(FORECAST($C202,H$205:H$216,$C$205:$C$216)<0,0, IF(FORECAST($C202,H$205:H$216,$C$205:$C$216)>100,100, FORECAST($C202,H$205:H$216,$C$205:$C$216)))) -> 7.027993532 | I202: =IF(MAX(C205:C216)-MIN(C205:C216)<5,AVERAGEIF(C205:C216,">0",I205:I216), IF(FORECAST($C202,I$205:I$216,$C$205:$C$216)<0,0, IF(FORECAST($C202,I$205:I$216,$C$205:$C$216)>100,100, FORECAST($C202,I$205:I$216,$C$205:$C$216)))) -> 96.73826397 | M202: =IF(MAX(C205:C216)-MIN(C205:C216)<5,AVERAGEIF(C205:C216,">0",M205:M216), IF(FORECAST($C202,M$205:M$216,$C$205:$C$216)<0,0, IF(FORECAST($C202,M$205:M$216,$C$205:$C$216)>100,100, FORECAST($C202,M$205:M$216,$C$205:$C$216)))) -> 0 | N202: =IF(MAX(C205:C216)-MIN(C205:C216)<5,AVERAGEIF(C205:C216,">0",N205:N216), IF(FORECAST($C202,N$205:N$216,$C$205:$C$216)<0,0, IF(FORECAST($C202,N$205:N$216,$C$205:$C$216)>100,100, FORECAST($C202,N$205:N$216,$C$205:$C$216)))) -> 99.78168793 | R202: =IF(MAX(C205:C216)-MIN(C205:C216)<5,AVERAGEIF(C205:C216,">0",R205:R216), IF(FORECAST($C202,R$205:R$216,$C$205:$C$216)<0,0, IF(FORECAST($C202,R$205:R$216,$C$205:$C$216)>100,100, FORECAST($C202,R$205:R$216,$C$205:$C$216)))) -> 0 | S202: =IF(MAX(C205:C216)-MIN(C205:C216)<5,AVERAGEIF(C205:C216,">0",S205:S216), IF(FORECAST($C202,S$205:S$216,$C$205:$C$216)<0,0, IF(FORECAST($C202,S$205:S$216,$C$205:$C$216)>100,100, FORECAST($C202,S$205:S$216,$C$205:$C$216)))) -> 99.58966214 | W202: =IF(MAX(C205:C216)-MIN(C205:C216)<5,AVERAGEIF(C205:C216,">0",W205:W216), IF(FORECAST($C202,W$205:W$216,$C$205:$C$216)<0,0, IF(FORECAST($C202,W$205:W$216,$C$205:$C$216)>100,100, FORECAST($C202,W$205:W$216,$C$205:$C$216)))) -> 0 | X202: =IF(MAX(C205:C216)-MIN(C205:C216)<5,AVERAGEIF(C205:C216,">0",X205:X216), IF(FORECAST($C202,X$205:X$216,$C$205:$C$216)<0,0, IF(FORECAST($C202,X$205:X$216,$C$205:$C$216)>100,100, FORECAST($C202,X$205:X$216,$C$205:$C$216)))) -> 99.92428152 | AB202: =IF(MAX(C205:C216)-MIN(C205:C216)<5,AVERAGEIF(C205:C216,">0",AB205:AB216), IF(FORECAST($C202,AB$205:AB$216,$C$205:$C$216)<0,0, IF(FORECAST($C202,AB$205:AB$216,$C$205:$C$216)>100,100, FORECAST($C202,AB$205:AB$216,$C$205:$C$216)))) -> 0
B204: Survey | C204: Year | D204: Improved | E204: Not shared | H204: Open defecation | I204: Improved | J204: Not shared | M204: Open defecation | N204: Improved | O204: Not shared | R204: Open defecation | S204: Improved | T204: Not shared | W204: Open defecation | X204: Improved | Y204: Not shared | AB204: Open defecation
B205: DHS02 | C205: 2002 | D205: =IF(ISERROR(INDIRECT(CONCATENATE($B205,"!H122"))),"",INDIRECT(CONCATENATE($B205,"!H122"))) -> 59.43544613 | E205: =IF(ISERROR(INDIRECT(CONCATENATE($B205,"!H129"))),"",INDIRECT(CONCATENATE($B205,"!H129"))) -> N/A | H205: =IF(ISERROR(INDIRECT(CONCATENATE($B205,"!H127"))),"",INDIRECT(CONCATENATE($B205,"!H127"))) -> 16.28565248 | I205: =IF(ISERROR(INDIRECT(CONCATENATE($B205,"!I122"))),"",INDIRECT(CONCATENATE($B205,"!I122"))) -> 94.5463961 | J205: =IF(ISERROR(INDIRECT(CONCATENATE($B205,"!I129"))),"",INDIRECT(CONCATENATE($B205,"!I129"))) -> N/A | M205: =IF(ISERROR(INDIRECT(CONCATENATE($B205,"!I127"))),"",INDIRECT(CONCATENATE($B205,"!I127"))) -> 3.331527474 | N205: =IF(ISERROR(INDIRECT(CONCATENATE($B205,"!J122"))),"",INDIRECT(CONCATENATE($B205,"!J122"))) -> 100 | O205: =IF(ISERROR(INDIRECT(CONCATENATE($B205,"!J129"))),"",INDIRECT(CONCATENATE($B205,"!J129"))) -> N/A | R205: =IF(ISERROR(INDIRECT(CONCATENATE($B205,"!J127"))),"",INDIRECT(CONCATENATE($B205,"!J127"))) -> 0 | S205: =IF(ISERROR(INDIRECT(CONCATENATE($B205,"!K122"))),"",INDIRECT(CONCATENATE($B205,"!K122"))) -> 100 | T205: =IF(ISERROR(INDIRECT(CONCATENATE($B205,"!K129"))),"",INDIRECT(CONCATENATE($B205,"!K129"))) -> N/A | W205: =IF(ISERROR(INDIRECT(CONCATENATE($B205,"!K127"))),"",INDIRECT(CONCATENATE($B205,"!K127"))) -> 0 | X205: =IF(ISERROR(INDIRECT(CONCATENATE($B205,"!L122"))),"",INDIRECT(CONCATENATE($B205,"!L122"))) -> 100 | Y205: =IF(ISERROR(INDIRECT(CONCATENATE($B205,"!L129"))),"",INDIRECT(CONCATENATE($B205,"!L129"))) -> N/A | AB205: =IF(ISERROR(INDIRECT(CONCATENATE($B205,"!L2127"))),"",INDIRECT(CONCATENATE($B205,"!L127"))) -> 0
B206: WHS03 | C206: 2003 | D206: 55.46461525 | E206: 92.4137191 | H206: 16.99513257 | I206: 91.59938305 | J206: 91.93421172 | M206: 1.346348479 | N206: 92.89986439 | O206: 96.22317439 | R206: 2.035281089 | S206: 98.63802479 | T206: 93.34323321 | W206: 1.12883306 | X206: 100 | Y206: 95.16382861 | AB206: 0
B207: AIS05 | C207: 2005 | D207: 63.87663525 | E207: N/A | H207: 14.20164931 | I207: 94.71097988 | J207: N/A | M207: 3.349019678 | N207: 99.44576628 | O207: N/A | R207: 0.5542337236 | S207: 100 | T207: N/A | W207: 0 | X207: 100 | Y207: N/A | AB207: 0
B208: MICS06 | C208: 2006 | D208: 59.673326 | E208: 88.08043852 | H208: 14.49776166 | I208: 90.11509846 | J208: 91.76950614 | M208: 2.236162135 | N208: 98.28046105 | O208: 94.65715704 | R208: 0.2678881024 | S208: 100 | T208: 97.41836747 | W208: 0 | X208: 100 | Y208: 98.46964648 | AB208: 0
B209: MICS11 | C209: 2011 | D209: 73.99664449 | E209: 85.48156961 | H209: 5.021506742 | I209: 96.56410372 | J209: 92.11239858 | M209: 0.1891571334 | N209: 98.83599327 | O209: 95.86794446 | R209: 0.1012179687 | S209: 99.47083585 | T209: 98.11080392 | W209: 0 | X209: 100 | Y209: 99.78495406 | AB209: 0
B210: MICS14 | C210: 2014 | D210: 70.60673167 | E210: 91.0008009 | H210: 12.09053821 | I210: 96.05779956 | J210: 95.2097191 | M210: 0.7942699775 | N210: 99.32254171 | O210: 98.42594258 | R210: 0 | S210: 99.54622498 | T210: 99.06709726 | W210: 0 | X210: 99.90029151 | Y210: 99.48120383 | AB210: 0
B218: =CONCATENATE("Urban use of sanitation facilities, ",C199,"–",C200) -> Urban use of sanitation facilities, 2000–2020 | S218: Data points used for regression
A297: RURAL | D297: Poorest | I297: Poor | N297: Middle | S297: Rich | X297: Richest
D298: Improved | E298: Basic | F298: Limited | G298: Unimproved | H298: Open defecation | I298: Improved | J298: Basic | K298: Limited | L298: Unimproved | M298: Open defecation | N298: Improved | O298: Basic | P298: Limited | Q298: Unimproved | R298: Open defecation | S298: Improved | T298: Basic | U298: Limited | V298: Unimproved | W298: Open defecation | X298: Improved | Y298: Basic | Z298: Limited | AA298: Unimproved | AB298: Open defecation
A299: Forecast period: | C299: 2000 | D299: =IF((D301+H301)>100,D301*100/(D301+H301),D301) -> 14.4086473 | E299: =D299*AVERAGEIF(E305:E316,">0")/100 -> 12.80550105 | F299: =D299*(100-AVERAGEIF(E305:E316,">0"))/100 -> 1.603146253 | G299: =100-(E299+F299+H299) -> 41.79983914 | H299: =IF((D301+H301)>100,H301*100/(D301+H301),H301) -> 43.79151356 | I299: =IF((I301+M301)>100,I301*100/(I301+M301),I301) -> 30.48945751 | J299: =I299*AVERAGEIF(J305:J316,">0")/100 -> 27.50583674 | K299: =I299*(100-AVERAGEIF(J305:J316,">0"))/100 -> 2.98362077 | L299: =100-(J299+K299+M299) -> 39.24227424 | M299: =IF((I301+M301)>100,M301*100/(I301+M301),M301) -> 30.26826825 | N299: =IF((N301+R301)>100,N301*100/(N301+R301),N301) -> 44.92242154 | O299: =N299*AVERAGEIF(O305:O316,">0")/100 -> 42.26331323 | P299: =N299*(100-AVERAGEIF(O305:O316,">0"))/100 -> 2.659108311 | Q299: =100-(O299+P299+R299) -> 36.04547423 | R299: =IF((N301+R301)>100,R301*100/(N301+R301),R301) -> 19.03210423 | S299: =IF((S301+W301)>100,S301*100/(S301+W301),S301) -> 53.05105813 | T299: =S299*AVERAGEIF(T305:T316,">0")/100 -> 51.04049643 | U299: =S299*(100-AVERAGEIF(T305:T316,">0"))/100 -> 2.010561701 | V299: =100-(T299+U299+W299) -> 34.32945758 | W299: =IF((S301+W301)>100,W301*100/(S301+W301),W301) -> 12.61948429 | X299: =IF((X301+AB301)>100,X301*100/(X301+AB301),X301) -> 79.96613639 | Y299: =X299*AVERAGEIF(Y305:Y316,">0")/100 -> 78.1546486 | Z299: =X299*(100-AVERAGEIF(Y305:Y316,">0"))/100 -> 1.811487782 | AA299: =100-(Y299+Z299+AB299) -> 13.76008013 | AB299: =IF((X301+AB301)>100,AB301*100/(X301+AB301),AB301) -> 6.273783481
C300: 2020 | D300: =IF((D302+H302)>100,D302*100/(D302+H302),D302) -> 39.09583474 | E300: =D300*AVERAGEIF(E305:E316,">0")/100 -> 34.74592322 | F300: =D300*(100-AVERAGEIF(E305:E316,">0"))/100 -> 4.349911526 | G300: =100-(E300+F300+H300) -> 36.87613364 | H300: =IF((D302+H302)>100,H302*100/(D302+H302),H302) -> 24.02803162 | I300: =IF((I302+M302)>100,I302*100/(I302+M302),I302) -> 74.8321948 | J300: =I300*AVERAGEIF(J305:J316,">0")/100 -> 67.50930654 | K300: =I300*(100-AVERAGEIF(J305:J316,">0"))/100 -> 7.322888266 | L300: =100-(J300+K300+M300) -> 22.37536206 | M300: =IF((I302+M302)>100,M302*100/(I302+M302),M302) -> 2.792443136 | N300: =IF((N302+R302)>100,N302*100/(N302+R302),N302) -> 88.37964237 | O300: =N300*AVERAGEIF(O305:O316,">0")/100 -> 83.14815587 | P300: =N300*(100-AVERAGEIF(O305:O316,">0"))/100 -> 5.231486493 | Q300: =100-(O300+P300+R300) -> 11.62035763 | R300: =IF((N302+R302)>100,R302*100/(N302+R302),R302) -> 0 | S300: =IF((S302+W302)>100,S302*100/(S302+W302),S302) -> 100 | T300: =S300*AVERAGEIF(T305:T316,">0")/100 -> 96.21013836 | U300: =S300*(100-AVERAGEIF(T305:T316,">0"))/100 -> 3.789861639 | V300: =100-(T300+U300+W300) -> 0 | W300: =IF((S302+W302)>100,W302*100/(S302+W302),W302) -> 0 | X300: =IF((X302+AB302)>100,X302*100/(X302+AB302),X302) -> 100 | Y300: =X300*AVERAGEIF(Y305:Y316,">0")/100 -> 97.73468137 | Z300: =X300*(100-AVERAGEIF(Y305:Y316,">0"))/100 -> 2.265318626 | AA300: =100-(Y300+Z300+AB300) -> 0 | AB300: =IF((X302+AB302)>100,AB302*100/(X302+AB302),AB302) -> 0
A301: Regression period: | C301: =MinRegYear(C299,C305:C316) -> 2000 | D301: =IF(MAX(C305:C316)-MIN(C305:C316)<5,AVERAGEIF(C305:C316,">0",D305:D316), IF(FORECAST($C301,D$305:D$316,$C$305:$C$316)<0,0, IF(FORECAST($C301,D$305:D$316,$C$305:$C$316)>100,100, FORECAST($C301,D$305:D$316,$C$305:$C$316)))) -> 14.4086473 | H301: =IF(MAX(C305:C316)-MIN(C305:C316)<5,AVERAGEIF(C305:C316,">0",H305:H316), IF(FORECAST($C301,H$305:H$316,$C$305:$C$316)<0,0, IF(FORECAST($C301,H$305:H$316,$C$305:$C$316)>100,100, FORECAST($C301,H$305:H$316,$C$305:$C$316)))) -> 43.79151356 | I301: =IF(MAX(C305:C316)-MIN(C305:C316)<5,AVERAGEIF(C305:C316,">0",I305:I316), IF(FORECAST($C301,I$305:I$316,$C$305:$C$316)<0,0, IF(FORECAST($C301,I$305:I$316,$C$305:$C$316)>100,100, FORECAST($C301,I$305:I$316,$C$305:$C$316)))) -> 30.48945751 | M301: =IF(MAX(C305:C316)-MIN(C305:C316)<5,AVERAGEIF(C305:C316,">0",M305:M316), IF(FORECAST($C301,M$305:M$316,$C$305:$C$316)<0,0, IF(FORECAST($C301,M$305:M$316,$C$305:$C$316)>100,100, FORECAST($C301,M$305:M$316,$C$305:$C$316)))) -> 30.26826825 | N301: =IF(MAX(C305:C316)-MIN(C305:C316)<5,AVERAGEIF(C305:C316,">0",N305:N316), IF(FORECAST($C301,N$305:N$316,$C$305:$C$316)<0,0, IF(FORECAST($C301,N$305:N$316,$C$305:$C$316)>100,100, FORECAST($C301,N$305:N$316,$C$305:$C$316)))) -> 44.92242154 | R301: =IF(MAX(C305:C316)-MIN(C305:C316)<5,AVERAGEIF(C305:C316,">0",R305:R316), IF(FORECAST($C301,R$305:R$316,$C$305:$C$316)<0,0, IF(FORECAST($C301,R$305:R$316,$C$305:$C$316)>100,100, FORECAST($C301,R$305:R$316,$C$305:$C$316)))) -> 19.03210423 | S301: =IF(MAX(C305:C316)-MIN(C305:C316)<5,AVERAGEIF(C305:C316,">0",S305:S316), IF(FORECAST($C301,S$305:S$316,$C$305:$C$316)<0,0, IF(FORECAST($C301,S$305:S$316,$C$305:$C$316)>100,100, FORECAST($C301,S$305:S$316,$C$305:$C$316)))) -> 53.05105813 | W301: =IF(MAX(C305:C316)-MIN(C305:C316)<5,AVERAGEIF(C305:C316,">0",W305:W316), IF(FORECAST($C301,W$305:W$316,$C$305:$C$316)<0,0, IF(FORECAST($C301,W$305:W$316,$C$305:$C$316)>100,100, FORECAST($C301,W$305:W$316,$C$305:$C$316)))) -> 12.61948429 | X301: =IF(MAX(C305:C316)-MIN(C305:C316)<5,AVERAGEIF(C305:C316,">0",X305:X316), IF(FORECAST($C301,X$305:X$316,$C$305:$C$316)<0,0, IF(FORECAST($C301,X$305:X$316,$C$305:$C$316)>100,100, FORECAST($C301,X$305:X$316,$C$305:$C$316)))) -> 79.96613639 | AB301: =IF(MAX(C305:C316)-MIN(C305:C316)<5,AVERAGEIF(C305:C316,">0",AB305:AB316), IF(FORECAST($C301,AB$305:AB$316,$C$305:$C$316)<0,0, IF(FORECAST($C301,AB$305:AB$316,$C$305:$C$316)>100,100, FORECAST($C301,AB$305:AB$316,$C$305:$C$316)))) -> 6.273783481
C302: =MaxRegYear(C300,C305:C316) -> 2016 | D302: =IF(MAX(C305:C316)-MIN(C305:C316)<5,AVERAGEIF(C305:C316,">0",D305:D316), IF(FORECAST($C302,D$305:D$316,$C$305:$C$316)<0,0, IF(FORECAST($C302,D$305:D$316,$C$305:$C$316)>100,100, FORECAST($C302,D$305:D$316,$C$305:$C$316)))) -> 39.09583474 | H302: =IF(MAX(C305:C316)-MIN(C305:C316)<5,AVERAGEIF(C305:C316,">0",H305:H316), IF(FORECAST($C302,H$305:H$316,$C$305:$C$316)<0,0, IF(FORECAST($C302,H$305:H$316,$C$305:$C$316)>100,100, FORECAST($C302,H$305:H$316,$C$305:$C$316)))) -> 24.02803162 | I302: =IF(MAX(C305:C316)-MIN(C305:C316)<5,AVERAGEIF(C305:C316,">0",I305:I316), IF(FORECAST($C302,I$305:I$316,$C$305:$C$316)<0,0, IF(FORECAST($C302,I$305:I$316,$C$305:$C$316)>100,100, FORECAST($C302,I$305:I$316,$C$305:$C$316)))) -> 74.8321948 | M302: =IF(MAX(C305:C316)-MIN(C305:C316)<5,AVERAGEIF(C305:C316,">0",M305:M316), IF(FORECAST($C302,M$305:M$316,$C$305:$C$316)<0,0, IF(FORECAST($C302,M$305:M$316,$C$305:$C$316)>100,100, FORECAST($C302,M$305:M$316,$C$305:$C$316)))) -> 2.792443136 | N302: =IF(MAX(C305:C316)-MIN(C305:C316)<5,AVERAGEIF(C305:C316,">0",N305:N316), IF(FORECAST($C302,N$305:N$316,$C$305:$C$316)<0,0, IF(FORECAST($C302,N$305:N$316,$C$305:$C$316)>100,100, FORECAST($C302,N$305:N$316,$C$305:$C$316)))) -> 88.37964237 | R302: =IF(MAX(C305:C316)-MIN(C305:C316)<5,AVERAGEIF(C305:C316,">0",R305:R316), IF(FORECAST($C302,R$305:R$316,$C$305:$C$316)<0,0, IF(FORECAST($C302,R$305:R$316,$C$305:$C$316)>100,100, FORECAST($C302,R$305:R$316,$C$305:$C$316)))) -> 0 | S302: =IF(MAX(C305:C316)-MIN(C305:C316)<5,AVERAGEIF(C305:C316,">0",S305:S316), IF(FORECAST($C302,S$305:S$316,$C$305:$C$316)<0,0, IF(FORECAST($C302,S$305:S$316,$C$305:$C$316)>100,100, FORECAST($C302,S$305:S$316,$C$305:$C$316)))) -> 100 | W302: =IF(MAX(C305:C316)-MIN(C305:C316)<5,AVERAGEIF(C305:C316,">0",W305:W316), IF(FORECAST($C302,W$305:W$316,$C$305:$C$316)<0,0, IF(FORECAST($C302,W$305:W$316,$C$305:$C$316)>100,100, FORECAST($C302,W$305:W$316,$C$305:$C$316)))) -> 0 | X302: =IF(MAX(C305:C316)-MIN(C305:C316)<5,AVERAGEIF(C305:C316,">0",X305:X316), IF(FORECAST($C302,X$305:X$316,$C$305:$C$316)<0,0, IF(FORECAST($C302,X$305:X$316,$C$305:$C$316)>100,100, FORECAST($C302,X$305:X$316,$C$305:$C$316)))) -> 100 | AB302: =IF(MAX(C305:C316)-MIN(C305:C316)<5,AVERAGEIF(C305:C316,">0",AB305:AB316), IF(FORECAST($C302,AB$305:AB$316,$C$305:$C$316)<0,0, IF(FORECAST($C302,AB$305:AB$316,$C$305:$C$316)>100,100, FORECAST($C302,AB$305:AB$316,$C$305:$C$316)))) -> 0
B304: Survey | C304: Year | D304: Improved | E304: Not shared | H304: Open defecation | I304: Improved | J304: Not shared | M304: Open defecation | N304: Improved | O304: Not shared | R304: Open defecation | S304: Improved | T304: Not shared | W304: Open defecation | X304: Improved | Y304: Not shared | AB304: Open defecation
B305: DHS02 | C305: 2002 | D305: =IF(ISERROR(INDIRECT(CONCATENATE($B305,"!M122"))),"",INDIRECT(CONCATENATE($B305,"!M122"))) -> 19.27830613 | E305: =IF(ISERROR(INDIRECT(CONCATENATE($B305,"!M129"))),"",INDIRECT(CONCATENATE($B305,"!M129"))) -> N/A | H305: =IF(ISERROR(INDIRECT(CONCATENATE($B305,"!M127"))),"",INDIRECT(CONCATENATE($B305,"!M127"))) -> 37.58470107 | I305: =IF(ISERROR(INDIRECT(CONCATENATE($B305,"!N122"))),"",INDIRECT(CONCATENATE($B305,"!N122"))) -> 30.98438945 | J305: =IF(ISERROR(INDIRECT(CONCATENATE($B305,"!N129"))),"",INDIRECT(CONCATENATE($B305,"!N129"))) -> N/A | M305: =IF(ISERROR(INDIRECT(CONCATENATE($B305,"!N127"))),"",INDIRECT(CONCATENATE($B305,"!N127"))) -> 28.83523373 | N305: =IF(ISERROR(INDIRECT(CONCATENATE($B305,"!O122"))),"",INDIRECT(CONCATENATE($B305,"!O122"))) -> 45.73709113 | O305: =IF(ISERROR(INDIRECT(CONCATENATE($B305,"!O129"))),"",INDIRECT(CONCATENATE($B305,"!O129"))) -> N/A | R305: =IF(ISERROR(INDIRECT(CONCATENATE($B305,"!O127"))),"",INDIRECT(CONCATENATE($B305,"!O127"))) -> 20.08829842 | S305: =IF(ISERROR(INDIRECT(CONCATENATE($B305,"!P122"))),"",INDIRECT(CONCATENATE($B305,"!P122"))) -> 55.77908964 | T305: =IF(ISERROR(INDIRECT(CONCATENATE($B305,"!P129"))),"",INDIRECT(CONCATENATE($B305,"!P129"))) -> N/A | W305: =IF(ISERROR(INDIRECT(CONCATENATE($B305,"!P127"))),"",INDIRECT(CONCATENATE($B305,"!P127"))) -> 13.10852136 | X305: =IF(ISERROR(INDIRECT(CONCATENATE($B305,"!Q122"))),"",INDIRECT(CONCATENATE($B305,"!Q122"))) -> 79.5586169 | Y305: =IF(ISERROR(INDIRECT(CONCATENATE($B305,"!Q129"))),"",INDIRECT(CONCATENATE($B305,"!Q129"))) -> N/A | AB305: =IF(ISERROR(INDIRECT(CONCATENATE($B305,"!Q2127"))),"",INDIRECT(CONCATENATE($B305,"!Q127"))) -> 7.902026595
B306: WHS03 | C306: 2003 | D306: 21.85531715 | E306: 89.4882913 | H306: 34.11266865 | I306: 55.82638822 | J306: 88.65285596 | M306: 18.48000649 | N306: 68.64447562 | O306: 94.52924705 | R306: 9.089750347 | S306: 72.87393472 | T306: 95.88912427 | W306: 8.256232823 | X306: 88.30393198 | Y306: 96.47126907 | AB306: 3.363788235
B307: AIS05 | C307: 2005 | D307: 15.91579284 | E307: N/A | H307: 49.16533348 | I307: 28.95882454 | J307: N/A | M307: 31.82462739 | N307: 49.09520075 | O307: N/A | R307: 16.27099299 | S307: 62.06446653 | T307: N/A | W307: 5.930684441 | X307: 87.93541431 | Y307: N/A | AB307: 3.261176636
B308: MICS06 | C308: 2006 | D308: 23.98601288 | E308: 91.63554066 | H308: 38.48794355 | I308: 47.34052199 | J308: 91.50074041 | M308: 15.6757892 | N308: 56.65148547 | O308: 93.580257 | R308: 11.72348115 | S308: 66.12821248 | T308: 94.99303194 | W308: 8.747624527 | X308: 84.67231227 | Y308: 97.29972097 | AB308: 1.862157528
B309: MICS11 | C309: 2011 | D309: 31.68437979 | E309: 88.08476943 | H309: 26.78098024 | I309: 64.3200634 | J309: 90.41763029 | M309: 8.716649543 | N309: 76.56769113 | O309: 93.44281362 | R309: 4.918240248 | S309: 88.4502656 | T309: 95.68626332 | W309: 1.679765363 | X309: 96.05352385 | Y309: 98.93313116 | AB309: 0.7957857651
B310: MICS14 | C310: 2014 | D310: 36.99299282 | E310: 86.28628388 | H310: 25.9735319 | I310: 69.13482178 | J310: 90.28579064 | M310: 7.670501282 | N310: 84.19771349 | O310: 94.7703451 | R310: 2.285262506 | S310: 94.60418139 | T310: 98.27213391 | W310: 0.7758108684 | X310: 98.04287763 | Y310: 98.23460429 | AB310: 0
B318: =CONCATENATE("Rural use of sanitation facilities, ",C299,"–",C300) -> Rural use of sanitation facilities, 2000–2020 | S318: Data points used for regression

Sheet Hygiene
B4: Access to hygiene facilities by wealth quintile (%)
B5: =IF(ISERROR(INDIRECT(CONCATENATE($E$32,"!A2"))),"",INDIRECT(CONCATENATE($E$32,"!A2"))) -> Viet Nam
B7: =CONCATENATE("National ",IF(ISERROR(INDIRECT(CONCATENATE($E$32,"!A2"))),"",INDIRECT(CONCATENATE($E$32,"!A210")))) -> National Access to hygiene facilities | K7: =CONCATENATE("Urban ",IF(ISERROR(INDIRECT(CONCATENATE($E$32,"!A2"))),"",INDIRECT(CONCATENATE($E$32,"!A210")))) -> Urban Access to hygiene facilities | S7: =CONCATENATE("Rural ",IF(ISERROR(INDIRECT(CONCATENATE($E$32,"!A2"))),"",INDIRECT(CONCATENATE($E$32,"!A210")))) -> Rural Access to hygiene facilities
E32: =INDEX(B88:B100,A88) -> MICS14 | G32: =IF(ISERROR(INDIRECT(CONCATENATE($E$32,"!A2"))),"",INDIRECT(CONCATENATE($E$32,"!A2"))) -> Viet Nam | K32: Poorest | N32: Poor | Q32: Middle | T32: Rich | W32: Richest
K33: Basic | L33: Limited | M33: No facility | N33: Basic | O33: Limited | P33: No facility | Q33: Basic | R33: Limited | S33: No facility | T33: Basic | U33: Limited | V33: No facility | W33: Basic | X33: Limited | Y33: No facility
B34: >>> Select Survey : | G34: NATIONAL | J34: =IF(ISERROR(INDIRECT(CONCATENATE(#REF!,"!A2"))),"",INDIRECT(CONCATENATE(#REF!,"!A210"))) ->  | K34: =IF(ISERROR(INDIRECT(CONCATENATE($E$32,"!C222"))),"",INDIRECT(CONCATENATE($E$32,"!C222"))) -> 62.33332574 | L34: =IF(ISERROR(INDIRECT(CONCATENATE($E$32,"!C223"))),"",INDIRECT(CONCATENATE($E$32,"!C223"))) -> 29.51813818 | M34: =IF(ISERROR(INDIRECT(CONCATENATE($E$32,"!C224"))),"",INDIRECT(CONCATENATE($E$32,"!C224"))) -> 8.14853608 | N34: =IF(ISERROR(INDIRECT(CONCATENATE($E$32,"!D222"))),"",INDIRECT(CONCATENATE($E$32,"!D222"))) -> 83.28852463 | O34: =IF(ISERROR(INDIRECT(CONCATENATE($E$32,"!D223"))),"",INDIRECT(CONCATENATE($E$32,"!D223"))) -> 15.35835356 | P34: =IF(ISERROR(INDIRECT(CONCATENATE($E$32,"!D224"))),"",INDIRECT(CONCATENATE($E$32,"!D224"))) -> 1.353121819 | Q34: =IF(ISERROR(INDIRECT(CONCATENATE($E$32,"!E222"))),"",INDIRECT(CONCATENATE($E$32,"!E222"))) -> 88.0036661 | R34: =IF(ISERROR(INDIRECT(CONCATENATE($E$32,"!E223"))),"",INDIRECT(CONCATENATE($E$32,"!E223"))) -> 11.00389639 | S34: =IF(ISERROR(INDIRECT(CONCATENATE($E$32,"!E224"))),"",INDIRECT(CONCATENATE($E$32,"!E224"))) -> 0.9924375046 | T34: =IF(ISERROR(INDIRECT(CONCATENATE($E$32,"!F222"))),"",INDIRECT(CONCATENATE($E$32,"!F222"))) -> 93.99438206 | U34: =IF(ISERROR(INDIRECT(CONCATENATE($E$32,"!F223"))),"",INDIRECT(CONCATENATE($E$32,"!F223"))) -> 5.625423516 | V34: =IF(ISERROR(INDIRECT(CONCATENATE($E$32,"!F224"))),"",INDIRECT(CONCATENATE($E$32,"!F224"))) -> 0.3801944285 | W34: =IF(ISERROR(INDIRECT(CONCATENATE($E$32,"!G222"))),"",INDIRECT(CONCATENATE($E$32,"!G222"))) -> 97.51185756 | X34: =IF(ISERROR(INDIRECT(CONCATENATE($E$32,"!G223"))),"",INDIRECT(CONCATENATE($E$32,"!G223"))) -> 2.399107968 | Y34: =IF(ISERROR(INDIRECT(CONCATENATE($E$32,"!G224"))),"",INDIRECT(CONCATENATE($E$32,"!G224"))) -> 0.08903446997
G37: URBAN | J37: =IF(ISERROR(INDIRECT(CONCATENATE(#REF!,"!A2"))),"",INDIRECT(CONCATENATE(#REF!,"!A210"))) ->  | K37: =IF(ISERROR(INDIRECT(CONCATENATE($E$32,"!H222"))),"",INDIRECT(CONCATENATE($E$32,"!H222"))) -> 77.69152026 | L37: =IF(ISERROR(INDIRECT(CONCATENATE($E$32,"!H223"))),"",INDIRECT(CONCATENATE($E$32,"!H223"))) -> 18.8148244 | M37: =IF(ISERROR(INDIRECT(CONCATENATE($E$32,"!H224"))),"",INDIRECT(CONCATENATE($E$32,"!H224"))) -> 3.493655336 | N37: =IF(ISERROR(INDIRECT(CONCATENATE($E$32,"!I222"))),"",INDIRECT(CONCATENATE($E$32,"!I222"))) -> 90.33735036 | O37: =IF(ISERROR(INDIRECT(CONCATENATE($E$32,"!I223"))),"",INDIRECT(CONCATENATE($E$32,"!I223"))) -> 9.119057718 | P37: =IF(ISERROR(INDIRECT(CONCATENATE($E$32,"!I224"))),"",INDIRECT(CONCATENATE($E$32,"!I224"))) -> 0.5435919211 | Q37: =IF(ISERROR(INDIRECT(CONCATENATE($E$32,"!J222"))),"",INDIRECT(CONCATENATE($E$32,"!J222"))) -> 95.76049421 | R37: =IF(ISERROR(INDIRECT(CONCATENATE($E$32,"!J223"))),"",INDIRECT(CONCATENATE($E$32,"!J223"))) -> 4.041292259 | S37: =IF(ISERROR(INDIRECT(CONCATENATE($E$32,"!J224"))),"",INDIRECT(CONCATENATE($E$32,"!J224"))) -> 0.1982135329 | T37: =IF(ISERROR(INDIRECT(CONCATENATE($E$32,"!K222"))),"",INDIRECT(CONCATENATE($E$32,"!K222"))) -> 97.82778042 | U37: =IF(ISERROR(INDIRECT(CONCATENATE($E$32,"!K223"))),"",INDIRECT(CONCATENATE($E$32,"!K223"))) -> 1.891078502 | V37: =IF(ISERROR(INDIRECT(CONCATENATE($E$32,"!K224"))),"",INDIRECT(CONCATENATE($E$32,"!K224"))) -> 0.2811410817 | W37: =IF(ISERROR(INDIRECT(CONCATENATE($E$32,"!L222"))),"",INDIRECT(CONCATENATE($E$32,"!L222"))) -> 98.59692801 | X37: =IF(ISERROR(INDIRECT(CONCATENATE($E$32,"!L223"))),"",INDIRECT(CONCATENATE($E$32,"!L223"))) -> 1.403071988 | Y37: =IF(ISERROR(INDIRECT(CONCATENATE($E$32,"!L224"))),"",INDIRECT(CONCATENATE($E$32,"!L224"))) -> 0
G40: RURAL | J40: =IF(ISERROR(INDIRECT(CONCATENATE(#REF!,"!A2"))),"",INDIRECT(CONCATENATE(#REF!,"!A210"))) ->  | K40: =IF(ISERROR(INDIRECT(CONCATENATE($E$32,"!M222"))),"",INDIRECT(CONCATENATE($E$32,"!M222"))) -> 55.97466003 | L40: =IF(ISERROR(INDIRECT(CONCATENATE($E$32,"!M223"))),"",INDIRECT(CONCATENATE($E$32,"!M223"))) -> 34.16411282 | M40: =IF(ISERROR(INDIRECT(CONCATENATE($E$32,"!M224"))),"",INDIRECT(CONCATENATE($E$32,"!M224"))) -> 9.861227145 | N40: =IF(ISERROR(INDIRECT(CONCATENATE($E$32,"!N222"))),"",INDIRECT(CONCATENATE($E$32,"!N222"))) -> 81.38760036 | O40: =IF(ISERROR(INDIRECT(CONCATENATE($E$32,"!N223"))),"",INDIRECT(CONCATENATE($E$32,"!N223"))) -> 16.58904317 | P40: =IF(ISERROR(INDIRECT(CONCATENATE($E$32,"!N224"))),"",INDIRECT(CONCATENATE($E$32,"!N224"))) -> 2.023356466 | Q40: =IF(ISERROR(INDIRECT(CONCATENATE($E$32,"!O222"))),"",INDIRECT(CONCATENATE($E$32,"!O222"))) -> 85.58503585 | R40: =IF(ISERROR(INDIRECT(CONCATENATE($E$32,"!O223"))),"",INDIRECT(CONCATENATE($E$32,"!O223"))) -> 13.1135702 | S40: =IF(ISERROR(INDIRECT(CONCATENATE($E$32,"!O224"))),"",INDIRECT(CONCATENATE($E$32,"!O224"))) -> 1.301393942 | T40: =IF(ISERROR(INDIRECT(CONCATENATE($E$32,"!P222"))),"",INDIRECT(CONCATENATE($E$32,"!P222"))) -> 90.66928033 | U40: =IF(ISERROR(INDIRECT(CONCATENATE($E$32,"!P223"))),"",INDIRECT(CONCATENATE($E$32,"!P223"))) -> 8.835039988 | V40: =IF(ISERROR(INDIRECT(CONCATENATE($E$32,"!P224"))),"",INDIRECT(CONCATENATE($E$32,"!P224"))) -> 0.4956796775 | W40: =IF(ISERROR(INDIRECT(CONCATENATE($E$32,"!Q222"))),"",INDIRECT(CONCATENATE($E$32,"!Q222"))) -> 95.15751048 | X40: =IF(ISERROR(INDIRECT(CONCATENATE($E$32,"!Q223"))),"",INDIRECT(CONCATENATE($E$32,"!Q223"))) -> 4.551695993 | Y40: =IF(ISERROR(INDIRECT(CONCATENATE($E$32,"!Q224"))),"",INDIRECT(CONCATENATE($E$32,"!Q224"))) -> 0.2907935245
A88: 6 | B88: DHS02
B89: WHS03
B90: AIS05
B91: MICS06
B92: MICS11
B93: MICS14
B94: Template

Sheet DHS02
A2: =A1026 -> Viet Nam
A3: =A1034 -> 2002
A4: Use of drinking water sources
A5: by wealth quintile and sub-national region
A6: Notes:
A7: WHO/UNICEF JMP customised wealth index excludes water,
A8: sanitation and hygiene assets.
A9: Survey used for analysis: | B9: =A1025 -> DHS02
A10: Ratio of Improved wells based on: | B10: MICS06
A11: Time to improved source based on: | B11: MICS06
A14: Use of drinking water sources | C14: NATIONAL wealth index quintile | H14: URBAN wealth index quintile | M14: RURAL wealth index quintile | R14: SUB-REGIONS: | BA14: Raw numbers of respondents: | BB14: Use of drinking water sources | BC14: NATIONAL wealth index quintile | BH14: URBAN wealth index quintile | BM14: RURAL wealth index quintile | BR14: SUB-REGIONS:
A15: Weighted percentage (used in graphs) | C15: Poorest | D15: Poor | E15: Middle | F15: Rich | G15: Richest | H15: Poorest | I15: Poor | J15: Middle | K15: Rich | L15: Richest | M15: Poorest | N15: Poor | O15: Middle | P15: Rich | Q15: Richest | R15: Central Coast | S15: Central Highlands | T15: Mekong River Delta | U15: North Central | V15: Northern Uplands | W15: Red River Delta | X15: Southeast | BA15: Water data, raw numbers (weighted) | BC15: Poorest | BD15: Poor | BE15: Middle | BF15: Rich | BG15: Richest | BH15: Poorest | BI15: Poor | BJ15: Middle | BK15: Rich | BL15: Richest | BM15: Poorest | BN15: Poor | BO15: Middle | BP15: Rich | BQ15: Richest | BR15: Central Coast | BS15: Central Highlands | BT15: Mekong River Delta | BU15: North Central | BV15: Northern Uplands | BW15: Red River Delta | BX15: Southeast
A16: Water | B16: Improved | C16: =C58+C59+C66+C67+(C60+C61)*MICS06!C24/100+C62*MICS06!C25/100 -> 62.9918848 | D16: =D58+D59+D66+D67+(D60+D61)*MICS06!D24/100+D62*MICS06!D25/100 -> 79.02513581 | E16: =E58+E59+E66+E67+(E60+E61)*MICS06!E24/100+E62*MICS06!E25/100 -> 88.92532614 | F16: =F58+F59+F66+F67+(F60+F61)*MICS06!F24/100+F62*MICS06!F25/100 -> 94.13320588 | G16: =G58+G59+G66+G67+(G60+G61)*MICS06!G24/100+G62*MICS06!G25/100 -> 97.54308416 | H16: =H58+H59+H66+H67+(H60+H61)*MICS06!H24/100+H62*MICS06!H25/100 -> 90.1759959 | I16: =I58+I59+I66+I67+(I60+I61)*MICS06!I24/100+I62*MICS06!I25/100 -> 96.79542605 | J16: =J58+J59+J66+J67+(J60+J61)*MICS06!J24/100+J62*MICS06!J25/100 -> 99.16770655 | K16: =K58+K59+K66+K67+(K60+K61)*MICS06!K24/100+K62*MICS06!K25/100 -> 98.86884359 | L16: =L58+L59+L66+L67+(L60+L61)*MICS06!L24/100+L62*MICS06!L25/100 -> 100 | M16: =M58+M59+M66+M67+(M60+M61)*MICS06!M24/100+M62*MICS06!M25/100 -> 59.79776736 | N16: =N58+N59+N66+N67+(N60+N61)*MICS06!N24/100+N62*MICS06!N25/100 -> 75.44378522 | O16: =O58+O59+O66+O67+(O60+O61)*MICS06!O24/100+O62*MICS06!O25/100 -> 86.6471662 | P16: =P58+P59+P66+P67+(P60+P61)*MICS06!P24/100+P62*MICS06!P25/100 -> 91.36646556 | Q16: =Q58+Q59+Q66+Q67+(Q60+Q61)*MICS06!Q24/100+Q62*MICS06!Q25/100 -> 93.0852308 | R16: N/A | S16: N/A | T16: N/A | U16: N/A | V16: N/A | W16: N/A | X16: N/A | BA16: Water | BB16: Improved | BC16: N/A | BD16: N/A | BE16: N/A | BF16: N/A | BG16: N/A | BH16: N/A | BI16: N/A | BJ16: N/A | BK16: N/A | BL16: N/A | BM16: N/A | BN16: N/A | BO16: N/A | BP16: N/A | BQ16: N/A | BR16: N/A | BS16: N/A | BT16: N/A | BU16: N/A | BV16: N/A | BW16: N/A | BX16: N/A
B17: Not Improved | C17: =100-C16 -> 37.0081152 | D17: =100-D16 -> 20.97486419 | E17: 11.07467386 | F17: 5.866794124 | G17: 2.456915839 | H17: 9.824004095 | I17: 3.204573946 | J17: 0.8322934471 | K17: 1.13115641 | L17: 0 | M17: 40.20223264 | N17: 24.55621478 | O17: 13.3528338 | P17: 8.633534445 | Q17: 6.914769196 | R17: N/A | S17: N/A | T17: N/A | U17: N/A | V17: N/A | W17: N/A | X17: N/A | BB17: Not Improved | BC17: N/A | BD17: N/A | BE17: N/A | BF17: N/A | BG17: N/A | BH17: N/A | BI17: N/A | BJ17: N/A | BK17: N/A | BL17: N/A | BM17: N/A | BN17: N/A | BO17: N/A | BP17: N/A | BQ17: N/A | BR17: N/A | BS17: N/A | BT17: N/A | BU17: N/A | BV17: N/A | BW17: N/A | BX17: N/A
A18: Water ladder | B18: Basic | C18: =C16*MICS06!C23/100 -> 62.57958885 | D18: =D16*MICS06!D23/100 -> 79.00378189 | E18: =E16*MICS06!E23/100 -> 88.81030885 | F18: =F16*MICS06!F23/100 -> 94.13320588 | G18: =G16*MICS06!G23/100 -> 97.34320866 | H18: =H16*MICS06!H23/100 -> 89.79909334 | I18: =I16*MICS06!I23/100 -> 96.79542605 | J18: =J16*MICS06!J23/100 -> 98.90164019 | K18: =K16*MICS06!K23/100 -> 98.33684752 | L18: =L16*MICS06!L23/100 -> 100 | M18: =M16*MICS06!M23/100 -> 59.25017573 | N18: =N16*MICS06!N23/100 -> 75.41536571 | O18: =O16*MICS06!O23/100 -> 86.6471662 | P18: =P16*MICS06!P23/100 -> 91.34358291 | Q18: =Q16*MICS06!Q23/100 -> 93.0852308 | R18: N/A | S18: N/A | T18: N/A | U18: N/A | V18: N/A | W18: N/A | X18: N/A | BA18: Water ladder | BB18: Basic | BC18: N/A | BD18: N/A | BE18: N/A | BF18: N/A | BG18: N/A | BH18: N/A | BI18: N/A | BJ18: N/A | BK18: N/A | BL18: N/A | BM18: N/A | BN18: N/A | BO18: N/A | BP18: N/A | BQ18: N/A | BR18: N/A | BS18: N/A | BT18: N/A | BU18: N/A | BV18: N/A | BW18: N/A | BX18: N/A
B19: Limited | C19: =C16*MICS06!C22/100 -> 0.4122959533 | D19: =D16*MICS06!D22/100 -> 0.02135391824 | E19: =E16*MICS06!E22/100 -> 0.1150172955 | F19: =F16*MICS06!F22/100 -> 0 | G19: =G16*MICS06!G22/100 -> 0.1998755054 | H19: =H16*MICS06!H22/100 -> 0.3769025661 | I19: =I16*MICS06!I22/100 -> 0 | J19: =J16*MICS06!J22/100 -> 0.2660663585 | K19: =K16*MICS06!K22/100 -> 0.531996067 | L19: =L16*MICS06!L22/100 -> 0 | M19: =M16*MICS06!M22/100 -> 0.5475916259 | N19: =N16*MICS06!N22/100 -> 0.02841951451 | O19: =O16*MICS06!O22/100 -> 0 | P19: =P16*MICS06!P22/100 -> 0.0228826411 | Q19: =Q16*MICS06!Q22/100 -> 0 | R19: N/A | S19: N/A | T19: N/A | U19: N/A | V19: N/A | W19: N/A | X19: N/A | BB19: Limited | BC19: N/A | BD19: N/A | BE19: N/A | BF19: N/A | BG19: N/A | BH19: N/A | BI19: N/A | BJ19: N/A | BK19: N/A | BL19: N/A | BM19: N/A | BN19: N/A | BO19: N/A | BP19: N/A | BQ19: N/A | BR19: N/A | BS19: N/A | BT19: N/A | BU19: N/A | BV19: N/A | BW19: N/A | BX19: N/A
B20: Unimproved | C20: =100-(C18+C19+C21) -> 19.18286421 | D20: =100-(D18+D19+D21) -> 10.78230149 | E20: 7.53957079 | F20: 3.314858884 | G20: 1.461027882 | H20: 5.238569662 | I20: 2.349522284 | J20: 0.2800077324 | K20: 1.13115641 | L20: 0 | M20: 20.52196868 | N20: 13.05036375 | O20: 8.281486523 | P20: 6.121053945 | Q20: 3.749604951 | R20: N/A | S20: N/A | T20: N/A | U20: N/A | V20: N/A | W20: N/A | X20: N/A | BB20: Unimproved | BC20: N/A | BD20: N/A | BE20: N/A | BF20: N/A | BG20: N/A | BH20: N/A | BI20: N/A | BJ20: N/A | BK20: N/A | BL20: N/A | BM20: N/A | BN20: N/A | BO20: N/A | BP20: N/A | BQ20: N/A | BR20: N/A | BS20: N/A | BT20: N/A | BU20: N/A | BV20: N/A | BW20: N/A | BX20: N/A
B21: Surface water | C21: =C63+C64+C65 -> 17.82525099 | D21: 10.1925627 | E21: 3.535103066 | F21: 2.551935239 | G21: 0.9958879571 | H21: 4.585434433 | I21: 0.8550516622 | J21: 0.5522857147 | K21: 0 | L21: 0 | M21: 19.68026396 | N21: 11.50585103 | O21: 5.071347278 | P21: 2.5124805 | Q21: 3.165164245 | R21: N/A | S21: N/A | T21: N/A | U21: N/A | V21: N/A | W21: N/A | X21: N/A | BB21: Surface water | BC21: N/A | BD21: N/A | BE21: N/A | BF21: N/A | BG21: N/A | BH21: N/A | BI21: N/A | BJ21: N/A | BK21: N/A | BL21: N/A | BM21: N/A | BN21: N/A | BO21: N/A | BP21: N/A | BQ21: N/A | BR21: N/A | BS21: N/A | BT21: N/A | BU21: N/A | BV21: N/A | BW21: N/A | BX21: N/A
A22: Improved water point at more than 30 minutes | B22: Yes | C22: N/A | D22: N/A | E22: N/A | F22: N/A | G22: N/A | H22: N/A | I22: N/A | J22: N/A | K22: N/A | L22: N/A | M22: N/A | N22: N/A | O22: N/A | P22: N/A | Q22: N/A | R22: N/A | S22: N/A | T22: N/A | U22: N/A | V22: N/A | W22: N/A | X22: N/A | BA22: Improved water point at more than 30 minutes | BB22: Yes | BC22: N/A | BD22: N/A | BE22: N/A | BF22: N/A | BG22: N/A | BH22: N/A | BI22: N/A | BJ22: N/A | BK22: N/A | BL22: N/A | BM22: N/A | BN22: N/A | BO22: N/A | BP22: N/A | BQ22: N/A | BR22: N/A | BS22: N/A | BT22: N/A | BU22: N/A | BV22: N/A | BW22: N/A | BX22: N/A
B23: No | C23: N/A | D23: N/A | E23: N/A | F23: N/A | G23: N/A | H23: N/A | I23: N/A | J23: N/A | K23: N/A | L23: N/A | M23: N/A | N23: N/A | O23: N/A | P23: N/A | Q23: N/A | R23: N/A | S23: N/A | T23: N/A | U23: N/A | V23: N/A | W23: N/A | X23: N/A | BB23: No | BC23: N/A | BD23: N/A | BE23: N/A | BF23: N/A | BG23: N/A | BH23: N/A | BI23: N/A | BJ23: N/A | BK23: N/A | BL23: N/A | BM23: N/A | BN23: N/A | BO23: N/A | BP23: N/A | BQ23: N/A | BR23: N/A | BS23: N/A | BT23: N/A | BU23: N/A | BV23: N/A | BW23: N/A | BX23: N/A
A24: Manually calculated ratios | B24: Improved wells
B25: Improved springs
B26: Other
C27: NATIONAL wealth index quintile | H27: URBAN wealth index quintile | M27: RURAL wealth index quintile | R27: SUB-REGIONS: | BA27: Raw numbers of respondents: | BB27: Use of drinking water sources | BC27: NATIONAL wealth index quintile | BH27: URBAN wealth index quintile | BM27: RURAL wealth index quintile | BR27: SUB-REGIONS:
A28: Percentage based on weighted population | C28: Poorest | D28: Poor | E28: Middle | F28: Rich | G28: Richest | H28: Poorest | I28: Poor | J28: Middle | K28: Rich | L28: Richest | M28: Poorest | N28: Poor | O28: Middle | P28: Rich | Q28: Richest | R28: Central Coast | S28: Central Highlands | T28: Mekong River Delta | U28: North Central | V28: Northern Uplands | W28: Red River Delta | X28: Southeast | BA28: Water data, raw numbers (weighted) | BC28: Poorest | BD28: Poor | BE28: Middle | BF28: Rich | BG28: Richest | BH28: Poorest | BI28: Poor | BJ28: Middle | BK28: Rich | BL28: Richest | BM28: Poorest | BN28: Poor | BO28: Middle | BP28: Rich | BQ28: Richest | BR28: Central Coast | BS28: Central Highlands | BT28: Mekong River Delta | BU28: North Central | BV28: Northern Uplands | BW28: Red River Delta | BX28: Southeast
A29: Piped water | B29: Yes | C29: 3.906746994 | D29: 6.762913291 | E29: 7.516568598 | F29: 15.6698519 | G29: 66.23474749 | H29: 49.18936311 | I29: 69.80943228 | J29: 83.5935482 | K29: 86.52096016 | L29: 93.03795797 | M29: 2.382919494 | N29: 4.565928345 | O29: 5.151854699 | P29: 5.734098263 | Q29: 15.18798836 | R29: 30.45100104 | S29: 14.54945017 | T29: 16.45492657 | U29: 11.28686807 | V29: 7.121136045 | W29: 21.41898747 | X29: 45.19943851 | BA29: Piped water | BB29: Yes | BC29: N/A | BD29: N/A | BE29: N/A | BF29: N/A | BG29: N/A | BH29: N/A | BI29: N/A | BJ29: N/A | BK29: N/A | BL29: N/A | BM29: N/A | BN29: N/A | BO29: N/A | BP29: N/A | BQ29: N/A | BR29: N/A | BS29: N/A | BT29: N/A | BU29: N/A | BV29: N/A | BW29: N/A | BX29: N/A
B30: No | C30: 96.09325301 | D30: 93.23708671 | E30: 92.4834314 | F30: 84.3301481 | G30: 33.76525251 | H30: 50.81063689 | I30: 30.19056772 | J30: 16.4064518 | K30: 13.47903984 | L30: 6.962042031 | M30: 97.61708051 | N30: 95.43407165 | O30: 94.8481453 | P30: 94.26590174 | Q30: 84.81201164 | R30: 69.54899896 | S30: 85.45054983 | T30: 83.54507343 | U30: 88.71313193 | V30: 92.87886395 | W30: 78.58101253 | X30: 54.80056149 | BB30: No | BC30: N/A | BD30: N/A | BE30: N/A | BF30: N/A | BG30: N/A | BH30: N/A | BI30: N/A | BJ30: N/A | BK30: N/A | BL30: N/A | BM30: N/A | BN30: N/A | BO30: N/A | BP30: N/A | BQ30: N/A | BR30: N/A | BS30: N/A | BT30: N/A | BU30: N/A | BV30: N/A | BW30: N/A | BX30: N/A
A31: Piped water on premises | B31: Yes | C31: 3.331310487 | D31: 5.496375688 | E31: 6.977415648 | F31: 15.13512772 | G31: 65.82422926 | H31: 43.2203591 | I31: 69.09881715 | J31: 83.40687531 | K31: 85.42197563 | L31: 92.8506667 | M31: 2.090915652 | N31: 3.814170086 | O31: 4.450719715 | P31: 5.681604788 | Q31: 14.83993589 | R31: 28.70046514 | S31: 14.43977322 | T31: 15.49807453 | U31: 10.5306876 | V31: 7.082196485 | W31: 21.02463478 | X31: 44.44654494 | BA31: Piped water on premises | BB31: Yes | BC31: N/A | BD31: N/A | BE31: N/A | BF31: N/A | BG31: N/A | BH31: N/A | BI31: N/A | BJ31: N/A | BK31: N/A | BL31: N/A | BM31: N/A | BN31: N/A | BO31: N/A | BP31: N/A | BQ31: N/A | BR31: N/A | BS31: N/A | BT31: N/A | BU31: N/A | BV31: N/A | BW31: N/A | BX31: N/A
B32: No | C32: 96.66868951 | D32: 94.50362431 | E32: 93.02258435 | F32: 84.86487228 | G32: 34.17577074 | H32: 56.7796409 | I32: 30.90118285 | J32: 16.59312469 | K32: 14.57802437 | L32: 7.149333295 | M32: 97.90908435 | N32: 96.18582991 | O32: 95.54928028 | P32: 94.31839521 | Q32: 85.16006411 | R32: 71.29953486 | S32: 85.56022678 | T32: 84.50192547 | U32: 89.4693124 | V32: 92.91780352 | W32: 78.97536522 | X32: 55.55345506 | BB32: No | BC32: N/A | BD32: N/A | BE32: N/A | BF32: N/A | BG32: N/A | BH32: N/A | BI32: N/A | BJ32: N/A | BK32: N/A | BL32: N/A | BM32: N/A | BN32: N/A | BO32: N/A | BP32: N/A | BQ32: N/A | BR32: N/A | BS32: N/A | BT32: N/A | BU32: N/A | BV32: N/A | BW32: N/A | BX32: N/A
A33: Piped water into dwelling | B33: Yes | C33: N/A | D33: N/A | E33: N/A | F33: N/A | G33: N/A | H33: N/A | I33: N/A | J33: N/A | K33: N/A | L33: N/A | M33: N/A | N33: N/A | O33: N/A | P33: N/A | Q33: N/A | R33: N/A | S33: N/A | T33: N/A | U33: N/A | V33: N/A | W33: N/A | X33: N/A | BA33: Piped water into dwelling | BB33: Yes | BC33: N/A | BD33: N/A | BE33: N/A | BF33: N/A | BG33: N/A | BH33: N/A | BI33: N/A | BJ33: N/A | BK33: N/A | BL33: N/A | BM33: N/A | BN33: N/A | BO33: N/A | BP33: N/A | BQ33: N/A | BR33: N/A | BS33: N/A | BT33: N/A | BU33: N/A | BV33: N/A | BW33: N/A | BX33: N/A
B34: No | C34: N/A | D34: N/A | E34: N/A | F34: N/A | G34: N/A | H34: N/A | I34: N/A | J34: N/A | K34: N/A | L34: N/A | M34: N/A | N34: N/A | O34: N/A | P34: N/A | Q34: N/A | R34: N/A | S34: N/A | T34: N/A | U34: N/A | V34: N/A | W34: N/A | X34: N/A | BB34: No | BC34: N/A | BD34: N/A | BE34: N/A | BF34: N/A | BG34: N/A | BH34: N/A | BI34: N/A | BJ34: N/A | BK34: N/A | BL34: N/A | BM34: N/A | BN34: N/A | BO34: N/A | BP34: N/A | BQ34: N/A | BR34: N/A | BS34: N/A | BT34: N/A | BU34: N/A | BV34: N/A | BW34: N/A | BX34: N/A
A35: Water source on premises | B35: Yes | C35: 8.283465973 | D35: 7.465811604 | E35: 8.271154721 | F35: 15.56079047 | G35: 66.00819912 | H35: 43.99754306 | I35: 69.5222724 | J35: 83.40687531 | K35: 85.42197563 | L35: 92.8506667 | M35: 7.694450276 | N35: 5.822961033 | O35: 6.452550976 | P35: 6.224896214 | Q35: 15.24308243 | R35: 29.59519047 | S35: 14.43977322 | T35: 17.83504837 | U35: 10.79904739 | V35: 13.17022201 | W35: 21.19029422 | X35: 44.65580025 | BA35: Water source on premises | BB35: Yes | BC35: N/A | BD35: N/A | BE35: N/A | BF35: N/A | BG35: N/A | BH35: N/A | BI35: N/A | BJ35: N/A | BK35: N/A | BL35: N/A | BM35: N/A | BN35: N/A | BO35: N/A | BP35: N/A | BQ35: N/A | BR35: N/A | BS35: N/A | BT35: N/A | BU35: N/A | BV35: N/A | BW35: N/A | BX35: N/A
B36: No | C36: 91.71653403 | D36: 92.5341884 | E36: 91.72884528 | F36: 84.43920953 | G36: 33.99180088 | H36: 56.00245694 | I36: 30.4777276 | J36: 16.59312469 | K36: 14.57802437 | L36: 7.149333295 | M36: 92.30554972 | N36: 94.17703897 | O36: 93.54744902 | P36: 93.77510379 | Q36: 84.75691757 | R36: 70.40480953 | S36: 85.56022678 | T36: 82.16495163 | U36: 89.20095261 | V36: 86.82977799 | W36: 78.80970578 | X36: 55.34419975 | BB36: No | BC36: N/A | BD36: N/A | BE36: N/A | BF36: N/A | BG36: N/A | BH36: N/A | BI36: N/A | BJ36: N/A | BK36: N/A | BL36: N/A | BM36: N/A | BN36: N/A | BO36: N/A | BP36: N/A | BQ36: N/A | BR36: N/A | BS36: N/A | BT36: N/A | BU36: N/A | BV36: N/A | BW36: N/A | BX36: N/A
A37: Improved Water source on premises | B37: Yes | C37: N/A | D37: N/A | E37: N/A | F37: N/A | G37: N/A | H37: N/A | I37: N/A | J37: N/A | K37: N/A | L37: N/A | M37: N/A | N37: N/A | O37: N/A | P37: N/A | Q37: N/A | R37: N/A | S37: N/A | T37: N/A | U37: N/A | V37: N/A | W37: N/A | X37: N/A | BA37: Improved water source on premises | BB37: Yes | BC37: N/A | BD37: N/A | BE37: N/A | BF37: N/A | BG37: N/A | BH37: N/A | BI37: N/A | BJ37: N/A | BK37: N/A | BL37: N/A | BM37: N/A | BN37: N/A | BO37: N/A | BP37: N/A | BQ37: N/A | BR37: N/A | BS37: N/A | BT37: N/A | BU37: N/A | BV37: N/A | BW37: N/A | BX37: N/A
B38: No | C38: N/A | D38: N/A | E38: N/A | F38: N/A | G38: N/A | H38: N/A | I38: N/A | J38: N/A | K38: N/A | L38: N/A | M38: N/A | N38: N/A | O38: N/A | P38: N/A | Q38: N/A | R38: N/A | S38: N/A | T38: N/A | U38: N/A | V38: N/A | W38: N/A | X38: N/A | BB38: No | BC38: N/A | BD38: N/A | BE38: N/A | BF38: N/A | BG38: N/A | BH38: N/A | BI38: N/A | BJ38: N/A | BK38: N/A | BL38: N/A | BM38: N/A | BN38: N/A | BO38: N/A | BP38: N/A | BQ38: N/A | BR38: N/A | BS38: N/A | BT38: N/A | BU38: N/A | BV38: N/A | BW38: N/A | BX38: N/A
A39: Piped water on premises available when needed | B39: Yes | C39: N/A | D39: N/A | E39: N/A | F39: N/A | G39: N/A | H39: N/A | I39: N/A | J39: N/A | K39: N/A | L39: N/A | M39: N/A | N39: N/A | O39: N/A | P39: N/A | Q39: N/A | R39: N/A | S39: N/A | T39: N/A | U39: N/A | V39: N/A | W39: N/A | X39: N/A | BA39: Piped water on premises available when needed | BB39: Yes | BC39: N/A | BD39: N/A | BE39: N/A | BF39: N/A | BG39: N/A | BH39: N/A | BI39: N/A | BJ39: N/A | BK39: N/A | BL39: N/A | BM39: N/A | BN39: N/A | BO39: N/A | BP39: N/A | BQ39: N/A | BR39: N/A | BS39: N/A | BT39: N/A | BU39: N/A | BV39: N/A | BW39: N/A | BX39: N/A
B40: No | C40: N/A | D40: N/A | E40: N/A | F40: N/A | G40: N/A | H40: N/A | I40: N/A | J40: N/A | K40: N/A | L40: N/A | M40: N/A | N40: N/A | O40: N/A | P40: N/A | Q40: N/A | R40: N/A | S40: N/A | T40: N/A | U40: N/A | V40: N/A | W40: N/A | X40: N/A | BB40: No | BC40: N/A | BD40: N/A | BE40: N/A | BF40: N/A | BG40: N/A | BH40: N/A | BI40: N/A | BJ40: N/A | BK40: N/A | BL40: N/A | BM40: N/A | BN40: N/A | BO40: N/A | BP40: N/A | BQ40: N/A | BR40: N/A | BS40: N/A | BT40: N/A | BU40: N/A | BV40: N/A | BW40: N/A | BX40: N/A
A41: Water point at more than 30 minutes | B41: Yes | C41: 0 | D41: 0.07752308228 | E41: 0 | F41: 0 | G41: 0 | H41: 0 | I41: 0 | J41: 0 | K41: 0 | L41: 0 | M41: 0 | N41: 0.09129338247 | O41: 0 | P41: 0 | Q41: 0 | R41: 0 | S41: 0 | T41: 0 | U41: 0 | V41: 0.0596099758 | W41: 0 | X41: 0 | BA41: Water point at more than 30 minutes | BB41: Yes | BC41: N/A | BD41: N/A | BE41: N/A | BF41: N/A | BG41: N/A | BH41: N/A | BI41: N/A | BJ41: N/A | BK41: N/A | BL41: N/A | BM41: N/A | BN41: N/A | BO41: N/A | BP41: N/A | BQ41: N/A | BR41: N/A | BS41: N/A | BT41: N/A | BU41: N/A | BV41: N/A | BW41: N/A | BX41: N/A
B42: No | C42: 100 | D42: 99.92247692 | E42: 100 | F42: 100 | G42: 100 | H42: 100 | I42: 100 | J42: 100 | K42: 100 | L42: 100 | M42: 100 | N42: 99.90870662 | O42: 100 | P42: 100 | Q42: 100 | R42: 100 | S42: 100 | T42: 100 | U42: 100 | V42: 99.94039002 | W42: 100 | X42: 100 | BB42: No | BC42: N/A | BD42: N/A | BE42: N/A | BF42: N/A | BG42: N/A | BH42: N/A | BI42: N/A | BJ42: N/A | BK42: N/A | BL42: N/A | BM42: N/A | BN42: N/A | BO42: N/A | BP42: N/A | BQ42: N/A | BR42: N/A | BS42: N/A | BT42: N/A | BU42: N/A | BV42: N/A | BW42: N/A | BX42: N/A
A43: Water source available when needed | B43: Yes | C43: N/A | D43: N/A | E43: N/A | F43: N/A | G43: N/A | H43: N/A | I43: N/A | J43: N/A | K43: N/A | L43: N/A | M43: N/A | N43: N/A | O43: N/A | P43: N/A | Q43: N/A | R43: N/A | S43: N/A | T43: N/A | U43: N/A | V43: N/A | W43: N/A | X43: N/A | BA43: Water source available when needed | BB43: Yes | BC43: N/A | BD43: N/A | BE43: N/A | BF43: N/A | BG43: N/A | BH43: N/A | BI43: N/A | BJ43: N/A | BK43: N/A | BL43: N/A | BM43: N/A | BN43: N/A | BO43: N/A | BP43: N/A | BQ43: N/A | BR43: N/A | BS43: N/A | BT43: N/A | BU43: N/A | BV43: N/A | BW43: N/A | BX43: N/A
B44: No | C44: N/A | D44: N/A | E44: N/A | F44: N/A | G44: N/A | H44: N/A | I44: N/A | J44: N/A | K44: N/A | L44: N/A | M44: N/A | N44: N/A | O44: N/A | P44: N/A | Q44: N/A | R44: N/A | S44: N/A | T44: N/A | U44: N/A | V44: N/A | W44: N/A | X44: N/A | BB44: No | BC44: N/A | BD44: N/A | BE44: N/A | BF44: N/A | BG44: N/A | BH44: N/A | BI44: N/A | BJ44: N/A | BK44: N/A | BL44: N/A | BM44: N/A | BN44: N/A | BO44: N/A | BP44: N/A | BQ44: N/A | BR44: N/A | BS44: N/A | BT44: N/A | BU44: N/A | BV44: N/A | BW44: N/A | BX44: N/A
A45: Improved water source available when needed | B45: Yes | C45: N/A | D45: N/A | E45: N/A | F45: N/A | G45: N/A | H45: N/A | I45: N/A | J45: N/A | K45: N/A | L45: N/A | M45: N/A | N45: N/A | O45: N/A | P45: N/A | Q45: N/A | R45: N/A | S45: N/A | T45: N/A | U45: N/A | V45: N/A | W45: N/A | X45: N/A | BA45: Improved water source available when needed | BB45: Yes | BC45: N/A | BD45: N/A | BE45: N/A | BF45: N/A | BG45: N/A | BH45: N/A | BI45: N/A | BJ45: N/A | BK45: N/A | BL45: N/A | BM45: N/A | BN45: N/A | BO45: N/A | BP45: N/A | BQ45: N/A | BR45: N/A | BS45: N/A | BT45: N/A | BU45: N/A | BV45: N/A | BW45: N/A | BX45: N/A
B46: No | C46: N/A | D46: N/A | E46: N/A | F46: N/A | G46: N/A | H46: N/A | I46: N/A | J46: N/A | K46: N/A | L46: N/A | M46: N/A | N46: N/A | O46: N/A | P46: N/A | Q46: N/A | R46: N/A | S46: N/A | T46: N/A | U46: N/A | V46: N/A | W46: N/A | X46: N/A | BB46: No | BC46: N/A | BD46: N/A | BE46: N/A | BF46: N/A | BG46: N/A | BH46: N/A | BI46: N/A | BJ46: N/A | BK46: N/A | BL46: N/A | BM46: N/A | BN46: N/A | BO46: N/A | BP46: N/A | BQ46: N/A | BR46: N/A | BS46: N/A | BT46: N/A | BU46: N/A | BV46: N/A | BW46: N/A | BX46: N/A
A47: Microbiological quality at point of collection | B47: Not contaminated (No E. coli in 100 mL) | C47: N/A | D47: N/A | E47: N/A | F47: N/A | G47: N/A | H47: N/A | I47: N/A | J47: N/A | K47: N/A | L47: N/A | M47: N/A | N47: N/A | O47: N/A | P47: N/A | Q47: N/A | R47: N/A | S47: N/A | T47: N/A | U47: N/A | V47: N/A | W47: N/A | X47: N/A | BA47: Microbiological quality at point of collection | BB47: Not contaminated (No E. coli in 100 mL) | BC47: N/A | BD47: N/A | BE47: N/A | BF47: N/A | BG47: N/A | BH47: N/A | BI47: N/A | BJ47: N/A | BK47: N/A | BL47: N/A | BM47: N/A | BN47: N/A | BO47: N/A | BP47: N/A | BQ47: N/A | BR47: N/A | BS47: N/A | BT47: N/A | BU47: N/A | BV47: N/A | BW47: N/A | BX47: N/A
B48: Contaminated (E. coli detected in 100 mL) | C48: N/A | D48: N/A | E48: N/A | F48: N/A | G48: N/A | H48: N/A | I48: N/A | J48: N/A | K48: N/A | L48: N/A | M48: N/A | N48: N/A | O48: N/A | P48: N/A | Q48: N/A | R48: N/A | S48: N/A | T48: N/A | U48: N/A | V48: N/A | W48: N/A | X48: N/A | BB48: Contaminated (E. coli detected in 100 mL) | BC48: N/A | BD48: N/A | BE48: N/A | BF48: N/A | BG48: N/A | BH48: N/A | BI48: N/A | BJ48: N/A | BK48: N/A | BL48: N/A | BM48: N/A | BN48: N/A | BO48: N/A | BP48: N/A | BQ48: N/A | BR48: N/A | BS48: N/A | BT48: N/A | BU48: N/A | BV48: N/A | BW48: N/A | BX48: N/A
B49: Highly contaminated (>100 CFU/100 mL) | C49: N/A | D49: N/A | E49: N/A | F49: N/A | G49: N/A | H49: N/A | I49: N/A | J49: N/A | K49: N/A | L49: N/A | M49: N/A | N49: N/A | O49: N/A | P49: N/A | Q49: N/A | R49: N/A | S49: N/A | T49: N/A | U49: N/A | V49: N/A | W49: N/A | X49: N/A | BB49: Highly contaminated (>100 CFU/100 mL) | BC49: N/A | BD49: N/A | BE49: N/A | BF49: N/A | BG49: N/A | BH49: N/A | BI49: N/A | BJ49: N/A | BK49: N/A | BL49: N/A | BM49: N/A | BN49: N/A | BO49: N/A | BP49: N/A | BQ49: N/A | BR49: N/A | BS49: N/A | BT49: N/A | BU49: N/A | BV49: N/A | BW49: N/A | BX49: N/A
A50: Microbiological quality of improved water sources at point of collection | B50: Not contaminated (No E. coli in 100 mL) | C50: N/A | D50: N/A | E50: N/A | F50: N/A | G50: N/A | H50: N/A | I50: N/A | J50: N/A | K50: N/A | L50: N/A | M50: N/A | N50: N/A | O50: N/A | P50: N/A | Q50: N/A | R50: N/A | S50: N/A | T50: N/A | U50: N/A | V50: N/A | W50: N/A | X50: N/A | BA50: Microbiological quality of improved water sources at point of collection | BB50: Not contaminated (No E. coli in 100 mL) | BC50: N/A | BD50: N/A | BE50: N/A | BF50: N/A | BG50: N/A | BH50: N/A | BI50: N/A | BJ50: N/A | BK50: N/A | BL50: N/A | BM50: N/A | BN50: N/A | BO50: N/A | BP50: N/A | BQ50: N/A | BR50: N/A | BS50: N/A | BT50: N/A | BU50: N/A | BV50: N/A | BW50: N/A | BX50: N/A
B51: Contaminated (E. coli detected in 100 mL) | C51: N/A | D51: N/A | E51: N/A | F51: N/A | G51: N/A | H51: N/A | I51: N/A | J51: N/A | K51: N/A | L51: N/A | M51: N/A | N51: N/A | O51: N/A | P51: N/A | Q51: N/A | R51: N/A | S51: N/A | T51: N/A | U51: N/A | V51: N/A | W51: N/A | X51: N/A | BB51: Contaminated (E. coli detected in 100 mL) | BC51: N/A | BD51: N/A | BE51: N/A | BF51: N/A | BG51: N/A | BH51: N/A | BI51: N/A | BJ51: N/A | BK51: N/A | BL51: N/A | BM51: N/A | BN51: N/A | BO51: N/A | BP51: N/A | BQ51: N/A | BR51: N/A | BS51: N/A | BT51: N/A | BU51: N/A | BV51: N/A | BW51: N/A | BX51: N/A
B52: Highly contaminated (>100 CFU/100 mL) | C52: N/A | D52: N/A | E52: N/A | F52: N/A | G52: N/A | H52: N/A | I52: N/A | J52: N/A | K52: N/A | L52: N/A | M52: N/A | N52: N/A | O52: N/A | P52: N/A | Q52: N/A | R52: N/A | S52: N/A | T52: N/A | U52: N/A | V52: N/A | W52: N/A | X52: N/A | BB52: Highly contaminated (>100 CFU/100 mL) | BC52: N/A | BD52: N/A | BE52: N/A | BF52: N/A | BG52: N/A | BH52: N/A | BI52: N/A | BJ52: N/A | BK52: N/A | BL52: N/A | BM52: N/A | BN52: N/A | BO52: N/A | BP52: N/A | BQ52: N/A | BR52: N/A | BS52: N/A | BT52: N/A | BU52: N/A | BV52: N/A | BW52: N/A | BX52: N/A
A53: Microbiological quality of piped on premises at point of collection | B53: Not contaminated (No E. coli in 100 mL) | C53: N/A | D53: N/A | E53: N/A | F53: N/A | G53: N/A | H53: N/A | I53: N/A | J53: N/A | K53: N/A | L53: N/A | M53: N/A | N53: N/A | O53: N/A | P53: N/A | Q53: N/A | R53: N/A | S53: N/A | T53: N/A | U53: N/A | V53: N/A | W53: N/A | X53: N/A | BA53: Microbiological quality of piped on premises at point of collection | BB53: Not contaminated (No E. coli in 100 mL) | BC53: N/A | BD53: N/A | BE53: N/A | BF53: N/A | BG53: N/A | BH53: N/A | BI53: N/A | BJ53: N/A | BK53: N/A | BL53: N/A | BM53: N/A | BN53: N/A | BO53: N/A | BP53: N/A | BQ53: N/A | BR53: N/A | BS53: N/A | BT53: N/A | BU53: N/A | BV53: N/A | BW53: N/A | BX53: N/A
B54: Contaminated (E. coli detected in 100 mL) | C54: N/A | D54: N/A | E54: N/A | F54: N/A | G54: N/A | H54: N/A | I54: N/A | J54: N/A | K54: N/A | L54: N/A | M54: N/A | N54: N/A | O54: N/A | P54: N/A | Q54: N/A | R54: N/A | S54: N/A | T54: N/A | U54: N/A | V54: N/A | W54: N/A | X54: N/A | BB54: Contaminated (E. coli detected in 100 mL) | BC54: N/A | BD54: N/A | BE54: N/A | BF54: N/A | BG54: N/A | BH54: N/A | BI54: N/A | BJ54: N/A | BK54: N/A | BL54: N/A | BM54: N/A | BN54: N/A | BO54: N/A | BP54: N/A | BQ54: N/A | BR54: N/A | BS54: N/A | BT54: N/A | BU54: N/A | BV54: N/A | BW54: N/A | BX54: N/A
B55: Highly contaminated (>100 CFU/100 mL) | C55: N/A | D55: N/A | E55: N/A | F55: N/A | G55: N/A | H55: N/A | I55: N/A | J55: N/A | K55: N/A | L55: N/A | M55: N/A | N55: N/A | O55: N/A | P55: N/A | Q55: N/A | R55: N/A | S55: N/A | T55: N/A | U55: N/A | V55: N/A | W55: N/A | X55: N/A | BB55: Highly contaminated (>100 CFU/100 mL) | BC55: N/A | BD55: N/A | BE55: N/A | BF55: N/A | BG55: N/A | BH55: N/A | BI55: N/A | BJ55: N/A | BK55: N/A | BL55: N/A | BM55: N/A | BN55: N/A | BO55: N/A | BP55: N/A | BQ55: N/A | BR55: N/A | BS55: N/A | BT55: N/A | BU55: N/A | BV55: N/A | BW55: N/A | BX55: N/A
C56: NATIONAL wealth index quintile | H56: URBAN wealth index quintile | M56: RURAL wealth index quintile | R56: SUB-REGIONS: | BA56: Raw numbers of respondents: | BB56: Use of drinking water sources | BC56: NATIONAL wealth index quintile | BH56: URBAN wealth index quintile | BM56: RURAL wealth index quintile | BR56: SUB-REGIONS:
A57: Percentage based on weighted population | C57: Poorest | D57: Poor | E57: Middle | F57: Rich | G57: Richest | H57: Poorest | I57: Poor | J57: Middle | K57: Rich | L57: Richest | M57: Poorest | N57: Poor | O57: Middle | P57: Rich | Q57: Richest | R57: Central Coast | S57: Central Highlands | T57: Mekong River Delta | U57: North Central | V57: Northern Uplands | W57: Red River Delta | X57: Southeast | BA57: Water data, raw numbers (weighted) | BC57: Poorest | BD57: Poor | BE57: Middle | BF57: Rich | BG57: Richest | BH57: Poorest | BI57: Poor | BJ57: Middle | BK57: Rich | BL57: Richest | BM57: Poorest | BN57: Poor | BO57: Middle | BP57: Rich | BQ57: Richest | BR57: Central Coast | BS57: Central Highlands | BT57: Mekong River Delta | BU57: North Central | BV57: Northern Uplands | BW57: Red River Delta | BX57: Southeast
A58: Source of drinking water | B58: Piped into residence | C58: 3.336548307 | D58: 5.496375688 | E58: 6.977415648 | F58: 15.13512772 | G58: 65.82422926 | H58: 43.33524025 | I58: 69.09881715 | J58: 83.40687531 | K58: 85.42197563 | L58: 92.8506667 | M58: 2.093666915 | N58: 3.814170086 | O58: 4.450719715 | P58: 5.681604788 | Q58: 14.83993589 | R58: 28.70046514 | S58: 14.43977322 | T58: 15.51512689 | U58: 10.5306876 | V58: 7.082196485 | W58: 21.02463478 | X58: 44.48499728
B59: Public tap | C59: 0.5763412664 | D59: 1.266537602 | E59: 0.5391529505 | F59: 0.5347241756 | G59: 0.4105182329 | H59: 5.984869817 | I59: 0.7106151324 | J59: 0.1866728909 | K59: 1.098984528 | L59: 0.1872912638 | M59: 0.2923880653 | N59: 0.7517582596 | O59: 0.7011349844 | P59: 0.05249347489 | Q59: 0.3480524736 | R59: 1.750535903 | S59: 0.1096769427 | T59: 0.9579048491 | U59: 0.7561804647 | V59: 0.03893956062 | W59: 0.3943526901 | X59: 0.7535449324
B60: Well in residence | C60: 39.68659341 | D60: 58.33706519 | E60: 68.70813141 | F60: 63.32751664 | G60: 26.45465085 | H60: 36.56819215 | I60: 24.09280707 | J60: 14.81776689 | K60: 12.15853877 | L60: 6.571739557 | M60: 37.87968472 | N60: 55.39394257 | O60: 67.37961044 | P60: 70.95892719 | Q60: 63.60978197 | R60: 56.36344046 | S60: 73.75685924 | T60: 28.89617817 | U60: 76.7604505 | V60: 55.12379456 | W60: 46.47713761 | X60: 51.1965624
B61: Public well | C61: 6.53071093 | D61: 4.147527725 | E61: 0.6985905301 | F61: 0.8990086641 | G61: 0.3576423519 | H61: 2.656946751 | I61: 1.888793279 | J61: 0 | K61: 0.1724486665 | L61: 0 | M61: 7.061614671 | N61: 3.799004554 | O61: 2.463130229 | P61: 0.6882241761 | Q61: 0.409816354 | R61: 2.580722609 | S61: 10.41004541 | T61: 2.463501374 | U61: 1.917017192 | V61: 5.564032793 | W61: 0.3936770588 | X61: 0.280355511
B62: Spring | C62: 21.82339187 | D62: 9.021078513 | E62: 2.190622404 | F62: 1.440588196 | G62: 0.169826499 | H62: 0.8211798489 | I62: 0.3084864687 | J62: 0.03708966182 | K62: 0 | L62: 0 | M62: 23.28413911 | N62: 12.68441863 | O62: 3.990405219 | P62: 1.486736994 | Q62: 1.082863498 | R62: 5.543664691 | S62: 0.6365151052 | T62: 0.4089443034 | U62: 3.791422041 | V62: 30.55658632 | W62: 0 | X62: 0.8130314802
B63: River, stream | C63: 17.19742179 | D63: 9.605239164 | E63: 3.257990046 | F63: 2.431278971 | G63: 0.9958879571 | H63: 4.585434433 | I63: 0.8550516622 | J63: 0.5522857147 | K63: 0 | L63: 0 | M63: 18.9340268 | N63: 10.87890017 | O63: 4.767213723 | P63: 2.247993537 | Q63: 3.108570896 | R63: 3.110511465 | S63: 0 | T63: 32.69143442 | U63: 0.06047443053 | V63: 0.04921360039 | W63: 0 | X63: 0.2625884961
B64: Pond, lake | C64: 0.4510579523 | D64: 0.5619125539 | E64: 0.1550477961 | F64: 0.074497203 | G64: 0 | H64: 0 | I64: 0 | J64: 0 | K64: 0 | L64: 0 | M64: 0.5275458493 | N64: 0.5951942824 | O64: 0.2278159428 | P64: 0.1893093786 | Q64: 0 | R64: 0 | S64: 0 | T64: 0.9217331849 | U64: 0.1421995372 | V64: 0 | W64: 0.2271548146 | X64: 0
B65: Dam | C65: 0.1767712427 | D65: 0.02541098434 | E65: 0.1220652243 | F65: 0.0461590657 | G65: 0 | H65: 0 | I65: 0 | J65: 0 | K65: 0 | L65: 0 | M65: 0.2186913074 | N65: 0.0317565774 | O65: 0.0763176122 | P65: 0.07517758474 | Q65: 0.05659334977 | R65: 0 | S65: 0 | T65: 0.3840534353 | U65: 0 | V65: 0 | W65: 0 | X65: 0
B66: Rainwater | C66: 7.620861601 | D66: 9.919212208 | E66: 16.13702815 | F66: 15.78202163 | G66: 5.483604178 | H66: 3.869854529 | I66: 1.779751574 | J66: 0.9993095298 | K66: 1.07173265 | L66: 0.3903024745 | M66: 6.886954783 | N66: 10.3903589 | O66: 14.46716926 | P66: 18.31765455 | Q66: 16.19033777 | R66: 0 | S66: 0 | T66: 14.42947697 | U66: 5.814210383 | V66: 0.6270353643 | W66: 31.4478366 | X66: 1.173032325
B67: Tanker truck | C67: 0 | D67: 0 | E67: 0.06196390653 | F67: 0 | G67: 0 | H67: 0 | I67: 0 | J67: 0 | K67: 0 | L67: 0 | M67: 0 | N67: 0 | O67: 0.0723734061 | P67: 0 | Q67: 0 | R67: 0 | S67: 0 | T67: 0.06468526358 | U67: 0 | V67: 0 | W67: 0 | X67: 0
B68: Other | C68: 2.600301633 | D68: 1.61964037 | E68: 1.151991936 | F68: 0.3290777413 | G68: 0.3036406751 | H68: 2.178282223 | I68: 1.265677666 | J68: 0 | K68: 0.07631976253 | L68: 0 | M68: 2.821287767 | N68: 1.660495968 | O68: 1.404109474 | P68: 0.3018783315 | Q68: 0.3540478049 | R68: 1.950659733 | S68: 0.6471300779 | T68: 3.266961133 | U68: 0.227357854 | V68: 0.9582013171 | W68: 0.03520644104 | X68: 1.035887581
A108: =A1026 -> Viet Nam
A109: =A1034 -> 2002
A110: Use of sanitation facilities
A111: by wealth quintile and sub-national region
A112: Notes:
A113: WHO/UNICEF JMP customised wealth index excludes water,
A114: sanitation and hygiene assets.
A115: Survey used for analysis: | B115: =A1025 -> DHS02
A116: =B1030 -> Ratio of Improved latrines based on:
A117: =B1029 -> Ratio of Shared improved based on:
A120: Use of sanitation facilities | C120: NATIONAL wealth index quintile | H120: URBAN wealth index quintile | M120: RURAL wealth index quintile | R120: SUB-REGIONS: | BA120: Raw numbers of respondents: | BB120: Use of sanitation facilities | BC120: NATIONAL wealth index quintile | BH120: URBAN wealth index quintile | BM120: RURAL wealth index quintile | BR120: SUB-REGIONS:
A121: Weighted percentage (used in graphs) | C121: Poorest | D121: Poor | E121: Middle | F121: Rich | G121: Richest | H121: Poorest | I121: Poor | J121: Middle | K121: Rich | L121: Richest | M121: Poorest | N121: Poor | O121: Middle | P121: Rich | Q121: Richest | R121: Central Coast | S121: Central Highlands | T121: Mekong River Delta | U121: North Central | V121: Northern Uplands | W121: Red River Delta | X121: Southeast | BA121: Sanitation data, raw numbers (weighted) | BC121: Poorest | BD121: Poor | BE121: Middle | BF121: Rich | BG121: Richest | BH121: Poorest | BI121: Poor | BJ121: Middle | BK121: Rich | BL121: Richest | BM121: Poorest | BN121: Poor | BO121: Middle | BP121: Rich | BQ121: Richest | BR121: Central Coast | BS121: Central Highlands | BT121: Mekong River Delta | BU121: North Central | BV121: Northern Uplands | BW121: Red River Delta | BX121: Southeast
A122: Sanitation | B122: Improved | C122: =C153+C154+C156+C155*MICS06!C130/100 -> 19.02552583 | D122: =D153+D154+D156+D155*MICS06!D130/100 -> 37.43910008 | E122: =E153+E154+E156+E155*MICS06!E130/100 -> 53.33956055 | F122: =F153+F154+F156+F155*MICS06!F130/100 -> 71.66280653 | G122: =G153+G154+G156+G155*MICS06!G130/100 -> 94.30987921 | H122: =H153+H154+H156+H155*MICS06!H130/100 -> 59.43544613 | I122: =I153+I154+I156+I155*MICS06!I130/100 -> 94.5463961 | J122: =J153+J154+J156+J155*MICS06!J130/100 -> 100 | K122: =K153+K154+K156+K155*MICS06!K130/100 -> 100 | L122: =L153+L154+L156+L155*MICS06!L130/100 -> 100 | M122: =M153+M154+M156+M155*MICS06!M130/100 -> 19.27830613 | N122: =N153+N154+N156+N155*MICS06!N130/100 -> 30.98438945 | O122: =O153+O154+O156+O155*MICS06!O130/100 -> 45.73709113 | P122: =P153+P154+P156+P155*MICS06!P130/100 -> 55.77908964 | Q122: =Q153+Q154+Q156+Q155*MICS06!Q130/100 -> 79.5586169 | R122: N/A | S122: N/A | T122: N/A | U122: N/A | V122: N/A | W122: N/A | X122: N/A | BA122: Sanitation | BB122: Improved | BC122: N/A | BD122: N/A | BE122: N/A | BF122: N/A | BG122: N/A | BH122: N/A | BI122: N/A | BJ122: N/A | BK122: N/A | BL122: N/A | BM122: N/A | BN122: N/A | BO122: N/A | BP122: N/A | BQ122: N/A | BR122: N/A | BS122: N/A | BT122: N/A | BU122: N/A | BV122: N/A | BW122: N/A | BX122: N/A
B123: Not Improved | C123: =100-C122 -> 80.97447417 | D123: =100-D122 -> 62.56089992 | E123: 46.66043945 | F123: 28.33719347 | G123: 5.690120795 | H123: 40.56455387 | I123: 5.453603897 | J123: 0 | K123: 0 | L123: 0 | M123: 80.72169387 | N123: 69.01561055 | O123: 54.26290887 | P123: 44.22091036 | Q123: 20.4413831 | R123: N/A | S123: N/A | T123: N/A | U123: N/A | V123: N/A | W123: N/A | X123: N/A | BB123: Not Improved | BC123: N/A | BD123: N/A | BE123: N/A | BF123: N/A | BG123: N/A | BH123: N/A | BI123: N/A | BJ123: N/A | BK123: N/A | BL123: N/A | BM123: N/A | BN123: N/A | BO123: N/A | BP123: N/A | BQ123: N/A | BR123: N/A | BS123: N/A | BT123: N/A | BU123: N/A | BV123: N/A | BW123: N/A | BX123: N/A
A124: Sanitation ladder | B124: Basic | C124: =C122*MICS06!C129/100 -> 17.36916361 | D124: =D122*MICS06!D129/100 -> 34.20706767 | E124: =E122*MICS06!E129/100 -> 50.26234137 | F124: =F122*MICS06!F129/100 -> 68.32552778 | G124: =G122*MICS06!G129/100 -> 91.29025275 | H124: =H122*MICS06!H129/100 -> 52.35100159 | I124: =I122*MICS06!I129/100 -> 86.76476077 | J124: =J122*MICS06!J129/100 -> 94.65715704 | K124: =K122*MICS06!K129/100 -> 97.41836747 | L124: =L122*MICS06!L129/100 -> 98.46964648 | M124: =M122*MICS06!M129/100 -> 17.66578005 | N124: =N122*MICS06!N129/100 -> 28.35094576 | O124: =O122*MICS06!O129/100 -> 42.80088743 | P124: =P122*MICS06!P129/100 -> 52.98624843 | Q124: =Q122*MICS06!Q129/100 -> 77.41031225 | R124: N/A | S124: N/A | T124: N/A | U124: N/A | V124: N/A | W124: N/A | X124: N/A | BA124: Sanitation ladder | BB124: Basic | BC124: N/A | BD124: N/A | BE124: N/A | BF124: N/A | BG124: N/A | BH124: N/A | BI124: N/A | BJ124: N/A | BK124: N/A | BL124: N/A | BM124: N/A | BN124: N/A | BO124: N/A | BP124: N/A | BQ124: N/A | BR124: N/A | BS124: N/A | BT124: N/A | BU124: N/A | BV124: N/A | BW124: N/A | BX124: N/A
B125: Limited | C125: =C122*MICS06!C128/100 -> 1.656362219 | D125: =D122*MICS06!D128/100 -> 3.232032412 | E125: =E122*MICS06!E128/100 -> 3.077219185 | F125: =F122*MICS06!F128/100 -> 3.337278752 | G125: =G122*MICS06!G128/100 -> 3.019626455 | H125: =H122*MICS06!H128/100 -> 7.084444544 | I125: =I122*MICS06!I128/100 -> 7.781635329 | J125: =J122*MICS06!J128/100 -> 5.342842959 | K125: =K122*MICS06!K128/100 -> 2.58163253 | L125: =L122*MICS06!L128/100 -> 1.530353524 | M125: =M122*MICS06!M128/100 -> 1.612526078 | N125: =N122*MICS06!N128/100 -> 2.633443692 | O125: =O122*MICS06!O128/100 -> 2.936203707 | P125: =P122*MICS06!P128/100 -> 2.792841204 | Q125: =Q122*MICS06!Q128/100 -> 2.14830465 | R125: N/A | S125: N/A | T125: N/A | U125: N/A | V125: N/A | W125: N/A | X125: N/A | BB125: Limited | BC125: N/A | BD125: N/A | BE125: N/A | BF125: N/A | BG125: N/A | BH125: N/A | BI125: N/A | BJ125: N/A | BK125: N/A | BL125: N/A | BM125: N/A | BN125: N/A | BO125: N/A | BP125: N/A | BQ125: N/A | BR125: N/A | BS125: N/A | BT125: N/A | BU125: N/A | BV125: N/A | BW125: N/A | BX125: N/A
B126: Unimproved | C126: =100-(C124+C125+C127) -> 43.88605289 | D126: =100-(D124+D125+D127) -> 36.3505613 | E126: 31.06122879 | F126: 18.20811431 | G126: 3.853614554 | H126: 24.27890139 | I126: 2.122076423 | J126: 0 | K126: 0 | L126: 0 | M126: 43.1369928 | N126: 40.18037682 | O126: 34.17461045 | P126: 31.112389 | Q126: 12.53935651 | R126: N/A | S126: N/A | T126: N/A | U126: N/A | V126: N/A | W126: N/A | X126: N/A | BB126: Unimproved | BC126: N/A | BD126: N/A | BE126: N/A | BF126: N/A | BG126: N/A | BH126: N/A | BI126: N/A | BJ126: N/A | BK126: N/A | BL126: N/A | BM126: N/A | BN126: N/A | BO126: N/A | BP126: N/A | BQ126: N/A | BR126: N/A | BS126: N/A | BT126: N/A | BU126: N/A | BV126: N/A | BW126: N/A | BX126: N/A
B127: Open defecation | C127: =C157 -> 37.08842128 | D127: =D157 -> 26.21033863 | E127: 15.59921066 | F127: 10.12907915 | G127: 1.83650624 | H127: 16.28565248 | I127: 3.331527474 | J127: 0 | K127: 0 | L127: 0 | M127: 37.58470107 | N127: 28.83523373 | O127: 20.08829842 | P127: 13.10852136 | Q127: 7.902026595 | R127: N/A | S127: N/A | T127: N/A | U127: N/A | V127: N/A | W127: N/A | X127: N/A | BB127: Open defecation | BC127: N/A | BD127: N/A | BE127: N/A | BF127: N/A | BG127: N/A | BH127: N/A | BI127: N/A | BJ127: N/A | BK127: N/A | BL127: N/A | BM127: N/A | BN127: N/A | BO127: N/A | BP127: N/A | BQ127: N/A | BR127: N/A | BS127: N/A | BT127: N/A | BU127: N/A | BV127: N/A | BW127: N/A | BX127: N/A
A128: Shared among Improved Sanitation | B128: Yes | C128: N/A | D128: N/A | E128: N/A | F128: N/A | G128: N/A | H128: N/A | I128: N/A | J128: N/A | K128: N/A | L128: N/A | M128: N/A | N128: N/A | O128: N/A | P128: N/A | Q128: N/A | R128: N/A | S128: N/A | T128: N/A | U128: N/A | V128: N/A | W128: N/A | X128: N/A | BA128: Shared among improved sanitation facilities | BB128: Yes | BC128: N/A | BD128: N/A | BE128: N/A | BF128: N/A | BG128: N/A | BH128: N/A | BI128: N/A | BJ128: N/A | BK128: N/A | BL128: N/A | BM128: N/A | BN128: N/A | BO128: N/A | BP128: N/A | BQ128: N/A | BR128: N/A | BS128: N/A | BT128: N/A | BU128: N/A | BV128: N/A | BW128: N/A | BX128: N/A
B129: No | C129: N/A | D129: N/A | E129: N/A | F129: N/A | G129: N/A | H129: N/A | I129: N/A | J129: N/A | K129: N/A | L129: N/A | M129: N/A | N129: N/A | O129: N/A | P129: N/A | Q129: N/A | R129: N/A | S129: N/A | T129: N/A | U129: N/A | V129: N/A | W129: N/A | X129: N/A | BB129: No | BC129: N/A | BD129: N/A | BE129: N/A | BF129: N/A | BG129: N/A | BH129: N/A | BI129: N/A | BJ129: N/A | BK129: N/A | BL129: N/A | BM129: N/A | BN129: N/A | BO129: N/A | BP129: N/A | BQ129: N/A | BR129: N/A | BS129: N/A | BT129: N/A | BU129: N/A | BV129: N/A | BW129: N/A | BX129: N/A
A130: Manually calculated ratios | B130: Improved latrines
B131: Other
B132: Other
C133: NATIONAL wealth index quintile | H133: URBAN wealth index quintile | M133: RURAL wealth index quintile | R133: SUB-REGIONS: | BA133: Raw numbers of respondents: | BB133: Use of sanitation facilities | BC133: NATIONAL wealth index quintile | BH133: URBAN wealth index quintile | BM133: RURAL wealth index quintile | BR133: SUB-REGIONS:
A134: Percentage based on weighted population | C134: Poorest | D134: Poor | E134: Middle | F134: Rich | G134: Richest | H134: Poorest | I134: Poor | J134: Middle | K134: Rich | L134: Richest | M134: Poorest | N134: Poor | O134: Middle | P134: Rich | Q134: Richest | R134: Central Coast | S134: Central Highlands | T134: Mekong River Delta | U134: North Central | V134: Northern Uplands | W134: Red River Delta | X134: Southeast | BA134: Sanitation data, raw numbers (weighted) | BC134: Poorest | BD134: Poor | BE134: Middle | BF134: Rich | BG134: Richest | BH134: Poorest | BI134: Poor | BJ134: Middle | BK134: Rich | BL134: Richest | BM134: Poorest | BN134: Poor | BO134: Middle | BP134: Rich | BQ134: Richest | BR134: Central Coast | BS134: Central Highlands | BT134: Mekong River Delta | BU134: North Central | BV134: Northern Uplands | BW134: Red River Delta | BX134: Southeast
A135: Sanitation type | B135: Sewer connection | C135: N/A | D135: N/A | E135: N/A | F135: N/A | G135: N/A | H135: N/A | I135: N/A | J135: N/A | K135: N/A | L135: N/A | M135: N/A | N135: N/A | O135: N/A | P135: N/A | Q135: N/A | R135: N/A | S135: N/A | T135: N/A | U135: N/A | V135: N/A | W135: N/A | X135: N/A | BA135: Sanitation type | BB135: Sewer connection | BC135: N/A | BD135: N/A | BE135: N/A | BF135: N/A | BG135: N/A | BH135: N/A | BI135: N/A | BJ135: N/A | BK135: N/A | BL135: N/A | BM135: N/A | BN135: N/A | BO135: N/A | BP135: N/A | BQ135: N/A | BR135: N/A | BS135: N/A | BT135: N/A | BU135: N/A | BV135: N/A | BW135: N/A | BX135: N/A
B136: Septic tank connection | C136: N/A | D136: N/A | E136: N/A | F136: N/A | G136: N/A | H136: N/A | I136: N/A | J136: N/A | K136: N/A | L136: N/A | M136: N/A | N136: N/A | O136: N/A | P136: N/A | Q136: N/A | R136: N/A | S136: N/A | T136: N/A | U136: N/A | V136: N/A | W136: N/A | X136: N/A | BB136: Septic tank connection | BC136: N/A | BD136: N/A | BE136: N/A | BF136: N/A | BG136: N/A | BH136: N/A | BI136: N/A | BJ136: N/A | BK136: N/A | BL136: N/A | BM136: N/A | BN136: N/A | BO136: N/A | BP136: N/A | BQ136: N/A | BR136: N/A | BS136: N/A | BT136: N/A | BU136: N/A | BV136: N/A | BW136: N/A | BX136: N/A
B137: Improved latrines | C137: N/A | D137: N/A | E137: N/A | F137: N/A | G137: N/A | H137: N/A | I137: N/A | J137: N/A | K137: N/A | L137: N/A | M137: N/A | N137: N/A | O137: N/A | P137: N/A | Q137: N/A | R137: N/A | S137: N/A | T137: N/A | U137: N/A | V137: N/A | W137: N/A | X137: N/A | BB137: Improved latrines | BC137: N/A | BD137: N/A | BE137: N/A | BF137: N/A | BG137: N/A | BH137: N/A | BI137: N/A | BJ137: N/A | BK137: N/A | BL137: N/A | BM137: N/A | BN137: N/A | BO137: N/A | BP137: N/A | BQ137: N/A | BR137: N/A | BS137: N/A | BT137: N/A | BU137: N/A | BV137: N/A | BW137: N/A | BX137: N/A
B138: Unimproved facilities | C138: N/A | D138: N/A | E138: N/A | F138: N/A | G138: N/A | H138: N/A | I138: N/A | J138: N/A | K138: N/A | L138: N/A | M138: N/A | N138: N/A | O138: N/A | P138: N/A | Q138: N/A | R138: N/A | S138: N/A | T138: N/A | U138: N/A | V138: N/A | W138: N/A | X138: N/A | BB138: Unimproved facilities | BC138: N/A | BD138: N/A | BE138: N/A | BF138: N/A | BG138: N/A | BH138: N/A | BI138: N/A | BJ138: N/A | BK138: N/A | BL138: N/A | BM138: N/A | BN138: N/A | BO138: N/A | BP138: N/A | BQ138: N/A | BR138: N/A | BS138: N/A | BT138: N/A | BU138: N/A | BV138: N/A | BW138: N/A | BX138: N/A
B139: Open defecation | C139: 36.97067907 | D139: 26.1999589 | E139: 15.59921066 | F139: 10.12907915 | G139: 1.83650624 | H139: 16.24247943 | I139: 3.331527474 | J139: 0 | K139: 0 | L139: 0 | M139: 37.46067276 | N139: 28.82096292 | O139: 20.08829842 | P139: 13.10852136 | Q139: 7.902026595 | R139: 37.7370853 | S139: 33.72279005 | T139: 27.40746499 | U139: 16.64713735 | V139: 19.69090136 | W139: 0.6199221654 | X139: 13.49068952 | BB139: Open defecation | BC139: N/A | BD139: N/A | BE139: N/A | BF139: N/A | BG139: N/A | BH139: N/A | BI139: N/A | BJ139: N/A | BK139: N/A | BL139: N/A | BM139: N/A | BN139: N/A | BO139: N/A | BP139: N/A | BQ139: N/A | BR139: N/A | BS139: N/A | BT139: N/A | BU139: N/A | BV139: N/A | BW139: N/A | BX139: N/A
A140: Septic tank emptying practices | B140: Not emptied/treated and disposed in situ | C140: N/A | D140: N/A | E140: N/A | F140: N/A | G140: N/A | H140: N/A | I140: N/A | J140: N/A | K140: N/A | L140: N/A | M140: N/A | N140: N/A | O140: N/A | P140: N/A | Q140: N/A | R140: N/A | S140: N/A | T140: N/A | U140: N/A | V140: N/A | W140: N/A | X140: N/A | BA140: Septic tank emptying practices | BB140: Not emptied/treated and disposed in situ | BC140: N/A | BD140: N/A | BE140: N/A | BF140: N/A | BG140: N/A | BH140: N/A | BI140: N/A | BJ140: N/A | BK140: N/A | BL140: N/A | BM140: N/A | BN140: N/A | BO140: N/A | BP140: N/A | BQ140: N/A | BR140: N/A | BS140: N/A | BT140: N/A | BU140: N/A | BV140: N/A | BW140: N/A | BX140: N/A
B141: Emptied and buried on site | C141: N/A | D141: N/A | E141: N/A | F141: N/A | G141: N/A | H141: N/A | I141: N/A | J141: N/A | K141: N/A | L141: N/A | M141: N/A | N141: N/A | O141: N/A | P141: N/A | Q141: N/A | R141: N/A | S141: N/A | T141: N/A | U141: N/A | V141: N/A | W141: N/A | X141: N/A | BB141: Emptied and buried on site | BC141: N/A | BD141: N/A | BE141: N/A | BF141: N/A | BG141: N/A | BH141: N/A | BI141: N/A | BJ141: N/A | BK141: N/A | BL141: N/A | BM141: N/A | BN141: N/A | BO141: N/A | BP141: N/A | BQ141: N/A | BR141: N/A | BS141: N/A | BT141: N/A | BU141: N/A | BV141: N/A | BW141: N/A | BX141: N/A
B142: Emptied and discharged locally | C142: N/A | D142: N/A | E142: N/A | F142: N/A | G142: N/A | H142: N/A | I142: N/A | J142: N/A | K142: N/A | L142: N/A | M142: N/A | N142: N/A | O142: N/A | P142: N/A | Q142: N/A | R142: N/A | S142: N/A | T142: N/A | U142: N/A | V142: N/A | W142: N/A | X142: N/A | BB142: Emptied and discharged locally | BC142: N/A | BD142: N/A | BE142: N/A | BF142: N/A | BG142: N/A | BH142: N/A | BI142: N/A | BJ142: N/A | BK142: N/A | BL142: N/A | BM142: N/A | BN142: N/A | BO142: N/A | BP142: N/A | BQ142: N/A | BR142: N/A | BS142: N/A | BT142: N/A | BU142: N/A | BV142: N/A | BW142: N/A | BX142: N/A
B143: Emptied and removed offsite | C143: N/A | D143: N/A | E143: N/A | F143: N/A | G143: N/A | H143: N/A | I143: N/A | J143: N/A | K143: N/A | L143: N/A | M143: N/A | N143: N/A | O143: N/A | P143: N/A | Q143: N/A | R143: N/A | S143: N/A | T143: N/A | U143: N/A | V143: N/A | W143: N/A | X143: N/A | BB143: Emptied and removed offsite | BC143: N/A | BD143: N/A | BE143: N/A | BF143: N/A | BG143: N/A | BH143: N/A | BI143: N/A | BJ143: N/A | BK143: N/A | BL143: N/A | BM143: N/A | BN143: N/A | BO143: N/A | BP143: N/A | BQ143: N/A | BR143: N/A | BS143: N/A | BT143: N/A | BU143: N/A | BV143: N/A | BW143: N/A | BX143: N/A
A144: Latrine emptying practices | B144: Not emptied/treated and disposed in situ | C144: N/A | D144: N/A | E144: N/A | F144: N/A | G144: N/A | H144: N/A | I144: N/A | J144: N/A | K144: N/A | L144: N/A | M144: N/A | N144: N/A | O144: N/A | P144: N/A | Q144: N/A | R144: N/A | S144: N/A | T144: N/A | U144: N/A | V144: N/A | W144: N/A | X144: N/A | BA144: Latrine emptying practices | BB144: Not emptied/treated and disposed in situ | BC144: N/A | BD144: N/A | BE144: N/A | BF144: N/A | BG144: N/A | BH144: N/A | BI144: N/A | BJ144: N/A | BK144: N/A | BL144: N/A | BM144: N/A | BN144: N/A | BO144: N/A | BP144: N/A | BQ144: N/A | BR144: N/A | BS144: N/A | BT144: N/A | BU144: N/A | BV144: N/A | BW144: N/A | BX144: N/A
B145: Emptied and buried on site | C145: N/A | D145: N/A | E145: N/A | F145: N/A | G145: N/A | H145: N/A | I145: N/A | J145: N/A | K145: N/A | L145: N/A | M145: N/A | N145: N/A | O145: N/A | P145: N/A | Q145: N/A | R145: N/A | S145: N/A | T145: N/A | U145: N/A | V145: N/A | W145: N/A | X145: N/A | BB145: Emptied and buried on site | BC145: N/A | BD145: N/A | BE145: N/A | BF145: N/A | BG145: N/A | BH145: N/A | BI145: N/A | BJ145: N/A | BK145: N/A | BL145: N/A | BM145: N/A | BN145: N/A | BO145: N/A | BP145: N/A | BQ145: N/A | BR145: N/A | BS145: N/A | BT145: N/A | BU145: N/A | BV145: N/A | BW145: N/A | BX145: N/A
B146: Emptied and discharged locally | C146: N/A | D146: N/A | E146: N/A | F146: N/A | G146: N/A | H146: N/A | I146: N/A | J146: N/A | K146: N/A | L146: N/A | M146: N/A | N146: N/A | O146: N/A | P146: N/A | Q146: N/A | R146: N/A | S146: N/A | T146: N/A | U146: N/A | V146: N/A | W146: N/A | X146: N/A | BB146: Emptied and discharged locally | BC146: N/A | BD146: N/A | BE146: N/A | BF146: N/A | BG146: N/A | BH146: N/A | BI146: N/A | BJ146: N/A | BK146: N/A | BL146: N/A | BM146: N/A | BN146: N/A | BO146: N/A | BP146: N/A | BQ146: N/A | BR146: N/A | BS146: N/A | BT146: N/A | BU146: N/A | BV146: N/A | BW146: N/A | BX146: N/A
B147: Emptied and removed offsite | C147: N/A | D147: N/A | E147: N/A | F147: N/A | G147: N/A | H147: N/A | I147: N/A | J147: N/A | K147: N/A | L147: N/A | M147: N/A | N147: N/A | O147: N/A | P147: N/A | Q147: N/A | R147: N/A | S147: N/A | T147: N/A | U147: N/A | V147: N/A | W147: N/A | X147: N/A | BB147: Emptied and removed offsite | BC147: N/A | BD147: N/A | BE147: N/A | BF147: N/A | BG147: N/A | BH147: N/A | BI147: N/A | BJ147: N/A | BK147: N/A | BL147: N/A | BM147: N/A | BN147: N/A | BO147: N/A | BP147: N/A | BQ147: N/A | BR147: N/A | BS147: N/A | BT147: N/A | BU147: N/A | BV147: N/A | BW147: N/A | BX147: N/A
A148: Shared among improved sanitation facilities | B148: Yes | C148: N/A | D148: N/A | E148: N/A | F148: N/A | G148: N/A | H148: N/A | I148: N/A | J148: N/A | K148: N/A | L148: N/A | M148: N/A | N148: N/A | O148: N/A | P148: N/A | Q148: N/A | R148: N/A | S148: N/A | T148: N/A | U148: N/A | V148: N/A | W148: N/A | X148: N/A | BA148: Shared among improved sanitation facilities | BB148: Yes | BC148: N/A | BD148: N/A | BE148: N/A | BF148: N/A | BG148: N/A | BH148: N/A | BI148: N/A | BJ148: N/A | BK148: N/A | BL148: N/A | BM148: N/A | BN148: N/A | BO148: N/A | BP148: N/A | BQ148: N/A | BR148: N/A | BS148: N/A | BT148: N/A | BU148: N/A | BV148: N/A | BW148: N/A | BX148: N/A
B149: No | C149: N/A | D149: N/A | E149: N/A | F149: N/A | G149: N/A | H149: N/A | I149: N/A | J149: N/A | K149: N/A | L149: N/A | M149: N/A | N149: N/A | O149: N/A | P149: N/A | Q149: N/A | R149: N/A | S149: N/A | T149: N/A | U149: N/A | V149: N/A | W149: N/A | X149: N/A | BB149: No | BC149: N/A | BD149: N/A | BE149: N/A | BF149: N/A | BG149: N/A | BH149: N/A | BI149: N/A | BJ149: N/A | BK149: N/A | BL149: N/A | BM149: N/A | BN149: N/A | BO149: N/A | BP149: N/A | BQ149: N/A | BR149: N/A | BS149: N/A | BT149: N/A | BU149: N/A | BV149: N/A | BW149: N/A | BX149: N/A
B150: DK/missing | C150: N/A | D150: N/A | E150: N/A | F150: N/A | G150: N/A | H150: N/A | I150: N/A | J150: N/A | K150: N/A | L150: N/A | M150: N/A | N150: N/A | O150: N/A | P150: N/A | Q150: N/A | R150: N/A | S150: N/A | T150: N/A | U150: N/A | V150: N/A | W150: N/A | X150: N/A | BB150: DK/missing | BC150: N/A | BD150: N/A | BE150: N/A | BF150: N/A | BG150: N/A | BH150: N/A | BI150: N/A | BJ150: N/A | BK150: N/A | BL150: N/A | BM150: N/A | BN150: N/A | BO150: N/A | BP150: N/A | BQ150: N/A | BR150: N/A | BS150: N/A | BT150: N/A | BU150: N/A | BV150: N/A | BW150: N/A | BX150: N/A
A151: Shared among all sanitation facilities | B151: Yes | C151: N/A | D151: N/A | E151: N/A | F151: N/A | G151: N/A | H151: N/A | I151: N/A | J151: N/A | K151: N/A | L151: N/A | M151: N/A | N151: N/A | O151: N/A | P151: N/A | Q151: N/A | R151: N/A | S151: N/A | T151: N/A | U151: N/A | V151: N/A | W151: N/A | X151: N/A | BA151: Shared among all sanitation facilities | BB151: Yes | BC151: N/A | BD151: N/A | BE151: N/A | BF151: N/A | BG151: N/A | BH151: N/A | BI151: N/A | BJ151: N/A | BK151: N/A | BL151: N/A | BM151: N/A | BN151: N/A | BO151: N/A | BP151: N/A | BQ151: N/A | BR151: N/A | BS151: N/A | BT151: N/A | BU151: N/A | BV151: N/A | BW151: N/A | BX151: N/A
B152: No | C152: N/A | D152: N/A | E152: N/A | F152: N/A | G152: N/A | H152: N/A | I152: N/A | J152: N/A | K152: N/A | L152: N/A | M152: N/A | N152: N/A | O152: N/A | P152: N/A | Q152: N/A | R152: N/A | S152: N/A | T152: N/A | U152: N/A | V152: N/A | W152: N/A | X152: N/A | BB152: No | BC152: N/A | BD152: N/A | BE152: N/A | BF152: N/A | BG152: N/A | BH152: N/A | BI152: N/A | BJ152: N/A | BK152: N/A | BL152: N/A | BM152: N/A | BN152: N/A | BO152: N/A | BP152: N/A | BQ152: N/A | BR152: N/A | BS152: N/A | BT152: N/A | BU152: N/A | BV152: N/A | BW152: N/A | BX152: N/A
A153: Type of toilet facility | B153: Own flush toilet | C153: 1.173460499 | D153: 3.813975871 | E153: 9.336452574 | F153: 24.88292746 | G153: 83.64826184 | H153: 42.72234456 | I153: 75.12087675 | J153: 90.04247486 | K153: 95.26348539 | L153: 98.41043515 | M153: 0.6525483761 | N153: 1.98570634 | O153: 4.845111853 | P153: 10.049285 | Q153: 39.25050327 | R153: 35.50109792 | S153: 17.9273029 | T153: 17.72704454 | U153: 13.14982518 | V153: 6.105769328 | W153: 29.1574643 | X153: 60.6401437 | BA153: Type of toilet facility | BB153: Own flush toilet | BC153: 73.157011 | BD153: 238.941556 | BE153: 588.306338 | BF153: 1541.437994 | BG153: 5238.103723 | BH153: 510.561818 | BI153: 905.215831 | BJ153: 1082.937537 | BK153: 1146.798936 | BL153: 1179.670908 | BM153: 32.871116 | BN153: 99.534491 | BO153: 261.387742 | BP153: 477.791482 | BQ153: 1983.176761 | BR153: 1208.111959 | BS153: 197.955763 | BT153: 1068.463577 | BU153: 548.428653 | BV153: 350.987776 | BW153: 2079.46615 | BX153: 2226.532744
B154: Shared flush toilet | C154: 0.2692357196 | D154: 0.3889218865 | E154: 0.6156546505 | F154: 0.7190434286 | G154: 1.548530444 | H154: 3.765404643 | I154: 3.394298034 | J154: 1.727952813 | K154: 2.020881149 | L154: 1.589564848 | M154: 0.1674633608 | N154: 0 | O154: 0.3911051114 | P154: 0.400635539 | Q154: 0.451414201 | R154: 0.8529063603 | S154: 0.254389671 | T154: 0.6829227388 | U154: 0.3336028424 | V154: 0.1810048077 | W154: 1.313994939 | X154: 0.8287953435 | BB154: Shared flush toilet | BC154: 16.784954 | BD154: 24.365545 | BE154: 38.793485 | BF154: 44.543025 | BG154: 96.969894 | BH154: 44.999212 | BI154: 40.90171 | BJ154: 20.782025 | BK154: 24.32773 | BL154: 19.054518 | BM154: 8.435708 | BN154: 0 | BO154: 21.099633 | BP154: 19.048146 | BQ154: 22.808221 | BR154: 29.024634 | BS154: 2.809006 | BT154: 41.161857 | BU154: 13.913292 | BV154: 10.404991 | BW154: 93.712127 | BX154: 30.430996
B155: Trad. pit toilet | C155: 58.23459084 | D155: 57.71532336 | E155: 55.80471593 | F155: 45.08062474 | G155: 8.097561461 | H155: 31.13032212 | I155: 11.75179381 | J155: 4.556293955 | K155: 0.2343782963 | L155: 0 | M155: 58.71312624 | N155: 59.26430862 | O155: 58.37887479 | P155: 55.20066634 | Q155: 35.40578551 | R155: 20.29497231 | S155: 42.17667534 | T155: 52.13536445 | U155: 46.56626888 | V155: 53.36493971 | W155: 55.50186267 | X155: 21.66811906 | BB155: Trad. pit toilet | BC155: 3630.517266 | BD155: 3615.803989 | BE155: 3516.353541 | BF155: 2792.637155 | BG155: 507.074097 | BH155: 372.029064 | BI155: 141.610565 | BJ155: 54.79838 | BK155: 2.821488 | BL155: 0 | BM155: 2957.582999 | BN155: 2970.652143 | BO155: 3149.467489 | BP155: 2624.50594 | BQ155: 1788.91798 | BR155: 690.643394 | BS155: 465.720694 | BT155: 3142.359002 | BU155: 1942.100048 | BV155: 3067.662812 | BW155: 3958.308702 | BX155: 795.591396
B156: Vent.imp.pit latrine | C156: 2.188176745 | D156: 10.52663418 | E156: 18.18930576 | F156: 18.17971457 | G156: 4.74773813 | H156: 5.944539786 | I156: 6.401503931 | J156: 3.67327837 | K156: 2.481255162 | L156: 0 | M156: 1.587472919 | N156: 8.740851052 | O156: 15.53241772 | P156: 20.27495814 | Q156: 16.29409848 | R156: 4.143026155 | S156: 4.236303834 | T156: 0.1082705576 | U156: 23.30316575 | V156: 20.59825417 | W156: 13.28979354 | X156: 1.837515504 | BB156: Vent.imp.pit latrine | BC156: 136.417434 | BD156: 659.482502 | BE156: 1146.140226 | BF156: 1126.189947 | BG156: 297.306175 | BH156: 71.041397 | BI156: 77.138912 | BJ156: 44.178384 | BK156: 29.869795 | BL156: 0 | BM156: 79.966495 | BN156: 438.139388 | BO156: 837.954565 | BP156: 963.969307 | BQ156: 823.278041 | BR156: 140.9883 | BS156: 46.777854 | BT156: 6.5258 | BU156: 971.885453 | BV156: 1184.082633 | BW156: 947.807927 | BX156: 67.468317
B157: No facility, bush | C157: 37.08842128 | D157: 26.21033863 | E157: 15.59921066 | F157: 10.12907915 | G157: 1.83650624 | H157: 16.28565248 | I157: 3.331527474 | J157: 0 | K157: 0 | L157: 0 | M157: 37.58470107 | N157: 28.83523373 | O157: 20.08829842 | P157: 13.10852136 | Q157: 7.902026595 | R157: 37.7370853 | S157: 33.72279005 | T157: 27.4775583 | U157: 16.64713735 | V157: 19.70373142 | W157: 0.6199221654 | X157: 13.50236081 | BB157: No facility, bush | BC157: 2312.202282 | BD157: 1642.050004 | BE157: 982.933767 | BF157: 627.472289 | BG157: 115.003109 | BH157: 194.624907 | BI157: 40.145317 | BJ157: 0 | BK157: 0 | BL157: 0 | BM157: 1893.271233 | BN157: 1445.380042 | BO157: 1083.738647 | BP157: 623.242335 | BQ157: 399.25897 | BR157: 1284.203214 | BS157: 372.371721 | BT157: 1656.157075 | BU157: 694.288098 | BV157: 1132.66134 | BW157: 44.211909 | BX157: 495.768094
B158: OTHER | C158: 1.046114911 | D158: 1.344806078 | E158: 0.454660425 | F158: 1.008610641 | G158: 0.1214018854 | H158: 0.1517364149 | I158: 0 | J158: 0 | K158: 0 | L158: 0 | M158: 1.294688036 | N158: 1.17390025 | O158: 0.7641921047 | P158: 0.9659336094 | Q158: 0.6961719421 | R158: 1.470911942 | S158: 1.682538203 | T158: 1.868839416 | U158: 0 | V158: 0.04630056538 | W158: 0.1169623853 | X158: 1.523065591 | BB158: OTHER | BC158: 65.217909 | BD158: 84.250679 | BE158: 28.648955 | BF158: 62.481023 | BG158: 7.602258 | BH158: 1.813356 | BI158: 0 | BJ158: 0 | BK158: 0 | BL158: 0 | BM158: 65.217909 | BN158: 58.842318 | BO158: 41.227211 | BP158: 45.925143 | BQ158: 35.174887 | BR158: 50.055531 | BS158: 18.57882 | BT158: 112.640708 | BU158: 0 | BV158: 2.66157 | BW158: 8.34158 | BX158: 55.922615
BB159: Total | BC159: 6234.296856 | BD159: 6264.894275 | BE159: 6301.176312 | BF159: 6194.761433 | BG159: 6262.059256 | BH159: 1195.069754 | BI159: 1205.012335 | BJ159: 1202.696326 | BK159: 1203.817949 | BL159: 1198.725426 | BM159: 5037.34546 | BN159: 5012.548382 | BO159: 5394.875287 | BP159: 4754.482353 | BQ159: 5052.61486 | BR159: 3403.027032 | BS159: 1104.213858 | BT159: 6027.308019 | BU159: 4170.615544 | BV159: 5748.461122 | BW159: 7131.848395 | BX159: 3671.714162
A208: =A1026 -> Viet Nam
A209: =A1034 -> 2002
A210: Access to hygiene facilities
A211: by wealth quintile and sub-national region
A212: Notes:
A213: WHO/UNICEF JMP customised wealth index excludes water,
A214: sanitation and hygiene assets.
A215: Survey used for analysis: | B215: =A1025 -> DHS02
A220: Access to handwashing | C220: NATIONAL wealth index quintile | H220: URBAN wealth index quintile | M220: RURAL wealth index quintile | R220: SUB-REGIONS: | BA220: Raw numbers of respondents: | BB220: Access to handwashing | BC220: NATIONAL wealth index quintile | BH220: URBAN wealth index quintile | BM220: RURAL wealth index quintile | BR220: SUB-REGIONS:
A221: Weighted percentage (used in graphs) | C221: Poorest | D221: Poor | E221: Middle | F221: Rich | G221: Richest | H221: Poorest | I221: Poor | J221: Middle | K221: Rich | L221: Richest | M221: Poorest | N221: Poor | O221: Middle | P221: Rich | Q221: Richest | R221: Central Coast | S221: Central Highlands | T221: Mekong River Delta | U221: North Central | V221: Northern Uplands | W221: Red River Delta | X221: Southeast | BA221: Hygiene data, raw numbers (weighted) | BC221: Poorest | BD221: Poor | BE221: Middle | BF221: Rich | BG221: Richest | BH221: Poorest | BI221: Poor | BJ221: Middle | BK221: Rich | BL221: Richest | BM221: Poorest | BN221: Poor | BO221: Middle | BP221: Rich | BQ221: Richest | BR221: Central Coast | BS221: Central Highlands | BT221: Mekong River Delta | BU221: North Central | BV221: Northern Uplands | BW221: Red River Delta | BX221: Southeast
A222: Hygiene ladder | B222: Basic | C222: N/A | D222: N/A | E222: N/A | F222: N/A | G222: N/A | H222: N/A | I222: N/A | J222: N/A | K222: N/A | L222: N/A | M222: N/A | N222: N/A | O222: N/A | P222: N/A | Q222: N/A | R222: N/A | S222: N/A | T222: N/A | U222: N/A | V222: N/A | W222: N/A | X222: N/A | BA222: Hygiene ladder | BB222: Basic | BC222: N/A | BD222: N/A | BE222: N/A | BF222: N/A | BG222: N/A | BH222: N/A | BI222: N/A | BJ222: N/A | BK222: N/A | BL222: N/A | BM222: N/A | BN222: N/A | BO222: N/A | BP222: N/A | BQ222: N/A | BR222: N/A | BS222: N/A | BT222: N/A | BU222: N/A | BV222: N/A | BW222: N/A | BX222: N/A
B223: Limited | C223: N/A | D223: N/A | E223: N/A | F223: N/A | G223: N/A | H223: N/A | I223: N/A | J223: N/A | K223: N/A | L223: N/A | M223: N/A | N223: N/A | O223: N/A | P223: N/A | Q223: N/A | R223: N/A | S223: N/A | T223: N/A | U223: N/A | V223: N/A | W223: N/A | X223: N/A | BB223: Limited | BC223: N/A | BD223: N/A | BE223: N/A | BF223: N/A | BG223: N/A | BH223: N/A | BI223: N/A | BJ223: N/A | BK223: N/A | BL223: N/A | BM223: N/A | BN223: N/A | BO223: N/A | BP223: N/A | BQ223: N/A | BR223: N/A | BS223: N/A | BT223: N/A | BU223: N/A | BV223: N/A | BW223: N/A | BX223: N/A
B224: No facility | C224: N/A | D224: N/A | E224: N/A | F224: N/A | G224: N/A | H224: N/A | I224: N/A | J224: N/A | K224: N/A | L224: N/A | M224: N/A | N224: N/A | O224: N/A | P224: N/A | Q224: N/A | R224: N/A | S224: N/A | T224: N/A | U224: N/A | V224: N/A | W224: N/A | X224: N/A | BB224: No facility | BC224: N/A | BD224: N/A | BE224: N/A | BF224: N/A | BG224: N/A | BH224: N/A | BI224: N/A | BJ224: N/A | BK224: N/A | BL224: N/A | BM224: N/A | BN224: N/A | BO224: N/A | BP224: N/A | BQ224: N/A | BR224: N/A | BS224: N/A | BT224: N/A | BU224: N/A | BV224: N/A | BW224: N/A | BX224: N/A
BA225: Observed handwashing place | BB225: Fixed | BC225: N/A | BD225: N/A | BE225: N/A | BF225: N/A | BG225: N/A | BH225: N/A | BI225: N/A | BJ225: N/A | BK225: N/A | BL225: N/A | BM225: N/A | BN225: N/A | BO225: N/A | BP225: N/A | BQ225: N/A | BR225: N/A | BS225: N/A | BT225: N/A | BU225: N/A | BV225: N/A | BW225: N/A | BX225: N/A
BB226: Mobile | BC226: N/A | BD226: N/A | BE226: N/A | BF226: N/A | BG226: N/A | BH226: N/A | BI226: N/A | BJ226: N/A | BK226: N/A | BL226: N/A | BM226: N/A | BN226: N/A | BO226: N/A | BP226: N/A | BQ226: N/A | BR226: N/A | BS226: N/A | BT226: N/A | BU226: N/A | BV226: N/A | BW226: N/A | BX226: N/A
BA227: Water / Soap | BB227: Water and soap | BC227: N/A | BD227: N/A | BE227: N/A | BF227: N/A | BG227: N/A | BH227: N/A | BI227: N/A | BJ227: N/A | BK227: N/A | BL227: N/A | BM227: N/A | BN227: N/A | BO227: N/A | BP227: N/A | BQ227: N/A | BR227: N/A | BS227: N/A | BT227: N/A | BU227: N/A | BV227: N/A | BW227: N/A | BX227: N/A
BB228: Water only | BC228: N/A | BD228: N/A | BE228: N/A | BF228: N/A | BG228: N/A | BH228: N/A | BI228: N/A | BJ228: N/A | BK228: N/A | BL228: N/A | BM228: N/A | BN228: N/A | BO228: N/A | BP228: N/A | BQ228: N/A | BR228: N/A | BS228: N/A | BT228: N/A | BU228: N/A | BV228: N/A | BW228: N/A | BX228: N/A
BB229: Soap only | BC229: N/A | BD229: N/A | BE229: N/A | BF229: N/A | BG229: N/A | BH229: N/A | BI229: N/A | BJ229: N/A | BK229: N/A | BL229: N/A | BM229: N/A | BN229: N/A | BO229: N/A | BP229: N/A | BQ229: N/A | BR229: N/A | BS229: N/A | BT229: N/A | BU229: N/A | BV229: N/A | BW229: N/A | BX229: N/A
BB230: Neither | BC230: N/A | BD230: N/A | BE230: N/A | BF230: N/A | BG230: N/A | BH230: N/A | BI230: N/A | BJ230: N/A | BK230: N/A | BL230: N/A | BM230: N/A | BN230: N/A | BO230: N/A | BP230: N/A | BQ230: N/A | BR230: N/A | BS230: N/A | BT230: N/A | BU230: N/A | BV230: N/A | BW230: N/A | BX230: N/A
BA259: Raw numbers of respondents: | BB259: Menstrual health and hygiene | BC259: NATIONAL wealth index quintile | BH259: URBAN wealth index quintile | BM259: RURAL wealth index quintile | BR259: SUB-REGIONS:
BA260: MHH data, raw numbers (weighted) | BC260: Poorest | BD260: Poor | BE260: Middle | BF260: Rich | BG260: Richest | BH260: Poorest | BI260: Poor | BJ260: Middle | BK260: Rich | BL260: Richest | BM260: Poorest | BN260: Poor | BO260: Middle | BP260: Rich | BQ260: Richest | BR260: Central Coast | BS260: Central Highlands | BT260: Mekong River Delta | BU260: North Central | BV260: Northern Uplands | BW260: Red River Delta | BX260: Southeast
BA261: Private place to wash and change | BB261: Yes | BC261: N/A | BD261: N/A | BE261: N/A | BF261: N/A | BG261: N/A | BH261: N/A | BI261: N/A | BJ261: N/A | BK261: N/A | BL261: N/A | BM261: N/A | BN261: N/A | BO261: N/A | BP261: N/A | BQ261: N/A | BR261: N/A | BS261: N/A | BT261: N/A | BU261: N/A | BV261: N/A | BW261: N/A | BX261: N/A
BB262: No | BC262: N/A | BD262: N/A | BE262: N/A | BF262: N/A | BG262: N/A | BH262: N/A | BI262: N/A | BJ262: N/A | BK262: N/A | BL262: N/A | BM262: N/A | BN262: N/A | BO262: N/A | BP262: N/A | BQ262: N/A | BR262: N/A | BS262: N/A | BT262: N/A | BU262: N/A | BV262: N/A | BW262: N/A | BX262: N/A
BB263: DK/not sure/missing | BC263: N/A | BD263: N/A | BE263: N/A | BF263: N/A | BG263: N/A | BH263: N/A | BI263: N/A | BJ263: N/A | BK263: N/A | BL263: N/A | BM263: N/A | BN263: N/A | BO263: N/A | BP263: N/A | BQ263: N/A | BR263: N/A | BS263: N/A | BT263: N/A | BU263: N/A | BV263: N/A | BW263: N/A | BX263: N/A
BA264: Use of menstrual materials | BB264: Materials reusable | BC264: N/A | BD264: N/A | BE264: N/A | BF264: N/A | BG264: N/A | BH264: N/A | BI264: N/A | BJ264: N/A | BK264: N/A | BL264: N/A | BM264: N/A | BN264: N/A | BO264: N/A | BP264: N/A | BQ264: N/A | BR264: N/A | BS264: N/A | BT264: N/A | BU264: N/A | BV264: N/A | BW264: N/A | BX264: N/A
BB265: Materials not reusable | BC265: N/A | BD265: N/A | BE265: N/A | BF265: N/A | BG265: N/A | BH265: N/A | BI265: N/A | BJ265: N/A | BK265: N/A | BL265: N/A | BM265: N/A | BN265: N/A | BO265: N/A | BP265: N/A | BQ265: N/A | BR265: N/A | BS265: N/A | BT265: N/A | BU265: N/A | BV265: N/A | BW265: N/A | BX265: N/A
BB266: No materials used | BC266: N/A | BD266: N/A | BE266: N/A | BF266: N/A | BG266: N/A | BH266: N/A | BI266: N/A | BJ266: N/A | BK266: N/A | BL266: N/A | BM266: N/A | BN266: N/A | BO266: N/A | BP266: N/A | BQ266: N/A | BR266: N/A | BS266: N/A | BT266: N/A | BU266: N/A | BV266: N/A | BW266: N/A | BX266: N/A
BB267: DK/not sure/missing | BC267: N/A | BD267: N/A | BE267: N/A | BF267: N/A | BG267: N/A | BH267: N/A | BI267: N/A | BJ267: N/A | BK267: N/A | BL267: N/A | BM267: N/A | BN267: N/A | BO267: N/A | BP267: N/A | BQ267: N/A | BR267: N/A | BS267: N/A | BT267: N/A | BU267: N/A | BV267: N/A | BW267: N/A | BX267: N/A
BA268: Use of menstrual materials with private place to wash and change | BB268: Materials reusable | BC268: N/A | BD268: N/A | BE268: N/A | BF268: N/A | BG268: N/A | BH268: N/A | BI268: N/A | BJ268: N/A | BK268: N/A | BL268: N/A | BM268: N/A | BN268: N/A | BO268: N/A | BP268: N/A | BQ268: N/A | BR268: N/A | BS268: N/A | BT268: N/A | BU268: N/A | BV268: N/A | BW268: N/A | BX268: N/A
BB269: Materials not reusable | BC269: N/A | BD269: N/A | BE269: N/A | BF269: N/A | BG269: N/A | BH269: N/A | BI269: N/A | BJ269: N/A | BK269: N/A | BL269: N/A | BM269: N/A | BN269: N/A | BO269: N/A | BP269: N/A | BQ269: N/A | BR269: N/A | BS269: N/A | BT269: N/A | BU269: N/A | BV269: N/A | BW269: N/A | BX269: N/A
BB270: No materials used | BC270: N/A | BD270: N/A | BE270: N/A | BF270: N/A | BG270: N/A | BH270: N/A | BI270: N/A | BJ270: N/A | BK270: N/A | BL270: N/A | BM270: N/A | BN270: N/A | BO270: N/A | BP270: N/A | BQ270: N/A | BR270: N/A | BS270: N/A | BT270: N/A | BU270: N/A | BV270: N/A | BW270: N/A | BX270: N/A
BA271: Awareness of menstruation before menarche | BB271: Yes | BC271: N/A | BD271: N/A | BE271: N/A | BF271: N/A | BG271: N/A | BH271: N/A | BI271: N/A | BJ271: N/A | BK271: N/A | BL271: N/A | BM271: N/A | BN271: N/A | BO271: N/A | BP271: N/A | BQ271: N/A | BR271: N/A | BS271: N/A | BT271: N/A | BU271: N/A | BV271: N/A | BW271: N/A | BX271: N/A
BB272: No | BC272: N/A | BD272: N/A | BE272: N/A | BF272: N/A | BG272: N/A | BH272: N/A | BI272: N/A | BJ272: N/A | BK272: N/A | BL272: N/A | BM272: N/A | BN272: N/A | BO272: N/A | BP272: N/A | BQ272: N/A | BR272: N/A | BS272: N/A | BT272: N/A | BU272: N/A | BV272: N/A | BW272: N/A | BX272: N/A
BB273: DK/not sure/missing | BC273: N/A | BD273: N/A | BE273: N/A | BF273: N/A | BG273: N/A | BH273: N/A | BI273: N/A | BJ273: N/A | BK273: N/A | BL273: N/A | BM273: N/A | BN273: N/A | BO273: N/A | BP273: N/A | BQ273: N/A | BR273: N/A | BS273: N/A | BT273: N/A | BU273: N/A | BV273: N/A | BW273: N/A | BX273: N/A
BA274: Participation in (all) activities during menstruation | BB274: Yes | BC274: N/A | BD274: N/A | BE274: N/A | BF274: N/A | BG274: N/A | BH274: N/A | BI274: N/A | BJ274: N/A | BK274: N/A | BL274: N/A | BM274: N/A | BN274: N/A | BO274: N/A | BP274: N/A | BQ274: N/A | BR274: N/A | BS274: N/A | BT274: N/A | BU274: N/A | BV274: N/A | BW274: N/A | BX274: N/A
BB275: No | BC275: N/A | BD275: N/A | BE275: N/A | BF275: N/A | BG275: N/A | BH275: N/A | BI275: N/A | BJ275: N/A | BK275: N/A | BL275: N/A | BM275: N/A | BN275: N/A | BO275: N/A | BP275: N/A | BQ275: N/A | BR275: N/A | BS275: N/A | BT275: N/A | BU275: N/A | BV275: N/A | BW275: N/A | BX275: N/A
BB276: DK/not sure/missing/no such activity | BC276: N/A | BD276: N/A | BE276: N/A | BF276: N/A | BG276: N/A | BH276: N/A | BI276: N/A | BJ276: N/A | BK276: N/A | BL276: N/A | BM276: N/A | BN276: N/A | BO276: N/A | BP276: N/A | BQ276: N/A | BR276: N/A | BS276: N/A | BT276: N/A | BU276: N/A | BV276: N/A | BW276: N/A | BX276: N/A
BA277: Participation in specific activities during menstruation | BB277: Did not go to school (amongst those usually attending school) | BC277: N/A | BD277: N/A | BE277: N/A | BF277: N/A | BG277: N/A | BH277: N/A | BI277: N/A | BJ277: N/A | BK277: N/A | BL277: N/A | BM277: N/A | BN277: N/A | BO277: N/A | BP277: N/A | BQ277: N/A | BR277: N/A | BS277: N/A | BT277: N/A | BU277: N/A | BV277: N/A | BW277: N/A | BX277: N/A
BB278: Did not go to work (amongst those who usually work) | BC278: N/A | BD278: N/A | BE278: N/A | BF278: N/A | BG278: N/A | BH278: N/A | BI278: N/A | BJ278: N/A | BK278: N/A | BL278: N/A | BM278: N/A | BN278: N/A | BO278: N/A | BP278: N/A | BQ278: N/A | BR278: N/A | BS278: N/A | BT278: N/A | BU278: N/A | BV278: N/A | BW278: N/A | BX278: N/A
BB279: Did not participate in social activities | BC279: N/A | BD279: N/A | BE279: N/A | BF279: N/A | BG279: N/A | BH279: N/A | BI279: N/A | BJ279: N/A | BK279: N/A | BL279: N/A | BM279: N/A | BN279: N/A | BO279: N/A | BP279: N/A | BQ279: N/A | BR279: N/A | BS279: N/A | BT279: N/A | BU279: N/A | BV279: N/A | BW279: N/A | BX279: N/A
BB280: Did not cook food | BC280: N/A | BD280: N/A | BE280: N/A | BF280: N/A | BG280: N/A | BH280: N/A | BI280: N/A | BJ280: N/A | BK280: N/A | BL280: N/A | BM280: N/A | BN280: N/A | BO280: N/A | BP280: N/A | BQ280: N/A | BR280: N/A | BS280: N/A | BT280: N/A | BU280: N/A | BV280: N/A | BW280: N/A | BX280: N/A
BB281: Did not eat with others | BC281: N/A | BD281: N/A | BE281: N/A | BF281: N/A | BG281: N/A | BH281: N/A | BI281: N/A | BJ281: N/A | BK281: N/A | BL281: N/A | BM281: N/A | BN281: N/A | BO281: N/A | BP281: N/A | BQ281: N/A | BR281: N/A | BS281: N/A | BT281: N/A | BU281: N/A | BV281: N/A | BW281: N/A | BX281: N/A
BB282: Did not bathe in regular place | BC282: N/A | BD282: N/A | BE282: N/A | BF282: N/A | BG282: N/A | BH282: N/A | BI282: N/A | BJ282: N/A | BK282: N/A | BL282: N/A | BM282: N/A | BN282: N/A | BO282: N/A | BP282: N/A | BQ282: N/A | BR282: N/A | BS282: N/A | BT282: N/A | BU282: N/A | BV282: N/A | BW282: N/A | BX282: N/A
BB283: Did not participate in other activities | BC283: N/A | BD283: N/A | BE283: N/A | BF283: N/A | BG283: N/A | BH283: N/A | BI283: N/A | BJ283: N/A | BK283: N/A | BL283: N/A | BM283: N/A | BN283: N/A | BO283: N/A | BP283: N/A | BQ283: N/A | BR283: N/A | BS283: N/A | BT283: N/A | BU283: N/A | BV283: N/A | BW283: N/A | BX283: N/A
BB284: DK/not sure/missing/no such activity | BC284: N/A | BD284: N/A | BE284: N/A | BF284: N/A | BG284: N/A | BH284: N/A | BI284: N/A | BJ284: N/A | BK284: N/A | BL284: N/A | BM284: N/A | BN284: N/A | BO284: N/A | BP284: N/A | BQ284: N/A | BR284: N/A | BS284: N/A | BT284: N/A | BU284: N/A | BV284: N/A | BW284: N/A | BX284: N/A
BA339: Raw numbers of respondents: | BB339: Basic water, sanitation and hygiene | BC339: NATIONAL wealth index quintile | BH339: URBAN wealth index quintile | BM339: RURAL wealth index quintile | BR339: SUB-REGIONS:
BA340: WatSan data, raw numbers (weighted) | BC340: Poorest | BD340: Poor | BE340: Middle | BF340: Rich | BG340: Richest | BH340: Poorest | BI340: Poor | BJ340: Middle | BK340: Rich | BL340: Richest | BM340: Poorest | BN340: Poor | BO340: Middle | BP340: Rich | BQ340: Richest | BR340: Central Coast | BS340: Central Highlands | BT340: Mekong River Delta | BU340: North Central | BV340: Northern Uplands | BW340: Red River Delta | BX340: Southeast
BA341: Use of Basic Water Sanitation and Hygiene | BB341: Yes | BC341: N/A | BD341: N/A | BE341: N/A | BF341: N/A | BG341: N/A | BH341: N/A | BI341: N/A | BJ341: N/A | BK341: N/A | BL341: N/A | BM341: N/A | BN341: N/A | BO341: N/A | BP341: N/A | BQ341: N/A | BR341: N/A | BS341: N/A | BT341: N/A | BU341: N/A | BV341: N/A | BW341: N/A | BX341: N/A
BB342: No | BC342: N/A | BD342: N/A | BE342: N/A | BF342: N/A | BG342: N/A | BH342: N/A | BI342: N/A | BJ342: N/A | BK342: N/A | BL342: N/A | BM342: N/A | BN342: N/A | BO342: N/A | BP342: N/A | BQ342: N/A | BR342: N/A | BS342: N/A | BT342: N/A | BU342: N/A | BV342: N/A | BW342: N/A | BX342: N/A
BA343: Use of Basic Water and Sanitation | BB343: Yes | BC343: N/A | BD343: N/A | BE343: N/A | BF343: N/A | BG343: N/A | BH343: N/A | BI343: N/A | BJ343: N/A | BK343: N/A | BL343: N/A | BM343: N/A | BN343: N/A | BO343: N/A | BP343: N/A | BQ343: N/A | BR343: N/A | BS343: N/A | BT343: N/A | BU343: N/A | BV343: N/A | BW343: N/A | BX343: N/A
BB344: No | BC344: N/A | BD344: N/A | BE344: N/A | BF344: N/A | BG344: N/A | BH344: N/A | BI344: N/A | BJ344: N/A | BK344: N/A | BL344: N/A | BM344: N/A | BN344: N/A | BO344: N/A | BP344: N/A | BQ344: N/A | BR344: N/A | BS344: N/A | BT344: N/A | BU344: N/A | BV344: N/A | BW344: N/A | BX344: N/A
BA345: Use of Basic Water and Hygiene | BB345: Yes | BC345: N/A | BD345: N/A | BE345: N/A | BF345: N/A | BG345: N/A | BH345: N/A | BI345: N/A | BJ345: N/A | BK345: N/A | BL345: N/A | BM345: N/A | BN345: N/A | BO345: N/A | BP345: N/A | BQ345: N/A | BR345: N/A | BS345: N/A | BT345: N/A | BU345: N/A | BV345: N/A | BW345: N/A | BX345: N/A
BB346: No | BC346: N/A | BD346: N/A | BE346: N/A | BF346: N/A | BG346: N/A | BH346: N/A | BI346: N/A | BJ346: N/A | BK346: N/A | BL346: N/A | BM346: N/A | BN346: N/A | BO346: N/A | BP346: N/A | BQ346: N/A | BR346: N/A | BS346: N/A | BT346: N/A | BU346: N/A | BV346: N/A | BW346: N/A | BX346: N/A
BA347: Use of Basic Sanitation and Hygiene | BB347: Yes | BC347: N/A | BD347: N/A | BE347: N/A | BF347: N/A | BG347: N/A | BH347: N/A | BI347: N/A | BJ347: N/A | BK347: N/A | BL347: N/A | BM347: N/A | BN347: N/A | BO347: N/A | BP347: N/A | BQ347: N/A | BR347: N/A | BS347: N/A | BT347: N/A | BU347: N/A | BV347: N/A | BW347: N/A | BX347: N/A
BB348: No | BC348: N/A | BD348: N/A | BE348: N/A | BF348: N/A | BG348: N/A | BH348: N/A | BI348: N/A | BJ348: N/A | BK348: N/A | BL348: N/A | BM348: N/A | BN348: N/A | BO348: N/A | BP348: N/A | BQ348: N/A | BR348: N/A | BS348: N/A | BT348: N/A | BU348: N/A | BV348: N/A | BW348: N/A | BX348: N/A
BA349: Use of Basic Water | BB349: Yes | BC349: N/A | BD349: N/A | BE349: N/A | BF349: N/A | BG349: N/A | BH349: N/A | BI349: N/A | BJ349: N/A | BK349: N/A | BL349: N/A | BM349: N/A | BN349: N/A | BO349: N/A | BP349: N/A | BQ349: N/A | BR349: N/A | BS349: N/A | BT349: N/A | BU349: N/A | BV349: N/A | BW349: N/A | BX349: N/A
BB350: No | BC350: N/A | BD350: N/A | BE350: N/A | BF350: N/A | BG350: N/A | BH350: N/A | BI350: N/A | BJ350: N/A | BK350: N/A | BL350: N/A | BM350: N/A | BN350: N/A | BO350: N/A | BP350: N/A | BQ350: N/A | BR350: N/A | BS350: N/A | BT350: N/A | BU350: N/A | BV350: N/A | BW350: N/A | BX350: N/A
BA351: Use of Basic Sanitation | BB351: Yes | BC351: N/A | BD351: N/A | BE351: N/A | BF351: N/A | BG351: N/A | BH351: N/A | BI351: N/A | BJ351: N/A | BK351: N/A | BL351: N/A | BM351: N/A | BN351: N/A | BO351: N/A | BP351: N/A | BQ351: N/A | BR351: N/A | BS351: N/A | BT351: N/A | BU351: N/A | BV351: N/A | BW351: N/A | BX351: N/A
BB352: No | BC352: N/A | BD352: N/A | BE352: N/A | BF352: N/A | BG352: N/A | BH352: N/A | BI352: N/A | BJ352: N/A | BK352: N/A | BL352: N/A | BM352: N/A | BN352: N/A | BO352: N/A | BP352: N/A | BQ352: N/A | BR352: N/A | BS352: N/A | BT352: N/A | BU352: N/A | BV352: N/A | BW352: N/A | BX352: N/A
BA353: Access to Basic Hygiene | BB353: Yes | BC353: N/A | BD353: N/A | BE353: N/A | BF353: N/A | BG353: N/A | BH353: N/A | BI353: N/A | BJ353: N/A | BK353: N/A | BL353: N/A | BM353: N/A | BN353: N/A | BO353: N/A | BP353: N/A | BQ353: N/A | BR353: N/A | BS353: N/A | BT353: N/A | BU353: N/A | BV353: N/A | BW353: N/A | BX353: N/A
BB354: No | BC354: N/A | BD354: N/A | BE354: N/A | BF354: N/A | BG354: N/A | BH354: N/A | BI354: N/A | BJ354: N/A | BK354: N/A | BL354: N/A | BM354: N/A | BN354: N/A | BO354: N/A | BP354: N/A | BQ354: N/A | BR354: N/A | BS354: N/A | BT354: N/A | BU354: N/A | BV354: N/A | BW354: N/A | BX354: N/A
C399: INITIAL (national) Wealth Index | H399: URBAN Wealth Index | M399: RURAL Wealth Index
C400: Component Matrix | H400: Component Matrix | M400: Component Matrix
E401: Component | J401: Component | O401: Component
B402: Note: The INITIAL (national) Wealth Index is based on the first component of the Principal Component Analysis (PCA) which has been obtained at national level. The final national-level (NATIONAL) Wealth Index is based on the URBAN and RURAL specific wealth indexes. Regression procedures are used to establish the relationships between the two sets of scores (urban and rural) and the initial (national) wealth factors. This allows best use of the available information for each area and a better precision of the FINAL (NATIONAL) Wealth Index. For dependency reasons, all WASH variables (contained in the generic MICS and DHS scripts) have been excluded from the sets of asset variables used in the PCAs. The PCA can extracts as many components as there are asset variables in the input. Only the first of the components is used to represent the Wealth Index. The scores represent the weights of the asset variables on the Wealth Index (correlations between the variables and the component). The communalities are the proportion of each variable's variance that can be explained by the component. Proportion of explained variance is the part of the model's total variance that is explained by the component. For more information on the procedure used: The DHS Wealth Index, DHS Comparative Reports No. 6, Shea Oscar Rutstein, Kiersten Johnson, ORC Macro International Inc., 2004. The DHS Wealth Index: Approaches for Rural and Urban Areas, Shea O. Rutstein, ORC Macro International Inc., 2008. MICS Methodological Paper No. 4, Review of options for reporting water, sanitation and hygiene coverage by wealth quintile, UNICEF, 2016. | E402: 1 | J402: 1 | O402: 1
C403: if has finished principal floor | E403: 0.7287889728 | H403: Has telephone | J403: 0.7196137925 | M403: if has finished principal floor | O403: 0.7810838228
C404: Has telephone | E404: 0.698090107 | H404: Has refrigerator | J404: 0.693059323 | M404: if has dirt, sand, dung as principal floor in dwelling | O404: -0.6689518288
C405: Has refrigerator | E405: 0.6626876251 | H405: Has motorcycle | J405: 0.6160062068 | M405: if has natural material roofing | O405: -0.5864910972
C406: if has dirt, sand, dung as principal floor in dwelling | E406: -0.6318247735 | H406: if has finished principal floor | J406: 0.6036544752 | M406: Has television | O406: 0.5570473916
C407: Has motorcycle | E407: 0.624585593 | H407: if has dirt, sand, dung as principal floor in dwelling | J407: -0.5947283841 | M407: Has electricity | O407: 0.5551430011
C408: Has television | E408: 0.5862531654 | H408: Has washing machine | J408: 0.5390512264 | M408: Has motorcycle | O408: 0.5298126628
C409: if has natural material roofing | E409: -0.509052692 | H409: Has television | J409: 0.5346566176 | M409: Has telephone | O409: 0.5135930071
C410: Has washing machine | E410: 0.5024386218 | H410: if roof from cement | J410: 0.5200701874 | M410: Has refrigerator | O410: 0.4756997479
C411: if roof from cement | E411: 0.4986540507 | H411: if has natural material roofing | J411: -0.4446831564 | M411: Has bicycle | O411: 0.4609478436
C412: Has electricity | E412: 0.4959273904 | H412: Has radio | J412: 0.4321145314 | M412: Number of members per sleeping room | O412: -0.3661086164
C413: Number of members per sleeping room | E413: -0.3741859854 | H413: if has tiles/fibro/asbestos for roof | J413: -0.3162908892 | M413: if roof from cement | O413: 0.3490354858
C414: Has radio | E414: 0.3276791267 | H414: Number of members per sleeping room | J414: -0.314391091 | M414: Has washing machine | O414: 0.3098876378
C415: Has sewing machine | E415: 0.2976834607 | H415: Has sewing machine | J415: 0.2889427964 | M415: if has rough wood/bamboo principal floor in dwelling | O415: -0.2769587681
C416: Has bicycle | E416: 0.2921410512 | H416: Has electricity | J416: 0.2559897003 | M416: Has radio | O416: 0.2413500132
C417: if has rough wood/bamboo principal floor in dwelling | E417: -0.2728227722 | H417: Has car | J417: 0.1803427731 | M417: Has Boat | O417: -0.2002027393
C418: Has Boat | E418: -0.2169445764 | H418: if roof from galvanized iron/alu | J418: -0.105044328 | M418: Has sewing machine | O418: 0.1861047175
C419: Has car | E419: 0.187813861 | H419: Has Boat | J419: -0.09389649307 | M419: Has car | O419: 0.1724002946
C420: if has tiles/fibro/asbestos for roof | E420: -0.1724901287 | H420: if has rough wood/bamboo principal floor in dwelling | J420: -0.09348188552 | M420: if has tiles/fibro/asbestos for roof | O420: 0.1276665599
C421: if roof from galvanized iron/alu | E421: 0.1469431893 | H421: Has ploughing machine | J421: 0.02312898549 | M421: if roof from galvanized iron/alu | O421: 0.09094166655
C422: Has ploughing machine | E422: -0.03424424132 | H422: Has motor scooter | J422: -0.01718352498 | M422: Has motor scooter | O422: 0.07011386822
... 113 more rows

Sheet WHS03
A2: =A1026 -> Viet Nam
A3: =A1034 -> 2003
A4: Use of drinking water sources
A5: by wealth quintile and sub-national region
A6: Notes:
A7: WHO/UNICEF JMP customised wealth index excludes water,
A8: sanitation and hygiene assets.
A9: Survey used for analysis: | B9: =A1025 -> WHS03
A10: =B1028 -> 
A11: =B1027 -> 
A14: Use of drinking water sources | C14: NATIONAL wealth index quintile | H14: URBAN wealth index quintile | M14: RURAL wealth index quintile | BA14: Raw numbers of respondents: | BB14: Use of drinking water sources | BC14: NATIONAL wealth index quintile | BH14: URBAN wealth index quintile | BM14: RURAL wealth index quintile
A15: Weighted percentage (used in graphs) | C15: Poorest | D15: Poor | E15: Middle | F15: Rich | G15: Richest | H15: Poorest | I15: Poor | J15: Middle | K15: Rich | L15: Richest | M15: Poorest | N15: Poor | O15: Middle | P15: Rich | Q15: Richest | BA15: Water data, raw numbers (weighted) | BC15: Poorest | BD15: Poor | BE15: Middle | BF15: Rich | BG15: Richest | BH15: Poorest | BI15: Poor | BJ15: Middle | BK15: Rich | BL15: Richest | BM15: Poorest | BN15: Poor | BO15: Middle | BP15: Rich | BQ15: Richest
A16: Water | B16: Improved | C16: =C58+C59+C60+C61+C63+C65 -> 84.33484498 | D16: 93.216681 | E16: 94.67381005 | F16: 96.40338123 | G16: 98.85762006 | H16: 95.39061407 | I16: 96.63627721 | J16: 99.62523812 | K16: 99.65070663 | L16: 100 | M16: 83.95391872 | N16: 90.76348358 | O16: 95.9261703 | P16: 94.16220888 | Q16: 97.69575827 | BA16: Water | BB16: Improved | BC16: N/A | BD16: N/A | BE16: N/A | BF16: N/A | BG16: N/A | BH16: N/A | BI16: N/A | BJ16: N/A | BK16: N/A | BL16: N/A | BM16: N/A | BN16: N/A | BO16: N/A | BP16: N/A | BQ16: N/A
B17: Not Improved | C17: 15.66515502 | D17: 6.783319004 | E17: 5.326189945 | F17: 3.596618771 | G17: 1.142379942 | H17: 4.609385935 | I17: 3.363722787 | J17: 0.3747618758 | K17: 0.3492933726 | L17: 0 | M17: 16.04608128 | N17: 9.236516418 | O17: 4.073829698 | P17: 5.837791119 | Q17: 2.304241731 | BB17: Not Improved | BC17: N/A | BD17: N/A | BE17: N/A | BF17: N/A | BG17: N/A | BH17: N/A | BI17: N/A | BJ17: N/A | BK17: N/A | BL17: N/A | BM17: N/A | BN17: N/A | BO17: N/A | BP17: N/A | BQ17: N/A
A18: Water ladder | B18: Basic | C18: =C16*C23/100 -> 83.95170659 | D18: =D16*D23/100 -> 92.96446451 | E18: =E16*E23/100 -> 94.67381005 | F18: 96.40338123 | G18: 98.71743988 | H18: 95.39061407 | I18: 96.63627721 | J18: 99.62523812 | K18: 99.65070663 | L18: 98.30020365 | M18: 83.49158151 | N18: 90.45775713 | O18: 95.9261703 | P18: 94.16220888 | Q18: 97.69575827 | BA18: Water ladder | BB18: Basic | BC18: N/A | BD18: N/A | BE18: N/A | BF18: N/A | BG18: N/A | BH18: N/A | BI18: N/A | BJ18: N/A | BK18: N/A | BL18: N/A | BM18: N/A | BN18: N/A | BO18: N/A | BP18: N/A | BQ18: N/A
B19: Limited | C19: =C16*C22/100 -> 0.3831383879 | D19: =D16*D22/100 -> 0.2522164848 | E19: =E16*E22/100 -> 0 | F19: 0 | G19: 0.1401801793 | H19: 0 | I19: 0 | J19: 0 | K19: 0 | L19: 1.699796346 | M19: 0.4623372102 | N19: 0.3057264539 | O19: 0 | P19: 0 | Q19: 0 | BB19: Limited | BC19: N/A | BD19: N/A | BE19: N/A | BF19: N/A | BG19: N/A | BH19: N/A | BI19: N/A | BJ19: N/A | BK19: N/A | BL19: N/A | BM19: N/A | BN19: N/A | BO19: N/A | BP19: N/A | BQ19: N/A
B20: Unimproved | C20: =100-C18-C19-C21 -> 12.31540306 | D20: =100-D18-D19-D21 -> 6.289673908 | E20: =100-E18-E19-E21 -> 5.17747308 | F20: 3.46762051 | G20: 1.010426058 | H20: 2.85736696 | I20: 2.558912342 | J20: 0.3747618758 | K20: -0.7408952697 | L20: 2.664535259e-15 | M20: 12.3076671 | N20: 8.660390343 | O20: 4.073829698 | P20: 5.644256395 | Q20: 2.304241731 | BB20: Unimproved | BC20: N/A | BD20: N/A | BE20: N/A | BF20: N/A | BG20: N/A | BH20: N/A | BI20: N/A | BJ20: N/A | BK20: N/A | BL20: N/A | BM20: N/A | BN20: N/A | BO20: N/A | BP20: N/A | BQ20: N/A
B21: Surface water | C21: 3.349751961 | D21: 0.4936450967 | E21: 0.1487168653 | F21: 0.1289982614 | G21: 0.1319538845 | H21: 1.752018974 | I21: 0.8048104446 | J21: 0 | K21: 1.090188642 | L21: 0 | M21: 3.738414173 | N21: 0.5761260745 | O21: 0 | P21: 0.1935347239 | Q21: 0 | BB21: Surface water | BC21: N/A | BD21: N/A | BE21: N/A | BF21: N/A | BG21: N/A | BH21: N/A | BI21: N/A | BJ21: N/A | BK21: N/A | BL21: N/A | BM21: N/A | BN21: N/A | BO21: N/A | BP21: N/A | BQ21: N/A
A22: Improved water point at more than 30 minutes | B22: Yes | C22: 0.4543061506 | D22: 0.2705701191 | E22: 0 | F22: 0 | G22: 0.1418000749 | H22: 0 | I22: 0 | J22: 0 | K22: 0 | L22: 1.699796346 | M22: 0.5507035494 | N22: 0.3368386071 | O22: 0 | P22: 0 | Q22: 0 | BA22: Improved water point at more than 30 minutes | BB22: Yes | BC22: N/A | BD22: N/A | BE22: N/A | BF22: N/A | BG22: N/A | BH22: N/A | BI22: N/A | BJ22: N/A | BK22: N/A | BL22: N/A | BM22: N/A | BN22: N/A | BO22: N/A | BP22: N/A | BQ22: N/A
B23: No | C23: 99.54569385 | D23: 99.72942988 | E23: 100 | F23: 100 | G23: 99.85819993 | H23: 100 | I23: 100 | J23: 100 | K23: 100 | L23: 98.30020365 | M23: 99.44929645 | N23: 99.66316139 | O23: 100 | P23: 100 | Q23: 100 | BB23: No | BC23: N/A | BD23: N/A | BE23: N/A | BF23: N/A | BG23: N/A | BH23: N/A | BI23: N/A | BJ23: N/A | BK23: N/A | BL23: N/A | BM23: N/A | BN23: N/A | BO23: N/A | BP23: N/A | BQ23: N/A
A24: Manually calculated ratios | B24: Improved wells
B25: Improved springs
B26: Other
C27: NATIONAL wealth index quintile | H27: URBAN wealth index quintile | M27: RURAL wealth index quintile | BA27: Raw numbers of respondents: | BB27: Use of drinking water sources | BC27: NATIONAL wealth index quintile | BH27: URBAN wealth index quintile | BM27: RURAL wealth index quintile
A28: Percentage based on weighted population | C28: Poorest | D28: Poor | E28: Middle | F28: Rich | G28: Richest | H28: Poorest | I28: Poor | J28: Middle | K28: Rich | L28: Richest | M28: Poorest | N28: Poor | O28: Middle | P28: Rich | Q28: Richest | BA28: Water data, raw numbers (weighted) | BC28: Poorest | BD28: Poor | BE28: Middle | BF28: Rich | BG28: Richest | BH28: Poorest | BI28: Poor | BJ28: Middle | BK28: Rich | BL28: Richest | BM28: Poorest | BN28: Poor | BO28: Middle | BP28: Rich | BQ28: Richest
A29: Piped water | B29: Yes | C29: 16.16884168 | D29: 11.63908073 | E29: 12.19713193 | F29: 23.17200001 | G29: 52.44612636 | H29: 23.31081608 | I29: 30.99422989 | J29: 45.07527876 | K29: 69.99813455 | L29: 80.98125427 | M29: 16.03194107 | N29: 11.08089079 | O29: 8.529903546 | P29: 17.95537414 | Q29: 34.11048585 | BA29: Piped water | BB29: Yes | BC29: N/A | BD29: N/A | BE29: N/A | BF29: N/A | BG29: N/A | BH29: N/A | BI29: N/A | BJ29: N/A | BK29: N/A | BL29: N/A | BM29: N/A | BN29: N/A | BO29: N/A | BP29: N/A | BQ29: N/A
B30: No | C30: 83.83115832 | D30: 88.36091927 | E30: 87.80286807 | F30: 76.82799999 | G30: 47.55387364 | H30: 76.68918392 | I30: 69.00577011 | J30: 54.92472124 | K30: 30.00186545 | L30: 19.01874573 | M30: 83.96805893 | N30: 88.91910921 | O30: 91.47009645 | P30: 82.04462586 | Q30: 65.88951415 | BB30: No | BC30: N/A | BD30: N/A | BE30: N/A | BF30: N/A | BG30: N/A | BH30: N/A | BI30: N/A | BJ30: N/A | BK30: N/A | BL30: N/A | BM30: N/A | BN30: N/A | BO30: N/A | BP30: N/A | BQ30: N/A
A31: Piped water on premises | B31: Yes | C31: 10.31816412 | D31: 10.22557291 | E31: 10.69598378 | F31: 22.43988362 | G31: 51.95609544 | H31: 22.87956866 | I31: 29.83326869 | J31: 45.07527876 | K31: 67.70974981 | L31: 80.40667531 | M31: 9.27175049 | N31: 9.713430138 | O31: 6.808988358 | P31: 16.66268907 | Q31: 34.11048585 | BA31: Piped water on premises | BB31: Yes | BC31: N/A | BD31: N/A | BE31: N/A | BF31: N/A | BG31: N/A | BH31: N/A | BI31: N/A | BJ31: N/A | BK31: N/A | BL31: N/A | BM31: N/A | BN31: N/A | BO31: N/A | BP31: N/A | BQ31: N/A
B32: No | C32: 89.68183588 | D32: 89.77442709 | E32: 89.30401622 | F32: 77.56011638 | G32: 48.04390456 | H32: 77.12043134 | I32: 70.16673131 | J32: 54.92472124 | K32: 32.29025019 | L32: 19.59332469 | M32: 90.72824951 | N32: 90.28656986 | O32: 93.19101164 | P32: 83.33731093 | Q32: 65.88951415 | BB32: No | BC32: N/A | BD32: N/A | BE32: N/A | BF32: N/A | BG32: N/A | BH32: N/A | BI32: N/A | BJ32: N/A | BK32: N/A | BL32: N/A | BM32: N/A | BN32: N/A | BO32: N/A | BP32: N/A | BQ32: N/A
A33: Piped water into dwelling | B33: Yes | C33: N/A | D33: N/A | E33: N/A | F33: N/A | G33: N/A | H33: N/A | I33: N/A | J33: N/A | K33: N/A | L33: N/A | M33: N/A | N33: N/A | O33: N/A | P33: N/A | Q33: N/A | BA33: Piped water into dwelling | BB33: Yes | BC33: N/A | BD33: N/A | BE33: N/A | BF33: N/A | BG33: N/A | BH33: N/A | BI33: N/A | BJ33: N/A | BK33: N/A | BL33: N/A | BM33: N/A | BN33: N/A | BO33: N/A | BP33: N/A | BQ33: N/A
B34: No | C34: N/A | D34: N/A | E34: N/A | F34: N/A | G34: N/A | H34: N/A | I34: N/A | J34: N/A | K34: N/A | L34: N/A | M34: N/A | N34: N/A | O34: N/A | P34: N/A | Q34: N/A | BB34: No | BC34: N/A | BD34: N/A | BE34: N/A | BF34: N/A | BG34: N/A | BH34: N/A | BI34: N/A | BJ34: N/A | BK34: N/A | BL34: N/A | BM34: N/A | BN34: N/A | BO34: N/A | BP34: N/A | BQ34: N/A
A35: Water source on premises | B35: Yes | C35: N/A | D35: N/A | E35: N/A | F35: N/A | G35: N/A | H35: N/A | I35: N/A | J35: N/A | K35: N/A | L35: N/A | M35: N/A | N35: N/A | O35: N/A | P35: N/A | Q35: N/A | BA35: Water source on premises | BB35: Yes | BC35: N/A | BD35: N/A | BE35: N/A | BF35: N/A | BG35: N/A | BH35: N/A | BI35: N/A | BJ35: N/A | BK35: N/A | BL35: N/A | BM35: N/A | BN35: N/A | BO35: N/A | BP35: N/A | BQ35: N/A
B36: No | C36: N/A | D36: N/A | E36: N/A | F36: N/A | G36: N/A | H36: N/A | I36: N/A | J36: N/A | K36: N/A | L36: N/A | M36: N/A | N36: N/A | O36: N/A | P36: N/A | Q36: N/A | BB36: No | BC36: N/A | BD36: N/A | BE36: N/A | BF36: N/A | BG36: N/A | BH36: N/A | BI36: N/A | BJ36: N/A | BK36: N/A | BL36: N/A | BM36: N/A | BN36: N/A | BO36: N/A | BP36: N/A | BQ36: N/A
A37: Improved Water source on premises | B37: Yes | C37: N/A | D37: N/A | E37: N/A | F37: N/A | G37: N/A | H37: N/A | I37: N/A | J37: N/A | K37: N/A | L37: N/A | M37: N/A | N37: N/A | O37: N/A | P37: N/A | Q37: N/A | BA37: Improved water source on premises | BB37: Yes | BC37: N/A | BD37: N/A | BE37: N/A | BF37: N/A | BG37: N/A | BH37: N/A | BI37: N/A | BJ37: N/A | BK37: N/A | BL37: N/A | BM37: N/A | BN37: N/A | BO37: N/A | BP37: N/A | BQ37: N/A
B38: No | C38: N/A | D38: N/A | E38: N/A | F38: N/A | G38: N/A | H38: N/A | I38: N/A | J38: N/A | K38: N/A | L38: N/A | M38: N/A | N38: N/A | O38: N/A | P38: N/A | Q38: N/A | BB38: No | BC38: N/A | BD38: N/A | BE38: N/A | BF38: N/A | BG38: N/A | BH38: N/A | BI38: N/A | BJ38: N/A | BK38: N/A | BL38: N/A | BM38: N/A | BN38: N/A | BO38: N/A | BP38: N/A | BQ38: N/A
A39: Piped water on premises available when needed | B39: Yes | C39: N/A | D39: N/A | E39: N/A | F39: N/A | G39: N/A | H39: N/A | I39: N/A | J39: N/A | K39: N/A | L39: N/A | M39: N/A | N39: N/A | O39: N/A | P39: N/A | Q39: N/A | BA39: Piped water on premises available when needed | BB39: Yes | BC39: N/A | BD39: N/A | BE39: N/A | BF39: N/A | BG39: N/A | BH39: N/A | BI39: N/A | BJ39: N/A | BK39: N/A | BL39: N/A | BM39: N/A | BN39: N/A | BO39: N/A | BP39: N/A | BQ39: N/A
B40: No | C40: N/A | D40: N/A | E40: N/A | F40: N/A | G40: N/A | H40: N/A | I40: N/A | J40: N/A | K40: N/A | L40: N/A | M40: N/A | N40: N/A | O40: N/A | P40: N/A | Q40: N/A | BB40: No | BC40: N/A | BD40: N/A | BE40: N/A | BF40: N/A | BG40: N/A | BH40: N/A | BI40: N/A | BJ40: N/A | BK40: N/A | BL40: N/A | BM40: N/A | BN40: N/A | BO40: N/A | BP40: N/A | BQ40: N/A
A41: Water point at more than 30 minutes | B41: Yes | C41: 0.8789776787 | D41: 0.251305395 | E41: 0.2981434598 | F41: 0 | G41: 0.1385481459 | H41: 0 | I41: 0 | J41: 0 | K41: 0 | L41: 1.699796346 | M41: 1.061714757 | N41: 0.3034178998 | O41: 0.1710883036 | P41: 0.1935347239 | Q41: 0 | BA41: Water point at more than 30 minutes | BB41: Yes | BC41: N/A | BD41: N/A | BE41: N/A | BF41: N/A | BG41: N/A | BH41: N/A | BI41: N/A | BJ41: N/A | BK41: N/A | BL41: N/A | BM41: N/A | BN41: N/A | BO41: N/A | BP41: N/A | BQ41: N/A
B42: No | C42: 99.12102232 | D42: 99.7486946 | E42: 99.70185654 | F42: 100 | G42: 99.86145185 | H42: 100 | I42: 100 | J42: 100 | K42: 100 | L42: 98.30020365 | M42: 98.93828524 | N42: 99.6965821 | O42: 99.8289117 | P42: 99.80646528 | Q42: 100 | BB42: No | BC42: N/A | BD42: N/A | BE42: N/A | BF42: N/A | BG42: N/A | BH42: N/A | BI42: N/A | BJ42: N/A | BK42: N/A | BL42: N/A | BM42: N/A | BN42: N/A | BO42: N/A | BP42: N/A | BQ42: N/A
A43: Water source available when needed | B43: Yes | C43: N/A | D43: N/A | E43: N/A | F43: N/A | G43: N/A | H43: N/A | I43: N/A | J43: N/A | K43: N/A | L43: N/A | M43: N/A | N43: N/A | O43: N/A | P43: N/A | Q43: N/A | BA43: Water source available when needed | BB43: Yes | BC43: N/A | BD43: N/A | BE43: N/A | BF43: N/A | BG43: N/A | BH43: N/A | BI43: N/A | BJ43: N/A | BK43: N/A | BL43: N/A | BM43: N/A | BN43: N/A | BO43: N/A | BP43: N/A | BQ43: N/A
B44: No | C44: N/A | D44: N/A | E44: N/A | F44: N/A | G44: N/A | H44: N/A | I44: N/A | J44: N/A | K44: N/A | L44: N/A | M44: N/A | N44: N/A | O44: N/A | P44: N/A | Q44: N/A | BB44: No | BC44: N/A | BD44: N/A | BE44: N/A | BF44: N/A | BG44: N/A | BH44: N/A | BI44: N/A | BJ44: N/A | BK44: N/A | BL44: N/A | BM44: N/A | BN44: N/A | BO44: N/A | BP44: N/A | BQ44: N/A
A45: Improved water source available when needed | B45: Yes | C45: N/A | D45: N/A | E45: N/A | F45: N/A | G45: N/A | H45: N/A | I45: N/A | J45: N/A | K45: N/A | L45: N/A | M45: N/A | N45: N/A | O45: N/A | P45: N/A | Q45: N/A | BA45: Improved water source available when needed | BB45: Yes | BC45: N/A | BD45: N/A | BE45: N/A | BF45: N/A | BG45: N/A | BH45: N/A | BI45: N/A | BJ45: N/A | BK45: N/A | BL45: N/A | BM45: N/A | BN45: N/A | BO45: N/A | BP45: N/A | BQ45: N/A
B46: No | C46: N/A | D46: N/A | E46: N/A | F46: N/A | G46: N/A | H46: N/A | I46: N/A | J46: N/A | K46: N/A | L46: N/A | M46: N/A | N46: N/A | O46: N/A | P46: N/A | Q46: N/A | BB46: No | BC46: N/A | BD46: N/A | BE46: N/A | BF46: N/A | BG46: N/A | BH46: N/A | BI46: N/A | BJ46: N/A | BK46: N/A | BL46: N/A | BM46: N/A | BN46: N/A | BO46: N/A | BP46: N/A | BQ46: N/A
A47: Microbiological quality at point of collection | B47: Not contaminated (No E. coli in 100 mL) | C47: N/A | D47: N/A | E47: N/A | F47: N/A | G47: N/A | H47: N/A | I47: N/A | J47: N/A | K47: N/A | L47: N/A | M47: N/A | N47: N/A | O47: N/A | P47: N/A | Q47: N/A | BA47: Microbiological quality at point of collection | BB47: Not contaminated (No E. coli in 100 mL) | BC47: N/A | BD47: N/A | BE47: N/A | BF47: N/A | BG47: N/A | BH47: N/A | BI47: N/A | BJ47: N/A | BK47: N/A | BL47: N/A | BM47: N/A | BN47: N/A | BO47: N/A | BP47: N/A | BQ47: N/A
B48: Contaminated (E. coli detected in 100 mL) | C48: N/A | D48: N/A | E48: N/A | F48: N/A | G48: N/A | H48: N/A | I48: N/A | J48: N/A | K48: N/A | L48: N/A | M48: N/A | N48: N/A | O48: N/A | P48: N/A | Q48: N/A | BB48: Contaminated (E. coli detected in 100 mL) | BC48: N/A | BD48: N/A | BE48: N/A | BF48: N/A | BG48: N/A | BH48: N/A | BI48: N/A | BJ48: N/A | BK48: N/A | BL48: N/A | BM48: N/A | BN48: N/A | BO48: N/A | BP48: N/A | BQ48: N/A
B49: Highly contaminated (>100 CFU/100 mL) | C49: N/A | D49: N/A | E49: N/A | F49: N/A | G49: N/A | H49: N/A | I49: N/A | J49: N/A | K49: N/A | L49: N/A | M49: N/A | N49: N/A | O49: N/A | P49: N/A | Q49: N/A | BB49: Highly contaminated (>100 CFU/100 mL) | BC49: N/A | BD49: N/A | BE49: N/A | BF49: N/A | BG49: N/A | BH49: N/A | BI49: N/A | BJ49: N/A | BK49: N/A | BL49: N/A | BM49: N/A | BN49: N/A | BO49: N/A | BP49: N/A | BQ49: N/A
A50: Microbiological quality of improved water sources at point of collection | B50: Not contaminated (No E. coli in 100 mL) | C50: N/A | D50: N/A | E50: N/A | F50: N/A | G50: N/A | H50: N/A | I50: N/A | J50: N/A | K50: N/A | L50: N/A | M50: N/A | N50: N/A | O50: N/A | P50: N/A | Q50: N/A | BA50: Microbiological quality of improved water sources at point of collection | BB50: Not contaminated (No E. coli in 100 mL) | BC50: N/A | BD50: N/A | BE50: N/A | BF50: N/A | BG50: N/A | BH50: N/A | BI50: N/A | BJ50: N/A | BK50: N/A | BL50: N/A | BM50: N/A | BN50: N/A | BO50: N/A | BP50: N/A | BQ50: N/A
B51: Contaminated (E. coli detected in 100 mL) | C51: N/A | D51: N/A | E51: N/A | F51: N/A | G51: N/A | H51: N/A | I51: N/A | J51: N/A | K51: N/A | L51: N/A | M51: N/A | N51: N/A | O51: N/A | P51: N/A | Q51: N/A | BB51: Contaminated (E. coli detected in 100 mL) | BC51: N/A | BD51: N/A | BE51: N/A | BF51: N/A | BG51: N/A | BH51: N/A | BI51: N/A | BJ51: N/A | BK51: N/A | BL51: N/A | BM51: N/A | BN51: N/A | BO51: N/A | BP51: N/A | BQ51: N/A
B52: Highly contaminated (>100 CFU/100 mL) | C52: N/A | D52: N/A | E52: N/A | F52: N/A | G52: N/A | H52: N/A | I52: N/A | J52: N/A | K52: N/A | L52: N/A | M52: N/A | N52: N/A | O52: N/A | P52: N/A | Q52: N/A | BB52: Highly contaminated (>100 CFU/100 mL) | BC52: N/A | BD52: N/A | BE52: N/A | BF52: N/A | BG52: N/A | BH52: N/A | BI52: N/A | BJ52: N/A | BK52: N/A | BL52: N/A | BM52: N/A | BN52: N/A | BO52: N/A | BP52: N/A | BQ52: N/A
A53: Microbiological quality of piped on premises at point of collection | B53: Not contaminated (No E. coli in 100 mL) | C53: N/A | D53: N/A | E53: N/A | F53: N/A | G53: N/A | H53: N/A | I53: N/A | J53: N/A | K53: N/A | L53: N/A | M53: N/A | N53: N/A | O53: N/A | P53: N/A | Q53: N/A | BA53: Microbiological quality of piped on premises at point of collection | BB53: Not contaminated (No E. coli in 100 mL) | BC53: N/A | BD53: N/A | BE53: N/A | BF53: N/A | BG53: N/A | BH53: N/A | BI53: N/A | BJ53: N/A | BK53: N/A | BL53: N/A | BM53: N/A | BN53: N/A | BO53: N/A | BP53: N/A | BQ53: N/A
B54: Contaminated (E. coli detected in 100 mL) | C54: N/A | D54: N/A | E54: N/A | F54: N/A | G54: N/A | H54: N/A | I54: N/A | J54: N/A | K54: N/A | L54: N/A | M54: N/A | N54: N/A | O54: N/A | P54: N/A | Q54: N/A | BB54: Contaminated (E. coli detected in 100 mL) | BC54: N/A | BD54: N/A | BE54: N/A | BF54: N/A | BG54: N/A | BH54: N/A | BI54: N/A | BJ54: N/A | BK54: N/A | BL54: N/A | BM54: N/A | BN54: N/A | BO54: N/A | BP54: N/A | BQ54: N/A
B55: Highly contaminated (>100 CFU/100 mL) | C55: N/A | D55: N/A | E55: N/A | F55: N/A | G55: N/A | H55: N/A | I55: N/A | J55: N/A | K55: N/A | L55: N/A | M55: N/A | N55: N/A | O55: N/A | P55: N/A | Q55: N/A | BB55: Highly contaminated (>100 CFU/100 mL) | BC55: N/A | BD55: N/A | BE55: N/A | BF55: N/A | BG55: N/A | BH55: N/A | BI55: N/A | BJ55: N/A | BK55: N/A | BL55: N/A | BM55: N/A | BN55: N/A | BO55: N/A | BP55: N/A | BQ55: N/A
C56: NATIONAL wealth index quintile | H56: URBAN wealth index quintile | M56: RURAL wealth index quintile | BA56: Raw numbers of respondents: | BB56: Use of drinking water sources | BC56: NATIONAL wealth index quintile | BH56: URBAN wealth index quintile | BM56: RURAL wealth index quintile
A57: Percentage based on weighted population | C57: Poorest | D57: Poor | E57: Middle | F57: Rich | G57: Richest | H57: Poorest | I57: Poor | J57: Middle | K57: Rich | L57: Richest | M57: Poorest | N57: Poor | O57: Middle | P57: Rich | Q57: Richest | BA57: Water data, raw numbers (weighted) | BC57: Poorest | BD57: Poor | BE57: Middle | BF57: Rich | BG57: Richest | BH57: Poorest | BI57: Poor | BJ57: Middle | BK57: Rich | BL57: Richest | BM57: Poorest | BN57: Poor | BO57: Middle | BP57: Rich | BQ57: Richest
A58: main source of drinking water | B58: Piped water through house connection or yard | C58: 10.31816412 | D58: 10.22557291 | E58: 10.70780031 | F58: 22.43988362 | G58: 52.01162845 | H58: 23.02939876 | I58: 29.83326869 | J58: 45.07527876 | K58: 67.70974981 | L58: 80.40667531 | M58: 9.27175049 | N58: 9.713430138 | O58: 6.808988358 | P58: 16.66268907 | Q58: 34.15449644
B59: Public standpipe | C59: 5.850677557 | D59: 1.413507827 | E59: 1.502806565 | F59: 0.7321163903 | G59: 0.4905546887 | H59: 0.4340715129 | I59: 1.1609612 | J59: 0 | K59: 2.288384746 | L59: 0.5745789586 | M59: 6.760190583 | N59: 1.36746065 | O59: 1.720915187 | P59: 1.29268507 | Q59: 0
B60: Protected tube well or bore hole | C60: 34.08699926 | D60: 44.98350243 | E60: 40.31514159 | F60: 43.33287954 | G60: 30.95047196 | H60: 38.13655703 | I60: 42.70750149 | J60: 37.98062239 | K60: 18.65785035 | L60: 15.70087299 | M60: 35.0367977 | N60: 41.24373867 | O60: 47.60175297 | P60: 36.23319443 | Q60: 41.8836789
B61: Protected dug well or protected spring | C61: 13.73777182 | D61: 25.30380601 | E61: 30.36296136 | F61: 20.71351735 | G61: 12.83650731 | H61: 14.82696714 | I61: 21.50069121 | J61: 15.6871367 | K61: 9.992600708 | L61: 2.365717327 | M61: 12.80814844 | N61: 26.49805479 | O61: 25.81501408 | P61: 29.1784979 | Q61: 16.60101301
B62: Unprotected dug well or spring | C62: 12.66972953 | D62: 6.344543427 | E62: 5.090144166 | F62: 3.498034515 | G62: 0.9769244551 | H62: 2.562923608 | I62: 2.795538102 | J62: 0.3747618758 | K62: 0 | L62: 0 | M62: 12.69566918 | N62: 8.722498447 | O62: 4.073829698 | P62: 5.679350417 | Q62: 2.178191105
B63: Rainwater (into tank or cistern ) | C63: 5.328154663 | D63: 7.86392708 | E63: 9.412884362 | F63: 7.237999604 | G63: 1.792901225 | H63: 8.528729827 | I63: 1.433854619 | J63: 0.8822002764 | K63: 1.002121017 | L63: 0.9521554109 | M63: 4.851709493 | N63: 7.033906596 | O63: 11.74461929 | P63: 8.366702058 | Q63: 3.530114941
B64: Water taken directly from pond-water or stream | C64: 2.995425492 | D64: 0.4387755775 | E64: 0.1314536475 | F64: 0.09858425627 | G64: 0.05979201813 | H64: 1.421783341 | I64: 0.5681846853 | J64: 0 | K64: 0.3492933726 | L64: 0 | M64: 3.350412096 | N64: 0.5140179704 | O64: 0 | P64: 0.1584407019 | Q64: 0
B65: Tanker-truck, vendor | C65: 15.01307756 | D65: 3.426364742 | E65: 2.476808003 | F65: 1.946984726 | G65: 0.8812198965 | H65: 11.05956878 | I65: 0 | J65: 0 | K65: 0 | L65: 0 | M65: 15.22532202 | N65: 4.906892738 | O65: 2.234880427 | P65: 2.428440354 | Q65: 1.6525056
A108: =A1026 -> Viet Nam
A109: =A1034 -> 2003
A110: Use of sanitation facilities
A111: by wealth quintile and sub-national region
A112: Notes:
A113: WHO/UNICEF JMP customised wealth index excludes water,
A114: sanitation and hygiene assets.
A115: Survey used for analysis: | B115: =A1025 -> WHS03
A116: =B1030 -> 
A117: =B1029 -> 
A120: Use of sanitation facilities | C120: NATIONAL wealth index quintile | H120: URBAN wealth index quintile | M120: RURAL wealth index quintile | BA120: Raw numbers of respondents: | BB120: Use of sanitation facilities | BC120: NATIONAL wealth index quintile | BH120: URBAN wealth index quintile | BM120: RURAL wealth index quintile
A121: Weighted percentage (used in graphs) | C121: Poorest | D121: Poor | E121: Middle | F121: Rich | G121: Richest | H121: Poorest | I121: Poor | J121: Middle | K121: Rich | L121: Richest | M121: Poorest | N121: Poor | O121: Middle | P121: Rich | Q121: Richest | BA121: Sanitation data, raw numbers (weighted) | BC121: Poorest | BD121: Poor | BE121: Middle | BF121: Rich | BG121: Richest | BH121: Poorest | BI121: Poor | BJ121: Middle | BK121: Rich | BL121: Richest | BM121: Poorest | BN121: Poor | BO121: Middle | BP121: Rich | BQ121: Richest
A122: Sanitation | B122: Improved | C122: 24.3563064 | D122: 59.32528329 | E122: 71.02388816 | F122: 80.2078103 | G122: 95.28379743 | H122: 55.46461525 | I122: 91.59938305 | J122: 92.89986439 | K122: 98.63802479 | L122: 100 | M122: 21.85531715 | N122: 55.82638822 | O122: 68.64447562 | P122: 72.87393472 | Q122: 88.30393198 | BA122: Sanitation | BB122: Improved | BC122: 808965.5881 | BD122: 1966567.09 | BE122: 2358706.906 | BF122: 2662665.319 | BG122: 3163785.189 | BH122: 312434.2861 | BI122: 527606.9537 | BJ122: 530901.099 | BK122: 560042.8018 | BL122: 570504.7063 | BM122: 600315.5189 | BN122: 1525874.684 | BO122: 1897842.016 | BP122: 2005709.862 | BQ122: 2429458.165
B123: Not Improved | C123: 75.6436936 | D123: 40.67471671 | E123: 28.97611184 | F123: 19.7921897 | G123: 4.716202574 | H123: 44.53538475 | I123: 8.400616954 | J123: 7.100135611 | K123: 1.361975213 | L123: 0 | M123: 78.14468285 | N123: 44.17361178 | O123: 31.35552438 | P123: 27.12606528 | Q123: 11.69606802 | BB123: Not Improved | BC123: 2512414.817 | BD123: 1348321.573 | BE123: 962298.1353 | BF123: 657042.96 | BG123: 156595.8983 | BH123: 250869.5153 | BI123: 48387.04993 | BJ123: 40575.62219 | BK123: 7732.96521 | BL123: 0 | BM123: 2146455.506 | BN123: 1207375.187 | BO123: 866899.063 | BP123: 746590.9019 | BQ123: 321787.5729
A124: Sanitation ladder | B124: Basic | C124: =C122*C129/100 -> 21.83569309 | D124: =D122*D129/100 -> 53.49308173 | E124: =E122*E129/100 -> 66.90974919 | F124: 77.12231316 | G124: 91.01820652 | H124: 51.25691374 | I124: 84.21117075 | J124: 89.39119852 | K124: 92.07192151 | L124: 95.16382861 | M124: 19.55794988 | N124: 49.49168754 | O124: 64.88910595 | P124: 69.87817783 | Q124: 85.18792382 | BA124: Sanitation ladder | BB124: Basic | BC124: 709107.8743 | BD124: 1718376.305 | BE124: 2159855.483 | BF124: 2495043.072 | BG124: 2926904.6 | BH124: 284286.2612 | BI124: 473318.077 | BJ124: 495365.4521 | BK124: 512000.6193 | BL124: 522548.7747 | BM124: 521062.3839 | BN124: 1307580.872 | BO124: 1752034.389 | BP124: 1870664.426 | BQ124: 2270426.079
B125: Limited | C125: =C122*C128/100 -> 2.52061331 | D125: =D122*D128/100 -> 5.832201558 | E125: =E122*E128/100 -> 4.114138968 | F125: 3.085497141 | G125: 4.265590904 | H125: 4.207701511 | I125: 7.388212298 | J125: 3.508665868 | K125: 6.566103276 | L125: 4.83617139 | M125: 2.297367274 | N125: 6.334700682 | O125: 3.755369675 | P125: 2.995756892 | Q125: 3.116008157 | BB125: Limited | BC125: 79880.30762 | BD125: 196037.8608 | BE125: 136239.0602 | BF125: 101533.3707 | BG125: 137370.8158 | BH125: 23337.17822 | BI125: 41526.25366 | BJ125: 19443.43384 | BK125: 36513.29187 | BL125: 26555.63013 | BM125: 59275.72876 | BN125: 172650.7517 | BO125: 105804.8843 | BP125: 82420.29761 | BQ125: 83533.96509
B126: Unimproved | C126: =100-C124-C125-C127 -> 42.4953486 | D126: =100-D124-D125-D127 -> 24.90848693 | E126: =100-E124-E125-E127 -> 20.43038252 | F126: 14.4948046 | G126: 3.228305244 | H126: 27.54025218 | I126: 7.054268475 | J126: 5.064854523 | K126: 0.2331421532 | L126: -9.769962617e-15 | M126: 44.0320142 | N126: 25.69360529 | O126: 22.26577403 | P126: 18.86983245 | Q126: 8.332279786 | BB126: Unimproved | BC126: 1418054.361 | BD126: 833911.1592 | BE126: 683844.7167 | BF126: 484686.2106 | BG126: 108672.64 | BH126: 155952.8972 | BI126: 40803.9928 | BJ126: 29271.98633 | BK126: 1453.866577 | BL126: 0 | BM126: 1216273.434 | BN126: 710705.2736 | BO126: 619227.1506 | BP126: 523699.3967 | BQ126: 231781.0894
B127: Open defecation | C127: 33.148345 | D127: 15.76622978 | E127: 8.545729324 | F127: 5.297385098 | G127: 1.48789733 | H127: 16.99513257 | I127: 1.346348479 | J127: 2.035281089 | K127: 1.12883306 | L127: 0 | M127: 34.11266865 | N127: 18.48000649 | O127: 9.089750347 | P127: 8.256232823 | Q127: 3.363788235 | BB127: Open defecation | BC127: 1094360.456 | BD127: 514410.4137 | BE127: 278453.4186 | BF127: 172356.7494 | BG127: 47923.2583 | BH127: 94916.61804 | BI127: 7583.057129 | BJ127: 11303.63586 | BK127: 6279.098633 | BL127: 0 | BM127: 930182.072 | BN127: 496669.9131 | BO127: 247671.9124 | BP127: 222891.5051 | BQ127: 90006.48352
A128: Shared among Improved Sanitation | B128: Yes | C128: 10.34891444 | D128: 9.830886992 | E128: 5.792612985 | F128: 3.846878664 | G128: 4.476722191 | H128: 7.586280897 | I128: 8.065788276 | J128: 3.776825608 | K128: 6.656766789 | L128: 4.83617139 | M128: 10.5117087 | N128: 11.34714404 | O128: 5.47075295 | P128: 4.110875725 | Q128: 3.528730926 | BA128: Shared among improved sanitation facilities | BB128: Yes | BC128: N/A | BD128: N/A | BE128: N/A | BF128: N/A | BG128: N/A | BH128: N/A | BI128: N/A | BJ128: N/A | BK128: N/A | BL128: N/A | BM128: N/A | BN128: N/A | BO128: N/A | BP128: N/A | BQ128: N/A
B129: No | C129: 89.65108556 | D129: 90.16911301 | E129: 94.20738702 | F129: 96.15312134 | G129: 95.52327781 | H129: 92.4137191 | I129: 91.93421172 | J129: 96.22317439 | K129: 93.34323321 | L129: 95.16382861 | M129: 89.4882913 | N129: 88.65285596 | O129: 94.52924705 | P129: 95.88912427 | Q129: 96.47126907 | BB129: No | BC129: N/A | BD129: N/A | BE129: N/A | BF129: N/A | BG129: N/A | BH129: N/A | BI129: N/A | BJ129: N/A | BK129: N/A | BL129: N/A | BM129: N/A | BN129: N/A | BO129: N/A | BP129: N/A | BQ129: N/A
A130: Manually calculated ratios | B130: Improved latrines
B131: Other
B132: Other
C133: NATIONAL wealth index quintile | H133: URBAN wealth index quintile | M133: RURAL wealth index quintile | BA133: Raw numbers of respondents: | BB133: Use of sanitation facilities | BC133: NATIONAL wealth index quintile | BH133: URBAN wealth index quintile | BM133: RURAL wealth index quintile
A134: Percentage based on weighted population | C134: Poorest | D134: Poor | E134: Middle | F134: Rich | G134: Richest | H134: Poorest | I134: Poor | J134: Middle | K134: Rich | L134: Richest | M134: Poorest | N134: Poor | O134: Middle | P134: Rich | Q134: Richest | BA134: Sanitation data, raw numbers (weighted) | BC134: Poorest | BD134: Poor | BE134: Middle | BF134: Rich | BG134: Richest | BH134: Poorest | BI134: Poor | BJ134: Middle | BK134: Rich | BL134: Richest | BM134: Poorest | BN134: Poor | BO134: Middle | BP134: Rich | BQ134: Richest
A135: Sanitation type | B135: Sewer connection | C135: 1.694690345 | D135: 0.6197969361 | E135: 0.4759300186 | F135: 1.63661162 | G135: 2.536531942 | H135: 0 | I135: 3.222778047 | J135: 4.115501333 | K135: 3.292068881 | L135: 5.058911103 | M135: 1.970537935 | N135: 0.8307519417 | O135: 0.4935258502 | P135: 0.3601503612 | Q135: 1.496294895 | BA135: Sanitation type | BB135: Sewer connection | BC135: N/A | BD135: N/A | BE135: N/A | BF135: N/A | BG135: N/A | BH135: N/A | BI135: N/A | BJ135: N/A | BK135: N/A | BL135: N/A | BM135: N/A | BN135: N/A | BO135: N/A | BP135: N/A | BQ135: N/A
B136: Septic tank connection | C136: 1.736615258 | D136: 8.300147159 | E136: 14.39511307 | F136: 28.44220746 | G136: 71.18161477 | H136: 14.09951267 | I136: 35.80445686 | J136: 58.28007225 | K136: 76.01501681 | L136: 85.04341585 | M136: 0.6917352991 | N136: 6.931521548 | O136: 10.71136026 | P136: 21.35417704 | Q136: 54.1852695 | BB136: Septic tank connection | BC136: N/A | BD136: N/A | BE136: N/A | BF136: N/A | BG136: N/A | BH136: N/A | BI136: N/A | BJ136: N/A | BK136: N/A | BL136: N/A | BM136: N/A | BN136: N/A | BO136: N/A | BP136: N/A | BQ136: N/A
B137: Improved latrines | C137: 20.9250008 | D137: 50.4053392 | E137: 56.15284507 | F137: 50.12899122 | G137: 21.56565071 | H137: 41.36510259 | I137: 52.57214814 | J137: 30.5042908 | K137: 19.33093909 | L137: 9.897673048 | M137: 19.19304392 | N137: 48.06411473 | O137: 57.43958951 | P137: 51.15960733 | Q137: 32.62236759 | BB137: Improved latrines | BC137: N/A | BD137: N/A | BE137: N/A | BF137: N/A | BG137: N/A | BH137: N/A | BI137: N/A | BJ137: N/A | BK137: N/A | BL137: N/A | BM137: N/A | BN137: N/A | BO137: N/A | BP137: N/A | BQ137: N/A
B138: Unimproved facilities | C138: 42.69472894 | D138: 25.15653598 | E138: 20.5914989 | F138: 14.60026514 | G138: 3.272896609 | H138: 27.68539762 | I138: 7.084100275 | J138: 5.122166003 | K138: 0.2560635134 | L138: 0 | M138: 44.28011738 | N138: 26.00220643 | O138: 22.39729266 | P138: 19.02769507 | Q138: 8.42458695 | BB138: Unimproved facilities | BC138: N/A | BD138: N/A | BE138: N/A | BF138: N/A | BG138: N/A | BH138: N/A | BI138: N/A | BJ138: N/A | BK138: N/A | BL138: N/A | BM138: N/A | BN138: N/A | BO138: N/A | BP138: N/A | BQ138: N/A
B139: Open defecation | C139: 32.94896466 | D139: 15.51818073 | E139: 8.384612943 | F139: 5.191924559 | G139: 1.443305965 | H139: 16.84998713 | I139: 1.316516679 | J139: 1.977969608 | K139: 1.105911699 | L139: 0 | M139: 33.86456547 | N139: 18.17140535 | O139: 8.958231722 | P139: 8.098370208 | Q139: 3.271481071 | BB139: Open defecation | BC139: N/A | BD139: N/A | BE139: N/A | BF139: N/A | BG139: N/A | BH139: N/A | BI139: N/A | BJ139: N/A | BK139: N/A | BL139: N/A | BM139: N/A | BN139: N/A | BO139: N/A | BP139: N/A | BQ139: N/A
A140: Septic tank emptying practices | B140: Not emptied/treated and disposed in situ | C140: N/A | D140: N/A | E140: N/A | F140: N/A | G140: N/A | H140: N/A | I140: N/A | J140: N/A | K140: N/A | L140: N/A | M140: N/A | N140: N/A | O140: N/A | P140: N/A | Q140: N/A | BA140: Septic tank emptying practices | BB140: Not emptied/treated and disposed in situ | BC140: N/A | BD140: N/A | BE140: N/A | BF140: N/A | BG140: N/A | BH140: N/A | BI140: N/A | BJ140: N/A | BK140: N/A | BL140: N/A | BM140: N/A | BN140: N/A | BO140: N/A | BP140: N/A | BQ140: N/A
B141: Emptied and buried on site | C141: N/A | D141: N/A | E141: N/A | F141: N/A | G141: N/A | H141: N/A | I141: N/A | J141: N/A | K141: N/A | L141: N/A | M141: N/A | N141: N/A | O141: N/A | P141: N/A | Q141: N/A | BB141: Emptied and buried on site | BC141: N/A | BD141: N/A | BE141: N/A | BF141: N/A | BG141: N/A | BH141: N/A | BI141: N/A | BJ141: N/A | BK141: N/A | BL141: N/A | BM141: N/A | BN141: N/A | BO141: N/A | BP141: N/A | BQ141: N/A
B142: Emptied and discharged locally | C142: N/A | D142: N/A | E142: N/A | F142: N/A | G142: N/A | H142: N/A | I142: N/A | J142: N/A | K142: N/A | L142: N/A | M142: N/A | N142: N/A | O142: N/A | P142: N/A | Q142: N/A | BB142: Emptied and discharged locally | BC142: N/A | BD142: N/A | BE142: N/A | BF142: N/A | BG142: N/A | BH142: N/A | BI142: N/A | BJ142: N/A | BK142: N/A | BL142: N/A | BM142: N/A | BN142: N/A | BO142: N/A | BP142: N/A | BQ142: N/A
B143: Emptied and removed offsite | C143: N/A | D143: N/A | E143: N/A | F143: N/A | G143: N/A | H143: N/A | I143: N/A | J143: N/A | K143: N/A | L143: N/A | M143: N/A | N143: N/A | O143: N/A | P143: N/A | Q143: N/A | BB143: Emptied and removed offsite | BC143: N/A | BD143: N/A | BE143: N/A | BF143: N/A | BG143: N/A | BH143: N/A | BI143: N/A | BJ143: N/A | BK143: N/A | BL143: N/A | BM143: N/A | BN143: N/A | BO143: N/A | BP143: N/A | BQ143: N/A
A144: Latrine emptying practices | B144: Not emptied/treated and disposed in situ | C144: N/A | D144: N/A | E144: N/A | F144: N/A | G144: N/A | H144: N/A | I144: N/A | J144: N/A | K144: N/A | L144: N/A | M144: N/A | N144: N/A | O144: N/A | P144: N/A | Q144: N/A | BA144: Latrine emptying practices | BB144: Not emptied/treated and disposed in situ | BC144: N/A | BD144: N/A | BE144: N/A | BF144: N/A | BG144: N/A | BH144: N/A | BI144: N/A | BJ144: N/A | BK144: N/A | BL144: N/A | BM144: N/A | BN144: N/A | BO144: N/A | BP144: N/A | BQ144: N/A
B145: Emptied and buried on site | C145: N/A | D145: N/A | E145: N/A | F145: N/A | G145: N/A | H145: N/A | I145: N/A | J145: N/A | K145: N/A | L145: N/A | M145: N/A | N145: N/A | O145: N/A | P145: N/A | Q145: N/A | BB145: Emptied and buried on site | BC145: N/A | BD145: N/A | BE145: N/A | BF145: N/A | BG145: N/A | BH145: N/A | BI145: N/A | BJ145: N/A | BK145: N/A | BL145: N/A | BM145: N/A | BN145: N/A | BO145: N/A | BP145: N/A | BQ145: N/A
B146: Emptied and discharged locally | C146: N/A | D146: N/A | E146: N/A | F146: N/A | G146: N/A | H146: N/A | I146: N/A | J146: N/A | K146: N/A | L146: N/A | M146: N/A | N146: N/A | O146: N/A | P146: N/A | Q146: N/A | BB146: Emptied and discharged locally | BC146: N/A | BD146: N/A | BE146: N/A | BF146: N/A | BG146: N/A | BH146: N/A | BI146: N/A | BJ146: N/A | BK146: N/A | BL146: N/A | BM146: N/A | BN146: N/A | BO146: N/A | BP146: N/A | BQ146: N/A
B147: Emptied and removed offsite | C147: N/A | D147: N/A | E147: N/A | F147: N/A | G147: N/A | H147: N/A | I147: N/A | J147: N/A | K147: N/A | L147: N/A | M147: N/A | N147: N/A | O147: N/A | P147: N/A | Q147: N/A | BB147: Emptied and removed offsite | BC147: N/A | BD147: N/A | BE147: N/A | BF147: N/A | BG147: N/A | BH147: N/A | BI147: N/A | BJ147: N/A | BK147: N/A | BL147: N/A | BM147: N/A | BN147: N/A | BO147: N/A | BP147: N/A | BQ147: N/A
A148: Shared among improved sanitation facilities | B148: Yes | C148: 2.541971549 | D148: 5.913859582 | E148: 4.102344274 | F148: 3.058502802 | G148: 4.137200285 | H148: 4.142911545 | I148: 7.209494092 | J148: 3.402314236 | K148: 6.430935238 | L148: 4.654760922 | M148: 2.323599801 | N148: 6.316683798 | O148: 3.826936457 | P148: 2.994596328 | Q148: 3.036223335 | BA148: Shared among improved sanitation facilities | BB148: Yes | BC148: N/A | BD148: N/A | BE148: N/A | BF148: N/A | BG148: N/A | BH148: N/A | BI148: N/A | BJ148: N/A | BK148: N/A | BL148: N/A | BM148: N/A | BN148: N/A | BO148: N/A | BP148: N/A | BQ148: N/A
B149: No | C149: 22.0207163 | D149: 54.24205093 | E149: 66.71792777 | F149: 76.44758692 | G149: 88.27863675 | H149: 50.46766248 | I149: 82.17413272 | J149: 86.68165015 | K149: 90.17655368 | L149: 91.59412164 | M149: 19.78127266 | N149: 49.3509254 | O149: 66.12570977 | P149: 69.85110682 | Q149: 83.00670254 | BB149: No | BC149: N/A | BD149: N/A | BE149: N/A | BF149: N/A | BG149: N/A | BH149: N/A | BI149: N/A | BJ149: N/A | BK149: N/A | BL149: N/A | BM149: N/A | BN149: N/A | BO149: N/A | BP149: N/A | BQ149: N/A
B150: DK/missing | C150: 75.43731215 | D150: 39.84408948 | E150: 29.17972796 | F150: 20.49391028 | G150: 7.584162968 | H150: 45.38942597 | I150: 10.61637319 | J150: 9.916035615 | K150: 3.392511085 | L150: 3.751117436 | M150: 77.89512754 | N150: 44.3323908 | O150: 30.04735378 | P150: 27.15429685 | Q150: 13.95707413 | BB150: DK/missing | BC150: N/A | BD150: N/A | BE150: N/A | BF150: N/A | BG150: N/A | BH150: N/A | BI150: N/A | BJ150: N/A | BK150: N/A | BL150: N/A | BM150: N/A | BN150: N/A | BO150: N/A | BP150: N/A | BQ150: N/A
A151: Shared among all sanitation facilities | B151: Yes | C151: 84.73875562 | D151: 98.26911957 | E151: 97.21693685 | F151: 95.84814899 | G151: 97.30653009 | H151: 83.85220089 | I151: 95.21292777 | J151: 97.02441653 | K151: 95.41849988 | L151: 97.8022148 | M151: 74.49363791 | N151: 99.0013691 | O151: 97.75929931 | P151: 98.72968374 | Q151: 96.96718722 | BA151: Shared among all sanitation facilities | BB151: Yes | BC151: N/A | BD151: N/A | BE151: N/A | BF151: N/A | BG151: N/A | BH151: N/A | BI151: N/A | BJ151: N/A | BK151: N/A | BL151: N/A | BM151: N/A | BN151: N/A | BO151: N/A | BP151: N/A | BQ151: N/A
B152: No | C152: 15.26124438 | D152: 1.730880428 | E152: 2.783063153 | F152: 4.151851008 | G152: 2.693469909 | H152: 16.14779911 | I152: 4.787072231 | J152: 2.975583472 | K152: 4.581500119 | L152: 2.197785205 | M152: 25.50636209 | N152: 0.9986308994 | O152: 2.240700695 | P152: 1.270316258 | Q152: 3.032812777 | BB152: No | BC152: N/A | BD152: N/A | BE152: N/A | BF152: N/A | BG152: N/A | BH152: N/A | BI152: N/A | BJ152: N/A | BK152: N/A | BL152: N/A | BM152: N/A | BN152: N/A | BO152: N/A | BP152: N/A | BQ152: N/A
A153: What type of toilet facilities | B153: Flush to piped sewage system | C153: 1.694690345 | D153: 0.6197969361 | E153: 0.4764558085 | F153: 1.63661162 | G153: 2.536531942 | H153: 0 | I153: 3.222778047 | J153: 4.115501333 | K153: 3.292068881 | L153: 5.058911103 | M153: 1.970537935 | N153: 0.8307519417 | O153: 0.4935258502 | P153: 0.3601503612 | Q153: 1.496294895 | BA153: What type of toilet facilities | BB153: Flush to piped sewage system | BC153: 56287.11304 | BD153: 20545.57837 | BE153: 15805.65991 | BF153: 54330.73145 | BG153: 84222.52686 | BH153: 0 | BI153: 18563.0083 | BJ153: 23519.13208 | BK153: 18691.56934 | BL153: 28861.32593 | BM153: 54126.16504 | BN153: 22706.52637 | BO153: 13644.71191 | BP153: 9912.421143 | BQ153: 41166.74951
B154: Flush to septic tank | C154: 1.736615258 | D154: 8.300147159 | E154: 14.41101626 | F154: 28.44220746 | G154: 71.18161477 | H154: 14.19184533 | I154: 35.80445686 | J154: 58.28007225 | K154: 76.01501681 | L154: 85.04341585 | M154: 0.6917352991 | N154: 6.931521548 | O154: 10.71136026 | P154: 21.35417704 | Q154: 54.1852695 | BB154: Flush to septic tank | BC154: 57679.59888 | BD154: 275140.6372 | BE154: 478062.4307 | BF154: 944198.3157 | BG154: 2363500.875 | BH154: 79423.09082 | BI154: 206231.5245 | BJ154: 333057.046 | BK154: 431594.8447 | BL154: 485176.6898 | BM154: 19000.38477 | BN154: 189455.8037 | BO154: 296141.3773 | BP154: 587731.1777 | BQ154: 1490769.917
B155: Pour flush latrine | C155: 1.474882563 | D155: 3.921724712 | E155: 7.749428731 | F155: 15.1561778 | G155: 14.31756488 | H155: 13.95628922 | I155: 33.52954524 | J155: 22.37124201 | K155: 15.5616206 | L155: 8.332868504 | M155: 0.5285245386 | N155: 1.981012318 | O155: 6.777017397 | P155: 7.342644259 | Q155: 15.32050779 | BB155: Pour flush latrine | BC155: 48986.46045 | BD155: 130000.8079 | BE155: 257074.912 | BF155: 503140.8893 | BG155: 475397.7166 | BH155: 78104.82715 | BI155: 193128.17 | BJ155: 127846.4403 | BK155: 88355.11072 | BL155: 47539.40698 | BM155: 14517.35889 | BN155: 54146.0166 | BO155: 187366.9839 | BP155: 202091.6541 | BQ155: 421504.8175
B156: Covered dry latrine (with privacy) | C156: 19.45011823 | D156: 46.48361449 | E156: 48.46545193 | F156: 34.97281342 | G156: 7.248085825 | H156: 27.67969862 | I156: 19.0426029 | J156: 8.133048796 | K156: 3.769318492 | L156: 1.564804544 | M156: 18.66451938 | N156: 46.08310241 | O156: 50.66257211 | P156: 43.81696307 | Q156: 17.3018598 | BB156: Covered dry latrine (with privacy) | BC156: 646012.4158 | BD156: 1540880.067 | BE156: 1607763.904 | BF156: 1160995.382 | BG156: 240664.0709 | BH156: 154906.3682 | BI156: 109684.2509 | BJ156: 46478.48059 | BK156: 21401.27698 | BL156: 8927.283569 | BM156: 512671.6102 | BN156: 1259566.337 | BO156: 1400688.943 | BP156: 1205974.609 | BQ156: 476016.6802
B157: Uncovered dry latrine (without privacy) | C157: 14.70509621 | D157: 10.86405554 | E157: 11.50557776 | F157: 5.378929093 | G157: 1.300479974 | H157: 6.672600116 | I157: 4.03059315 | J157: 1.219163607 | K157: 0.2560635134 | L157: 0 | M157: 16.3610984 | N157: 10.17246709 | O157: 11.0023029 | P157: 9.829756841 | Q157: 2.937515413 | BB157: Uncovered dry latrine (without privacy) | BC157: 488412.184 | BD157: 360131.3455 | BE157: 381679.1523 | BF157: 178564.7544 | BG157: 43180.89111 | BH157: 37342.46765 | BI157: 23215.97485 | BJ157: 6967.236206 | BK157: 1453.866577 | BL157: 0 | BM157: 449401.9103 | BN157: 278038.9435 | BO157: 304185.188 | BP157: 270544.4727 | BQ157: 80818.26758
B158: Bucket latrine (where fresh excreta are manually removed) | C158: 3.307184545 | D158: 6.316879376 | E158: 4.726050569 | F158: 5.471587223 | G158: 0.4627750324 | H158: 0.8913028822 | I158: 3.053507126 | J158: 2.491383098 | K158: 0 | L158: 0 | M158: 2.935387632 | N158: 5.847079522 | O158: 6.475040921 | P158: 5.871727233 | Q158: 2.004341128 | BB158: Bucket latrine (where fresh excreta are manually removed) | BC158: 109844.1794 | BD158: 209397.5183 | BE158: 156779.1738 | BF158: 181640.734 | BG158: 15365.89465 | BH158: 4988.077881 | BI158: 17588.01794 | BJ158: 14237.67444 | BK158: 0 | BL158: 0 | BM158: 80628.37695 | BN158: 159815.2935 | BO158: 179018.1162 | BP158: 161607.5935 | BQ158: 55144.34985
B159: No facilities (open defecation) | C159: 32.94896466 | D159: 15.51818073 | E159: 8.393875954 | F159: 5.191924559 | G159: 1.443305965 | H159: 16.96033166 | I159: 1.316516679 | J159: 1.977969608 | K159: 1.105911699 | L159: 0 | M159: 33.86456547 | N159: 18.17140535 | O159: 8.958231722 | P159: 8.098370208 | Q159: 3.271481071 | BB159: No facilities (open defecation) | BC159: 1094360.456 | BD159: 514410.4137 | BE159: 278453.4186 | BF159: 172356.7494 | BG159: 47923.2583 | BH159: 94916.61804 | BI159: 7583.057129 | BJ159: 11303.63586 | BK159: 6279.098633 | BL159: 0 | BM159: 930182.072 | BN159: 496669.9131 | BO159: 247671.9124 | BP159: 222891.5051 | BQ159: 90006.48352
B160: Other | C160: 24.68244819 | D160: 7.975601062 | E160: 4.272142993 | F160: 3.749748825 | G160: 1.509641602 | H160: 19.64793218 | I160: 0 | J160: 1.411619299 | K160: 0 | L160: 0 | M160: 24.98363135 | N160: 9.982659822 | O160: 4.919948833 | P160: 3.326210993 | Q160: 3.482730409 | BB160: Other | BC160: 819797.9976 | BD160: 264382.2954 | BE160: 141721.5155 | BF160: 124480.7222 | BG160: 50125.85425 | BH160: 109957.4767 | BI160: 0 | BJ160: 8067.075684 | BK160: 0 | BL160: 0 | BM160: 686243.147 | BN160: 272851.0366 | BO160: 136023.8464 | BP160: 91547.33057 | BQ160: 95818.47192
BB161: Total | BC161: 3321380.405 | BD161: 3314888.663 | BE161: 3317340.167 | BF161: 3319708.279 | BG161: 3320381.087 | BH161: 559638.9264 | BI161: 575994.0037 | BJ161: 571476.7212 | BK161: 567775.767 | BL161: 570504.7063 | BM161: 2746771.025 | BN161: 2733249.87 | BO161: 2764741.079 | BP161: 2752300.764 | BQ161: 2751245.738
A208: =A1026 -> Viet Nam
A209: =A1034 -> 2003
A210: Access to hygiene facilities
A211: by wealth quintile and sub-national region
A212: Notes:
A213: WHO/UNICEF JMP customised wealth index excludes water,
A214: sanitation and hygiene assets.
A215: Survey used for analysis: | B215: =A1025 -> WHS03
A220: Access to handwashing | C220: NATIONAL wealth index quintile | H220: URBAN wealth index quintile | M220: RURAL wealth index quintile | BA220: Raw numbers of respondents: | BB220: Access to handwashing | BC220: NATIONAL wealth index quintile | BH220: URBAN wealth index quintile | BM220: RURAL wealth index quintile
A221: Weighted percentage (used in graphs) | C221: Poorest | D221: Poor | E221: Middle | F221: Rich | G221: Richest | H221: Poorest | I221: Poor | J221: Middle | K221: Rich | L221: Richest | M221: Poorest | N221: Poor | O221: Middle | P221: Rich | Q221: Richest | BA221: Hygiene data, raw numbers (weighted) | BC221: Poorest | BD221: Poor | BE221: Middle | BF221: Rich | BG221: Richest | BH221: Poorest | BI221: Poor | BJ221: Middle | BK221: Rich | BL221: Richest | BM221: Poorest | BN221: Poor | BO221: Middle | BP221: Rich | BQ221: Richest
A222: Hygiene ladder | B222: Basic | C222: N/A | D222: N/A | E222: N/A | F222: N/A | G222: N/A | H222: N/A | I222: N/A | J222: N/A | K222: N/A | L222: N/A | M222: N/A | N222: N/A | O222: N/A | P222: N/A | Q222: N/A | BA222: Hygiene ladder | BB222: Basic | BC222: N/A | BD222: N/A | BE222: N/A | BF222: N/A | BG222: N/A | BH222: N/A | BI222: N/A | BJ222: N/A | BK222: N/A | BL222: N/A | BM222: N/A | BN222: N/A | BO222: N/A | BP222: N/A | BQ222: N/A
B223: Limited | C223: N/A | D223: N/A | E223: N/A | F223: N/A | G223: N/A | H223: N/A | I223: N/A | J223: N/A | K223: N/A | L223: N/A | M223: N/A | N223: N/A | O223: N/A | P223: N/A | Q223: N/A | BB223: Limited | BC223: N/A | BD223: N/A | BE223: N/A | BF223: N/A | BG223: N/A | BH223: N/A | BI223: N/A | BJ223: N/A | BK223: N/A | BL223: N/A | BM223: N/A | BN223: N/A | BO223: N/A | BP223: N/A | BQ223: N/A
B224: No facility | C224: N/A | D224: N/A | E224: N/A | F224: N/A | G224: N/A | H224: N/A | I224: N/A | J224: N/A | K224: N/A | L224: N/A | M224: N/A | N224: N/A | O224: N/A | P224: N/A | Q224: N/A | BB224: No facility | BC224: N/A | BD224: N/A | BE224: N/A | BF224: N/A | BG224: N/A | BH224: N/A | BI224: N/A | BJ224: N/A | BK224: N/A | BL224: N/A | BM224: N/A | BN224: N/A | BO224: N/A | BP224: N/A | BQ224: N/A
BA225: Observed handwashing place | BB225: Fixed | BC225: N/A | BD225: N/A | BE225: N/A | BF225: N/A | BG225: N/A | BH225: N/A | BI225: N/A | BJ225: N/A | BK225: N/A | BL225: N/A | BM225: N/A | BN225: N/A | BO225: N/A | BP225: N/A | BQ225: N/A
BB226: Mobile | BC226: N/A | BD226: N/A | BE226: N/A | BF226: N/A | BG226: N/A | BH226: N/A | BI226: N/A | BJ226: N/A | BK226: N/A | BL226: N/A | BM226: N/A | BN226: N/A | BO226: N/A | BP226: N/A | BQ226: N/A
BA227: Water / Soap | BB227: Water and soap | BC227: N/A | BD227: N/A | BE227: N/A | BF227: N/A | BG227: N/A | BH227: N/A | BI227: N/A | BJ227: N/A | BK227: N/A | BL227: N/A | BM227: N/A | BN227: N/A | BO227: N/A | BP227: N/A | BQ227: N/A
BB228: Water only | BC228: N/A | BD228: N/A | BE228: N/A | BF228: N/A | BG228: N/A | BH228: N/A | BI228: N/A | BJ228: N/A | BK228: N/A | BL228: N/A | BM228: N/A | BN228: N/A | BO228: N/A | BP228: N/A | BQ228: N/A
BB229: Soap only | BC229: N/A | BD229: N/A | BE229: N/A | BF229: N/A | BG229: N/A | BH229: N/A | BI229: N/A | BJ229: N/A | BK229: N/A | BL229: N/A | BM229: N/A | BN229: N/A | BO229: N/A | BP229: N/A | BQ229: N/A
BB230: Neither | BC230: N/A | BD230: N/A | BE230: N/A | BF230: N/A | BG230: N/A | BH230: N/A | BI230: N/A | BJ230: N/A | BK230: N/A | BL230: N/A | BM230: N/A | BN230: N/A | BO230: N/A | BP230: N/A | BQ230: N/A
BA259: Raw numbers of respondents: | BB259: Menstrual health and hygiene | BC259: NATIONAL wealth index quintile | BH259: URBAN wealth index quintile | BM259: RURAL wealth index quintile
BA260: MHH data, raw numbers (weighted) | BC260: Poorest | BD260: Poor | BE260: Middle | BF260: Rich | BG260: Richest | BH260: Poorest | BI260: Poor | BJ260: Middle | BK260: Rich | BL260: Richest | BM260: Poorest | BN260: Poor | BO260: Middle | BP260: Rich | BQ260: Richest
BA261: Private place to wash and change | BB261: Yes | BC261: N/A | BD261: N/A | BE261: N/A | BF261: N/A | BG261: N/A | BH261: N/A | BI261: N/A | BJ261: N/A | BK261: N/A | BL261: N/A | BM261: N/A | BN261: N/A | BO261: N/A | BP261: N/A | BQ261: N/A
BB262: No | BC262: N/A | BD262: N/A | BE262: N/A | BF262: N/A | BG262: N/A | BH262: N/A | BI262: N/A | BJ262: N/A | BK262: N/A | BL262: N/A | BM262: N/A | BN262: N/A | BO262: N/A | BP262: N/A | BQ262: N/A
BB263: DK/not sure/missing | BC263: N/A | BD263: N/A | BE263: N/A | BF263: N/A | BG263: N/A | BH263: N/A | BI263: N/A | BJ263: N/A | BK263: N/A | BL263: N/A | BM263: N/A | BN263: N/A | BO263: N/A | BP263: N/A | BQ263: N/A
BA264: Use of menstrual materials | BB264: Materials reusable | BC264: N/A | BD264: N/A | BE264: N/A | BF264: N/A | BG264: N/A | BH264: N/A | BI264: N/A | BJ264: N/A | BK264: N/A | BL264: N/A | BM264: N/A | BN264: N/A | BO264: N/A | BP264: N/A | BQ264: N/A
BB265: Materials not reusable | BC265: N/A | BD265: N/A | BE265: N/A | BF265: N/A | BG265: N/A | BH265: N/A | BI265: N/A | BJ265: N/A | BK265: N/A | BL265: N/A | BM265: N/A | BN265: N/A | BO265: N/A | BP265: N/A | BQ265: N/A
BB266: No materials used | BC266: N/A | BD266: N/A | BE266: N/A | BF266: N/A | BG266: N/A | BH266: N/A | BI266: N/A | BJ266: N/A | BK266: N/A | BL266: N/A | BM266: N/A | BN266: N/A | BO266: N/A | BP266: N/A | BQ266: N/A
BB267: DK/not sure/missing | BC267: N/A | BD267: N/A | BE267: N/A | BF267: N/A | BG267: N/A | BH267: N/A | BI267: N/A | BJ267: N/A | BK267: N/A | BL267: N/A | BM267: N/A | BN267: N/A | BO267: N/A | BP267: N/A | BQ267: N/A
BA268: Use of menstrual materials with private place to wash and change | BB268: Materials reusable | BC268: N/A | BD268: N/A | BE268: N/A | BF268: N/A | BG268: N/A | BH268: N/A | BI268: N/A | BJ268: N/A | BK268: N/A | BL268: N/A | BM268: N/A | BN268: N/A | BO268: N/A | BP268: N/A | BQ268: N/A
BB269: Materials not reusable | BC269: N/A | BD269: N/A | BE269: N/A | BF269: N/A | BG269: N/A | BH269: N/A | BI269: N/A | BJ269: N/A | BK269: N/A | BL269: N/A | BM269: N/A | BN269: N/A | BO269: N/A | BP269: N/A | BQ269: N/A
BB270: No materials used | BC270: N/A | BD270: N/A | BE270: N/A | BF270: N/A | BG270: N/A | BH270: N/A | BI270: N/A | BJ270: N/A | BK270: N/A | BL270: N/A | BM270: N/A | BN270: N/A | BO270: N/A | BP270: N/A | BQ270: N/A
BA271: Awareness of menstruation before menarche | BB271: Yes | BC271: N/A | BD271: N/A | BE271: N/A | BF271: N/A | BG271: N/A | BH271: N/A | BI271: N/A | BJ271: N/A | BK271: N/A | BL271: N/A | BM271: N/A | BN271: N/A | BO271: N/A | BP271: N/A | BQ271: N/A
BB272: No | BC272: N/A | BD272: N/A | BE272: N/A | BF272: N/A | BG272: N/A | BH272: N/A | BI272: N/A | BJ272: N/A | BK272: N/A | BL272: N/A | BM272: N/A | BN272: N/A | BO272: N/A | BP272: N/A | BQ272: N/A
BB273: DK/not sure/missing | BC273: N/A | BD273: N/A | BE273: N/A | BF273: N/A | BG273: N/A | BH273: N/A | BI273: N/A | BJ273: N/A | BK273: N/A | BL273: N/A | BM273: N/A | BN273: N/A | BO273: N/A | BP273: N/A | BQ273: N/A
BA274: Participation in (all) activities during menstruation | BB274: Yes | BC274: N/A | BD274: N/A | BE274: N/A | BF274: N/A | BG274: N/A | BH274: N/A | BI274: N/A | BJ274: N/A | BK274: N/A | BL274: N/A | BM274: N/A | BN274: N/A | BO274: N/A | BP274: N/A | BQ274: N/A
BB275: No | BC275: N/A | BD275: N/A | BE275: N/A | BF275: N/A | BG275: N/A | BH275: N/A | BI275: N/A | BJ275: N/A | BK275: N/A | BL275: N/A | BM275: N/A | BN275: N/A | BO275: N/A | BP275: N/A | BQ275: N/A
BB276: DK/not sure/missing/no such activity | BC276: N/A | BD276: N/A | BE276: N/A | BF276: N/A | BG276: N/A | BH276: N/A | BI276: N/A | BJ276: N/A | BK276: N/A | BL276: N/A | BM276: N/A | BN276: N/A | BO276: N/A | BP276: N/A | BQ276: N/A
BA277: Participation in specific activities during menstruation | BB277: Did not go to school (amongst those usually attending school) | BC277: N/A | BD277: N/A | BE277: N/A | BF277: N/A | BG277: N/A | BH277: N/A | BI277: N/A | BJ277: N/A | BK277: N/A | BL277: N/A | BM277: N/A | BN277: N/A | BO277: N/A | BP277: N/A | BQ277: N/A
BB278: Did not go to work (amongst those who usually work) | BC278: N/A | BD278: N/A | BE278: N/A | BF278: N/A | BG278: N/A | BH278: N/A | BI278: N/A | BJ278: N/A | BK278: N/A | BL278: N/A | BM278: N/A | BN278: N/A | BO278: N/A | BP278: N/A | BQ278: N/A
BB279: Did not participate in social activities | BC279: N/A | BD279: N/A | BE279: N/A | BF279: N/A | BG279: N/A | BH279: N/A | BI279: N/A | BJ279: N/A | BK279: N/A | BL279: N/A | BM279: N/A | BN279: N/A | BO279: N/A | BP279: N/A | BQ279: N/A
BB280: Did not cook food | BC280: N/A | BD280: N/A | BE280: N/A | BF280: N/A | BG280: N/A | BH280: N/A | BI280: N/A | BJ280: N/A | BK280: N/A | BL280: N/A | BM280: N/A | BN280: N/A | BO280: N/A | BP280: N/A | BQ280: N/A
BB281: Did not eat with others | BC281: N/A | BD281: N/A | BE281: N/A | BF281: N/A | BG281: N/A | BH281: N/A | BI281: N/A | BJ281: N/A | BK281: N/A | BL281: N/A | BM281: N/A | BN281: N/A | BO281: N/A | BP281: N/A | BQ281: N/A
BB282: Did not bathe in regular place | BC282: N/A | BD282: N/A | BE282: N/A | BF282: N/A | BG282: N/A | BH282: N/A | BI282: N/A | BJ282: N/A | BK282: N/A | BL282: N/A | BM282: N/A | BN282: N/A | BO282: N/A | BP282: N/A | BQ282: N/A
BB283: Did not participate in other activities | BC283: N/A | BD283: N/A | BE283: N/A | BF283: N/A | BG283: N/A | BH283: N/A | BI283: N/A | BJ283: N/A | BK283: N/A | BL283: N/A | BM283: N/A | BN283: N/A | BO283: N/A | BP283: N/A | BQ283: N/A
BB284: DK/not sure/missing/no such activity | BC284: N/A | BD284: N/A | BE284: N/A | BF284: N/A | BG284: N/A | BH284: N/A | BI284: N/A | BJ284: N/A | BK284: N/A | BL284: N/A | BM284: N/A | BN284: N/A | BO284: N/A | BP284: N/A | BQ284: N/A
BA339: Raw numbers of respondents: | BB339: Basic water, sanitation and hygiene | BC339: NATIONAL wealth index quintile | BH339: URBAN wealth index quintile | BM339: RURAL wealth index quintile
BA340: WatSan data, raw numbers (weighted) | BC340: Poorest | BD340: Poor | BE340: Middle | BF340: Rich | BG340: Richest | BH340: Poorest | BI340: Poor | BJ340: Middle | BK340: Rich | BL340: Richest | BM340: Poorest | BN340: Poor | BO340: Middle | BP340: Rich | BQ340: Richest
BA341: Use of Basic Water Sanitation and Hygiene | BB341: Yes | BC341: N/A | BD341: N/A | BE341: N/A | BF341: N/A | BG341: N/A | BH341: N/A | BI341: N/A | BJ341: N/A | BK341: N/A | BL341: N/A | BM341: N/A | BN341: N/A | BO341: N/A | BP341: N/A | BQ341: N/A
BB342: No | BC342: N/A | BD342: N/A | BE342: N/A | BF342: N/A | BG342: N/A | BH342: N/A | BI342: N/A | BJ342: N/A | BK342: N/A | BL342: N/A | BM342: N/A | BN342: N/A | BO342: N/A | BP342: N/A | BQ342: N/A
BA343: Use of Basic Water and Sanitation | BB343: Yes | BC343: N/A | BD343: N/A | BE343: N/A | BF343: N/A | BG343: N/A | BH343: N/A | BI343: N/A | BJ343: N/A | BK343: N/A | BL343: N/A | BM343: N/A | BN343: N/A | BO343: N/A | BP343: N/A | BQ343: N/A
BB344: No | BC344: N/A | BD344: N/A | BE344: N/A | BF344: N/A | BG344: N/A | BH344: N/A | BI344: N/A | BJ344: N/A | BK344: N/A | BL344: N/A | BM344: N/A | BN344: N/A | BO344: N/A | BP344: N/A | BQ344: N/A
BA345: Use of Basic Water and Hygiene | BB345: Yes | BC345: N/A | BD345: N/A | BE345: N/A | BF345: N/A | BG345: N/A | BH345: N/A | BI345: N/A | BJ345: N/A | BK345: N/A | BL345: N/A | BM345: N/A | BN345: N/A | BO345: N/A | BP345: N/A | BQ345: N/A
BB346: No | BC346: N/A | BD346: N/A | BE346: N/A | BF346: N/A | BG346: N/A | BH346: N/A | BI346: N/A | BJ346: N/A | BK346: N/A | BL346: N/A | BM346: N/A | BN346: N/A | BO346: N/A | BP346: N/A | BQ346: N/A
BA347: Use of Basic Sanitation and Hygiene | BB347: Yes | BC347: N/A | BD347: N/A | BE347: N/A | BF347: N/A | BG347: N/A | BH347: N/A | BI347: N/A | BJ347: N/A | BK347: N/A | BL347: N/A | BM347: N/A | BN347: N/A | BO347: N/A | BP347: N/A | BQ347: N/A
BB348: No | BC348: N/A | BD348: N/A | BE348: N/A | BF348: N/A | BG348: N/A | BH348: N/A | BI348: N/A | BJ348: N/A | BK348: N/A | BL348: N/A | BM348: N/A | BN348: N/A | BO348: N/A | BP348: N/A | BQ348: N/A
BA349: Use of Basic Water | BB349: Yes | BC349: N/A | BD349: N/A | BE349: N/A | BF349: N/A | BG349: N/A | BH349: N/A | BI349: N/A | BJ349: N/A | BK349: N/A | BL349: N/A | BM349: N/A | BN349: N/A | BO349: N/A | BP349: N/A | BQ349: N/A
BB350: No | BC350: N/A | BD350: N/A | BE350: N/A | BF350: N/A | BG350: N/A | BH350: N/A | BI350: N/A | BJ350: N/A | BK350: N/A | BL350: N/A | BM350: N/A | BN350: N/A | BO350: N/A | BP350: N/A | BQ350: N/A
BA351: Use of Basic Sanitation | BB351: Yes | BC351: N/A | BD351: N/A | BE351: N/A | BF351: N/A | BG351: N/A | BH351: N/A | BI351: N/A | BJ351: N/A | BK351: N/A | BL351: N/A | BM351: N/A | BN351: N/A | BO351: N/A | BP351: N/A | BQ351: N/A
BB352: No | BC352: N/A | BD352: N/A | BE352: N/A | BF352: N/A | BG352: N/A | BH352: N/A | BI352: N/A | BJ352: N/A | BK352: N/A | BL352: N/A | BM352: N/A | BN352: N/A | BO352: N/A | BP352: N/A | BQ352: N/A
BA353: Access to Basic Hygiene | BB353: Yes | BC353: N/A | BD353: N/A | BE353: N/A | BF353: N/A | BG353: N/A | BH353: N/A | BI353: N/A | BJ353: N/A | BK353: N/A | BL353: N/A | BM353: N/A | BN353: N/A | BO353: N/A | BP353: N/A | BQ353: N/A
BB354: No | BC354: N/A | BD354: N/A | BE354: N/A | BF354: N/A | BG354: N/A | BH354: N/A | BI354: N/A | BJ354: N/A | BK354: N/A | BL354: N/A | BM354: N/A | BN354: N/A | BO354: N/A | BP354: N/A | BQ354: N/A
C399: INITIAL (national) Wealth Index | H399: URBAN Wealth Index | M399: RURAL Wealth Index
C400: Component Matrix | H400: Component Matrix | M400: Component Matrix
E401: Component | J401: Component | O401: Component
B402: Note: The INITIAL (national) Wealth Index is based on the first component of the Principal Component Analysis (PCA) which has been obtained at national level. The final national-level (NATIONAL) Wealth Index is based on the URBAN and RURAL specific wealth indexes. Regression procedures are used to establish the relationships between the two sets of scores (urban and rural) and the initial (national) wealth factors. This allows best use of the available information for each area and a better precision of the FINAL (NATIONAL) Wealth Index. For dependency reasons, all WASH variables (contained in the generic MICS and DHS scripts) have been excluded from the sets of asset variables used in the PCAs. The PCA can extracts as many components as there are asset variables in the input. Only the first of the components is used to represent the Wealth Index. The scores represent the weights of the asset variables on the Wealth Index (correlations between the variables and the component). The communalities are the proportion of each variable's variance that can be explained by the component. Proportion of explained variance is the part of the model's total variance that is explained by the component. For more information on the procedure used: The DHS Wealth Index, DHS Comparative Reports No. 6, Shea Oscar Rutstein, Kiersten Johnson, ORC Macro International Inc., 2004. The DHS Wealth Index: Approaches for Rural and Urban Areas, Shea O. Rutstein, ORC Macro International Inc., 2008. MICS Methodological Paper No. 4, Review of options for reporting water, sanitation and hygiene coverage by wealth quintile, UNICEF, 2016. | E402: 1 | J402: 1 | O402: 1
C403: Has hard floor | E403: -0.6757711357 | H403: Uses gaz fuel | J403: -0.7077620197 | M403: Has hard floor | O403: -0.7075061966
C404: Has hearth floor | E404: 0.673797754 | H404: Has Refrigerator | J404: 0.6312419098 | M404: Has hearth floor | O404: 0.7042232294
C405: Uses gaz fuel | E405: -0.6098300071 | H405: Has Vacuum cleaner | J405: 0.627512698 | M405: Has cement, brick, stone or wood wall | O405: -0.6066016389
C406: Has Refrigerator | E406: 0.5917294221 | H406: Has hearth floor | J406: 0.5963801392 | M406: Has Cellular phone | O406: 0.5713959886
C407: Has cement, brick, stone or wood wall | E407: -0.5905280296 | H407: Has hard floor | J407: -0.5888735303 | M407: Has DVD | O407: 0.5559164754
C408: Has Vacuum cleaner | E408: 0.58433126 | H408: Uses open fire without chimney | J408: 0.579779888 | M408: Has Video | O408: 0.5436678106
C409: Has Internet | E409: 0.5792726864 | H409: Has Internet | J409: 0.5781559948 | M409: Has Internet | O409: 0.5175434831
C410: Has Security system | E410: 0.5724011034 | H410: Uses charcoal fuel | J410: 0.5734143552 | M410: Uses wood fuel | O410: 0.4819017475
C411: Has Cellular phone | E411: 0.5603383992 | H411: Has Security system | J411: 0.5723999782 | M411: Has Security system | O411: 0.4778068062
C412: Uses open fire without chimney | E412: 0.5521135702 | H412: Has cement, brick, stone or wood wall | J412: -0.5229980355 | M412: Has Stereo | O412: 0.4770827795
C413: Has DVD | E413: 0.5045061504 | H413: Uses separate building as kitchen | J413: 0.4917809796 | M413: Has Refrigerator | O413: 0.4640900624
C414: Has Video | E414: 0.4850843192 | H414: Has Cellular phone | J414: 0.4826234377 | M414: Uses gaz fuel | O414: -0.4532083525
C415: Uses wood fuel | E415: 0.4844988735 | H415: Has Clothes washing machine | J415: 0.4644267278 | M415: Uses wood heating | O415: 0.4473156183
C416: Uses wood heating | E416: 0.4042169188 | H416: Has Telephone | J416: 0.4399263437 | M416: Has Car | O416: 0.4462095166
C417: Has Clothes washing machine | E417: 0.4027049792 | H417: Has DVD | J417: 0.3980484347 | M417: Uses open fire without chimney | O417: 0.4368307395
C418: Has Telephone | E418: 0.3935676913 | H418: Has Computer | J418: 0.3713345573 | M418: Has Vacuum cleaner | O418: 0.4291358248
C419: Has Car | E419: 0.390574327 | H419: Has thatch wall | J419: 0.3707278025 | M419: Has TV | O419: 0.4109619539
C420: Has TV | E420: 0.3635597332 | H420: Has TV | J420: 0.3643010616 | M420: Uses living or sleeping room as kitchen | O420: 0.4096447085
C421: Has Second home | E421: 0.3613490046 | H421: Has Second home | J421: 0.354435038 | M421: Heats house | O421: 0.3935312674
C422: Uses living or sleeping room as kitchen | E422: 0.3544636072 | H422: Has Car | J422: 0.3471765872 | M422: Uses open fire without chimney | O422: 0.3039717013
C423: Heats house | E423: 0.3484882331 | H423: Uses separate room as kitchen | J423: 0.271801607 | M423: Has thatch wall | O423: 0.2833003017
... 202 more rows

Sheet AIS05
A2: =A1026 -> Viet Nam
A3: =A1034 -> 2005
A4: Use of drinking water sources
A5: by wealth quintile and sub-national region
A6: Notes:
A7: WHO/UNICEF JMP customised wealth index excludes water,
A8: sanitation and hygiene assets.
A9: Survey used for analysis: | B9: =A1025 -> AIS05
A10: =B1028 -> Ratio of Improved wells based on: | B10: MICS06
A11: =B1027 -> Time to improved source based on: | B11: MICS06
A14: Use of drinking water sources | C14: NATIONAL wealth index quintile | H14: URBAN wealth index quintile | M14: RURAL wealth index quintile | R14: SUB-REGIONS: | BA14: Raw numbers of respondents: | BB14: Use of drinking water sources | BC14: NATIONAL wealth index quintile | BH14: URBAN wealth index quintile | BM14: RURAL wealth index quintile | BR14: SUB-REGIONS:
A15: Weighted percentage (used in graphs) | C15: Poorest | D15: Poor | E15: Middle | F15: Rich | G15: Richest | H15: Poorest | I15: Poor | J15: Middle | K15: Rich | L15: Richest | M15: Poorest | N15: Poor | O15: Middle | P15: Rich | Q15: Richest | R15: Center | S15: North | T15: South | BA15: Water data, raw numbers (weighted) | BC15: Poorest | BD15: Poor | BE15: Middle | BF15: Rich | BG15: Richest | BH15: Poorest | BI15: Poor | BJ15: Middle | BK15: Rich | BL15: Richest | BM15: Poorest | BN15: Poor | BO15: Middle | BP15: Rich | BQ15: Richest | BR15: Center | BS15: North | BT15: South
A16: Water | B16: Improved | C16: =C58+C59+C66+C67+C68+(C60+C61)*MICS06!C24/100+'AIS05'!C62*MICS06!C25/100 -> 67.15017258 | D16: =D58+D59+D66+D67+D68+(D60+D61)*MICS06!D24/100+'AIS05'!D62*MICS06!D25/100 -> 80.75581599 | E16: =E58+E59+E66+E67+E68+(E60+E61)*MICS06!E24/100+'AIS05'!E62*MICS06!E25/100 -> 90.13428462 | F16: =F58+F59+F66+F67+F68+(F60+F61)*MICS06!F24/100+'AIS05'!F62*MICS06!F25/100 -> 94.4365449 | G16: =G58+G59+G66+G67+G68+(G60+G61)*MICS06!G24/100+'AIS05'!G62*MICS06!G25/100 -> 97.60253832 | H16: =H58+H59+H66+H67+H68+(H60+H61)*MICS06!H24/100+'AIS05'!H62*MICS06!H25/100 -> 92.76247398 | I16: =I58+I59+I66+I67+I68+(I60+I61)*MICS06!I24/100+'AIS05'!I62*MICS06!I25/100 -> 98.15528485 | J16: =J58+J59+J66+J67+J68+(J60+J61)*MICS06!J24/100+'AIS05'!J62*MICS06!J25/100 -> 99.47013043 | K16: =K58+K59+K66+K67+K68+(K60+K61)*MICS06!K24/100+'AIS05'!K62*MICS06!K25/100 -> 97.63423516 | L16: =L58+L59+L66+L67+L68+(L60+L61)*MICS06!L24/100+'AIS05'!L62*MICS06!L25/100 -> 100 | M16: =M58+M59+M66+M67+M68+(M60+M61)*MICS06!M24/100+'AIS05'!M62*MICS06!M25/100 -> 64.96646163 | N16: =N58+N59+N66+N67+N68+(N60+N61)*MICS06!N24/100+'AIS05'!N62*MICS06!N25/100 -> 76.71910517 | O16: =O58+O59+O66+O67+O68+(O60+O61)*MICS06!O24/100+'AIS05'!O62*MICS06!O25/100 -> 87.27330873 | P16: =P58+P59+P66+P67+P68+(P60+P61)*MICS06!P24/100+'AIS05'!P62*MICS06!P25/100 -> 91.70734588 | Q16: =Q58+Q59+Q66+Q67+Q68+(Q60+Q61)*MICS06!Q24/100+'AIS05'!Q62*MICS06!Q25/100 -> 94.39442673 | R16: N/A | S16: N/A | T16: N/A | BA16: Water | BB16: Improved | BC16: N/A | BD16: N/A | BE16: N/A | BF16: N/A | BG16: N/A | BH16: N/A | BI16: N/A | BJ16: N/A | BK16: N/A | BL16: N/A | BM16: N/A | BN16: N/A | BO16: N/A | BP16: N/A | BQ16: N/A | BR16: N/A | BS16: N/A | BT16: N/A
B17: Not Improved | C17: =100-C16 -> 32.84982742 | D17: =100-D16 -> 19.24418401 | E17: 9.86571538 | F17: 5.563455098 | G17: 2.397461682 | H17: 7.237526016 | I17: 1.844715147 | J17: 0.5298695682 | K17: 2.365764841 | L17: 0 | M17: 35.03353837 | N17: 23.28089483 | O17: 12.72669127 | P17: 8.292654123 | Q17: 5.605573268 | R17: N/A | S17: N/A | T17: N/A | BB17: Not Improved | BC17: N/A | BD17: N/A | BE17: N/A | BF17: N/A | BG17: N/A | BH17: N/A | BI17: N/A | BJ17: N/A | BK17: N/A | BL17: N/A | BM17: N/A | BN17: N/A | BO17: N/A | BP17: N/A | BQ17: N/A | BR17: N/A | BS17: N/A | BT17: N/A
A18: Water ladder | B18: Basic | C18: =C16*MICS06!C23/100 -> 66.71065971 | D18: =D16*MICS06!D23/100 -> 80.73399441 | E18: =E16*MICS06!E23/100 -> 90.01770364 | F18: =F16*MICS06!F23/100 -> 94.4365449 | G18: =G16*MICS06!G23/100 -> 97.40254099 | H18: =H16*MICS06!H23/100 -> 92.37476089 | I18: =I16*MICS06!I23/100 -> 98.15528485 | J18: =J16*MICS06!J23/100 -> 99.20325267 | K18: =K16*MICS06!K23/100 -> 97.10888231 | L18: =L16*MICS06!L23/100 -> 100 | M18: =M16*MICS06!M23/100 -> 64.37153824 | N18: =N16*MICS06!N23/100 -> 76.69020525 | O18: =O16*MICS06!O23/100 -> 87.27330873 | P18: =P16*MICS06!P23/100 -> 91.68437786 | Q18: =Q16*MICS06!Q23/100 -> 94.39442673 | R18: N/A | S18: N/A | T18: N/A | BA18: Water ladder | BB18: Basic | BC18: N/A | BD18: N/A | BE18: N/A | BF18: N/A | BG18: N/A | BH18: N/A | BI18: N/A | BJ18: N/A | BK18: N/A | BL18: N/A | BM18: N/A | BN18: N/A | BO18: N/A | BP18: N/A | BQ18: N/A | BR18: N/A | BS18: N/A | BT18: N/A
B19: Limited | C19: =C16*MICS06!C22/100 -> 0.4395128754 | D19: =D16*MICS06!D22/100 -> 0.02182157708 | E19: =E16*MICS06!E22/100 -> 0.1165809798 | F19: =F16*MICS06!F22/100 -> 0 | G19: =G16*MICS06!G22/100 -> 0.1999973329 | H19: =H16*MICS06!H22/100 -> 0.3877130952 | I19: =I16*MICS06!I22/100 -> 0 | J19: =J16*MICS06!J22/100 -> 0.26687776 | K19: =K16*MICS06!K22/100 -> 0.5253528536 | L19: =L16*MICS06!L22/100 -> 0 | M19: =M16*MICS06!M22/100 -> 0.5949233881 | N19: =N16*MICS06!N22/100 -> 0.02889992484 | O19: =O16*MICS06!O22/100 -> 0 | P19: =P16*MICS06!P22/100 -> 0.02296801424 | Q19: =Q16*MICS06!Q22/100 -> 0 | R19: N/A | S19: N/A | T19: N/A | BB19: Limited | BC19: N/A | BD19: N/A | BE19: N/A | BF19: N/A | BG19: N/A | BH19: N/A | BI19: N/A | BJ19: N/A | BK19: N/A | BL19: N/A | BM19: N/A | BN19: N/A | BO19: N/A | BP19: N/A | BQ19: N/A | BR19: N/A | BS19: N/A | BT19: N/A
B20: Unimproved | C20: =100-C18-C19-C21 -> 19.50852821 | D20: =100-D18-D19-D21 -> 8.558397837 | E20: 6.246013786 | F20: 2.674904739 | G20: 1.67286464 | H20: 3.570804863 | I20: 1.562158744 | J20: 0.5298695682 | K20: 1.875474049 | L20: -4.263256415e-14 | M20: 21.32253562 | N20: 10.49412385 | O20: 6.816607436 | P20: 5.29218488 | Q20: 3.274480308 | R20: N/A | S20: N/A | T20: N/A | BB20: Unimproved | BC20: N/A | BD20: N/A | BE20: N/A | BF20: N/A | BG20: N/A | BH20: N/A | BI20: N/A | BJ20: N/A | BK20: N/A | BL20: N/A | BM20: N/A | BN20: N/A | BO20: N/A | BP20: N/A | BQ20: N/A | BR20: N/A | BS20: N/A | BT20: N/A
B21: Surface water | C21: =C63+C64+C65 -> 13.34129921 | D21: 10.68578618 | E21: 3.619701594 | F21: 2.888550359 | G21: 0.7245970421 | H21: 3.666721153 | I21: 0.2825564025 | J21: 0 | K21: 0.4902907921 | L21: 0 | M21: 13.71100275 | N21: 12.78677098 | O21: 5.910083829 | P21: 3.000469243 | Q21: 2.33109296 | R21: N/A | S21: N/A | T21: N/A | BB21: Surface water | BC21: N/A | BD21: N/A | BE21: N/A | BF21: N/A | BG21: N/A | BH21: N/A | BI21: N/A | BJ21: N/A | BK21: N/A | BL21: N/A | BM21: N/A | BN21: N/A | BO21: N/A | BP21: N/A | BQ21: N/A | BR21: N/A | BS21: N/A | BT21: N/A
A22: Improved water point at more than 30 minutes | B22: Yes | C22: N/A | D22: N/A | E22: N/A | F22: N/A | G22: N/A | H22: N/A | I22: N/A | J22: N/A | K22: N/A | L22: N/A | M22: N/A | N22: N/A | O22: N/A | P22: N/A | Q22: N/A | R22: N/A | S22: N/A | T22: N/A | BA22: Improved water point at more than 30 minutes | BB22: Yes | BC22: N/A | BD22: N/A | BE22: N/A | BF22: N/A | BG22: N/A | BH22: N/A | BI22: N/A | BJ22: N/A | BK22: N/A | BL22: N/A | BM22: N/A | BN22: N/A | BO22: N/A | BP22: N/A | BQ22: N/A | BR22: N/A | BS22: N/A | BT22: N/A
B23: No | C23: N/A | D23: N/A | E23: N/A | F23: N/A | G23: N/A | H23: N/A | I23: N/A | J23: N/A | K23: N/A | L23: N/A | M23: N/A | N23: N/A | O23: N/A | P23: N/A | Q23: N/A | R23: N/A | S23: N/A | T23: N/A | BB23: No | BC23: N/A | BD23: N/A | BE23: N/A | BF23: N/A | BG23: N/A | BH23: N/A | BI23: N/A | BJ23: N/A | BK23: N/A | BL23: N/A | BM23: N/A | BN23: N/A | BO23: N/A | BP23: N/A | BQ23: N/A | BR23: N/A | BS23: N/A | BT23: N/A
A24: Manually calculated ratios | B24: Improved wells
B25: Improved springs
B26: Other
C27: NATIONAL wealth index quintile | H27: URBAN wealth index quintile | M27: RURAL wealth index quintile | R27: SUB-REGIONS: | BA27: Raw numbers of respondents: | BB27: Use of drinking water sources | BC27: NATIONAL wealth index quintile | BH27: URBAN wealth index quintile | BM27: RURAL wealth index quintile | BR27: SUB-REGIONS:
A28: Percentage based on weighted population | C28: Poorest | D28: Poor | E28: Middle | F28: Rich | G28: Richest | H28: Poorest | I28: Poor | J28: Middle | K28: Rich | L28: Richest | M28: Poorest | N28: Poor | O28: Middle | P28: Rich | Q28: Richest | R28: Center | S28: North | T28: South | BA28: Water data, raw numbers (weighted) | BC28: Poorest | BD28: Poor | BE28: Middle | BF28: Rich | BG28: Richest | BH28: Poorest | BI28: Poor | BJ28: Middle | BK28: Rich | BL28: Richest | BM28: Poorest | BN28: Poor | BO28: Middle | BP28: Rich | BQ28: Richest | BR28: Center | BS28: North | BT28: South
A29: Piped water | B29: Yes | C29: =C58+C59 -> 7.734214672 | D29: 11.66743722 | E29: 9.513145482 | F29: 24.35602311 | G29: 52.9759958 | H29: 40.90290175 | I29: 55.51214143 | J29: 68.68898878 | K29: 75.15849966 | L29: 78.16681258 | M29: 5.846509909 | N29: 10.34307213 | O29: 7.574121689 | P29: 10.63653048 | Q29: 20.59004302 | R29: 12.93714853 | S29: 19.51486277 | T29: 29.31774725 | BA29: Piped water | BB29: Yes | BC29: N/A | BD29: N/A | BE29: N/A | BF29: N/A | BG29: N/A | BH29: N/A | BI29: N/A | BJ29: N/A | BK29: N/A | BL29: N/A | BM29: N/A | BN29: N/A | BO29: N/A | BP29: N/A | BQ29: N/A | BR29: N/A | BS29: N/A | BT29: N/A
B30: No | C30: =100-C29 -> 92.26578533 | D30: =100-D29 -> 88.33256278 | E30: 90.48685452 | F30: 75.64397689 | G30: 47.0240042 | H30: 59.09709825 | I30: 44.48785857 | J30: 31.31101122 | K30: 24.84150034 | L30: 21.83318742 | M30: 94.15349009 | N30: 89.65692787 | O30: 92.42587831 | P30: 89.36346952 | Q30: 79.40995698 | R30: 87.06285147 | S30: 80.48513723 | T30: 70.68225275 | BB30: No | BC30: N/A | BD30: N/A | BE30: N/A | BF30: N/A | BG30: N/A | BH30: N/A | BI30: N/A | BJ30: N/A | BK30: N/A | BL30: N/A | BM30: N/A | BN30: N/A | BO30: N/A | BP30: N/A | BQ30: N/A | BR30: N/A | BS30: N/A | BT30: N/A
A31: Piped water on premises | B31: Yes | C31: =C58 -> 5.794296608 | D31: 10.9007498 | E31: 8.906911086 | F31: 22.8110535 | G31: 51.05548069 | H31: 35.48789887 | I31: 52.16306504 | J31: 65.50753782 | K31: 72.22545499 | L31: 76.3440353 | M31: 4.251078107 | N31: 9.43521238 | O31: 7.340041821 | P31: 9.550602182 | Q31: 20.03152199 | R31: 11.69243223 | S31: 17.75822288 | T31: 28.30769713 | BA31: Piped water on premises | BB31: Yes | BC31: N/A | BD31: N/A | BE31: N/A | BF31: N/A | BG31: N/A | BH31: N/A | BI31: N/A | BJ31: N/A | BK31: N/A | BL31: N/A | BM31: N/A | BN31: N/A | BO31: N/A | BP31: N/A | BQ31: N/A | BR31: N/A | BS31: N/A | BT31: N/A
B32: No | C32: =100-C31 -> 94.20570339 | D32: =100-D31 -> 89.0992502 | E32: 91.09308891 | F32: 77.1889465 | G32: 48.94451931 | H32: 64.51210113 | I32: 47.83693496 | J32: 34.49246218 | K32: 27.77454501 | L32: 23.6559647 | M32: 95.74892189 | N32: 90.56478762 | O32: 92.65995818 | P32: 90.44939782 | Q32: 79.96847801 | R32: 88.30756777 | S32: 82.24177712 | T32: 71.69230287 | BB32: No | BC32: N/A | BD32: N/A | BE32: N/A | BF32: N/A | BG32: N/A | BH32: N/A | BI32: N/A | BJ32: N/A | BK32: N/A | BL32: N/A | BM32: N/A | BN32: N/A | BO32: N/A | BP32: N/A | BQ32: N/A | BR32: N/A | BS32: N/A | BT32: N/A
A33: Piped water into dwelling | B33: Yes | C33: N/A | D33: N/A | E33: N/A | F33: N/A | G33: N/A | H33: N/A | I33: N/A | J33: N/A | K33: N/A | L33: N/A | M33: N/A | N33: N/A | O33: N/A | P33: N/A | Q33: N/A | R33: N/A | S33: N/A | T33: N/A | BA33: Piped water into dwelling | BB33: Yes | BC33: N/A | BD33: N/A | BE33: N/A | BF33: N/A | BG33: N/A | BH33: N/A | BI33: N/A | BJ33: N/A | BK33: N/A | BL33: N/A | BM33: N/A | BN33: N/A | BO33: N/A | BP33: N/A | BQ33: N/A | BR33: N/A | BS33: N/A | BT33: N/A
B34: No | C34: N/A | D34: N/A | E34: N/A | F34: N/A | G34: N/A | H34: N/A | I34: N/A | J34: N/A | K34: N/A | L34: N/A | M34: N/A | N34: N/A | O34: N/A | P34: N/A | Q34: N/A | R34: N/A | S34: N/A | T34: N/A | BB34: No | BC34: N/A | BD34: N/A | BE34: N/A | BF34: N/A | BG34: N/A | BH34: N/A | BI34: N/A | BJ34: N/A | BK34: N/A | BL34: N/A | BM34: N/A | BN34: N/A | BO34: N/A | BP34: N/A | BQ34: N/A | BR34: N/A | BS34: N/A | BT34: N/A
A35: Water source on premises | B35: Yes | C35: N/A | D35: N/A | E35: N/A | F35: N/A | G35: N/A | H35: N/A | I35: N/A | J35: N/A | K35: N/A | L35: N/A | M35: N/A | N35: N/A | O35: N/A | P35: N/A | Q35: N/A | R35: N/A | S35: N/A | T35: N/A | BA35: Water source on premises | BB35: Yes | BC35: N/A | BD35: N/A | BE35: N/A | BF35: N/A | BG35: N/A | BH35: N/A | BI35: N/A | BJ35: N/A | BK35: N/A | BL35: N/A | BM35: N/A | BN35: N/A | BO35: N/A | BP35: N/A | BQ35: N/A | BR35: N/A | BS35: N/A | BT35: N/A
B36: No | C36: N/A | D36: N/A | E36: N/A | F36: N/A | G36: N/A | H36: N/A | I36: N/A | J36: N/A | K36: N/A | L36: N/A | M36: N/A | N36: N/A | O36: N/A | P36: N/A | Q36: N/A | R36: N/A | S36: N/A | T36: N/A | BB36: No | BC36: N/A | BD36: N/A | BE36: N/A | BF36: N/A | BG36: N/A | BH36: N/A | BI36: N/A | BJ36: N/A | BK36: N/A | BL36: N/A | BM36: N/A | BN36: N/A | BO36: N/A | BP36: N/A | BQ36: N/A | BR36: N/A | BS36: N/A | BT36: N/A
A37: Improved Water source on premises | B37: Yes | C37: N/A | D37: N/A | E37: N/A | F37: N/A | G37: N/A | H37: N/A | I37: N/A | J37: N/A | K37: N/A | L37: N/A | M37: N/A | N37: N/A | O37: N/A | P37: N/A | Q37: N/A | R37: N/A | S37: N/A | T37: N/A | BA37: Improved water source on premises | BB37: Yes | BC37: N/A | BD37: N/A | BE37: N/A | BF37: N/A | BG37: N/A | BH37: N/A | BI37: N/A | BJ37: N/A | BK37: N/A | BL37: N/A | BM37: N/A | BN37: N/A | BO37: N/A | BP37: N/A | BQ37: N/A | BR37: N/A | BS37: N/A | BT37: N/A
B38: No | C38: N/A | D38: N/A | E38: N/A | F38: N/A | G38: N/A | H38: N/A | I38: N/A | J38: N/A | K38: N/A | L38: N/A | M38: N/A | N38: N/A | O38: N/A | P38: N/A | Q38: N/A | R38: N/A | S38: N/A | T38: N/A | BB38: No | BC38: N/A | BD38: N/A | BE38: N/A | BF38: N/A | BG38: N/A | BH38: N/A | BI38: N/A | BJ38: N/A | BK38: N/A | BL38: N/A | BM38: N/A | BN38: N/A | BO38: N/A | BP38: N/A | BQ38: N/A | BR38: N/A | BS38: N/A | BT38: N/A
A39: Piped water on premises available when needed | B39: Yes | C39: N/A | D39: N/A | E39: N/A | F39: N/A | G39: N/A | H39: N/A | I39: N/A | J39: N/A | K39: N/A | L39: N/A | M39: N/A | N39: N/A | O39: N/A | P39: N/A | Q39: N/A | R39: N/A | S39: N/A | T39: N/A | BA39: Piped water on premises available when needed | BB39: Yes | BC39: N/A | BD39: N/A | BE39: N/A | BF39: N/A | BG39: N/A | BH39: N/A | BI39: N/A | BJ39: N/A | BK39: N/A | BL39: N/A | BM39: N/A | BN39: N/A | BO39: N/A | BP39: N/A | BQ39: N/A | BR39: N/A | BS39: N/A | BT39: N/A
B40: No | C40: N/A | D40: N/A | E40: N/A | F40: N/A | G40: N/A | H40: N/A | I40: N/A | J40: N/A | K40: N/A | L40: N/A | M40: N/A | N40: N/A | O40: N/A | P40: N/A | Q40: N/A | R40: N/A | S40: N/A | T40: N/A | BB40: No | BC40: N/A | BD40: N/A | BE40: N/A | BF40: N/A | BG40: N/A | BH40: N/A | BI40: N/A | BJ40: N/A | BK40: N/A | BL40: N/A | BM40: N/A | BN40: N/A | BO40: N/A | BP40: N/A | BQ40: N/A | BR40: N/A | BS40: N/A | BT40: N/A
A41: Water point at more than 30 minutes | B41: Yes | C41: N/A | D41: N/A | E41: N/A | F41: N/A | G41: N/A | H41: N/A | I41: N/A | J41: N/A | K41: N/A | L41: N/A | M41: N/A | N41: N/A | O41: N/A | P41: N/A | Q41: N/A | R41: N/A | S41: N/A | T41: N/A | BA41: Water point at more than 30 minutes | BB41: Yes | BC41: N/A | BD41: N/A | BE41: N/A | BF41: N/A | BG41: N/A | BH41: N/A | BI41: N/A | BJ41: N/A | BK41: N/A | BL41: N/A | BM41: N/A | BN41: N/A | BO41: N/A | BP41: N/A | BQ41: N/A | BR41: N/A | BS41: N/A | BT41: N/A
B42: No | C42: N/A | D42: N/A | E42: N/A | F42: N/A | G42: N/A | H42: N/A | I42: N/A | J42: N/A | K42: N/A | L42: N/A | M42: N/A | N42: N/A | O42: N/A | P42: N/A | Q42: N/A | R42: N/A | S42: N/A | T42: N/A | BB42: No | BC42: N/A | BD42: N/A | BE42: N/A | BF42: N/A | BG42: N/A | BH42: N/A | BI42: N/A | BJ42: N/A | BK42: N/A | BL42: N/A | BM42: N/A | BN42: N/A | BO42: N/A | BP42: N/A | BQ42: N/A | BR42: N/A | BS42: N/A | BT42: N/A
A43: Water source available when needed | B43: Yes | C43: N/A | D43: N/A | E43: N/A | F43: N/A | G43: N/A | H43: N/A | I43: N/A | J43: N/A | K43: N/A | L43: N/A | M43: N/A | N43: N/A | O43: N/A | P43: N/A | Q43: N/A | R43: N/A | S43: N/A | T43: N/A | BA43: Water source available when needed | BB43: Yes | BC43: N/A | BD43: N/A | BE43: N/A | BF43: N/A | BG43: N/A | BH43: N/A | BI43: N/A | BJ43: N/A | BK43: N/A | BL43: N/A | BM43: N/A | BN43: N/A | BO43: N/A | BP43: N/A | BQ43: N/A | BR43: N/A | BS43: N/A | BT43: N/A
B44: No | C44: N/A | D44: N/A | E44: N/A | F44: N/A | G44: N/A | H44: N/A | I44: N/A | J44: N/A | K44: N/A | L44: N/A | M44: N/A | N44: N/A | O44: N/A | P44: N/A | Q44: N/A | R44: N/A | S44: N/A | T44: N/A | BB44: No | BC44: N/A | BD44: N/A | BE44: N/A | BF44: N/A | BG44: N/A | BH44: N/A | BI44: N/A | BJ44: N/A | BK44: N/A | BL44: N/A | BM44: N/A | BN44: N/A | BO44: N/A | BP44: N/A | BQ44: N/A | BR44: N/A | BS44: N/A | BT44: N/A
A45: Improved water source available when needed | B45: Yes | C45: N/A | D45: N/A | E45: N/A | F45: N/A | G45: N/A | H45: N/A | I45: N/A | J45: N/A | K45: N/A | L45: N/A | M45: N/A | N45: N/A | O45: N/A | P45: N/A | Q45: N/A | R45: N/A | S45: N/A | T45: N/A | BA45: Improved water source available when needed | BB45: Yes | BC45: N/A | BD45: N/A | BE45: N/A | BF45: N/A | BG45: N/A | BH45: N/A | BI45: N/A | BJ45: N/A | BK45: N/A | BL45: N/A | BM45: N/A | BN45: N/A | BO45: N/A | BP45: N/A | BQ45: N/A | BR45: N/A | BS45: N/A | BT45: N/A
B46: No | C46: N/A | D46: N/A | E46: N/A | F46: N/A | G46: N/A | H46: N/A | I46: N/A | J46: N/A | K46: N/A | L46: N/A | M46: N/A | N46: N/A | O46: N/A | P46: N/A | Q46: N/A | R46: N/A | S46: N/A | T46: N/A | BB46: No | BC46: N/A | BD46: N/A | BE46: N/A | BF46: N/A | BG46: N/A | BH46: N/A | BI46: N/A | BJ46: N/A | BK46: N/A | BL46: N/A | BM46: N/A | BN46: N/A | BO46: N/A | BP46: N/A | BQ46: N/A | BR46: N/A | BS46: N/A | BT46: N/A
A47: Microbiological quality at point of collection | B47: Not contaminated (No E. coli in 100 mL) | C47: N/A | D47: N/A | E47: N/A | F47: N/A | G47: N/A | H47: N/A | I47: N/A | J47: N/A | K47: N/A | L47: N/A | M47: N/A | N47: N/A | O47: N/A | P47: N/A | Q47: N/A | R47: N/A | S47: N/A | T47: N/A | BA47: Microbiological quality at point of collection | BB47: Not contaminated (No E. coli in 100 mL) | BC47: N/A | BD47: N/A | BE47: N/A | BF47: N/A | BG47: N/A | BH47: N/A | BI47: N/A | BJ47: N/A | BK47: N/A | BL47: N/A | BM47: N/A | BN47: N/A | BO47: N/A | BP47: N/A | BQ47: N/A | BR47: N/A | BS47: N/A | BT47: N/A
B48: Contaminated (E. coli detected in 100 mL) | C48: N/A | D48: N/A | E48: N/A | F48: N/A | G48: N/A | H48: N/A | I48: N/A | J48: N/A | K48: N/A | L48: N/A | M48: N/A | N48: N/A | O48: N/A | P48: N/A | Q48: N/A | R48: N/A | S48: N/A | T48: N/A | BB48: Contaminated (E. coli detected in 100 mL) | BC48: N/A | BD48: N/A | BE48: N/A | BF48: N/A | BG48: N/A | BH48: N/A | BI48: N/A | BJ48: N/A | BK48: N/A | BL48: N/A | BM48: N/A | BN48: N/A | BO48: N/A | BP48: N/A | BQ48: N/A | BR48: N/A | BS48: N/A | BT48: N/A
B49: Highly contaminated (>100 CFU/100 mL) | C49: N/A | D49: N/A | E49: N/A | F49: N/A | G49: N/A | H49: N/A | I49: N/A | J49: N/A | K49: N/A | L49: N/A | M49: N/A | N49: N/A | O49: N/A | P49: N/A | Q49: N/A | R49: N/A | S49: N/A | T49: N/A | BB49: Highly contaminated (>100 CFU/100 mL) | BC49: N/A | BD49: N/A | BE49: N/A | BF49: N/A | BG49: N/A | BH49: N/A | BI49: N/A | BJ49: N/A | BK49: N/A | BL49: N/A | BM49: N/A | BN49: N/A | BO49: N/A | BP49: N/A | BQ49: N/A | BR49: N/A | BS49: N/A | BT49: N/A
A50: Microbiological quality of improved water sources at point of collection | B50: Not contaminated (No E. coli in 100 mL) | C50: N/A | D50: N/A | E50: N/A | F50: N/A | G50: N/A | H50: N/A | I50: N/A | J50: N/A | K50: N/A | L50: N/A | M50: N/A | N50: N/A | O50: N/A | P50: N/A | Q50: N/A | R50: N/A | S50: N/A | T50: N/A | BA50: Microbiological quality of improved water sources at point of collection | BB50: Not contaminated (No E. coli in 100 mL) | BC50: N/A | BD50: N/A | BE50: N/A | BF50: N/A | BG50: N/A | BH50: N/A | BI50: N/A | BJ50: N/A | BK50: N/A | BL50: N/A | BM50: N/A | BN50: N/A | BO50: N/A | BP50: N/A | BQ50: N/A | BR50: N/A | BS50: N/A | BT50: N/A
B51: Contaminated (E. coli detected in 100 mL) | C51: N/A | D51: N/A | E51: N/A | F51: N/A | G51: N/A | H51: N/A | I51: N/A | J51: N/A | K51: N/A | L51: N/A | M51: N/A | N51: N/A | O51: N/A | P51: N/A | Q51: N/A | R51: N/A | S51: N/A | T51: N/A | BB51: Contaminated (E. coli detected in 100 mL) | BC51: N/A | BD51: N/A | BE51: N/A | BF51: N/A | BG51: N/A | BH51: N/A | BI51: N/A | BJ51: N/A | BK51: N/A | BL51: N/A | BM51: N/A | BN51: N/A | BO51: N/A | BP51: N/A | BQ51: N/A | BR51: N/A | BS51: N/A | BT51: N/A
B52: Highly contaminated (>100 CFU/100 mL) | C52: N/A | D52: N/A | E52: N/A | F52: N/A | G52: N/A | H52: N/A | I52: N/A | J52: N/A | K52: N/A | L52: N/A | M52: N/A | N52: N/A | O52: N/A | P52: N/A | Q52: N/A | R52: N/A | S52: N/A | T52: N/A | BB52: Highly contaminated (>100 CFU/100 mL) | BC52: N/A | BD52: N/A | BE52: N/A | BF52: N/A | BG52: N/A | BH52: N/A | BI52: N/A | BJ52: N/A | BK52: N/A | BL52: N/A | BM52: N/A | BN52: N/A | BO52: N/A | BP52: N/A | BQ52: N/A | BR52: N/A | BS52: N/A | BT52: N/A
A53: Microbiological quality of piped on premises at point of collection | B53: Not contaminated (No E. coli in 100 mL) | C53: N/A | D53: N/A | E53: N/A | F53: N/A | G53: N/A | H53: N/A | I53: N/A | J53: N/A | K53: N/A | L53: N/A | M53: N/A | N53: N/A | O53: N/A | P53: N/A | Q53: N/A | R53: N/A | S53: N/A | T53: N/A | BA53: Microbiological quality of piped on premises at point of collection | BB53: Not contaminated (No E. coli in 100 mL) | BC53: N/A | BD53: N/A | BE53: N/A | BF53: N/A | BG53: N/A | BH53: N/A | BI53: N/A | BJ53: N/A | BK53: N/A | BL53: N/A | BM53: N/A | BN53: N/A | BO53: N/A | BP53: N/A | BQ53: N/A | BR53: N/A | BS53: N/A | BT53: N/A
B54: Contaminated (E. coli detected in 100 mL) | C54: N/A | D54: N/A | E54: N/A | F54: N/A | G54: N/A | H54: N/A | I54: N/A | J54: N/A | K54: N/A | L54: N/A | M54: N/A | N54: N/A | O54: N/A | P54: N/A | Q54: N/A | R54: N/A | S54: N/A | T54: N/A | BB54: Contaminated (E. coli detected in 100 mL) | BC54: N/A | BD54: N/A | BE54: N/A | BF54: N/A | BG54: N/A | BH54: N/A | BI54: N/A | BJ54: N/A | BK54: N/A | BL54: N/A | BM54: N/A | BN54: N/A | BO54: N/A | BP54: N/A | BQ54: N/A | BR54: N/A | BS54: N/A | BT54: N/A
B55: Highly contaminated (>100 CFU/100 mL) | C55: N/A | D55: N/A | E55: N/A | F55: N/A | G55: N/A | H55: N/A | I55: N/A | J55: N/A | K55: N/A | L55: N/A | M55: N/A | N55: N/A | O55: N/A | P55: N/A | Q55: N/A | R55: N/A | S55: N/A | T55: N/A | BB55: Highly contaminated (>100 CFU/100 mL) | BC55: N/A | BD55: N/A | BE55: N/A | BF55: N/A | BG55: N/A | BH55: N/A | BI55: N/A | BJ55: N/A | BK55: N/A | BL55: N/A | BM55: N/A | BN55: N/A | BO55: N/A | BP55: N/A | BQ55: N/A | BR55: N/A | BS55: N/A | BT55: N/A
C56: NATIONAL wealth index quintile | H56: URBAN wealth index quintile | M56: RURAL wealth index quintile | R56: SUB-REGIONS: | BA56: Raw numbers of respondents: | BB56: Use of drinking water sources | BC56: NATIONAL wealth index quintile | BH56: URBAN wealth index quintile | BM56: RURAL wealth index quintile | BR56: SUB-REGIONS:
A57: Percentage based on weighted population | C57: Poorest | D57: Poor | E57: Middle | F57: Rich | G57: Richest | H57: Poorest | I57: Poor | J57: Middle | K57: Rich | L57: Richest | M57: Poorest | N57: Poor | O57: Middle | P57: Rich | Q57: Richest | R57: Center | S57: North | T57: South | BA57: Water data, raw numbers (weighted) | BC57: Poorest | BD57: Poor | BE57: Middle | BF57: Rich | BG57: Richest | BH57: Poorest | BI57: Poor | BJ57: Middle | BK57: Rich | BL57: Richest | BM57: Poorest | BN57: Poor | BO57: Middle | BP57: Rich | BQ57: Richest | BR57: Center | BS57: North | BT57: South
A58: Source of drinking water | B58: Piped into residence/plot | C58: 5.794296608 | D58: 10.9007498 | E58: 8.906911086 | F58: 22.8110535 | G58: 51.05548069 | H58: 35.48789887 | I58: 52.16306504 | J58: 65.50753782 | K58: 72.22545499 | L58: 76.3440353 | M58: 4.251078107 | N58: 9.43521238 | O58: 7.340041821 | P58: 9.550602182 | Q58: 20.03152199 | R58: 11.69243223 | S58: 17.75822288 | T58: 28.30769713
B59: Piped to public tap | C59: 1.939918064 | D59: 0.7666874182 | E59: 0.6062343958 | F59: 1.544969612 | G59: 1.920515111 | H59: 5.41500288 | I59: 3.349076388 | J59: 3.181450963 | K59: 2.933044669 | L59: 1.822777278 | M59: 1.595431802 | N59: 0.9078597514 | O59: 0.2340798684 | P59: 1.085928302 | Q59: 0.5585210237 | R59: 1.244716295 | S59: 1.756639887 | T59: 1.010050119
B60: Well into residence/dwelling | C60: 35.13833688 | D60: 59.43358707 | E60: 66.5060768 | F60: 56.10204364 | G60: 38.26033206 | H60: 43.87485148 | I60: 36.26298177 | J60: 27.8988719 | K60: 21.77722351 | L60: 21.03661635 | M60: 33.12110019 | N60: 55.40564883 | O60: 66.03299336 | P60: 65.50129589 | Q60: 60.63774359 | R60: 72.24650666 | S60: 44.67108471 | T60: 42.1265571
B61: Public well | C61: 3.246199721 | D61: 2.953161634 | E61: 2.582305956 | F61: 1.437283138 | G61: 0.4936276519 | H61: 1.893828588 | I61: 1.184622347 | J61: 0.1413671224 | K61: 0.1469739386 | L61: 0.1334196652 | M61: 3.385580205 | N61: 2.700941695 | O61: 2.751035115 | P61: 2.519274584 | Q61: 1.099080445 | R61: 3.06984558 | S61: 2.505473846 | T61: 1.061177897
B62: Spring | C62: 34.07610813 | D62: 3.45515017 | E62: 0.4244191744 | F62: 0.3953630056 | G62: 0.2146140166 | H62: 0.520833859 | I62: 0 | J62: 0.1268038073 | K62: 0 | L62: 0 | M62: 38.04735825 | N62: 7.614683392 | O62: 1.218005294 | P62: 0.2962269039 | Q62: 0.5546103281 | R62: 7.362991803 | S62: 14.89649438 | T62: 0.298202612
B63: River, stream | C63: 12.78836574 | D63: 10.5096352 | E63: 3.533417285 | F63: 2.888550359 | G63: 0.7245970421 | H63: 3.15537869 | I63: 0.2825564025 | J63: 0 | K63: 0.4902907921 | L63: 0 | M63: 13.14824476 | N63: 12.66263287 | O63: 5.708622974 | P63: 3.000469243 | Q63: 2.33109296 | R63: 0.5481973399 | S63: 0.1508411036 | T63: 16.57791393
B64: Pond, lake | C64: 0.5289753775 | D64: 0.06923369691 | E64: 0.08628430883 | F64: 0 | G64: 0 | H64: 0.5113424635 | I64: 0 | J64: 0 | K64: 0 | L64: 0 | M64: 0.5330108565 | N64: 0.007790887794 | O64: 0.1850345306 | P64: 0 | Q64: 0 | R64: 0 | S64: 0.04497816157 | T64: 0.3375439241
B65: Dam | C65: 0.02395809329 | D65: 0.1069172805 | E65: 0 | F65: 0 | G65: 0 | H65: 0 | I65: 0 | J65: 0 | K65: 0 | L65: 0 | M65: 0.02974713295 | N65: 0.116347217 | O65: 0.01642632467 | P65: 0 | Q65: 0 | R65: 0.04797419015 | S65: 0.03539491715 | T65: 0
B66: Rainwater | C66: 5.418427234 | D66: 10.67704263 | E66: 15.83306937 | F66: 14.46079567 | G66: 6.699419517 | H66: 5.959715903 | I66: 5.811205063 | J66: 3.143968392 | K66: 2.427012093 | L66: 0.2996003652 | M66: 5.198179947 | N66: 9.942526046 | O66: 15.13621628 | P66: 17.28398171 | Q66: 14.09194899 | R66: 2.840976049 | S66: 18.11602687 | T66: 8.418028805
B67: Tanker truck | C67: 0.7186961112 | D67: 0.8452833737 | E67: 1.246766249 | F67: 0.3599410711 | G67: 0.3023388108 | H67: 3.181147263 | I67: 0.9464929904 | J67: 0 | K67: 0 | L67: 0.1389524237 | M67: 0.386749065 | N67: 0.8407675251 | O67: 1.096988471 | P67: 0.6144527903 | Q67: 0.3414869504 | R67: 0.1959791728 | S67: 0.03449519072 | T67: 1.773087149
B68: Bottled water | C68: 0 | D68: 0 | E68: 0.2745153692 | F68: 0 | G68: 0.329075099 | H68: 0 | I68: 0 | J68: 0 | K68: 0 | L68: 0.224598617 | M68: 0 | N68: 0 | O68: 0.1931263734 | P68: 0.1477683887 | Q68: 0.3539937191 | R68: 0.421914884 | S68: 0.005989256316 | T68: 0.0181990042
B69: Other | C69: 0.3267180429 | D69: 0.2825517288 | E69: 0 | F69: 0 | G69: 0 | H69: 0 | I69: 0 | J69: 0 | K69: 0 | L69: 0 | M69: 0.3035196817 | N69: 0.3655894062 | O69: 0.08742959089 | P69: 0 | Q69: 0 | R69: 0.3284657938 | S69: 0.02435880258 | T69: 0.07154232864
A108: =A1026 -> Viet Nam
A109: =A1034 -> 2005
A110: Use of sanitation facilities
A111: by wealth quintile and sub-national region
A112: Notes:
A113: WHO/UNICEF JMP customised wealth index excludes water,
A114: sanitation and hygiene assets.
A115: Survey used for analysis: | B115: =A1025 -> AIS05
A116: =B1030 -> Ratio of Improved latrines based on: | B116: MICS06
A117: =B1029 -> Ratio of Shared improved based on: | B117: MICS06
A120: Use of sanitation facilities | C120: NATIONAL wealth index quintile | H120: URBAN wealth index quintile | M120: RURAL wealth index quintile | R120: SUB-REGIONS: | BA120: Raw numbers of respondents: | BB120: Use of sanitation facilities | BC120: NATIONAL wealth index quintile | BH120: URBAN wealth index quintile | BM120: RURAL wealth index quintile | BR120: SUB-REGIONS:
A121: Weighted percentage (used in graphs) | C121: Poorest | D121: Poor | E121: Middle | F121: Rich | G121: Richest | H121: Poorest | I121: Poor | J121: Middle | K121: Rich | L121: Richest | M121: Poorest | N121: Poor | O121: Middle | P121: Rich | Q121: Richest | R121: Center | S121: North | T121: South | BA121: Sanitation data, raw numbers (weighted) | BC121: Poorest | BD121: Poor | BE121: Middle | BF121: Rich | BG121: Richest | BH121: Poorest | BI121: Poor | BJ121: Middle | BK121: Rich | BL121: Richest | BM121: Poorest | BN121: Poor | BO121: Middle | BP121: Rich | BQ121: Richest | BR121: Center | BS121: North | BT121: South
A122: Sanitation | B122: Improved | C122: =C153+C154+C155*MICS06!C130/100 -> 15.83998063 | D122: =D153+D154+D155*MICS06!D130/100 -> 39.04186342 | E122: =E153+E154+E155*MICS06!E130/100 -> 57.94237215 | F122: =F153+F154+F155*MICS06!F130/100 -> 80.96919741 | G122: =G153+G154+G155*MICS06!G130/100 -> 94.26750306 | H122: =H153+H154+H155*MICS06!H130/100 -> 63.87663525 | I122: =I153+I154+I155*MICS06!I130/100 -> 94.71097988 | J122: =J153+J154+J155*MICS06!J130/100 -> 99.44576628 | K122: =K153+K154+K155*MICS06!K130/100 -> 100 | L122: =L153+L154+L155*MICS06!L130/100 -> 100 | M122: =M153+M154+M155*MICS06!M130/100 -> 15.91579284 | N122: =N153+N154+N155*MICS06!N130/100 -> 28.95882454 | O122: =O153+O154+O155*MICS06!O130/100 -> 49.09520075 | P122: =P153+P154+P155*MICS06!P130/100 -> 62.06446653 | Q122: =Q153+Q154+Q155*MICS06!Q130/100 -> 87.93541431 | R122: N/A | S122: N/A | T122: N/A | BA122: Sanitation | BB122: Improved | BC122: N/A | BD122: N/A | BE122: N/A | BF122: N/A | BG122: N/A | BH122: N/A | BI122: N/A | BJ122: N/A | BK122: N/A | BL122: N/A | BM122: N/A | BN122: N/A | BO122: N/A | BP122: N/A | BQ122: N/A | BR122: N/A | BS122: N/A | BT122: N/A
B123: Not Improved | C123: =100-C122 -> 84.16001937 | D123: =100-D122 -> 60.95813658 | E123: 42.05762785 | F123: 19.03080259 | G123: 5.732496937 | H123: 36.12336475 | I123: 5.289020116 | J123: 0.5542337236 | K123: 0 | L123: 0 | M123: 84.08420716 | N123: 71.04117546 | O123: 50.90479925 | P123: 37.93553347 | Q123: 12.06458569 | R123: N/A | S123: N/A | T123: N/A | BB123: Not Improved | BC123: N/A | BD123: N/A | BE123: N/A | BF123: N/A | BG123: N/A | BH123: N/A | BI123: N/A | BJ123: N/A | BK123: N/A | BL123: N/A | BM123: N/A | BN123: N/A | BO123: N/A | BP123: N/A | BQ123: N/A | BR123: N/A | BS123: N/A | BT123: N/A
A124: Sanitation ladder | B124: Basic | C124: =C122*MICS06!C129/100 -> 14.46095196 | D124: =D122*MICS06!D129/100 -> 35.6714681 | E124: =E122*MICS06!E129/100 -> 54.59961159 | F124: =F122*MICS06!F129/100 -> 77.19852758 | G124: =G122*MICS06!G129/100 -> 91.24923341 | H124: =H122*MICS06!H129/100 -> 56.26282044 | I124: =I122*MICS06!I129/100 -> 86.9157985 | J124: =J122*MICS06!J129/100 -> 94.13253515 | K124: =K122*MICS06!K129/100 -> 97.41836747 | L124: =L122*MICS06!L129/100 -> 98.46964648 | M124: =M122*MICS06!M129/100 -> 14.58452282 | N124: =N122*MICS06!N129/100 -> 26.49753887 | O124: =O122*MICS06!O129/100 -> 45.94341504 | P124: =P122*MICS06!P129/100 -> 58.95691851 | Q124: =Q122*MICS06!Q129/100 -> 85.56091276 | R124: N/A | S124: N/A | T124: N/A | BA124: Sanitation ladder | BB124: Basic | BC124: N/A | BD124: N/A | BE124: N/A | BF124: N/A | BG124: N/A | BH124: N/A | BI124: N/A | BJ124: N/A | BK124: N/A | BL124: N/A | BM124: N/A | BN124: N/A | BO124: N/A | BP124: N/A | BQ124: N/A | BR124: N/A | BS124: N/A | BT124: N/A
B125: Limited | C125: =C122*MICS06!C128/100 -> 1.379028664 | D125: =D122*MICS06!D128/100 -> 3.370395328 | E125: =E122*MICS06!E128/100 -> 3.342760559 | F125: =F122*MICS06!F128/100 -> 3.770669823 | G125: =G122*MICS06!G128/100 -> 3.01826965 | H125: =H122*MICS06!H128/100 -> 7.613814811 | I125: =I122*MICS06!I128/100 -> 7.795181387 | J125: =J122*MICS06!J128/100 -> 5.313231122 | K125: =K122*MICS06!K128/100 -> 2.58163253 | L125: =L122*MICS06!L128/100 -> 1.530353524 | M125: =M122*MICS06!M128/100 -> 1.331270021 | N125: =N122*MICS06!N128/100 -> 2.461285672 | O125: =O122*MICS06!O128/100 -> 3.151785714 | P125: =P122*MICS06!P128/100 -> 3.107548017 | Q125: =Q122*MICS06!Q128/100 -> 2.374501554 | R125: N/A | S125: N/A | T125: N/A | BB125: Limited | BC125: N/A | BD125: N/A | BE125: N/A | BF125: N/A | BG125: N/A | BH125: N/A | BI125: N/A | BJ125: N/A | BK125: N/A | BL125: N/A | BM125: N/A | BN125: N/A | BO125: N/A | BP125: N/A | BQ125: N/A | BR125: N/A | BS125: N/A | BT125: N/A
B126: Unimproved | C126: =100-C124-C125-C127 -> 36.12732353 | D126: =100-D124-D125-D127 -> 36.07895122 | E126: 31.14467059 | F126: 14.38877269 | G126: 4.939256364 | H126: 21.92171544 | I126: 1.940000438 | J126: -5.773159728e-14 | K126: -5.950795412e-14 | L126: -3.930189507e-14 | M126: 34.91887368 | N126: 39.21654807 | O126: 34.63380626 | P126: 32.00484903 | Q126: 8.80340905 | R126: N/A | S126: N/A | T126: N/A | BB126: Unimproved | BC126: N/A | BD126: N/A | BE126: N/A | BF126: N/A | BG126: N/A | BH126: N/A | BI126: N/A | BJ126: N/A | BK126: N/A | BL126: N/A | BM126: N/A | BN126: N/A | BO126: N/A | BP126: N/A | BQ126: N/A | BR126: N/A | BS126: N/A | BT126: N/A
B127: Open defecation | C127: =C156 -> 48.03269584 | D127: =D156 -> 24.87918536 | E127: 10.91295725 | F127: 4.642029906 | G127: 0.7932405732 | H127: 14.20164931 | I127: 3.349019678 | J127: 0.5542337236 | K127: 0 | L127: 0 | M127: 49.16533348 | N127: 31.82462739 | O127: 16.27099299 | P127: 5.930684441 | Q127: 3.261176636 | R127: N/A | S127: N/A | T127: N/A | BB127: Open defecation | BC127: N/A | BD127: N/A | BE127: N/A | BF127: N/A | BG127: N/A | BH127: N/A | BI127: N/A | BJ127: N/A | BK127: N/A | BL127: N/A | BM127: N/A | BN127: N/A | BO127: N/A | BP127: N/A | BQ127: N/A | BR127: N/A | BS127: N/A | BT127: N/A
A128: Shared among Improved Sanitation | B128: Yes | C128: N/A | D128: N/A | E128: N/A | F128: N/A | G128: N/A | H128: N/A | I128: N/A | J128: N/A | K128: N/A | L128: N/A | M128: N/A | N128: N/A | O128: N/A | P128: N/A | Q128: N/A | R128: N/A | S128: N/A | T128: N/A | BA128: Shared among improved sanitation facilities | BB128: Yes | BC128: N/A | BD128: N/A | BE128: N/A | BF128: N/A | BG128: N/A | BH128: N/A | BI128: N/A | BJ128: N/A | BK128: N/A | BL128: N/A | BM128: N/A | BN128: N/A | BO128: N/A | BP128: N/A | BQ128: N/A | BR128: N/A | BS128: N/A | BT128: N/A
B129: No | C129: N/A | D129: N/A | E129: N/A | F129: N/A | G129: N/A | H129: N/A | I129: N/A | J129: N/A | K129: N/A | L129: N/A | M129: N/A | N129: N/A | O129: N/A | P129: N/A | Q129: N/A | R129: N/A | S129: N/A | T129: N/A | BB129: No | BC129: N/A | BD129: N/A | BE129: N/A | BF129: N/A | BG129: N/A | BH129: N/A | BI129: N/A | BJ129: N/A | BK129: N/A | BL129: N/A | BM129: N/A | BN129: N/A | BO129: N/A | BP129: N/A | BQ129: N/A | BR129: N/A | BS129: N/A | BT129: N/A
A130: Manually calculated ratios | B130: Improved latrines
B131: Other
B132: Other
C133: NATIONAL wealth index quintile | H133: URBAN wealth index quintile | M133: RURAL wealth index quintile | R133: SUB-REGIONS: | BA133: Raw numbers of respondents: | BB133: Use of sanitation facilities | BC133: NATIONAL wealth index quintile | BH133: URBAN wealth index quintile | BM133: RURAL wealth index quintile | BR133: SUB-REGIONS:
A134: Percentage based on weighted population | C134: Poorest | D134: Poor | E134: Middle | F134: Rich | G134: Richest | H134: Poorest | I134: Poor | J134: Middle | K134: Rich | L134: Richest | M134: Poorest | N134: Poor | O134: Middle | P134: Rich | Q134: Richest | R134: Center | S134: North | T134: South | BA134: Sanitation data, raw numbers (weighted) | BC134: Poorest | BD134: Poor | BE134: Middle | BF134: Rich | BG134: Richest | BH134: Poorest | BI134: Poor | BJ134: Middle | BK134: Rich | BL134: Richest | BM134: Poorest | BN134: Poor | BO134: Middle | BP134: Rich | BQ134: Richest | BR134: Center | BS134: North | BT134: South
A135: Sanitation type | B135: Sewer connection | C135: N/A | D135: N/A | E135: N/A | F135: N/A | G135: N/A | H135: N/A | I135: N/A | J135: N/A | K135: N/A | L135: N/A | M135: N/A | N135: N/A | O135: N/A | P135: N/A | Q135: N/A | R135: N/A | S135: N/A | T135: N/A | BA135: Sanitation type | BB135: Sewer connection | BC135: N/A | BD135: N/A | BE135: N/A | BF135: N/A | BG135: N/A | BH135: N/A | BI135: N/A | BJ135: N/A | BK135: N/A | BL135: N/A | BM135: N/A | BN135: N/A | BO135: N/A | BP135: N/A | BQ135: N/A | BR135: N/A | BS135: N/A | BT135: N/A
B136: Septic tank connection | C136: N/A | D136: N/A | E136: N/A | F136: N/A | G136: N/A | H136: N/A | I136: N/A | J136: N/A | K136: N/A | L136: N/A | M136: N/A | N136: N/A | O136: N/A | P136: N/A | Q136: N/A | R136: N/A | S136: N/A | T136: N/A | BB136: Septic tank connection | BC136: N/A | BD136: N/A | BE136: N/A | BF136: N/A | BG136: N/A | BH136: N/A | BI136: N/A | BJ136: N/A | BK136: N/A | BL136: N/A | BM136: N/A | BN136: N/A | BO136: N/A | BP136: N/A | BQ136: N/A | BR136: N/A | BS136: N/A | BT136: N/A
B137: Improved latrines | C137: N/A | D137: N/A | E137: N/A | F137: N/A | G137: N/A | H137: N/A | I137: N/A | J137: N/A | K137: N/A | L137: N/A | M137: N/A | N137: N/A | O137: N/A | P137: N/A | Q137: N/A | R137: N/A | S137: N/A | T137: N/A | BB137: Improved latrines | BC137: N/A | BD137: N/A | BE137: N/A | BF137: N/A | BG137: N/A | BH137: N/A | BI137: N/A | BJ137: N/A | BK137: N/A | BL137: N/A | BM137: N/A | BN137: N/A | BO137: N/A | BP137: N/A | BQ137: N/A | BR137: N/A | BS137: N/A | BT137: N/A
B138: Unimproved facilities | C138: N/A | D138: N/A | E138: N/A | F138: N/A | G138: N/A | H138: N/A | I138: N/A | J138: N/A | K138: N/A | L138: N/A | M138: N/A | N138: N/A | O138: N/A | P138: N/A | Q138: N/A | R138: N/A | S138: N/A | T138: N/A | BB138: Unimproved facilities | BC138: N/A | BD138: N/A | BE138: N/A | BF138: N/A | BG138: N/A | BH138: N/A | BI138: N/A | BJ138: N/A | BK138: N/A | BL138: N/A | BM138: N/A | BN138: N/A | BO138: N/A | BP138: N/A | BQ138: N/A | BR138: N/A | BS138: N/A | BT138: N/A
B139: Open defecation | C139: 48.03269584 | D139: 24.87303834 | E139: 10.91295725 | F139: 4.642029906 | G139: 0.7932405732 | H139: 14.20164931 | I139: 3.349019678 | J139: 0.5542337236 | K139: 0 | L139: 0 | M139: 49.16533348 | N139: 31.81485994 | O139: 16.27099299 | P139: 5.930684441 | Q139: 3.261176636 | R139: 23.43757104 | S139: 13.67487648 | T139: 18.13665015 | BB139: Open defecation | BC139: N/A | BD139: N/A | BE139: N/A | BF139: N/A | BG139: N/A | BH139: N/A | BI139: N/A | BJ139: N/A | BK139: N/A | BL139: N/A | BM139: N/A | BN139: N/A | BO139: N/A | BP139: N/A | BQ139: N/A | BR139: N/A | BS139: N/A | BT139: N/A
A140: Septic tank emptying practices | B140: Not emptied/treated and disposed in situ | C140: N/A | D140: N/A | E140: N/A | F140: N/A | G140: N/A | H140: N/A | I140: N/A | J140: N/A | K140: N/A | L140: N/A | M140: N/A | N140: N/A | O140: N/A | P140: N/A | Q140: N/A | R140: N/A | S140: N/A | T140: N/A | BA140: Septic tank emptying practices | BB140: Not emptied/treated and disposed in situ | BC140: N/A | BD140: N/A | BE140: N/A | BF140: N/A | BG140: N/A | BH140: N/A | BI140: N/A | BJ140: N/A | BK140: N/A | BL140: N/A | BM140: N/A | BN140: N/A | BO140: N/A | BP140: N/A | BQ140: N/A | BR140: N/A | BS140: N/A | BT140: N/A
B141: Emptied and buried on site | C141: N/A | D141: N/A | E141: N/A | F141: N/A | G141: N/A | H141: N/A | I141: N/A | J141: N/A | K141: N/A | L141: N/A | M141: N/A | N141: N/A | O141: N/A | P141: N/A | Q141: N/A | R141: N/A | S141: N/A | T141: N/A | BB141: Emptied and buried on site | BC141: N/A | BD141: N/A | BE141: N/A | BF141: N/A | BG141: N/A | BH141: N/A | BI141: N/A | BJ141: N/A | BK141: N/A | BL141: N/A | BM141: N/A | BN141: N/A | BO141: N/A | BP141: N/A | BQ141: N/A | BR141: N/A | BS141: N/A | BT141: N/A
B142: Emptied and discharged locally | C142: N/A | D142: N/A | E142: N/A | F142: N/A | G142: N/A | H142: N/A | I142: N/A | J142: N/A | K142: N/A | L142: N/A | M142: N/A | N142: N/A | O142: N/A | P142: N/A | Q142: N/A | R142: N/A | S142: N/A | T142: N/A | BB142: Emptied and discharged locally | BC142: N/A | BD142: N/A | BE142: N/A | BF142: N/A | BG142: N/A | BH142: N/A | BI142: N/A | BJ142: N/A | BK142: N/A | BL142: N/A | BM142: N/A | BN142: N/A | BO142: N/A | BP142: N/A | BQ142: N/A | BR142: N/A | BS142: N/A | BT142: N/A
B143: Emptied and removed offsite | C143: N/A | D143: N/A | E143: N/A | F143: N/A | G143: N/A | H143: N/A | I143: N/A | J143: N/A | K143: N/A | L143: N/A | M143: N/A | N143: N/A | O143: N/A | P143: N/A | Q143: N/A | R143: N/A | S143: N/A | T143: N/A | BB143: Emptied and removed offsite | BC143: N/A | BD143: N/A | BE143: N/A | BF143: N/A | BG143: N/A | BH143: N/A | BI143: N/A | BJ143: N/A | BK143: N/A | BL143: N/A | BM143: N/A | BN143: N/A | BO143: N/A | BP143: N/A | BQ143: N/A | BR143: N/A | BS143: N/A | BT143: N/A
A144: Latrine emptying practices | B144: Not emptied/treated and disposed in situ | C144: N/A | D144: N/A | E144: N/A | F144: N/A | G144: N/A | H144: N/A | I144: N/A | J144: N/A | K144: N/A | L144: N/A | M144: N/A | N144: N/A | O144: N/A | P144: N/A | Q144: N/A | R144: N/A | S144: N/A | T144: N/A | BA144: Latrine emptying practices | BB144: Not emptied/treated and disposed in situ | BC144: N/A | BD144: N/A | BE144: N/A | BF144: N/A | BG144: N/A | BH144: N/A | BI144: N/A | BJ144: N/A | BK144: N/A | BL144: N/A | BM144: N/A | BN144: N/A | BO144: N/A | BP144: N/A | BQ144: N/A | BR144: N/A | BS144: N/A | BT144: N/A
B145: Emptied and buried on site | C145: N/A | D145: N/A | E145: N/A | F145: N/A | G145: N/A | H145: N/A | I145: N/A | J145: N/A | K145: N/A | L145: N/A | M145: N/A | N145: N/A | O145: N/A | P145: N/A | Q145: N/A | R145: N/A | S145: N/A | T145: N/A | BB145: Emptied and buried on site | BC145: N/A | BD145: N/A | BE145: N/A | BF145: N/A | BG145: N/A | BH145: N/A | BI145: N/A | BJ145: N/A | BK145: N/A | BL145: N/A | BM145: N/A | BN145: N/A | BO145: N/A | BP145: N/A | BQ145: N/A | BR145: N/A | BS145: N/A | BT145: N/A
B146: Emptied and discharged locally | C146: N/A | D146: N/A | E146: N/A | F146: N/A | G146: N/A | H146: N/A | I146: N/A | J146: N/A | K146: N/A | L146: N/A | M146: N/A | N146: N/A | O146: N/A | P146: N/A | Q146: N/A | R146: N/A | S146: N/A | T146: N/A | BB146: Emptied and discharged locally | BC146: N/A | BD146: N/A | BE146: N/A | BF146: N/A | BG146: N/A | BH146: N/A | BI146: N/A | BJ146: N/A | BK146: N/A | BL146: N/A | BM146: N/A | BN146: N/A | BO146: N/A | BP146: N/A | BQ146: N/A | BR146: N/A | BS146: N/A | BT146: N/A
B147: Emptied and removed offsite | C147: N/A | D147: N/A | E147: N/A | F147: N/A | G147: N/A | H147: N/A | I147: N/A | J147: N/A | K147: N/A | L147: N/A | M147: N/A | N147: N/A | O147: N/A | P147: N/A | Q147: N/A | R147: N/A | S147: N/A | T147: N/A | BB147: Emptied and removed offsite | BC147: N/A | BD147: N/A | BE147: N/A | BF147: N/A | BG147: N/A | BH147: N/A | BI147: N/A | BJ147: N/A | BK147: N/A | BL147: N/A | BM147: N/A | BN147: N/A | BO147: N/A | BP147: N/A | BQ147: N/A | BR147: N/A | BS147: N/A | BT147: N/A
A148: Shared among improved sanitation facilities | B148: Yes | C148: N/A | D148: N/A | E148: N/A | F148: N/A | G148: N/A | H148: N/A | I148: N/A | J148: N/A | K148: N/A | L148: N/A | M148: N/A | N148: N/A | O148: N/A | P148: N/A | Q148: N/A | R148: N/A | S148: N/A | T148: N/A | BA148: Shared among improved sanitation facilities | BB148: Yes | BC148: N/A | BD148: N/A | BE148: N/A | BF148: N/A | BG148: N/A | BH148: N/A | BI148: N/A | BJ148: N/A | BK148: N/A | BL148: N/A | BM148: N/A | BN148: N/A | BO148: N/A | BP148: N/A | BQ148: N/A | BR148: N/A | BS148: N/A | BT148: N/A
B149: No | C149: N/A | D149: N/A | E149: N/A | F149: N/A | G149: N/A | H149: N/A | I149: N/A | J149: N/A | K149: N/A | L149: N/A | M149: N/A | N149: N/A | O149: N/A | P149: N/A | Q149: N/A | R149: N/A | S149: N/A | T149: N/A | BB149: No | BC149: N/A | BD149: N/A | BE149: N/A | BF149: N/A | BG149: N/A | BH149: N/A | BI149: N/A | BJ149: N/A | BK149: N/A | BL149: N/A | BM149: N/A | BN149: N/A | BO149: N/A | BP149: N/A | BQ149: N/A | BR149: N/A | BS149: N/A | BT149: N/A
B150: DK/missing | C150: N/A | D150: N/A | E150: N/A | F150: N/A | G150: N/A | H150: N/A | I150: N/A | J150: N/A | K150: N/A | L150: N/A | M150: N/A | N150: N/A | O150: N/A | P150: N/A | Q150: N/A | R150: N/A | S150: N/A | T150: N/A | BB150: DK/missing | BC150: N/A | BD150: N/A | BE150: N/A | BF150: N/A | BG150: N/A | BH150: N/A | BI150: N/A | BJ150: N/A | BK150: N/A | BL150: N/A | BM150: N/A | BN150: N/A | BO150: N/A | BP150: N/A | BQ150: N/A | BR150: N/A | BS150: N/A | BT150: N/A
A151: Shared among all sanitation facilities | B151: Yes | C151: 19.75771554 | D151: 12.79269954 | E151: 6.828466056 | F151: 5.689424025 | G151: 3.651760051 | H151: 11.5921171 | I151: 5.65524309 | J151: 3.977638729 | K151: 2.631649489 | L151: 1.248798199 | M151: 18.98436045 | N151: 15.24774883 | O151: 8.119857745 | P151: 7.036715612 | Q151: 4.53540947 | R151: 2.797944725 | S151: 5.345029774 | T151: 16.10907098 | BA151: Shared among all sanitation facilities | BB151: Yes | BC151: N/A | BD151: N/A | BE151: N/A | BF151: N/A | BG151: N/A | BH151: N/A | BI151: N/A | BJ151: N/A | BK151: N/A | BL151: N/A | BM151: N/A | BN151: N/A | BO151: N/A | BP151: N/A | BQ151: N/A | BR151: N/A | BS151: N/A | BT151: N/A
B152: No | C152: 79.14141355 | D152: 86.17247072 | E152: 92.89273638 | F152: 93.83676959 | G152: 95.91689956 | H152: 88.02036354 | I152: 93.67361485 | J152: 95.03509194 | K152: 96.76984294 | L152: 98.7512018 | M152: 79.85050594 | N152: 83.60650348 | O152: 91.24764213 | P152: 92.54497078 | Q152: 95.29826688 | R152: 96.68105658 | S152: 93.96000389 | T152: 83.33379487 | BB152: No | BC152: N/A | BD152: N/A | BE152: N/A | BF152: N/A | BG152: N/A | BH152: N/A | BI152: N/A | BJ152: N/A | BK152: N/A | BL152: N/A | BM152: N/A | BN152: N/A | BO152: N/A | BP152: N/A | BQ152: N/A | BR152: N/A | BS152: N/A | BT152: N/A
A153: Type of toilet facility | B153: Flush toilet | C153: 1.336787863 | D153: 7.958771145 | E153: 17.7501937 | F153: 43.47139377 | G153: 82.7734167 | H153: 44.30443924 | I153: 79.64746702 | J153: 86.05479252 | K153: 96.27413941 | L153: 97.58569309 | M153: 1.085371866 | N153: 3.278269461 | O153: 10.75831908 | P153: 21.3908419 | Q153: 56.23235185 | R153: 27.80382566 | S153: 27.46526909 | T153: 36.20851909 | BA153: Type of toilet facility | BB153: Flush toilet | BC153: 72.354547 | BD153: 430.459573 | BE153: 960.94149 | BF153: 2352.467993 | BG153: 4479.784253 | BH153: 467.522825 | BI153: 835.66918 | BJ153: 907.381858 | BK153: 1014.243838 | BL153: 1026.908045 | BM153: 47.313931 | BN153: 142.730217 | BO153: 469.636603 | BP153: 930.91999 | BQ153: 2453.681369 | BR153: 1997.260027 | BS153: 2820.074698 | BT153: 3478.673131
B154: Ventilated improved pit latrine | C154: 1.520736881 | D154: 7.677300973 | E154: 14.55101555 | F154: 14.17299607 | G154: 5.716929827 | H154: 13.20919322 | I154: 6.260033519 | J154: 8.561994367 | K154: 0.9952916596 | L154: 1.56333935 | M154: 0.7511276093 | N154: 5.313623361 | O154: 12.45415627 | P154: 14.07493404 | Q154: 14.18824512 | R154: 9.823292089 | S154: 13.65780263 | T154: 2.640449162 | BB154: Ventilated improved pit latrine | BC154: 82.310912 | BD154: 415.235925 | BE154: 787.747717 | BF154: 766.97609 | BG154: 309.406247 | BH154: 139.39008 | BI154: 65.680897 | BJ154: 90.279671 | BK154: 10.485354 | BL154: 16.451241 | BM154: 32.743432 | BN154: 231.346027 | BO154: 543.665567 | BP154: 612.534912 | BQ154: 619.09971 | BR154: 705.646369 | BS154: 1402.353769 | BT154: 253.676753
B155: Traditional pit toilet/latrine | C155: 49.10977942 | D155: 59.48474252 | E155: 56.7858335 | F155: 37.71358025 | G155: 10.7164129 | H155: 28.28471824 | I155: 10.74347978 | J155: 4.828979386 | K155: 2.730568933 | L155: 0.8509675654 | M155: 48.99816704 | N155: 59.58347979 | O155: 60.51653165 | P155: 58.60353962 | Q155: 26.31822639 | R155: 38.93531121 | S155: 45.2002716 | T155: 43.01438159 | BB155: Traditional pit toilet/latrine | BC155: 2658.100019 | BD155: 3217.302822 | BE155: 3074.212281 | BF155: 2040.882124 | BG155: 579.983522 | BH155: 298.474636 | BI155: 112.721663 | BJ155: 50.917888 | BK155: 28.766424 | BL155: 8.954852 | BM155: 2135.946184 | BN155: 2594.162286 | BO155: 2641.748969 | BP155: 2550.400156 | BQ155: 1148.38771 | BR155: 2796.879166 | BS155: 4641.066573 | BT155: 4132.535029
B156: No facility, bush, field | C156: 48.03269584 | D156: 24.87918536 | E156: 10.91295725 | F156: 4.642029906 | G156: 0.7932405732 | H156: 14.20164931 | I156: 3.349019678 | J156: 0.5542337236 | K156: 0 | L156: 0 | M156: 49.16533348 | N156: 31.82462739 | O156: 16.27099299 | P156: 5.930684441 | Q156: 3.261176636 | R156: 23.43757104 | S156: 13.67665668 | T156: 18.13665015 | BB156: No facility, bush, field | BC156: 2599.802142 | BD156: 1345.620236 | BE156: 590.794308 | BF156: 251.204892 | BG156: 42.931013 | BH156: 149.862978 | BI156: 35.138249 | BJ156: 5.84397 | BK156: 0 | BL156: 0 | BM156: 2143.233365 | BN156: 1385.58957 | BO156: 710.283253 | BP156: 258.100767 | BQ156: 142.300439 | BR156: 1683.61449 | BS156: 1404.289662 | BT156: 1742.448439
BB157: Total | BC157: 5412.56762 | BD157: 5408.618556 | BE157: 5413.695796 | BF157: 5411.531099 | BG157: 5412.105035 | BH157: 1055.250519 | BI157: 1049.209989 | BJ157: 1054.423387 | BK157: 1053.495616 | BL157: 1052.314138 | BM157: 4359.236912 | BN157: 4353.8281 | BO157: 4365.334392 | BP157: 4351.955825 | BQ157: 4363.469228 | BR157: 7183.400052 | BS157: 10267.7847 | BT157: 9607.333352
A208: =A1026 -> Viet Nam
A209: =A1034 -> 2005
A210: Access to hygiene facilities
A211: by wealth quintile and sub-national region
A212: Notes:
A213: WHO/UNICEF JMP customised wealth index excludes water,
A214: sanitation and hygiene assets.
